{"text_format":"1","workbook":"xlsx","n_sheets":46,"sheets":["Инструкция","Структура","Содержание","И1","Инвест.об.","И2","И2.1","С1","С1.1","С1.2","Data1.2","С1.3","Data1.3","С2","С2.1","Data2.1","С2.2","С2.3","С2.4","Data2.4","С2.5","С2.6","Data2.6","С3","С3.1","С4","С4.1","С4.2","С4.3","С4.4","С5","С6","И3","Проверка","ИПЦ_ИПГ","АК_прогноз","ПУЦ (п.67)","АК_прогноз_j","Гр&ПУЦ_v1","Заморозка","ИПГ_мо","ИПГ_рег","Темп VS ИПГ","МУ770_Т1","Гр&ПУЦ_v2","Системный"],"not_rendered":{"charts":0,"images":1,"macros":1,"external_links":9,"defined_names":105,"comments":0,"pivot_tables":0},"unopened":[],"bounds":{"document_bytes":16777216,"sheet_cells":100000,"rows_first":2000,"rows_last":500,"rows_between":2000,"halvings":0,"cell_chars":16384,"cell_head_chars":4096},"cells_cut":0,"cells_raw":0,"read":"whole","date_system":"1900"}

{"sheet":"Инструкция","index":0,"n_rows":3,"n_cols":2,"rows_kept":3,"cut":false,"hidden":false,"merged":[]}
[null,"Шаблон расчета. Версия 2022-11-10"]
[]
[null,"Краткая инструкция"]

{"sheet":"Структура","index":1,"n_rows":16,"n_cols":4,"rows_kept":16,"cut":false,"hidden":false,"merged":[[5,1,7,1],[5,2,7,2]]}
[null,"Структура файла"]
[]
[null,"№ пп","Вид расчета","Используемые листы"]
[null,0,"Краткая инструкция к шаблону расчета","Инструкция"]
[null,1,"Описание содержания листов расчетного файла, включающих расчет цены \"альтернативной котельной\" и иные расчеты, необходимые для отнесения поселения, городского округа к ценовой зоне теплоснабжения","Структура"]
[null,2,"Расчет цены \"альтернативной котельной\" на 2 полугодие первого расчетного периода регулирования (предельного уровня цены на тепловую энергию (мощность) в соответствии с Разделом II Постановления № 1562)","Содержание"]
[null,null,null,"Листы И1 - И3, C1 - С6"]
[null,null,null,"Проверка"]
[null,3,"Цена \"альтернативной котельной\" на 2 полугодие первого расчетного периода регулирования и прогноз цены \"альтернативной котельной\"","АК_прогноз"]
[null,4,"Расчеты, необходимые для отнесения поселения, городского округа к ценовой зоне теплоснабжения, в случае если цена \"альтернативной котельной\" выше тарифов на тепловую энергию на предполагаемый первый год функционирования ценовой зоны теплоснабжения","Гр&ПУЦ_v1"]
[null,5,"Расчеты, необходимые для отнесения поселения, городского округа к ценовой зоне теплоснабжения, в случае если цена \"альтернативной котельной\" ниже тарифов на тепловую энергию на предполагаемый первый год функционирования ценовой зоны теплоснабжения","Заморозка"]
[null,6,"Оценка возможного изменения предельного (максимального) индекса изменения размера вносимой гражданами платы за коммунальные услуги в поселении, городском округе в случае его отнесения к ценовой зоне теплоснабжения","ИПГ_мо"]
[null,7,"Расчет предполагаемого размера превышения установленного индекса изменения размера вносимой гражданами платы за коммунальные услуги в среднем по субъекту Российской Федерации более чем на величину отклонения по субъекту Российской Федерации в случае отнесения поселения, городского округа к ценовой зоне теплоснабжения","ИПГ_рег"]
[null,8,"Оценка отклонений расчетных темпов роста от индексов изменения размера вносимой гражданами платы за коммунальные услуги в среднем по субъекту Российской Федерации и установленного отклонения по субъекту Российской Федерации, предельных (максимальных) индексов изменения размера вносимой гражданами платы за коммунальные услуги по муниципальным образованиям, на территории которых находятся рассматриваемые системы теплоснабжения","Темп VS ИПГ"]
[null,9,"Таблица \"Основные ценовые параметры внедрения целевой модели рынка тепловой энергии\" (Таблица 1 Приложения № 6 МУ-770)","МУ770_Т1"]
[null,10,"Вспомогательный лист с индексами инфляции и индексом совокупного платежа граждан за коммунальные услуги","ИПЦ_ИПГ"]

{"sheet":"Содержание","index":2,"n_rows":27,"n_cols":4,"rows_kept":27,"cut":false,"hidden":false,"merged":[]}
[]
[]
[null,"№","Название формы","Выбор листа"]
[null,"И1","Информация о системе теплоснабжения","Перейти на лист И1"]
[null,"И2, И2.1","Технико-экономические параметры работы котельных и тепловых сетей, используемые для расчета предельного уровня цены на тепловую энергию (мощность) ","Перейти на лист И2"]
[null,"С1","Расчет составляющей предельного уровня цены на тепловую энергию (мощность), обеспечивающей компенсацию расходов на топливо при производстве тепловой энергии котельной","Перейти на лист С1"]
[null,"С1.1","Исходные данные для расчета составляющей предельного уровня цены на тепловую энергию (мощность), обеспечивающей компенсацию расходов на топливо при производстве тепловой энергии котельной","Перейти на лист С1.1"]
[null,"С1.2","Информация с официального сайта единой информационной системы в сфере закупок, региональных и муниципальных информационных систем в сфере закупок по завершенным закупкам, в результате которых заключены договоры на поставку топлива покупателю по ценам на топливо, включающим затраты на его доставку (форма таблицы для сбора исходных данных)","Перейти на лист С1.2"]
[null,"С1.3","Информация о рыночных ценах на топливо, включающих затраты на его доставку, сложившихся на организованных торговых площадках, в том числе на биржах, функционирующих на территории Российской Федерации (форма таблицы для сбора исходных данных)","Перейти на лист С1.3"]
[null,"С2","Расчет составляющей предельного уровня цены на тепловую энергию (мощность), обеспечивающей возврат капитальных затрат на строительство котельной и тепловых сетей","Перейти на лист С2"]
[null,"С2.1","Исходные данные для расчета составляющей предельного уровня цены на тепловую энергию (мощность), обеспечивающей возврат капитальных затрат на строительство котельной и тепловых сетей","Перейти на лист С2.1"]
[null,"С2.2","Расчет базовой величины капитальных затрат на строительство тепловых сетей в базовом (2019) году","Перейти на лист С2.2"]
[null,"С2.3","Расчет затрат на подключение (технологическое присоединение) котельной к централизованной системе водоснабжения и водоотведения в базовом (2019) году","Перейти на лист С2.3"]
[null,"С2.4","Информация об удельной базовой стоимости земельного участка для размещения котельной","Перейти на лист С2.4"]
[null,"С2.5","Расчет прогнозного индекса цен производителей промышленной продукции в i-м расчетном периоде регулирования","Перейти на лист С2.5"]
[null,"С2.6","Расчет средневзвешенной по дням 9 месяцев (i-1)-го расчетного периода регулирования ключевой ставки Центрального банка Российской Федерации","Перейти на лист С2.6"]
[null,"С3","Расчет составляющей предельного уровня цены на тепловую энергию (мощность), обеспечивающей компенсацию расходов на уплату налогов ","Перейти на лист С3"]
[null,"С3.1","Исходные данные для расчета составляющей предельного уровня цены на тепловую энергию (мощность), обеспечивающей компенсацию расходов на уплату налогов ","Перейти на лист С3.1"]
[null,"С4","Расчет составляющей предельного уровня цены на тепловую энергию (мощность), обеспечивающей компенсацию прочих расходов при производстве тепловой энергии котельной","Перейти на лист С4"]
[null,"С4.1","Исходные данные для расчета составляющей предельного уровня цены на тепловую энергию (мощность), обеспечивающей компенсацию прочих расходов при производстве тепловой энергии котельной","Перейти на лист С4.1"]
[null,"С4.2","Информация о цене (тарифе) на электрическую энергию (мощность), поставляемую покупателям на розничном рынке, функционирующем в поселении, городском округе, на территории которого находится система теплоснабжения, в базовом (2019) году","Перейти на лист С4.2"]
[null,"С4.3","Расчет расходов на водоподготовку и водоотведение котельной в базовом (2019) году","Перейти на лист С4.3"]
[null,"С4.4","Расчет расходов на оплату труда персонала котельной с использованием угля в базовом (2019) году","Перейти на лист С4.4"]
[null,"С5","Расчет составляющей предельного уровня цены на тепловую энергию (мощность), обеспечивающей создание резерва по сомнительным долгам","Перейти на лист С5"]
[null,"С6","Расчет составляющей предельного уровня цены на тепловую энергию (мощность), обеспечивающей учет отклонений фактических показателей от прогнозных показателей, используемых при расчете предельного уровня цены на тепловую энергию (мощность) ","Перейти на лист С6"]
[null,"И3","Предельный уровень цены на тепловую энергию (мощность), рассчитанный в соответствии с частью 1 статьи 23.6 Федерального закона от 27.07.2010 № 190-ФЗ \"О теплоснабжении\" и Постановлением № 1562, а также сведения о параметрах, использованных при расчете (далее  - лист \"Итог\")","Перейти на лист И3"]
[null,"Проверка","Проверка корректности и полноты заполнения шаблона","Перейти на лист \"Проверка\""]

{"sheet":"И1","index":3,"n_rows":29,"n_cols":12,"rows_kept":29,"cut":false,"hidden":false,"merged":[[3,2,3,3],[28,3,28,5],[5,3,5,4],[25,3,25,5],[26,3,26,5],[27,3,27,5]]}
[]
[]
[]
[null,null,"вернуться на лист \"Содержание\"",null,null,null,null,null,null,null,"да","впервые после отнесения муниципального образования к ценовой зоне теплоснабжения"]
[null,null,null,null,"Форма И1",null,null,null,null,null,"нет","на второй и последующие годы функционирования ценовой зоны теплоснабжения после окончания переходного периода"]
[null,null,null,"Информация о системе теплоснабжения"]
[null,null,null,null,null,null,null,null,null,null,"2022-11-03"]
[null,null,null,{"$f":"CONCATENATE(\"Период регулирования \",IF(AND(E19=\"да\",OR(E23=\"нет\",Инвест.об.!E12=\"нет\"),E8<>2023),\"(j)-й\",\"(i)-й\"))","v":"Период регулирования (i)-й"},2024,null,"(см.примечание №1)",null,null,null,{"$f":"IF(E20=\"\",\"\",IF(E20>=K7,\"после\",\"до\"))","v":""}]
[null,null,null,{"$f":"CONCATENATE(\"Период регулирования \",IF(AND(E19=\"да\",OR(E23=\"нет\",Инвест.об.!E12=\"нет\"),E8<>2023),\"(j-1)-й\",\"(i-1)-й\"))","v":"Период регулирования (i-1)-й"},{"$f":"E8-1","v":2023}]
[null,null,null,{"$f":"CONCATENATE(\"Период регулирования \",IF(AND(E19=\"да\",OR(E23=\"нет\",Инвест.об.!E12=\"нет\"),E8<>2023),\"(j-2)-й\",\"(i-2)-й\"))","v":"Период регулирования (i-2)-й"},{"$f":"E8-2","v":2022}]
[null,null,null,"Базовый год (б)",2019,null,"(см.примечание №1)"]
[]
[null,null,null,"Субъект Российской Федерации","Ненецкий автономный округ"]
[null,null,null,"Тип муниципального образования (выберите из списка)","Заполярный район",null,"(см.примечание №2)"]
[null,null,null,{"$f":"IF(D14=\"Муниципальный район\", \"Поселение\", IF(D14=\"Муниципальный округ\",\"Населенный пункт\",\"\"))","v":""}]
[null,null,null,"Код ОКТМО","Нижняя Пеша; Верхняя Пеша; Волоковая",null,"(см.примечание №3)"]
[null,null,null,"Система теплоснабжения",null,null,"(см.примечание №4)"]
[null,null,null,"Вид топлива, использование которого преобладает в системе теплоснабжения","Уголь"]
[null,null,null,"Муниципальное образование, на территории которого находится система теплоснабжения, отнесено к ценовой зоне теплоснабжения? (выберите из списка)","нет"]
[null,null,null,"Дата отнесения муниципального образования к ценовой зоне теплоснабжения ",null,null,"(см.примечание №5)"]
[null,null,null,"Утвержден ли предельный уровень цены на тепловую энергию (мощность) для системы теплоснабжения на 2 полугодие 2022 года? (выберите из списка)"]
[null,null,null,"Расчет предельного уровня цены осуществляется (выберите из списка)"]
[null,null,null,"Имеется ли отклонение на j-й расчетный период регулирования:\n- прогнозного индекса роста цены на топливо более чем на 10%, \n                                      и (или)\n- прогнозного индекса цен производителей промышленной продукции более чем на 5%,\n                                      и (или) \n- средневзвешенной по дням 9 месяцев предшествующего планируемому расчетному периоду регулирования ключевой ставки Центрального банка Российской Федерации более чем на 5% ,\nот аналогичных показателей на i-й расчетный период регулирования, в котором предельный уровень цены был определен в соответствии с пунктом 10 Правил? \n(выберите из списка)"]
[]
[null,null,"Примечание:"]
[null,null,1,"Период регулирования определяется в соответствии с пунктом 94 Правил.\nБазовый год определяется в соответствии с Постановлением №1562.\n"]
[null,null,"2\n\n\n\n\n\n\n\n\n\n3","В случае, если соответствующая система теплоснабжения находится в границах муниципального округа, территория которого полностью отнесена к ценовой зоне теплоснабжения, в целях расчета предельного уровня цены на тепловую энергию (мощность) используются правила расчета, предусмотренные для городского округа. Строка \"Населенный пункт\" в таком случае не заполняется.\nВ случае, если соответствующая система теплоснабжения находится в границах муниципального округа, территория которого не отнесена полностью к ценовой зоне теплоснабжения, в строке \"Населенный пункт\" требуется указать наименование населенного пункта, отнесенного к ценовой зоне теплоснабжения. В целях расчета предельного уровня цены на тепловую энергию (мощность) используется данные, установленные для указанного населенного пункта, а при их отсутствии данные по муниципальному округу.\n\nКод территории, в границах которой находится система теплоснабжения, в отношении которой осуществляется расчет, в соответствии с ОКТМО."]
[null,null,4,"Наименование системы теплоснабжения, в отношении которой выполняется расчет, определяемое в соответствии с утвержденной схемой теплоснабжения поселения, городского округа."]
[null,null,5,"Дата отнесения муниципального образования к ценовой зоне теплоснабжения вводится в виде даты в формате ДД.ММ.ГГГГ"]

{"sheet":"Инвест.об.","index":4,"n_rows":15,"n_cols":11,"rows_kept":15,"cut":false,"hidden":true,"merged":[[4,2,4,5],[14,2,14,6]]}
[]
[]
[]
[null,null,null,null,null,null,null,null,null,null,"да"]
[null,null,"Информация о наличии условий, при которых не применяются изменения, утвержденные постановлением Правительства Российской Федерации от 03.11.2022 № 1985 \"О внесении изменений в постановление Правительства Российской Федерации от 15 декабря 2017 г. № 1562\"",null,null,null,null,null,null,null,"нет"]
[]
[null,null,"№ пп","Наименование","Значение","Источник информации"]
[null,null,1,2,3,4]
[null,null,1,"В опубликованной ЕТО отчетной информации о выполнении соглашения об исполнении схемы теплоснабжения за весь период (годы) функционирования ценовой зоны до 31.12.2021 года указано о неполном исполнении обязательств ЕТО по выполнению за весь период (годы) функционирования ценовой зоны теплоснабжения до 31.12.2021 года мероприятий по строительству, реконструкции и (или) модернизации объектов теплоснабжения, необходимых для развития, повышения надежности и энергетической эффективности системы теплоснабжения, определенных для нее в схеме теплоснабжения (далее - мероприятий) (подпункт \"а\" пункта 66 Правил)? (выберите из списка)"]
[null,null,2,"В отношении ЕТО в 2021-2022 годах имеются:\n    -вступившие в законную силу два и более решения суда о применении мер ответственности за неисполнение или ненадлежащее исполнение обязательств по выполнению предусмотренных соглашением об исполнении схемы теплоснабжения мероприятий;\n    -и (или) вступившие в законную силу два и более постановления по делу об административном правонарушении о назначении наказания за невыполнение ЕТО в установленный срок законного предписания (постановления, представления, решения) органа, осуществляющего муниципальный контроль за выполнением ЕТО в системе теплоснабжения мероприятий (подпункт \"б\" пункта 66 Правил)? (выберите из списка)"]
[null,null,3,"В каком году условия пункта 67 раздела V Правил были выполнены?",null,null,null,"(см.примечание №1)"]
[null,null,{"$f":"IF(AND(E11=\"\",E12=\"\"),3,4)","v":3},"Имеется ли отклонение на j-й расчетный период регулирования:\n- прогнозного индекса роста цены на топливо более чем на 10%, \n                                      и (или)\n- прогнозного индекса цен производителей промышленной продукции более чем на 5%,\n                                      и (или) \n- средневзвешенной по дням 9 месяцев предшествующего планируемому расчетному периоду регулирования ключевой ставки Центрального банка Российской Федерации более чем на 5% ,\nот аналогичных показателей на i-й расчетный период регулирования, в котором предельный уровень цены был определен в соответствии с пунктом 10 Правил? (выберите из списка)"]
[]
[null,"Примечание:"]
[null,1,"В стр.3 укажите год в формате ДДДД\nВ случае, если условия пункта 67 раздела V Правил на момент заполнения стр.3 не были выполнены, оставьте поле пустым. "]

{"sheet":"И2","index":5,"n_rows":443,"n_cols":10,"rows_kept":443,"cut":false,"hidden":false,"merged":[[252,0,252,5],[253,0,254,1],[253,2,253,9],[258,0,258,5],[43,0,43,3],[44,0,44,3],[46,1,46,5],[47,1,47,5],[127,0,128,1],[127,2,128,2],[88,0,89,5],[111,0,112,5],[90,0,90,1],[113,0,113,1],[126,0,126,5],[420,0,421,1],[261,0,261,1],[262,0,262,1],[265,0,265,5],[410,0,410,5],[0,0,0,1],[61,0,62,0],[61,1,62,1],[61,2,62,2],[2,0,2,5],[4,0,4,5],[5,0,6,0],[5,1,6,1],[5,2,6,2],[25,0,25,5],[26,0,26,1],[51,0,52,1],[3,0,3,5],[42,0,42,3],[51,2,52,2],[49,0,50,5],[440,0,440,5],[255,0,255,1],[266,0,266,1],[404,0,404,5],[405,0,406,1],[405,2,405,6],[407,0,407,1],[420,3,421,3],[420,4,421,4],[420,5,421,5],[438,1,438,2],[419,0,419,5],[432,0,435,5],[416,1,416,6],[259,0,260,1],[259,2,259,5]]}
["Вернуться на лист \"Содержание\""]
[null,null,null,null,null,"Форма И2"]
["Технико-экономические параметры работы котельных и тепловых сетей, используемые для расчета предельного уровня цены на тепловую энергию (мощность)"]
["утверждены Постановлением № 1562"]
["I. Технико-экономические параметры работы котельных"]
[null,"Наименование параметра","Единица измерения","Тип котельной по виду используемого топлива"]
[null,null,null,"уголь"]
["1.","Установленная тепловая мощность","Гкал/ч",7]
["2.","Площадь земельного участка под строительство","кв. м",4200]
["3.","Общая жилая площадь жилого квартала, на территории которого находится котельная","кв. м","184-250"]
["4.","Средняя этажность жилой застройки","этажей",5]
[5,"Тип оборудования по видам используемого топлива","-","блочно-модульная котельная"]
["6.","Коэффициент готовности, учитывающий продолжительность годовой работы оборудования котельной","-",0.97]
["7.","Удельный расход топлива при производстве тепловой энергии котельной","кг у.т./Гкал",176.4]
["8.","Низшая теплота сгорания мазута, дифференциация технико-экономических параметров работы котельных и тепловых сетей по которому применяется для целей расчета предельного уровня цены на тепловую энергию (мощность) в случае, если в структуре топливного баланса системы теплоснабжения отсутствуют виды топлива: природный газ, уголь и мазут","ккал/кг","-"]
["9.","Диапазон объема потребления газа при производстве тепловой энергии котельной","млн куб. м/год","-"]
["10.","Ценовая категория потребителя розничного рынка электрической энергии","-","первая ценовая категория (для технологически изолированных территориальных электроэнергетических систем и территорий, технологически не связанных с Единой энергетической системой России и технологически изолированными территориальными электроэнергетическими системами - категория, для которой применяется одноставочная цена (тариф) на электрическую энергию без дифференциации по зонам суток )"]
["11.","Расход воды на водоподготовку","куб. м/год",1871]
["12.","Расход воды на собственные нужды котельной","куб. м/год",1636]
["13.","Объем водоотведения","куб. м/год",204]
["14.","Базовая величина капитальных затрат на строительство котельной","тыс. рублей",113455]
["15.","Базовая величина капитальных затрат на основные средства котельной","тыс. рублей",73547]
["16.","Коэффициент расходов на техническое обслуживание и ремонт основных средств котельной","-",0.02]
[]
[]
["II. Технико-экономические параметры работы тепловых сетей"]
["Наименование параметра",null,"Единица измерения","Значение"]
["1.","Температурный график","°C","110/70"]
["2.","Теплоноситель","-","горячая вода"]
["3.","Расчетное давление в сети","МПа (кгс/кв. см)","0,6 (6,0)"]
["4.","Тип схемы тепловых сетей для территорий, не относящихся к территориям распространения вечномерзлых грунтов","-","двухтрубная, независимая закрытая, строительство индивидуальных тепловых пунктов не включается"]
[5,"Тип схемы тепловых сетей для территорий, относящихся к территориям распространения вечномерзлых грунтов","-","четырехтрубная, независимая закрытая, строительство индивидуальных тепловых пунктов не включается"]
["6.","Способ прокладки тепловой сети для территорий, не относящихся к территориям распространения вечномерзлых грунтов","-","подземный бесканальный"]
["7.","Тип изоляции для территорий, не относящихся к территориям распространения вечномерзлых грунтов","-","пенополиуретан в полиэтиленовой оболочке"]
["8.","Способ прокладки тепловой сети для территорий, относящихся к территориям распространения вечномерзлых грунтов","-","наземная прокладка на опорах"]
["9.","Тип изоляции для территорий, относящихся к территориям распространения вечномерзлых грунтов","-","пенополиуретан в оцинкованной оболочке"]
["10.","Параметры тепловой сети","-","определяются в соответствии с таблицей 1 \"Параметры тепловой сети\""]
["11.","Базовая величина капитальных затрат на основные средства тепловых сетей","тыс.рублей","определяется в соответствии с таблицей 2 \"Базовая величина капитальных затрат на основные средства тепловых сетей в базовом году \nи сметная стоимость строительно-монтажных и пусконаладочных работ по объекту строительства \"Внешние инженерные сети теплоснабжения\", учитывающая прямые затраты, накладные расходы и сметную прибыль, \nв ценах 2001 года\""]
["12.","Сметная стоимость строительно-монтажных и пусконаладочных работ по объекту строительства «Внешние инженерные сети теплоснабжения», учитывающая прямые затраты, накладные расходы и сметную прибыль, в ценах 2001 года","тыс.рублей","определяется в соответствии с таблицей 2 \"Базовая величина капитальных затрат на основные средства тепловых сетей в базовом году \nи сметная стоимость строительно-монтажных и пусконаладочных работ по объекту строительства \"Внешние инженерные сети теплоснабжения\", учитывающая прямые затраты, накладные расходы и сметную прибыль, \nв ценах 2001 года\""]
["13.","Индекс изменения сметной стоимости строительно-монтажных и пусконаладочных работ по объекту строительства «Внешние инженерные сети теплоснабжения» в базовом году","-","в соответствии с таблицей 3 \"Индекс изменения сметной стоимости строительно-монтажных и пусконаладочных работ по объекту строительства \"Внешние инженерные сети теплоснабжения\" на базовый год\""]
["14.","Коэффициент расходов на техническое обслуживание и ремонт основных средств тепловых сетей","-",1.4999999999999999E-2]
[]
["Перейти к таблице 1 \"Параметры тепловой сети\""]
["Перейти к таблице 2 \"Базовая величина капитальных затрат на основные средства тепловых сетей в базовом году \nи сметная стоимость строительно-монтажных и пусконаладочных работ по объекту строительства \"Внешние инженерные сети теплоснабжения\", учитывающая прямые затраты, накладные расходы и сметную прибыль, \nв ценах 2001 года\""]
["Перейти к таблице 3 \"Индекс изменения сметной стоимости строительно-монтажных и пусконаладочных работ по объекту строительства \"Внешние инженерные сети теплоснабжения\" на базовый год\""]
[]
[null,"II.1. Коэффициент учета потерь тепловой энергии в тепловых сетях в зависимости от типа этажности и вида используемого топлива"]
[null,"II.2. Коэффициент учета стоимости транспортных услуг, оказываемых на подъездных железнодорожных путях организациями промышленного железнодорожного транспорта и другими хозяйствующими субъектами независимо от организационно-правовой формы, за исключением организаций федерального железнодорожного транспорта"]
[]
["III. Параметры технологического присоединения (подключения) энергопринимающих устройств котельной к электрическим сетям"]
[]
["Наименование параметра",null,"Единица измерения","Тип котельной по виду используемого топлива"]
[null,null,null,"уголь"]
["1.","Общая максимальная мощность энергопринимающих устройств котельной","кВт",180]
["2.","Уровень напряжения электрической сети","кВ","10 (6)"]
["3.","Категория надежности электроснабжения","-","первая"]
["4.","Подготовка и выдача сетевой организацией технических условий заявителю (котельной)","-","осуществляется"]
["5.","Разработка сетевой организацией проектной документации по строительству \"последней мили\"","-","осуществляется"]
["6.","Выполнение сетевой организацией мероприятий, связанных со строительством \"последней мили\"","-","выполняются"]
["а)","строительство воздушных линий","-","не осуществляется"]
["б)","строительство кабельных линий:","-","осуществляется"]
[null,"протяженность линий","км",0.6]
[null,null,null,"(2 линии в траншее по 0,3 км каждая)"]
[null,"сечение жилы","кв. мм",25]
[null,"материал жилы","-","алюминий"]
[null,"количество жил в линии","штук",3]
[null,"способ прокладки","-","в траншее"]
[null,"вид изоляции кабеля","-","кабели с изоляцией из поливинилхлоридного пластиката или сшитого полиэтилена, с наружной оболочкой или защитным шлангом из поливинилхлоридного пластиката или кабели с изоляцией из сшитого полиэтилена с защитным шлангом из полиэтилена (общепромышленное исполнение) или с металлической, свинцовой и другой оболочкой"]
["в)","строительство пунктов секционирования",null,"осуществляется"]
["г)","количество пунктов секционирования","штук",2]
["д)","строительство комплектных трансформаторных подстанций по уровням напряжения",null,"не осуществляется"]
["е)","строительство распределительных трансформаторных подстанций по уровням напряжения",null,"не осуществляется"]
["ж)","строительство распределительных пунктов по уровням напряжения",null,"не осуществляется"]
["з)","строительство центров питания, подстанций по уровням напряжения",null,"не осуществляется"]
["7.","Проверка сетевой организацией выполнения заявителем (котельной) технических условий",null,"осуществляется"]
["8.","Участие сетевой организации в осмотре должностным лицом органа федерального государственного энергетического надзора присоединяемых устройств заявителя (котельной)",null,"осуществляется"]
["9.","Фактические действия по присоединению и обеспечению работы устройств в электрической сети",null,"осуществляются"]
["10.","Базовая величина затрат на подключение (технологическое присоединение) к электрическим сетям:"]
[null,"Дальневосточный федеральный округ","тыс. рублей",3447]
[null,"Приволжский федеральный округ","тыс. рублей",6121]
[null,"Северо-Западный федеральный округ","тыс. рублей",3132]
[null,"Северо-Кавказский федеральный округ","тыс. рублей",2166]
[null,"Сибирский федеральный округ","тыс. рублей",1990]
[null,"Уральский федеральный округ","тыс. рублей",2571]
[null,"Центральный федеральный округ","тыс. рублей",3758]
[null,"Южный федеральный округ","тыс. рублей",3612]
[]
[]
["IV. Параметры подключения (технологического присоединения) котельной к централизованной системе водоснабжения и водоотведения"]
[]
["Наименование параметра",null,"Единица измерения","Тип котельной по виду используемого топлива\nуголь"]
["1.","Объем бака аварийного запаса воды","куб. м",90]
["2.","Размер поперечного сечения трубопровода сетей централизованного водоснабжения и водоотведения","кв. см","до 300"]
["3.","Величина подключаемой (технологически присоединяемой) нагрузки","куб. м/ч","до 10"]
["4.","Диаметр трубопровода сетей централизованного водоснабжения","мм",25]
["5.","Диаметр трубопровода сетей водоотведения","мм",100]
["6.","Условия прокладки сетей централизованного водоснабжения и водоотведения:"]
[null,"а) тип прокладки сетей централизованного водоснабжения и водоотведения","-","подземная"]
[null,"б) материал трубопровода сетей централизованного водоснабжения (водоотведения)","-","полиэтилен, или сталь, или чугун, или иной материал"]
[null,"в) глубина залегания","-","ниже глубины промерзания"]
[null,"г) стесненность условий при прокладке сетей централизованного водоснабжения и водоотведения","-","городская застройка, новое строительство"]
[null,"д) тип грунта","-","по местным условиям"]
["7.","Величина подключаемой (технологически присоединяемой) нагрузки к централизованной системе водоснабжения","куб. м/сутки",9.89]
["8.","Величина подключаемой (технологически присоединяемой) нагрузки к централизованной системе водоотведения","куб. м/ сутки",0.56000000000000005]
["9.","Протяженность сетей от котельной до места подключения к централизованной системе водоснабжения и водоотведения","М",300]
["10.","Базовая ставка тарифа за подключаемую (технологически присоединяемую) нагрузку водопроводной сети","рублей/ куб. м/сутки",61211]
["11.","Базовая ставка тарифа за расстояние от точки подключения (технологического присоединения) котельной до точки подключения водопроводных сетей к централизованной системе водоснабжения","рублей/м",45675]
["12.","Базовая ставка тарифа за подключаемую (технологически присоединяемую) нагрузку канализационной сети","рублей/куб. м/сутки",65637]
["13.","Базовая ставка тарифа за расстояние от точки подключения (технологического присоединения) котельной до точки подключения канализационных сетей к централизованной системе водоотведения","рублей/м",31684]
[]
[]
["V. Параметры подключения (технологического присоединения) котельной к газораспределительным сетям"]
[]
["Наименование параметра",null,"Единица измерения","Для котельной с видом используемого топлива - природный газ"]
["1.","Тип газопровода","-","оцинкованный, однотрубный"]
["2.","Тип прокладки газопровода (подземная или надземная (наземная)","-","наземная"]
["3.","Диаметр газопровода","мм",100]
["4.","Масса газопровода","т/м",1.2500000000000001E-2]
["5.","Протяженность газопровода","м",1000]
["6.","Максимальный часовой расход газа","куб. м/ч",1065]
["7.","Газорегуляторные пункты шкафные","Штук",1]
["8.","Тип газорегуляторного пункта","-","2 нитки редуцирования"]
["9.","Пункт учета расхода газа","Штук",1]
["10.","Базовая величина затрат на технологическое присоединение к газораспределительным сетям","тыс. рублей",2892]
[]
[]
["VI. Коэффициент использования установленной тепловой мощности в зависимости от типа этажности и вида используемого топлива"]
["Поселение, городской округ",null,"Температурная зона","Коэффициент использования установленной тепловой мощности котельной в зависимости от типа этажности и вида используемого топлива"]
[null,null,null,"5-этажная жилая застройка\nуголь"]
["1.","Якутск","VII",0.38800000000000001]
["2.","Белогорск","VI",0.38200000000000001]
["3.","Благовещенск","VI",0.38]
["4.","Магадан","VI",0.45600000000000002]
["5.","Улан-Удэ","V",0.39]
["6.","Братск","V",0.35299999999999998]
["7.","Иркутск","V",0.38300000000000001]
["8.","Кемерово","V",0.34599999999999997]
["9.","Киселевск","V",0.34]
["10.","Воркута","V",0.41499999999999998]
["11.","Ачинск","V",0.35899999999999999]
["12.","Канск","V",0.34699999999999998]
["13.","Красноярск","V",0.35199999999999998]
["14.","Минусинск","V",0.33300000000000002]
["15.","Новосибирск","V",0.35]
["16.","Омск","V",0.34499999999999997]
["17.","Томск","V",0.35099999999999998]
["18.","Кызыл","V",0.35199999999999998]
["19.","Сургут","V",0.372]
["20.","Тобольск","V",0.35]
["21.","Тюмень","V",0.35399999999999998]
["22.","Уренгой","V",0.40100000000000002]
["23.","Ханты-Мансийск","V",0.36799999999999999]
["24.","Биробиджан","V",0.39500000000000002]
["25.","Комсомольск-на-Амуре","V",0.38500000000000001]
["26.","Хабаровск","V",0.38100000000000001]
["27.","Чита","V",0.39]
["28.","Абакан","V",0.35099999999999998]
["29.","Барнаул","IV",0.34200000000000003]
["30.","Бийск","IV",0.34200000000000003]
["31.","Рубцовск","IV",0.33400000000000002]
["32.","Архангельск","IV",0.374]
["33.","Котлас","IV",0.377]
["34.","Белорецк","IV",0.36499999999999999]
["35.","Уфа","IV",0.34200000000000003]
["36.","Петропавловск-Камчатский","IV",0.44800000000000001]
["37.","Киров","IV",0.36199999999999999]
["38.","Сыктывкар","IV",0.35899999999999999]
["39.","Ухта","IV",0.36799999999999999]
["40.","Курган","IV",0.34200000000000003]
["41.","Йошкар-Ола","IV",0.34]
["42.","Саранск","IV",0.33800000000000002]
["43.","Мурманск","IV",0.39700000000000002]
["44.","Арзамас","IV",0.34499999999999997]
["45.","Выкса","IV",0.33700000000000002]
["46.","Нижний Новгород","IV",0.34499999999999997]
["47.","Оренбург","IV",0.33200000000000002]
["48.","Пенза","IV",0.34300000000000003]
["49.","Пермь","IV",0.34499999999999997]
["50.","Владивосток","IV",0.36899999999999999]
["51.","Самара","IV",0.33800000000000002]
["52.","Южно-Сахалинск","IV",0.41399999999999998]
["53.","Екатеринбург","IV",0.35599999999999998]
["54.","Каменск-Уральский","IV",0.35299999999999998]
["55.","Бугульма","IV",0.35399999999999998]
["56.","Елабуга","IV",0.34100000000000003]
["57.","Казань","IV",0.34300000000000003]
["58.","Глазов","IV",0.35499999999999998]
["59.","Ижевск","IV",0.35]
["60.","Сарапул","IV",0.34599999999999997]
["61.","Ульяновск","IV",0.35199999999999998]
["62.","Челябинск","IV",0.35099999999999998]
["63.","Чебоксары","IV",0.34799999999999998]
["64.","Белгород","III",0.33800000000000002]
["65.","Брянск","III",0.34200000000000003]
["66.","Владимир","III",0.34599999999999997]
["67.","Муром","III",0.33900000000000002]
["68.","Волгоград","III",0.33100000000000002]
["69.","Камышин","III",0.33500000000000002]
["70.","Вологда","III",0.35199999999999998]
["71.","Воронеж","III",0.33600000000000002]
["72.","Иваново","III",0.34399999999999997]
["73.","Кинешма","III",0.35099999999999998]
["74.","Калуга","III",0.34300000000000003]
["75.","Петрозаводск","III",0.36699999999999999]
["76.","Кострома","III",0.35099999999999998]
["77.","Курск","III",0.33900000000000002]
["78.","Липецк","III",0.33900000000000002]
["79.","Санкт-Петербург","III",0.35]
["80.","Тихвин","III",0.34300000000000003]
["81.","Дмитров","III",0.34499999999999997]
["82.","Москва","III",0.34399999999999997]
["83.","Боровичи","III",0.34100000000000003]
["84.","Великий Новгород","III",0.34899999999999998]
["85.","Орел","III",0.33900000000000002]
["86.","Рязань","III",0.34599999999999997]
["87.","Балашов","III",0.33100000000000002]
["88.","Саратов","III",0.33600000000000002]
["89.","Вязьма","III",0.35]
["90.","Смоленск","III",0.34599999999999997]
["91.","Тамбов","III",0.33400000000000002]
["92.","Ржев","III",0.34300000000000003]
["93.","Тверь","III",0.34]
["94.","Тула","III",0.34100000000000003]
["95.","Ярославль","III",0.35]
["96.","Астрахань","II",0.311]
["97.","Элиста","II",0.30599999999999999]
["98.","Великие Луки","II",0.32800000000000001]
["99.","Псков","II",0.33200000000000002]
["100.","Ростов-на-Дону","II",0.32]
["101.","Таганрог","II",0.32500000000000001]
["102.","Майкоп","I",0.28100000000000003]
["103.","Дербент","I",0.32500000000000001]
["104.","Махачкала","I",0.313]
["105.","Нальчик","I",0.32300000000000001]
["106.","Калининград","I",0.33300000000000002]
["107.","Черкесск","I",0.32500000000000001]
["108.","Краснодар","I",0.29499999999999998]
["109.","Сочи","I",0.28499999999999998]
["110.","Тихорецк","I",0.311]
["111.","Владикавказ","I",0.36499999999999999]
["112.","Кисловодск","I",0.35399999999999998]
["113.","Невинномысск","I",0.32800000000000001]
["114.","Пятигорск","I",0.32100000000000001]
["115.","Ставрополь","I",0.32400000000000001]
["116.","Грозный","I",0.317]
["117.","Симферополь","I",0.311]
["118.","Феодосия","I",0.28999999999999998]
["119.","Ялта","I",0.315]
["120.","Керчь","I",0.32700000000000001]
["121.","Севастополь","I",0.3]
[]
[]
["VII. Коэффициент температурной зоны"]
["Наименование типа котельной",null,"Коэффициент температурной зоны"]
[null,null,"I","II","III","IV","V","VI","VII","VIII"]
["Котельная с использованием вида топлива - природный газ, уголь, мазут",null,0.995,0.997,1,1.038,1.071,1.109,1.1479999999999999,1.1870000000000001]
[]
[]
["VIII. Коэффициент сейсмического влияния"]
["Наименование типа котельной, тепловых сетей",null,"Коэффициент сейсмического влияния"]
[null,null,"6 и менее баллов","7 баллов","8 баллов","9 и более баллов"]
["Котельная с использованием вида топлива - природный газ, уголь, мазут",null,1,1.0049999999999999,1.0069999999999999,1.01]
["Тепловые сети",null,1,1,1.03,1.03]
[]
[]
["IX. Перечень температурных зон"]
["Наименование территории",null,"Температурные зоны"]
["1.","Республика Адыгея (Адыгея)","I"]
["2.","Республика Алтай","IV"]
["3.","Республика Башкортостан","IV"]
["4.","Республика Бурятия:"]
[null,"а) территория севернее линии Нижнеангарск - Шипишка (включительно)","VI"]
[null,"б) остальная территория Республики Бурятия","V"]
["5.","Республика Дагестан","I"]
["6.","Республика Ингушетия","I"]
["7.","Кабардино-Балкарская Республика","I"]
["8.","Республика Калмыкия","II"]
["9.","Карачаево-Черкесская Республика","I"]
["10.","Республика Карелия:"]
[null,"а) территория севернее 64 параллели северной широты","IV"]
[null,"б) остальная территория Республики Карелия","III"]
["11.","Республика Коми:"]
[null,"а) территория севернее Северного полярного круга","V"]
[null,"б) территория восточнее линии Ермица - Ижма - Сосногорск - Помоздино - Усть-Нем (включительно)","V"]
[null,"в) остальная территория Республики Коми","IV"]
["12.","Республика Марий Эл","IV"]
["13.","Республика Мордовия","IV"]
["14.","Республика Саха (Якутия):"]
[null,"а) Новосибирские острова","VI"]
[null,"б) Анабарский национальный (долгано-эвенкийский) муниципальный район и Булунский муниципальный район севернее линии Усть-Оленек - Побережье и острова Оленекского залива и острова Дунай-Арыта (включительно)","VI"]
[null,"в) территория севернее линии пересечения границ Таймырского Долгано-Ненецкого муниципального района с Анабарским национальным (долгано-эвенкийским) и Оленекским муниципальными районами; Булунский район севернее линии Таймылыр - Тит - Ары - Бухта Сытыган - Тала (включительно); Усть-Янский муниципальный район - протока Правая (исключительно) - побережье Янского залива - Селяхская губа - Чокурдах (включительно); Аллаиховский муниципальный район - пересечение границ Аллаиховского, Нижнеколымского, Среднеколымского муниципальных районов и далее вдоль южной границы Нижнеколымского района, за исключением территории, указанной в подпункте \"б\" настоящего пункта","VI"]
[null,"г) Анабарский национальный (долгано-эвенкийский), Булунский муниципальные районы, за исключением территории, указанной в подпунктах \"б\" и \"в\" настоящего пункта; Усть-Янский муниципальный район, за исключением территории, указанной в подпункте \"в\" настоящего пункта; Аллаиховский муниципальный район, за исключением территории, указанной в подпункте \"в\" настоящего пункта; Жиганский, Абыйский, Оленекский, Среднеколымский, Верхнеколымский муниципальные районы","VII"]
[null,"д) Верхоянский, Момский, Оймяконский, Томпонский муниципальные районы","VIII"]
[null,"е) Амгинский, Верхневилюйский, Вилюйский, Горный, Кобяйский, Мегино-Кангаласский, Мирнинский, Намский, Сунтарский, Таттинский, Усть-Алданский, Усть-Майский, Хангаласский, Чурапчинский муниципальные районы, г. Якутск, городской округ Жатай","VII"]
[null,"ж) Алданский, Ленский, Олекминский и Нерюгинский муниципальные районы","VI"]
["15.","Республика Северная Осетия - Алания","I"]
["16.","Республика Татарстан (Татарстан)","IV"]
["17.","Республика Тыва","V"]
["18.","Удмуртская Республика","IV"]
["19.","Республика Хакасия","V"]
["20.","Чеченская Республика","I"]
["21.","Чувашская Республика - Чувашия","IV"]
["22.","Алтайский край","IV"]
["23.","Забайкальский край:"]
[null,"а) территория севернее линии Шипишка - Тунгокочен - Букачача - Сретенск - Шелопугино - Приаргунск (включительно)","VI"]
[null,"б) остальная территория Забайкальского края","V"]
["24.","Камчатский край:"]
[null,"а) территория северо-западнее линии Парень - Слаутное (исключая Слаутное)","V"]
[null,"б) территория юго-восточнее линии Парень - Слаутное (включительно) и севернее линии Рекинники - Тиличики (включительно)","V"]
[null,"в) территория южнее линии Рекинники - Тиличики","IV"]
["25.","Краснодарский край","I"]
["26.","Красноярский край:"]
[null,"а) территория Таймырского Долгано-Ненецкого муниципального района севернее линии Сидоровск - Потапово - Норильск (включительно) и ближайшие острова (архипелаг Северная Земля и др.)","VI"]
[null,"б) остальная территория Таймырского Долгано-Ненецкого муниципального района","VI"]
[null,"в) Эвенкийский район и территория Красноярского края севернее линии Верхнеимбатское - река Таз (включительно)","VI"]
[null,"г) территория южнее Копьево - Новоселово - Агинское (включительно)","V"]
[null,"д) остальная территория Красноярского края","V"]
["27.","Пермский край","IV"]
["28.","Приморский край:"]
[null,"а) территория севернее линии Трудовое - Партизанск (включительно) - Преображение (исключая)","V"]
[null,"б) территория южнее линии Трудовое - Партизанск - Преображение","IV"]
["29.","Ставропольский край","I"]
["30.","Хабаровский край:"]
[null,"а) территория севернее линии Облучье - Комсомольск-на-Амуре (исключая г. Комсомольск-на-Амуре), далее по реке Амур, за исключением побережья Татарского пролива","VI"]
[null,"б) побережье от залива Счастья до пос. Нижнее Пронге (исключая пос. Нижнее Пронге)","VI"]
[null,"в) остальная территория Хабаровского края","V"]
["31.","Амурская область","VI"]
["32.","Архангельская область:"]
[null,"а) территория южнее линии Кушкушара (исключая Кушкушара) - пересечение Северного полярного круга с границей Республики Коми","IV"]
[null,"б) территория севернее линии Кушкушара (включительно) - пересечение Северного полярного круга с границей Республики Коми - Ермица - Черная (исключая г. Черную) и остров Колгуев","IV"]
[null,"в) территория восточнее линии Ермица - Черная (включительно) и острова Вайгач","V"]
[null,"г) острова Новая Земля","V"]
[null,"д) острова Земля Франца-Иосифа","V"]
["33.","Астраханская область","II"]
["34.","Белгородская область","III"]
["35.","Брянская область","III"]
["36.","Владимирская область","III"]
["37.","Волгоградская область","III"]
["38.","Вологодская область:"]
[null,"а) территория западнее линии озеро Воже - Устье - Вологда - Вохтога (включительно)","III"]
[null,"б) остальная территория Вологодской области","IV"]
["39.","Воронежская область","III"]
["40.","Ивановская область","III"]
["41.","Иркутская область:"]
[null,"а) территория севернее 62 параллели","VI"]
[null,"б) территория северо-восточнее линии Токма - Улькан (река Лена) - Нижнеангарск (включительно)","VI"]
[null,"в) остальная территория Иркутской области","V"]
["42.","Калининградская область","I"]
["43.","Калужская область","III"]
["44.","Кемеровская область – Кузбасс","V"]
["45.","Кировская область","IV"]
["46.","Костромская область:"]
[null,"а) вся территория, за исключением г. Костромы","IV"]
[null,"б) г. Кострома","III"]
["47.","Курганская область","IV"]
["48.","Курская область","III"]
["49.","Ленинградская область и г. Санкт-Петербург","III"]
["50.","Липецкая область","III"]
["51.","Магаданская область","VI"]
["52.","Московская область и г. Москва","III"]
["53.","Мурманская область:"]
[null,"а) территория плато Расвумчорр (район апатит-нефелинового рудника \"Центральный\")","VI"]
[null,"б) территория северо-восточнее линии Заполярный - Североморск - Каневка (включительно) и юго-восточнее линии Каневка - Кузомень (включительно)","IV"]
[null,"в) остальная территория Мурманской области","IV"]
["54.","Нижегородская область","IV"]
["55.","Новгородская область","III"]
["56.","Новосибирская область","V"]
["57.","Омская область","V"]
["58.","Оренбургская область","IV"]
["59.","Орловская область","III"]
["60.","Пензенская область","IV"]
["61.","Псковская область","II"]
["62.","Ростовская область","II"]
["63.","Рязанская область","III"]
["64.","Самарская область","IV"]
["65.","Саратовская область","III"]
["66.","Сахалинская область:"]
[null,"а) территория севернее линии Шахтерск - Поронайск (включительно)","V"]
[null,"б) территория южнее линии Шахтерск - Поронайск и севернее линии Холмск - Южно-Сахалинск (включительно)","IV"]
[null,"в) остальная территория острова Сахалин","III"]
[null,"ж) Курильские острова","II"]
["67.","Свердловская область","IV"]
["68.","Смоленская область","III"]
["69.","Тамбовская область","III"]
["70.","Тверская область","III"]
["71.","Томская область","V"]
["72.","Тульская область","III"]
["73.","Тюменская область","V"]
["74.","Ульяновская область","IV"]
["75.","Челябинская область","IV"]
["76.","Ярославская область","III"]
["77.","Еврейская автономная область","V"]
["78.","Ненецкий автономный округ:"]
[null,"а) территория южнее линии Кушкушара (исключая Кушкушара) - пересечение Северного полярного круга с границей Республики Коми","IV"]
[null,"б) территория севернее линии Кушкушара (включительно) - пересечение Северного полярного круга с границей Коми - Ермица - Черная (исключая Черную) и остров Колгуев","IV"]
[null,"в) территория восточнее линии Ермица - Черная (включительно) и остров Вайгач","V"]
["79.","Ханты-Мансийский автономный округ - Югра","V"]
["80.","Чукотский автономный округ:"]
[null,"а) территория восточнее линии Марково - Усть-Белая - мыс Шмидта - остров Врангеля (включительно)","V"]
[null,"б) остальная территория Чукотского автономного округа","VI"]
["81.","Ямало-Ненецкий автономный округ","V"]
["82.","Республика Крым и г.Севастополь","I"]
[]
[]
["X. Коэффициент влияния расстояния на транспортировку основных средств котельной"]
[null,null,"Расстояние, км"]
[null,null,"до 200","от 200 до 500","от 500 до 1000","от 1000 до 1500","от 1500 до 2000"]
["Коэффициент влияния расстояния на транспортировку основных средств котельной",null,1,1.01,1.03,1.05,1.07]
[]
[]
["XI. Инвестиционные параметры"]
[null,"Наименование параметра","Значение"]
[null,"Базовый уровень нормы доходности инвестированного капитала, % <*>",0.13880000000000001]
[null,"Базовый уровень ключевой ставки Банка России, %",0.12640000000000001]
[null,"Срок возврата инвестированного капитала, лет",10]
[null,"Период амортизации котельной и тепловых сетей, лет",15]
[null,"<*> Значение базового уровня нормы доходности инвестированного капитала определено с использованием подхода к определению нормы доходности инвестированного капитала, предусмотренного пунктом 26 Правил, утвержденных Постановлением № 1562, исходя из значения нормы доходности инвестированного капитала, равного 12 процентам в 2017 году, и значения средневзвешенной по дням 9 месяцев 2016 г. ключевой ставки Банка России, равного 10,78 процента."]
[]
[]
["XII. Штатная численность и базовый уровень оплаты труда персонала котельной"]
["Должность (специальность, профессия)",null,"Количество штатных единиц персонала котельной, производящей тепловую энергию с использованием топлива","Базовый уровень ежемесячной оплаты труда сотрудника котельной, тыс. рублей","Коэффициент загрузки, процентов","Базовый уровень ежемесячной оплаты труда сотрудника котельной с учетом коэффициента загрузки, тыс. рублей"]
[null,null,"уголь"]
["1.","Начальник котельной",1,63.9,100,63.9]
["2.","Старший оператор",5,47,50,23.5]
["3.","Слесарь",1,47,100,47]
["4.","Инженер-электрик",1,47,33,15.5]
["5.","Инженер-химик",1,47,33,15.5]
["6.","Инженер КИП",1,47,33,15.5]
["7.","Машинист (кочегар) котельной",5,47,50,23.5]
["8.","Итого",15,"-","-","-"]
[]
[]
["XIII. Среднемесячная заработная плата работников организаций по отрасли \"Обеспечение электрической энергией, газом и паром; кондиционирование воздуха\" по г. Москве для расчета коэффициента корректировки базового уровня ежемесячной оплаты труда сотрудника котельной"]
[]
[]
[]
[null,null,"Значение"]
[null,"Величина среднемесячной заработной платы работников организаций по отрасли \"Обеспечение электрической энергией, газом и паром; кондиционирование воздуха\" по г. Москве, рублей  <**>",112025]
[null,"<**> Указаны данные за 2019 год в соответствии с официальными данными, опубликованными Росстатом."]
[]
["XIV. Базовая величина платы за выбросы загрязняющих веществ в атмосферный воздух "]
[null,null,"Значение"]
[null,"Базовая величина платы за выбросы загрязняющих веществ в атмосферный воздух, рублей",14319.9]

{"sheet":"И2.1","index":6,"n_rows":271,"n_cols":6,"rows_kept":271,"cut":false,"hidden":false,"merged":[[132,0,132,1],[0,0,0,1],[1,0,1,1],[4,0,4,4],[5,0,6,1],[131,0,131,4],[174,0,174,2],[175,0,175,1],[138,0,138,5],[139,0,140,1],[140,2,140,5],[156,0,156,5],[157,0,158,1],[158,2,158,5]]}
["Вернуться на лист \"Содержание\""]
["Вернуться на лист \"И2\""]
[]
[]
["II.1. Коэффициент учета потерь тепловой энергии в тепловых сетях в зависимости от типа этажности и вида используемого топлива"]
["Поселение, городской округ",null,"Коэффициент учета потерь тепловой энергии в тепловых сетях в зависимости от типа этажности и вида используемого топлива"]
[null,null,"5-этажная жилая застройка\nуголь"]
["1.","Якутск",1.054]
["2.","Белогорск",1.034]
["3.","Благовещенск",1.036]
["4.","Магадан",1.03]
["5.","Улан-Удэ",1.034]
["6.","Братск",1.0349999999999999]
["7.","Иркутск",1.0349999999999999]
["8.","Кемерово",1.0369999999999999]
["9.","Киселевск",1.038]
["10.","Воркута",1.0549999999999999]
["11.","Ачинск",1.0369999999999999]
["12.","Канск",1.036]
["13.","Красноярск",1.0369999999999999]
["14.","Минусинск",1.038]
["15.","Новосибирск",1.0369999999999999]
["16.","Омск",1.038]
["17.","Томск",1.0369999999999999]
["18.","Кызыл",1.034]
["19.","Сургут",1.034]
["20.","Тобольск",1.0369999999999999]
["21.","Тюмень",1.038]
["22.","Уренгой",1.0549999999999999]
["23.","Ханты-Мансийск",1.0349999999999999]
["24.","Биробиджан",1.034]
["25.","Комсомольск-на-Амуре",1.0349999999999999]
["26.","Хабаровск",1.036]
["27.","Чита",1.0329999999999999]
["28.","Абакан",1.0369999999999999]
["29.","Барнаул",1.0389999999999999]
["30.","Бийск",1.0389999999999999]
["31.","Рубцовск",1.04]
["32.","Архангельск",1.036]
["33.","Котлас",1.036]
["34.","Белорецк",1.0369999999999999]
["35.","Уфа",1.0389999999999999]
["36.","Петропавловск-Камчатский",1.0329999999999999]
["37.","Киров",1.0369999999999999]
["38.","Сыктывкар",1.0369999999999999]
["39.","Ухта",1.0349999999999999]
["40.","Курган",1.0389999999999999]
["41.","Йошкар-Ола",1.04]
["42.","Саранск",1.0409999999999999]
["43.","Мурманск",1.0349999999999999]
["44.","Арзамас",1.0389999999999999]
["45.","Выкса",1.0409999999999999]
["46.","Нижний Новгород",1.04]
["47.","Оренбург",1.0409999999999999]
["48.","Пенза",1.0409999999999999]
["49.","Пермь",1.0389999999999999]
["50.","Владивосток",1.0389999999999999]
["51.","Самара",1.0409999999999999]
["52.","Южно-Сахалинск",1.0349999999999999]
["53.","Екатеринбург",1.038]
["54.","Каменск-Уральский",1.038]
["55.","Бугульма",1.038]
["56.","Елабуга",1.04]
["57.","Казань",1.04]
["58.","Глазов",1.0369999999999999]
["59.","Ижевск",1.0389999999999999]
["60.","Сарапул",1.0389999999999999]
["61.","Ульяновск",1.0389999999999999]
["62.","Челябинск",1.038]
["63.","Чебоксары",1.0389999999999999]
["64.","Белгород",1.0429999999999999]
["65.","Брянск",1.042]
["66.","Владимир",1.04]
["67.","Муром",1.0409999999999999]
["68.","Волгоград",1.044]
["69.","Камышин",1.042]
["70.","Вологда",1.0389999999999999]
["71.","Воронеж",1.0429999999999999]
["72.","Иваново",1.04]
["73.","Кинешма",1.0389999999999999]
["74.","Калуга",1.0409999999999999]
["75.","Петрозаводск",1.038]
["76.","Кострома",1.0389999999999999]
["77.","Курск",1.042]
["78.","Липецк",1.042]
["79.","Санкт-Петербург",1.0409999999999999]
["80.","Тихвин",1.04]
["81.","Дмитров",1.04]
["82.","Москва",1.0409999999999999]
["83.","Боровичи",1.0409999999999999]
["84.","Великий Новгород",1.04]
["85.","Орел",1.042]
["86.","Рязань",1.0409999999999999]
["87.","Балашов",1.042]
["88.","Саратов",1.042]
["89.","Вязьма",1.04]
["90.","Смоленск",1.0409999999999999]
["91.","Тамбов",1.042]
["92.","Ржев",1.0409999999999999]
["93.","Тверь",1.0409999999999999]
["94.","Тула",1.0409999999999999]
["95.","Ярославль",1.0389999999999999]
["96.","Астрахань",1.0469999999999999]
["97.","Элиста",1.0469999999999999]
["98.","Великие Луки",1.0429999999999999]
["99.","Псков",1.0429999999999999]
["100.","Ростов-на-Дону",1.046]
["101.","Таганрог",1.046]
["102.","Майкоп",1.0529999999999999]
["103.","Дербент",1.0489999999999999]
["104.","Махачкала",1.0489999999999999]
["105.","Нальчик",1.046]
["106.","Калининград",1.0449999999999999]
["107.","Черкесск",1.046]
["108.","Краснодар",1.0509999999999999]
["109.","Сочи",1.0580000000000001]
["110.","Тихорецк",1.048]
["111.","Владикавказ",1.042]
["112.","Кисловодск",1.0429999999999999]
["113.","Невинномысск",1.046]
["114.","Пятигорск",1.046]
["115.","Ставрополь",1.046]
["116.","Грозный",1.0469999999999999]
["117.","Симферополь",1.0489999999999999]
["118.","Феодосия",1.052]
["119.","Ялта",1.0509999999999999]
["120.","Керчь",1.0469999999999999]
["121.","Севастополь",1.052]
[]
[]
[]
["II.2. Коэффициент учета стоимости транспортных услуг, оказываемых на подъездных железнодорожных путях организациями промышленного железнодорожного транспорта и другими хозяйствующими субъектами независимо от организационно-правовой формы, за исключением организаций федерального железнодорожного транспорта"]
["Наименование типа котельной",null,"Коэффициент учета стоимости транспортных услуг, оказываемых на подъездных железнодорожных путях организациями промышленного железнодорожного транспорта и другими хозяйствующими субъектами независимо от организационно-правовой формы, за исключением организаций федерального железнодорожного транспорта"]
["1.","Котельная с использованием вида топлива – мазут",1.0169999999999999]
["2.","Котельная с использованием вида топлива – уголь",1.0469999999999999]
[]
[]
[]
["Таблица 1 \"Параметры тепловой сети\""]
["Диапазон расчетной температуры наружного воздуха, которая соответствует температуре воздуха наиболее холодной пятидневки, °С ",null,"Длина тепловой сети для территорий, не относящихся к территориям распространения вечномерзлых грунтов, м:","Средневзвешенный диаметр трубопроводов для территорий, не относящихся к территориям распространения вечномерзлых грунтов, мм:","Длина тепловой сети для территорий, относящихся к территориям распространения вечномерзлых грунтов, м:","Средневзвешенный диаметр трубопроводов для территорий, относящихся к территориям распространения вечномерзлых грунтов, мм:"]
[null,null,"для 5-этажной жилой застройки"]
[1,"от -1 до -5",1724,177,"-","-"]
[2,"от -6 до -13",1595,185,"-","-"]
[3,"от -14 до -18",1409,174,"-","-"]
[4,"от -19 до -22",1409,174,1559,175]
[5,"от -23 до -24",1293,192,1543,205]
[6,"от -25 до -28",1293,192,1543,205]
[7,"от -29 до -33",1200,176,1128,182]
[8,"от -34 до -36",1137,198,1287,196]
[9,"от -37 до -37",1031,203,1181,203]
[10,"от -38 до -42",1031,203,1181,203]
[11,"от -43 до -49",1046,194,1196,193]
[12,"от -50 до -52",955,201,1015,201]
[]
[]
[]
["Таблица 2 \"Базовая величина капитальных затрат на основные средства тепловых сетей в базовом году \nи сметная стоимость строительно-монтажных и пусконаладочных работ по объекту строительства \"Внешние инженерные сети теплоснабжения\", учитывающая прямые затраты, накладные расходы и сметную прибыль, \nв ценах 2001 года\""]
["Диапазон расчетной температуры наружного воздуха, которая соответствует температуре воздуха наиболее холодной пятидневки, °С ",null,"Базовая величина капитальных затрат на основные средства тепловых сетей в базовом году для территорий, не относящихся к территориям распространения вечномерзлых грунтов, тыс.рублей:","Сметная стоимость строительно-монтажных и пусконаладочных работ по объекту строительства \"Внешние инженерные сети теплоснабжения\" для территорий, не относящихся к территориям распространения вечномерзлых грунтов, тыс.рублей:","Базовая величина капитальных затрат на основные средства тепловых сетей в базовом году для территорий, относящихся к территориям распространения вечномерзлых грунтов, тыс.рублей:","Сметная стоимость строительно-монтажных и пусконаладочных работ по объекту строительства \"Внешние инженерные сети теплоснабжения\" для территорий, относящихся к территориям распространения вечномерзлых грунтов, тыс.рублей:"]
[null,null,"для 5-этажной жилой застройки"]
[1,"от -1 до -5",17447,1819,"-","-"]
[2,"от -6 до -13",16841,1709,"-","-"]
[3,"от -14 до -18",13345,1362,"-","-"]
[4,"от -19 до -22",13345,1362,28230,6140]
[5,"от -23 до -24",13668,1380,28913,6222]
[6,"от -25 до -28",13668,1380,28913,6222]
[7,"от -29 до -33",10527,1238,22269,5580]
[8,"от -34 до -36",12654,1279,26768,5764]
[9,"от -37 до -37",12104,1287,25605,5802]
[10,"от -38 до -42",12104,1287,25605,5802]
[11,"от -43 до -49",11200,1136,22656,5143]
[12,"от -50 до -52",10527,1238,22620,4920]
[]
[]
[]
["Таблица 3 \"Индекс изменения сметной стоимости строительно-монтажных и пусконаладочных работ по объекту строительства \"Внешние инженерные сети теплоснабжения\" на базовый год\""]
["Наименование территории",null,"Индекс изменения сметной стоимости строительно-монтажных и пусконаладочных работ по объекту строительства \"Внешние инженерные сети теплоснабжения\" на базовый год"]
[1,"Республика Адыгея (Адыгея)",6.93]
[2,"Республика Алтай",5.66]
[3,"Республика Башкортостан",6.08]
[4,"Республика Бурятия",8.98]
[5,"Республика Дагестан",6.04]
[6,"Республика Ингушетия",6.04]
[7,"Кабардино-Балкарская Республика",6.24]
[8,"Республика Калмыкия",6.48]
[9,"Карачаево-Черкесская Республика",6.38]
[10,"Республика Карелия",8.17]
[11,"Республика Коми:"]
["а)","1 зона (г. Сыктывкар, Княжпогостский, Сысольский, Сыктывдинский, Койгородский, Усть-Вымский, Усть-Куломский, Корткеросский, Прилузский районы)",7.16]
["б)","2 зона (г. Ухта, Сосногорский, Троицко-Печорский, Удорский районы, г. Вуктыл)",7.15]
["в)","3 зона (г. Печора, Ижемский, Усть-Цилемский районы)",7.94]
["г)","4 зона (г. Инта, г. Усинск)",7.94]
["д)","5 зона (г. Воркута)",7.98]
[12,"Республика Крым",6.04]
[13,"Республика Марий Эл",5.35]
[14,"Республика Мордовия",6.86]
[15,"Республика Саха (Якутия)",11.29]
[16,"Республика Северная Осетия - Алания",6.85]
[17,"Республика Татарстан (Татарстан)",5.79]
[18,"Республика Тыва",8.31]
[19,"Удмуртская Республика",5.97]
[20,"Республика Хакасия",7.56]
[21,"Чеченская Республика",6.2]
[22,"Чувашская Республика - Чувашия",5.57]
[23,"Алтайский край",7.43]
[24,"Забайкальский край",8.0500000000000007]
[25,"Камчатский край",10.88]
[26,"Краснодарский край",6.88]
[27,"Красноярский край",8.25]
[28,"Пермский край",5.98]
[29,"Приморский край",8.42]
[30,"Ставропольский край",6.91]
[31,"Хабаровский край",6.67]
[32,"Амурская область",6.82]
[33,"Архангельская область:"]
["а)","районы Крайнего Cевера (районы Лешуконский, Мезенский, Пинежский и город Северодвинск с территорией, находящейся в подчинении Северодвинского городского Совета народных депутатов)",8.9]
["б)","районы островов Северного Ледовитого океана и его морей (за исключением островов Белого моря)",11.42]
["в)","остальная территория Архангельской области",7.75]
[34,"Астраханская область",6.97]
[35,"Белгородская область",6.31]
[36,"Брянская область",5.68]
[37,"Владимирская область",5.85]
[38,"Волгоградская область",6.94]
[39,"Вологодская область",7.48]
[40,"Воронежская область",5.64]
[41,"Ивановская область",6.43]
[42,"Иркутская область",7.82]
[43,"Калининградская область",7.28]
[44,"Калужская область",6.1]
[45,"Кемеровская область - Кузбасс",7.9]
[46,"Кировская область",6.11]
[47,"Костромская область",6.43]
[48,"Курганская область",5.98]
[49,"Курская область",7.62]
[50,"Ленинградская область",5.72]
[51,"Липецкая область",5.88]
[52,"Магаданская область",11.34]
[53,"Московская область",6.58]
[54,"Мурманская область",7.66]
[55,"Нижегородская область:"]
["а)","вся территория, кроме г. Сарова",6.32]
["б)","г. Саров",5.93]
[56,"Новгородская область",6.79]
[57,"Новосибирская область",5.97]
[58,"Омская область",8.91]
[59,"Оренбургская область",6.76]
[60,"Орловская область",6.64]
[61,"Пензенская область",5.99]
[62,"Псковская область",6.72]
[63,"Ростовская область",6.99]
[64,"Рязанская область",6.11]
[65,"Самарская область",7.19]
[66,"Саратовская область",6.89]
[67,"Сахалинская область",8.4700000000000006]
[68,"Свердловская область",7.4]
[69,"Смоленская область",6.88]
[70,"Тамбовская область",6.76]
[71,"Тверская область",6.06]
[72,"Томская область",7.04]
[73,"Тульская область",6.89]
[74,"Тюменская область",6.03]
[75,"Ульяновская область",6.12]
[76,"Челябинская область",5.47]
[77,"Ярославская область",5.72]
[78,"г. Москва",6.26]
[79,"г. Санкт-Петербург",6.41]
[80,"г. Севастополь",6.04]
[81,"Еврейская автономная область",5.32]
[82,"Ненецкий автономный округ",8.39]
[83,"Ханты-Мансийский автономный округ - Югра",8.39]
[84,"Чукотский автономный округ",13.31]
[85,"Ямало-Ненецкий автономный округ",8.15]

{"sheet":"С1","index":7,"n_rows":26,"n_cols":9,"rows_kept":26,"cut":false,"hidden":false,"merged":[[5,2,5,5],[3,2,3,3],[24,2,24,3],[25,2,25,3]]}
[]
[]
[]
[null,null,"Перейти на лист ввода исходных данных"]
[null,null,null,null,null,"Форма С1"]
[null,null,"Расчет составляющей предельного уровня цены на тепловую энергию (мощность), обеспечивающей компенсацию расходов на топливо при производстве тепловой энергии котельной"]
[]
[null,null,"Период регулирования (i)-й",null,{"$f":"И1!E8","v":2024}]
[]
[null,null,"№ пп","Наименование","Единицы измерения","Значения"]
[null,null,1,2,3,4]
[null,null,1,"Составляющая предельного уровня цены на тепловую энергию (мощность), обеспечивающая компенсацию расходов на топливо при производстве тепловой энергии котельной в i-м расчетном периоде регулирования (РТi)","руб./Гкал",{"$f":"IF(И1!E18=\"Газ\",IFERROR(F13*F20/F21*F14*(1+F18)*(1+F19)/F17/1000,0),IFERROR(F13*F20/F21*F14*F23*(1+F18)*(1+F19)/F17/1000,0))","v":4455.5050364047511},null,null,"расчетное значение"]
[null,null,"1.1","Удельный расход условного топлива при производстве тепловой энергии котельной с использованием угля в i-м расчетном периоде регулирования (bi,k)"," кг у.т./Гкал",{"$f":"И2!D14","v":176.4}]
[null,null,"1.2","Фактическая цена на топливо (уголь), используемое при производстве тепловой энергии котельной, с учетом затрат на его доставку, сложившаяся в (i-2)-м расчетном периоде регулирования, без НДС \n(ЦТi-2,kф, нат.)","руб./т н.т.",{"$f":"IF('С1.1'!E27=\"\",0,'С1.1'!E27)","v":21220.536661970007},null,null,"Подтягивается в порядке приоритетности источников информации с листа, где заполнены данные"]
[null,null,"1.3","Низшая теплота сгорания натурального топлива (угля)","ккал/кг н.т.",{"$f":"'С1.1'!E16","v":5500},null,null,"Подтягивается с листа Топливо"]
[null,null,"1.4","Низшая теплота сгорания 1 кг условного топлива","ккал/кг у.т.",7000,null,null,"Константа"]
[null,null,"1.5","Коэффициент перевода натурального топлива в условное топливо (К)","кг у.т./кг",{"$f":"F15/F16","v":0.7857142857142857},null,null,"расчетное значение"]
[null,null,"1.6","Прогнозный индекс роста цены на топливо в (i-1)-м расчетном периоде регулирования (Ii-1,kП)"," %",{"$f":"'С1.1'!E19","v":-0.19900000000000001},null,null,"Подтягивается с листа Топливо"]
[null,null,"1.7","Прогнозный индекс роста цены на топливо в i-м расчетном периоде регулирования (Ii,kП)"," %",{"$f":"'С1.1'!E20","v":5.7000000000000002E-2},null,null,"Подтягивается с листа Топливо"]
[null,null,"1.8","Объем отпуска тепловой энергии с коллекторов котельной (QОТП)","тыс. Гкал",{"$f":"F21*F22","v":26.042006129999997}]
[null,null,"1.8.1","Объем полезного отпуска тепловой энергии котельной (QПО)","тыс. Гкал",{"$f":"С2!F37","v":24.684365999999997}]
[null,null,"1.8.2","Коэффициент учета потерь тепловой энергии в тепловых сетях (КП)",null,1.0549999999999999]
[null,null,"1.9","Коэффициент учета стоимости транспортных услуг, оказываемых на подъездных железнодорожных путях организациями промышленного железнодорожного транспорта и другими хозяйствующими субъектами независимо от организационно-правовой формы, за исключением организаций федерального железнодорожного транспорта (Кппжт) ",null,{"$f":"IF(И1!$E$18=\"Мазут\",'И2.1'!$C$134,IF(И1!$E$18=\"Уголь\",'И2.1'!$C$135,\"-\"))","v":1.0469999999999999}]
[]
[null,null,"Вернуться на лист \"Содержание\""]
[null,null,"Перейти на лист \"Итог\""]

{"sheet":"С1.1","index":8,"n_rows":35,"n_cols":11,"rows_kept":35,"cut":false,"hidden":false,"merged":[[34,3,34,5],[33,3,33,6],[3,2,3,3],[30,2,30,4],[31,2,31,3],[5,2,5,5],[11,3,11,5],[17,3,17,5],[21,3,21,5]]}
[]
[]
[]
[null,null,"Вернуться на лист \"Содержание\""]
[null,null,null,null,null,"Форма С1.1"]
[null,null,"Исходные данные для расчета составляющей предельного уровня цены на тепловую энергию (мощность), обеспечивающей компенсацию расходов на топливо при производстве тепловой энергии котельной"]
[null,null,null,null,null,null,null,null,"Источник информации"]
[null,null,"Период регулирования (i)-й",null,{"$f":"И1!E8","v":2024},null,null,null,"<выберите источник информации>"]
[null,null,null,null,null,null,null,null,"цены (тарифы), подлежащие государственному регулированию, действовавшие на день окончания (i-2)-го расчетного периода в системе теплоснабжения",null,"Источник информации"]
[null,null,"№ пп","Наименование","Значения","Источник информации",null,null,"информация с официального сайта единой информационной системы в сфере закупок",null,"<необходимо выбрать источник информации>"]
[null,null,1,2,3,4,null,null,"рыночные цены на топливо, сложившиеся на организованных торговых площадках, в т.ч. на биржах, функционирующих на территории РФ",null,"цены (тарифы), действовавшие во 2 п/г (i-2) года в системе теплоснабжения"]
[null,null,1,"Обоснование вида топлива, использование которого преобладает в системе теплоснабжения в  i-м расчетном периоде регулирования:",null,null,null,null,"рыночные цены на топливо, информация о которых предоставляется независимыми специализированными информационно-аналитическими организациями"]
[null,null,"1.1","Вид топлива, использование которого преобладает в системе теплоснабжения (выберите из списка)","каменный уголь",null,null,"(см.примечание №1)","данные Федеральной службы государственной статистики",null,"информация с официального сайта единой информационной системы в сфере закупок"]
[null,null,"1.2","Обоснование вида топлива, использование которого преобладает в системе теплоснабжения (выберите из списка)","доля использования топлива в структуре топливного баланса рассматриваемой системы теплоснабжения, %",null,null,null,null,null,"рыночные цены на топливо, сложившиеся на организованных торговых площадках, в т.ч. на биржах, функционирующих на территории РФ"]
[null,null,"1.2.1","Укажите долю использования топлива в структуре топливного баланса рассматриваемой системы теплоснабжения, %","более 50%",null,null,null,"Обоснование вида топлива",null,"рыночные цены на топливо, информация о которых предоставляется независимыми специализированными информационно-аналитическими организациями"]
[null,null,"1.3","Низшая теплота сгорания натурального топлива (угля), ккал/кг",5500,"договор от 07.04.2022 № 58/2022",null,null,"доля использования топлива в структуре топливного баланса рассматриваемой системы теплоснабжения, %",null,"данные Федеральной службы государственной статистики"]
[null,null,null,null,null,null,null,null,"исходя из приоритетного направления развития топливного баланса (если в структуре топливного баланса системы теплоснабжения представлены виды топлива с одинаковой долей)"]
[null,null,2,"Прогнозные индексы роста цены на уголь в соответствии с прогнозом социально-экономического развития Российской Федерации:"]
[null,null,"2.1","Прогнозный индекс роста цены на топливо в (i-1)-м расчетном периоде регулирования, % (Ii-1,kП)",-0.19900000000000001,"Прогноз социально-экономического развития Российской Федерации на 2024 год и на плановый период 2025 и 2026 годов (размещен на официальном сайте Министерства экономического развития Российской Федерации (далее - Минэкономразвития России)  22.09.2023): файл в формате Microsoft Excel \"6. Дефляторы базовый\", таблица \"Прогноз индексов цен производителей и индексов-дефляторов по видам экономической деятельности, в % г/г  (Базовый)\", \"Добыча полезных ископаемых (Раздел B)\", строка \"Добыча угля (05)\", (показатель \"ИЦП\") ",null,"(см.примечание №2)","каменный уголь"]
[null,null,"2.2","Прогнозный индекс роста цены на топливо в i-м расчетном периоде регулирования, % (Ii,kП)",5.7000000000000002E-2,"Прогноз социально-экономического развития Российской Федерации на 2024 год и на плановый период 2025 и 2026 годов (размещен на официальном сайте Министерства экономического развития Российской Федерации (далее - Минэкономразвития России)  22.09.2023): файл в формате Microsoft Excel \"6. Дефляторы базовый\", таблица \"Прогноз индексов цен производителей и индексов-дефляторов по видам экономической деятельности, в % г/г  (Базовый)\", \"Добыча полезных ископаемых (Раздел B)\", строка \"Добыча угля (05)\", (показатель \"ИЦП\") ",null,"(см.примечание №2)","бурый уголь"]
[null,null,null,null,null,null,null,null,"антрацит"]
[null,null,"3","Фактическая цена на топливо (уголь), используемое при производстве тепловой энергии котельной, с учетом затрат на его доставку без НДС в (i-2)-м расчетном периоде регулирования (ЦТi-2,kф, нат.):",null,null,null,null,"уголь (вид угля не указан в топливном балансе)"]
[null,null,"3.1","Источник информации о ценах (тарифах) на топливо \n(выберите из списка)","информация с официального сайта единой информационной системы в сфере закупок",">>Перейти к внесению информации"]
[null,null,"3.2","Регулируемая цена (тариф) на топливо (уголь), действовавшая на день окончания (i-2)-го расчетного периода в системе теплоснабжения, без НДС, руб. / т н. т. (ЦТi-2,kф,нат.)",null,null,null,null,"Добавить в случае мазута:"]
[null,null,"3.2","Рыночная цена на топливо (уголь), включающая затраты на его доставку, в (i-2)-м расчетном периоде регулирования, информация о которой предоставляется независимыми специализированными информационно-аналитическими организациями без НДС, руб. / т н. т. (ЦТi-2,kф,нат.)",null,null,null,null,"В структуре топливного баланса системы теплоснабжения отсутствует использование газа, угля, мазута"]
[null,null,"3.2","Цена (тариф) на топливо (уголь) с учетом затрат на его доставку в (i-2)-м расчетном периоде по данным Федеральной службы государственной статистики без НДС, руб. / т н. т. (ЦТi-2,kф, нат.)"]
[null,null,{"$f":"IF(OR(E23=I10,E23=I11,E23=I8),\"3.2\",\"3.3\")","v":"3.2"},"Фактическая цена на топливо (уголь), используемое при производстве тепловой энергии котельной, с учетом затрат на его доставку, сложившаяся в системе теплоснабжения в (i-2)-м расчетном периоде регулирования, без НДС, руб. / т н.т. \n(ЦТi-2,kф, нат.)",{"$f":"IF(AND('С1.1'!$E$24>0,E23=I9),'С1.1'!$E$24,IF(AND('С1.2'!$F$8>0,E23=I10),'С1.2'!$F$8,IF(AND('С1.3'!$F$11>0,E23=I11),'С1.3'!$F$11,IF(AND('С1.1'!$E$25>0,E23=I12),'С1.1'!$E$25,IF(AND($E$26>0,E23=I13),$E$26,\"\")))))","v":21220.536661970007}]
[]
[null,null,4,"Поселение, городской округ, по которому определяется коэффициент учета потерь тепловой энергии в тепловых сетях (выберите из списка)",25]
[]
[null,null,"Перейти на лист расчета составляющей, обеспечивающей компенсацию расходов на топливо"]
[null,null,"Перейти на лист \"Итог\""]
[null,null,"Примечание:"]
[null,null,1,"Вид топлива, использование которого преобладает в системе теплоснабжения, определяется как вид топлива с наибольшей долей использования в структуре топливного баланса этой системы теплоснабжения в соответствии со схемой теплоснабжения поселения или городского округа, на территории которого находится система теплоснабжения.\nВ случае если в соответствии со схемой теплоснабжения в структуре топливного баланса системы теплоснабжения представлены виды топлива с одинаковой долей их использования, вид топлива, использование которого преобладает в системе теплоснабжения, при отсутствии указанной информации в схеме теплоснабжения, определяется исходя из приоритетного направления развития топливного баланса поселения, городского округа, указанного в схеме теплоснабжения, или исходя из приоритетного направления развития топливного баланса субъекта Российской Федерации."]
[null,null,2,"Значения, указанные в Прогнозе социально-экономического развития, необходимо перевести в % сверх 100%. Полученные значения в % указываются с точностью до первого знака после запятой (десятых долей процента), при этом округление первого знака после запятой производится по правилам математического округления.\nДля котельной с использованием угля подлежит применению индекс цен производителей промышленной продукции по виду экономической деятельности \"Добыча угля\" без дифференциации по видам топлива"]

{"sheet":"С1.2","index":9,"n_rows":20,"n_cols":17,"rows_kept":20,"cut":false,"hidden":false,"merged":[[3,2,3,4],[15,2,15,6],[16,2,16,3],[19,3,19,13],[5,3,5,12],[7,3,7,4],[9,3,9,5],[9,6,9,12],[18,3,18,13]]}
[]
[]
[]
[null,null,"Вернуться к заполнению исходных данных"]
[null,null,null,null,null,null,null,null,null,null,null,null,"Форма С1.2"]
[null,null,null,"Информация с официального сайта единой информационной системы в сфере закупок, региональных и муниципальных информационных систем в сфере закупок по завершенным закупкам, в результате которых заключены договоры на поставку топлива покупателю по ценам на топливо, включающим затраты на его доставку"]
[]
[null,null,null,"Средневзвешенная по объему фактическая цена на топливо (уголь), используемое при производстве тепловой энергии котельной, с учетом затрат на его доставку, сложившаяся в системе теплоснабжения в (i-2)-м расчетном периоде регулирования, без НДС, \nруб. / т н.т. (ЦТi-2,kф,нат.)",null,{"$f":"IFERROR(SUM($D$13:$D$9996)/SUM($E$13:$E$9996),0)","v":21220.536661970007}]
[]
[null,null,null,"Информация для расчета средневзвешенной по объему цены на топливо (уголь) с учетом затрат на его доставку за (i-2)-й год без НДС",null,null,"Обоснование использования данных"]
[null,null,null,"Стоимость топлива за (i-2)-й год с учетом затрат на его доставку без НДС, руб.","Объем топлива за (i-2)-й год, соответствующий стоимости топлива, указанной в гр. 1, т н.т.","Цена 1 т н.т. за (i-2)-й год \nбез НДС, \nруб./т н.т.","Источник информации","№ закупки, \n№ договора","Стоимость топлива по заключенному договору (на весь срок договора) без НДС, руб.","Объем топлива по заключенному договору (на весь срок договора), т н.т.","Вид угля","Сроки или график поставки","Территориальный признак\n(выберите из списка)"]
[null,null,null,1,2,3,4,5,6,7,8,9,10]
[null,null,null,25613187.7509978,1207,{"$f":"IFERROR(D13/E13,0)","v":21220.536661970007},null,"(32211194482 от 24.03.2022),договор №58/2022 от 07.04.2022, доп.согл.№1 к договору от 07.04.2022 №58/2022 от 14.04.2022",1736983711.25,20582,"Каменный уголь","30.09.2022","в поселении, городском округе",null,"(см.примечание №1, №2)"]
[null,null,null,"Добавить строку",null,null,null,null,null,null,null,null,null,null,null,null,"end2"]
[]
[null,null,"Перейти на лист расчета составляющей, обеспечивающей компенсацию расходов на топливо"]
[null,null,"Перейти на лист \"Итог\""]
[null,null,"Примечание: "]
[null,null,1,"В графе \"Сроки или график поставки\" введите дату начала и окончания исполнения контракта, если даты начала или окончания исполнения контракта находятся за пределами диапазона с 01.01.(i-2) по 31.12.(i-2), дополнительно указывается информация о сроках и объемах поставки в соответствии с графиком поставки на (i-2) год при его наличии"]
[null,null,2,"В графе \"Территориальный признак\" выберите из списка территорию, в отношении которой используются сведения для определения средневзвешенной по объему цены на топливо за (i-2) год: по системе теплоснабжения,  при отсутствии данных по системе теплоснабжения - по поселению, городскому округу, при отсутствии данных по поселению - по муниципальному району, в состав которого входит соответствующее поселение."]

{"sheet":"Data1.2","index":10,"n_rows":1,"n_cols":15,"rows_kept":1,"cut":false,"hidden":true,"merged":[]}
[null,"Удалить",null,null,null,{"$f":"IFERROR(D1/E1,0)","v":0},null,null,null,null,null,null,null,null,"(см.примечание №1, №2)"]

{"sheet":"С1.3","index":11,"n_rows":21,"n_cols":11,"rows_kept":21,"cut":false,"hidden":true,"merged":[[3,2,3,4],[19,2,19,6],[20,2,20,3],[5,3,5,6],[8,3,8,4],[9,3,9,4],[10,3,10,4],[12,3,12,5],[12,6,13,6],[7,3,7,4]]}
[]
[]
[]
[null,null,"Вернуться к заполнению исходных данных"]
[null,null,null,null,null,null,"Форма С1.3"]
[null,null,null,"Информация о рыночных ценах на топливо, включающих затраты на его доставку, сложившихся на организованных торговых площадках, в том числе на биржах, функционирующих на территории Российской Федерации",null,null,null,null,null,"Ввод средневзвешенной по объему цены"]
[null,null,null,null,null,null,null,null,null,"Ввод информации для расчета средневзвешенной по объему цены "]
[null,null,null,"Наименование",null,"Значения","Источник информации"]
[null,null,null,"Способ ввода данных о средневзвешенной цене на топливо с учетом затрат на его доставку за (i-2)-й год (выберите из списка) ",null,"Ввод информации для расчета средневзвешенной по объему цены "]
[null,null,null,"Средневзвешенная по объему цена на топливо (уголь) с учетом затрат на его доставку за (i-2)-й год без НДС, руб./т н.т (ЦТi-2,kф, нат.)",null,null,null,null,null,null,"start1"]
[null,null,null,"Средневзвешенная по объему цена на топливо (уголь) с учетом затрат на его доставку за (i-2)-й год без НДС, руб./т н.т (ЦТi-2,kф,нат.)",null,{"$f":"IF(F9=J6, F10, IF(F9=J7, IFERROR(SUM(D16:D9998)/SUM(E16:E9998), 0), 0))","v":0},null,null,null,null,"start2"]
[]
[null,null,null,"Информация для расчета средневзвешенной по объему цены на топливо (уголь) с учетом затрат на его доставку за (i-2)-й год без НДС",null,null,"Источник информации"]
[null,null,null,"Стоимость топлива за (i-2)-й год с учетом затрат на его доставку без НДС, руб.","Объем топлива за (i-2)-й год, соответствующий стоимости топлива, указанной в гр. 1, т н.т.","Цена 1 т н.т. за (i-2)-й год без НДС, \nруб./т н.т."]
[null,null,null,1,2,3,4]
[null,null,null,null,null,{"$f":"IFERROR(D16/E16,0)","v":0}]
[null,null,null,"Добавить строку",null,null,null,null,null,null,"end2"]
[]
[]
[null,null,"Перейти на лист расчета составляющей, обеспечивающей компенсацию расходов на топливо"]
[null,null,"Перейти на лист \"Итог\""]

{"sheet":"Data1.3","index":12,"n_rows":1,"n_cols":6,"rows_kept":1,"cut":false,"hidden":true,"merged":[]}
[null,"Удалить",null,null,null,{"$f":"IFERROR(D1/E1,0)","v":0}]

{"sheet":"С2","index":13,"n_rows":45,"n_cols":10,"rows_kept":45,"cut":false,"hidden":false,"merged":[[5,2,5,5],[43,2,43,3],[44,2,44,3],[3,2,3,3]]}
[]
[]
[]
[null,null,"Перейти на лист ввода исходных данных"]
[null,null,null,null,null,"Форма С2"]
[null,null,"Расчет составляющей предельного уровня цены на тепловую энергию (мощность), обеспечивающей возврат капитальных затрат на строительство котельной и тепловых сетей "]
[]
[null,null,"Период регулирования (i)-й",null,{"$f":"И1!E8","v":2024}]
[]
[null,null,"№ пп","Наименование","Единицы измерения","Значения"]
[null,null,1,2,3,4]
[null,null,"1","Составляющая предельного уровня цены на тепловую энергию (мощность), обеспечивающая возврат капитальных затрат на строительство котельной и тепловых сетей в i-м расчетном периоде регулирования (КРi)","руб./Гкал",{"$f":"PMT(F29,F33,-SUM(F13,F18,F22,F26))/F37","v":2357.0206688915569},null,null,"п.16 ф.(4)"]
[null,null,"1.1","Величина капитальных затрат на строительство котельной с использованием угля в i-м расчетном периоде регулирования (КЗi,kкот)","тыс. руб.",{"$f":"F14*F15*F16*F17*F35","v":181661.03007042102},null,null,"п.19 ф.(7)"]
[null,null,"1.1.1","Базовая величина капитальных затрат на строительство котельной с использованием угля в базовом (2019) году (КЗб,kкот(б))","тыс. руб.",{"$f":"И2!D21","v":113455},null,null,"ТЭП"]
[null,null,"1.1.2","Коэффициент температурной зоны для котельной (Ккот,т)",null,{"$f":"HLOOKUP('С2.1'!E12,И2!C255:J256,2,FALSE)","v":1.038},null,null,"ТЭП","подтянуть из ТЭП согласно выбранной пользователем температурной зоне"]
[null,null,"1.1.3","Коэффициент сейсмического влияния для котельной(Ккот,с)",null,{"$f":"HLOOKUP('С2.1'!E13,И2!C261:F263,2,FALSE)","v":1},null,null,"ТЭП","подтянуть из ТЭП согласно выбранной пользователем сейсмичности"]
[null,null,"1.1.4","Коэффициент влияния расстояния на транспортировку основных средств котельной (Ктр)",null,{"$f":"HLOOKUP('С2.1'!E14,И2!C407:G408,2,FALSE)","v":1.03},null,null,"ТЭП","подтянуть из ТЭП согласно выбранному пользователем диапазону расстояния"]
[null,null,"1.2","Величина капитальных затрат на строительство тепловых сетей в i-м расчетном периоде регулирования (КЗiсети)","тыс. руб.",{"$f":"IF('С2.1'!E18>0,F19*F21*F35,F20*F21*F35)","v":133807.82100446234},null,null,"п.21 ф. (9)"]
[null,null,"1.2.1","Величина капитальных затрат на строительство тепловых сетей в базовом (2019) году на основании предложения теплоснабжающей организации, функционирующей в соответствующей системе теплоснабжения, полученного в период проведения общественного обсуждения (КЗбсети(б))","тыс. руб.",{"$f":"'С2.1'!E18","v":0}]
[null,null,"1.2.1","Базовая величина капитальных затрат на строительство тепловых сетей в базовом (2019) году (КЗбсети(б))","тыс. руб.",{"$f":"'С2.1'!E26","v":89346.582291029146},null,null,"ТЭП"]
[null,null,"1.2.2","Коэффициент сейсмического влияния для тепловых сетей (Ксети,с)",null,{"$f":"HLOOKUP('С2.1'!E13,И2!C261:F263,3,FALSE)","v":1},null,null,"ТЭП"]
[null,null,"1.3","Затраты на подключение (технологическое присоединение) котельной с использованием угля к электрическим сетям, к централизованной системе водоснабжения и водоотведения в i-м расчетном периоде регулирования (ТПi,k)","тыс. руб.",{"$f":"(F23+F24+F25)*F35","v":40408.712410712811},null,null,"п.22 ф.(10)"]
[null,null,"1.3.1","Базовая величина затрат на подключение (технологическое присоединение) котельной с использованием угля к электрическим сетям (ТПб,kэс)","тыс. руб.",{"$f":"IF('С2.1'!E21=\"\",\"\",VLOOKUP('С2.1'!E21,И2!B79:D86,3))","v":3132},null,null,"МУ 209"]
[null,null,"1.3.2","Затраты на подключение (технологическое присоединение) котельной к централизованной системе водоснабжения в базовом (2019) году (ТПбвс)","тыс. руб.",{"$f":"'С2.1'!E27","v":14307.876789999998}]
[null,null,"1.3.3","Затраты на подключение (технологическое присоединение) котельной к централизованной системе водоотведения в базовом (2019) году (ТПбво)","тыс. руб.",{"$f":"'С2.1'!E28","v":9541.9567200000001}]
[null,null,"1.4","Стоимость земельного участка для размещения котельной в i-м расчетном периоде регулирования (Зi,k)","тыс. руб.",{"$f":"F27*F28*F35","v":7908.1724010612388},null,null,"п.23 ф.(11)"]
[null,null,"1.4.1","Удельная базовая стоимость земельного участка (Рб)","тыс. руб./ кв. м",{"$f":"IF('С2.1'!E29=\"\",0,'С2.1'!E29)","v":1.2572547469999997}]
[null,null,"1.4.2","Площадь земельного участка для размещения котельной с использованием угля (Sk)","кв. м",{"$f":"И2!D9","v":4200}]
[null,null,"1.5","Норма доходности инвестированного капитала в i-м расчетном периоде регулирования (НДi)","%",{"$f":"(1+F31)*(1+F30)/(1+F32)-1","v":9.5962865259740182E-2},null,null,"п. 26 ф.(12)"]
[null,null,"1.5.1","Средневзвешенная по дням 9 месяцев (i-1)-го расчетного периода регулирования ключевая ставка Центрального банка Российской Федерации (КСi-1)","%",{"$f":"'С2.1'!E25","v":8.4029304029304031E-2},null,null,"по информации Банка России"]
[null,null,"1.5.2","Базовый уровень нормы доходности инвестированного капитала (НДб)","%",{"$f":"И2!C413","v":0.13880000000000001},null,null,"ТЭП (XI)"]
[null,null,"1.5.3","Базовый уровень ключевой ставки Центрального банка Российской Федерации (КСб)","%",{"$f":"И2!C414","v":0.12640000000000001},null,null,"ТЭП (XI)"]
[null,null,"1.6","Срок возврата инвестированного капитала (СВК)","лет",{"$f":"И2!C415","v":10},null,null,"подтягивается из таблиц ТЭП (XI)"]
[]
[null,null,"1.7","Индекс цен производителей промышленной продукции в i-м расчетном периоде регулирования (накопленным итогом) (ИЦПi)","%",{"$f":"HLOOKUP(E8,'С2.5'!E10:CG12,3,FALSE)","v":1.4976266307379205},null,null,"п.20 ф.(8)"]
[]
[null,null,"1.8","Объем полезного отпуска тепловой энергии котельной (QПО)","тыс. Гкал",{"$f":"F38*F39*F42/1000","v":24.684365999999997},null,null,"п.17 ф.(5)"]
[null,null,"1.8.1","Установленная тепловая мощность котельной (p)","Гкал/ч",{"$f":"И2!D8","v":7},null,null,"ТЭП"]
[null,null,"1.8.2","Продолжительность годовой работы оборудования котельной с учетом коэффициента готовности, учитывающего продолжительность годовой работы оборудования (ГР)","ч",{"$f":"F40*F41","v":8497.1999999999989},null,null,"п.18 ф.(6)"]
[null,null,"1.8.3","Коэффициент готовности, учитывающий продолжительность годовой работы оборудования (Кr)",null,{"$f":"И2!D13","v":0.97},null,null,"ТЭП"]
[null,null,"1.8.4","Число часов в году","ч",8760]
[null,null,"1.8.5","Коэффициент использования установленной тепловой мощности котельной (КИУМ)",null,{"$f":"'С2.1'!E17","v":0.41499999999999998},null,null,"ТЭП (VI)  по 116 городам."]
[]
[null,null,"Вернуться на лист \"Содержание\""]
[null,null,"Перейти на лист \"Итог\""]

{"sheet":"С2.1","index":14,"n_rows":36,"n_cols":20,"rows_kept":36,"cut":false,"hidden":false,"merged":[[3,2,3,3],[31,2,31,4],[35,3,35,5],[5,2,5,5],[23,3,23,5],[26,5,27,5],[34,3,34,5],[32,2,32,3],[18,2,19,2],[18,3,19,3],[18,4,19,4]]}
[]
[]
[]
[null,null,"Вернуться на лист \"Содержание\"",null,null,null,null,null,null,null,null,"I","да","до 200",null,"6 и менее баллов",null,"<выберите из списка>",null,"нет"]
[null,null,null,null,null,"Форма С2.1",null,null,null,null,null,"II","нет","от 200 до 500",null,"7 баллов",null,"Свод правил СП 131.13330.2020 \"СНиП 23-01-99* Строительная климатология\" \"Температура воздуха наиболее холодной пятидневки с обеспеченностью 0,92\"",null,"относится к районам Крайнего Севера"]
[null,null,"Исходные данные для расчета составляющей предельного уровня цены на тепловую энергию (мощность), обеспечивающей возврат капитальных затрат на строительство котельной и тепловых сетей",null,null,null,null,null,null,null,null,"III",null,"от 500 до 1000",null,"8 баллов",null,"Схема теплоснабжения (расчетная температура наружного воздуха)",null,"относится к местностям, приравненным к районам Крайнего Севера"]
[null,null,null,null,null,null,null,null,null,null,null,"IV",null,"от 1000 до 1500",null,"9 и более баллов",null,"Информация, предоставленная органом местного самоуправления"]
[null,null,"Период регулирования (i)-й",null,{"$f":"И1!E8","v":2024},null,null,null,null,null,null,"V",null,"от 1500 до 2000"]
[null,null,null,null,null,null,null,null,null,null,null,"VI"]
[null,null,"№ пп","Наименование","Значения","Источник информации",null,null,null,null,null,"VII"]
[null,null,1,2,3,4,null,null,null,null,null,"VIII"]
[null,null,1,"Температурная зона, к которой относится поселение или городской округ, на территории которого находится система теплоснабжения (выберите из списка)","IV"]
[null,null,"2","Степень сейсмической опасности сейсмического района, к которому относится поселение или городской округ, на территории которого находится система теплоснабжения (выберите из списка)","6 и менее баллов"," Приложение А (обязательное) \"Общее сейсмическое районирование территории Российской Федерации ОСР-2015. Список населенных пунктов Российской Федерации, расположенных в сейсмических районах, с указанием расчетной сейсмической интенсивности в баллах шкалы MSK-64 для средних грунтовых условий и трех степеней сейсмической опасности - A (10%), B (5%), C (1%) в течение 50 лет\" к своду правил \"СП 14.13330.2018 Строительство в сейсмических районах. Актуализир. редакция СНиП II-7-81\"."]
[null,null,"3","Расстояние от границы системы теплоснабжения до границы ближайшего административного центра субъекта Российской Федерации с железнодорожным сообщением, км\n(выберите из списка)","от 500 до 1000","Карта Российской Федерации в масштабе, позволяющем определить расстояние на транспортировку основных средств котельной, определяется как расстояние от границы системы теплоснабжения до границы ближайшего административного центра субъекта РФ с железнодорожным сообщением"]
[null,null,"4","Поселение, городской округ, на территории которого находится система теплоснабжения, отнесено к территории распространения вечномерзлых грунтов? (выберите из списка да/нет)","да"]
[null,null,"5","Поселение, городской округ, по которому определяется коэффициент использования установленной тепловой мощности котельной (выберите из списка)",25,null,null,"(см.примечание №1)"]
[null,null,"6","Коэффициент использования установленной тепловой мощности котельной (КИУМ)",0.41499999999999998]
[null,null,"7","Величина капитальных затрат на строительство тепловых сетей в базовом (2019) году на основании предложения теплоснабжающей организации, функционирующей в соответствующей системе теплоснабжения, полученного в период проведения общественного обсуждения, тыс. руб. (КЗбсети(б))",null,null,null,"(см.примечание №2)"]
[null,null,"8","Расчетная температура наружного воздуха, которая соответствует температуре воздуха наиболее холодной пятидневки, в поселении, городском округе,°C",-39,"Свод правил СП 131.13330.2020 \"СНиП 23-01-99* Строительная климатология\" \"Температура воздуха наиболее холодной пятидневки с обеспеченностью 0,92\""]
[]
[null,null,"9","Федеральный округ, в состав которого входит субъект Российской Федерации, на территории которого расположена система теплоснабжения (выберите из списка)","Северо-Западный федеральный округ"]
[null,null,"10","Поселение, городской округ, на территории которого находится система теплоснабжения, отнесено к районам Крайнего Севера или местностям, приравненным к районам Крайнего Севера? (выберите из списка)","относится к районам Крайнего Севера"]
[]
[null,null,"11","Вспомогательные расчеты исходных данных:"]
[null,null,"11.1","Средневзвешенная по дням 9 месяцев (i-1)-го расчетного периода регулирования ключевая ставка Центрального банка Российской Федерации, % (КСi-1)",{"$f":"'С2.6'!F11","v":8.4029304029304031E-2},">>Перейти на лист вспомогательных расчетов исходных данных"]
[null,null,"11.2","Базовая величина капитальных затрат на строительство тепловых сетей в базовом (2019) году (КЗбсети(б))",{"$f":"'С2.2'!E17","v":89346.582291029146},">>Перейти на лист вспомогательных расчетов исходных данных"]
[null,null,"11.3","Затраты на подключение (технологическое присоединение) котельной к централизованной системе водоснабжения в базовом (2019) году, тыс. руб. (ТПбвс)",{"$f":"'С2.3'!E24","v":14307.876789999998},">>Перейти на лист вспомогательных расчетов исходных данных"]
[null,null,"11.4","Затраты на подключение (технологическое присоединение) котельной к централизованной системе водоотведения в базовом (2019) году, тыс. руб. (ТПбво)",{"$f":"'С2.3'!E28","v":9541.9567200000001}]
[null,null,"11.5","Удельная базовая стоимость земельного участка для размещения котельной, тыс. руб./кв.м (Рб)",{"$f":"'С2.4'!E10","v":1.2572547469999997},">>Перейти на лист вспомогательных расчетов исходных данных"]
[null,null,"11.6","Индекс цен производителей промышленной продукции в i-м расчетном периоде регулирования (накопленным итогом), % (ИЦПi)",{"$f":"IF(HLOOKUP(E8,'С2.5'!E10:CG12,3,FALSE)=100%,\"\",HLOOKUP(E8,'С2.5'!E10:CG12,3,FALSE))","v":1.4976266307379205},">>Перейти на лист вспомогательных расчетов исходных данных"]
[]
[null,null,"Перейти на лист расчета составляющей, обеспечивающей возврат капитальных затрат"]
[null,null,"Перейти на лист \"Итог\""]
[null,null,"Примечание:"]
[null,null,1,"Значения коэффициента использования установленной тепловой мощности котельной (КИУМ) по 121 поселению, городскому округу установлены ТЭП, используемыми для расчета предельного уровня цены на тепловую энергию (мощность), утвержденными Постановлением № 1562. \nВ случае, если населенный пункт, на территории которого располагается система теплоснабжения, не входит в список поселений, городских округов, для которых КИУМ указан в ТЭП, используемых для расчета предельного уровня цены на тепловую энергию (мощность), утверждаемых Постановлением № 1562, для расчетов используется значение КИУМ по ближайшему поселению, городскому округу, расположенному в аналогичной температурной зоне, по которому имеется установленное значение."]
[null,null,2,"В стр.7 в соответствии с пунктами 21 и 63 Постановления № 1562 пользователь вводит значение только в случае принятия по итогам общественного обсуждения решения об использовании в расчете величины капитальных затрат на строительство тепловых сетей в базовом году, на основании предложения теплоснабжающей организации, функционирующей в соответствующей системе теплоснабжения, полученного в период проведения общественного обсуждения.  Указанное значение вводится в ценах базового (2019) года без учета региональных особенностей, то есть требуется дополнительное применение коэффициентов, указанных в формуле 9 Постановления № 1562."]

{"sheet":"Data2.1","index":15,"n_rows":216,"n_cols":10,"rows_kept":216,"cut":false,"hidden":true,"merged":[]}
["Абакан",null,null,null,null,-1,null,-5]
["Арзамас",null,null,null,null,-6,null,-13]
["Архангельск",null,null,null,null,-14,null,-18]
["Астрахань",null,null,null,null,-19,null,-22]
["Ачинск",null,null,null,null,-23,null,-24]
["Балашов",null,null,null,null,-25,null,-28]
["Барнаул",null,null,null,null,-29,null,-33]
["Белгород",null,null,null,null,-34,null,-36]
["Белогорск",null,null,null,null,-37,null,-37]
["Белорецк",null,null,null,null,-38,null,-42]
["Бийск",null,null,null,null,-43,null,-49]
["Биробиджан",null,null,null,null,-50,null,-52]
["Благовещенск",null,null,null,null,"Диапазон температур для определения,в каком диапазоне из ТЭП расчетная температура"]
["Боровичи",null,null,null,"№","от",null,"до",null,"№диапазона"]
["Братск",null,null,null,1,{"$f":"F1+0.5","v":-0.5},null,{"$f":"H1-0.5","v":-5.5},null,{"$f":"IF(AND('С2.1'!$E$19<=Data2.1!F15,Data2.1!H15<'С2.1'!$E$19),E15,\"\")","v":""}]
["Брянск",null,null,null,2,-5.5,null,-13.5,null,{"$f":"IF(AND('С2.1'!$E$19<=Data2.1!F16,Data2.1!H16<'С2.1'!$E$19),E16,\"\")","v":""}]
["Бугульма",null,null,null,3,-13.5,null,-18.5,null,{"$f":"IF(AND('С2.1'!$E$19<=Data2.1!F17,Data2.1!H17<'С2.1'!$E$19),E17,\"\")","v":""}]
["Великие Луки",null,null,null,4,-18.5,null,-22.5,null,{"$f":"IF(AND('С2.1'!$E$19<=Data2.1!F18,Data2.1!H18<'С2.1'!$E$19),E18,\"\")","v":""}]
["Великий Новгород",null,null,null,5,-22.5,null,-24.5,null,{"$f":"IF(AND('С2.1'!$E$19<=Data2.1!F19,Data2.1!H19<'С2.1'!$E$19),E19,\"\")","v":""}]
["Владивосток",null,null,null,6,-24.5,null,-28.5,null,{"$f":"IF(AND('С2.1'!$E$19<=Data2.1!F20,Data2.1!H20<'С2.1'!$E$19),E20,\"\")","v":""}]
["Владикавказ",null,null,null,7,-28.5,null,-33.5,null,{"$f":"IF(AND('С2.1'!$E$19<=Data2.1!F21,Data2.1!H21<'С2.1'!$E$19),E21,\"\")","v":""}]
["Владимир",null,null,null,8,-33.5,null,-36.5,null,{"$f":"IF(AND('С2.1'!$E$19<=Data2.1!F22,Data2.1!H22<'С2.1'!$E$19),E22,\"\")","v":""}]
["Волгоград",null,null,null,9,-36.5,null,-37.5,null,{"$f":"IF(AND('С2.1'!$E$19<=Data2.1!F23,Data2.1!H23<'С2.1'!$E$19),E23,\"\")","v":""}]
["Вологда",null,null,null,10,-37.5,null,-42.5,null,{"$f":"IF(AND('С2.1'!$E$19<=Data2.1!F24,Data2.1!H24<'С2.1'!$E$19),E24,\"\")","v":10}]
["Воркута",null,null,null,11,-42.5,null,-49.5,null,{"$f":"IF(AND('С2.1'!$E$19<=Data2.1!F25,Data2.1!H25<'С2.1'!$E$19),E25,\"\")","v":""}]
["Воронеж",null,null,null,12,-49.5,null,-52.5,null,{"$f":"IF(AND('С2.1'!$E$19<=Data2.1!F26,Data2.1!H26<'С2.1'!$E$19),E26,\"\")","v":""}]
["Выкса",null,null,null,null,null,null,null,null,{"$f":"SUM(J15:J26)","v":10}]
["Вязьма"]
["Глазов"]
["Грозный"]
["Дербент"]
["Дмитров"]
["Екатеринбург"]
["Елабуга"]
["Иваново"]
["Ижевск"]
["Иркутск"]
["Йошкар-Ола"]
["Казань"]
["Калининград"]
["Калуга"]
["Каменск-Уральский"]
["Камышин"]
["Канск"]
["Кемерово"]
["Керчь"]
["Кинешма"]
["Киров"]
["Киселевск"]
["Кисловодск"]
["Комсомольск-на-Амуре"]
["Кострома"]
["Котлас"]
["Краснодар"]
["Красноярск"]
["Курган"]
["Курск"]
["Кызыл"]
["Липецк"]
["Магадан"]
["Майкоп"]
["Махачкала"]
["Минусинск"]
["Москва"]
["Мурманск"]
["Муром"]
["Нальчик"]
["Невинномысск"]
["Нижний Новгород"]
["Новосибирск"]
["Омск"]
["Орел"]
["Оренбург"]
["Пенза"]
["Пермь"]
["Петрозаводск"]
["Петропавловск-Камчатский"]
["Псков"]
["Пятигорск"]
["Ржев"]
["Ростов-на-Дону"]
["Рубцовск"]
["Рязань"]
["Самара"]
["Санкт-Петербург"]
["Саранск"]
["Сарапул"]
["Саратов"]
["Севастополь"]
["Симферополь"]
["Смоленск"]
["Сочи"]
["Ставрополь"]
["Сургут"]
["Сыктывкар"]
["Таганрог"]
["Тамбов"]
["Тверь"]
["Тихвин"]
["Тихорецк"]
["Тобольск"]
["Томск"]
["Тула"]
["Тюмень"]
["Улан-Удэ"]
["Ульяновск"]
["Уренгой"]
["Уфа"]
["Ухта"]
["Феодосия"]
["Хабаровск"]
["Ханты-Мансийск"]
["Чебоксары"]
["Челябинск"]
["Черкесск"]
["Чита"]
["Элиста"]
["Южно-Сахалинск"]
["Якутск"]
["Ялта"]
["Ярославль"]
[]
[]
[]
["Алтайский край",7.43]
["Амурская область",6.82]
["Архангельская область: районы Крайнего Cевера ",8.9]
["Архангельская область:районы остр.Север.Ледов. Океана",11.42]
["Астраханская область",6.97]
["Белгородская область",6.31]
["Брянская область",5.68]
["Владимирская область",5.85]
["Волгоградская область",6.94]
["Вологодская область",7.48]
["Воронежская область",5.64]
["г. Москва",6.26]
["г. Санкт-Петербург",6.41]
["г. Севастополь",6.04]
["Еврейская автономная область",5.32]
["Забайкальский край",8.0500000000000007]
["Ивановская область",6.43]
["Иркутская область",7.82]
["Кабардино-Балкарская Республика",6.24]
["Калининградская область",7.28]
["Калужская область",6.1]
["Камчатский край",10.88]
["Карачаево-Черкесская Республика",6.38]
["Кемеровская область - Кузбасс",7.9]
["Кировская область",6.11]
["Костромская область",6.43]
["Краснодарский край",6.88]
["Красноярский край",8.25]
["Курганская область",5.98]
["Курская область",7.62]
["Ленинградская область",5.72]
["Липецкая область",5.88]
["Магаданская область",11.34]
["Московская область",6.58]
["Мурманская область",7.66]
["Ненецкий автономный округ",8.39]
["Нижегородская область: вся терр., кроме г. Сарова",6.32]
["Нижегородская область: г. Саров",5.93]
["Новгородская область",6.79]
["Новосибирская область",5.97]
["Омская область",8.91]
["Оренбургская область",6.76]
["Орловская область",6.64]
["остальная территория Архангельской области",7.75]
["Пензенская область",5.99]
["Пермский край",5.98]
["Приморский край",8.42]
["Псковская область",6.72]
["Республика Адыгея (Адыгея)",6.93]
["Республика Алтай",5.66]
["Республика Башкортостан",6.08]
["Республика Бурятия",8.98]
["Республика Дагестан",6.04]
["Республика Ингушетия",6.04]
["Республика Калмыкия",6.48]
["Республика Карелия",8.17]
["Республика Коми:1 зона(г. Сыктывкар, Княжпогостский, Сысольский, Сыктывдинский, Койгородский, Усть-Вымский, Усть-Куломский, Корткеросский, Прилузский районы) ",7.16]
["Республика Коми:2 зона(г. Ухта,Сосногорский,Троицко-Печорский, Удорский районы, г. Вуктыл) ",7.15]
["Республика Коми:3 зона(г.Печора,Ижемский,Усть-Цилемский районы) ",7.94]
["Республика Коми:4 зона (г. Инта, г. Усинск)",7.94]
["Республика Коми:5 зона (г. Воркута)",7.98]
["Республика Крым",6.04]
["Республика Марий Эл",5.35]
["Республика Мордовия",6.86]
["Республика Саха (Якутия)",11.29]
["Республика Северная Осетия - Алания",6.85]
["Республика Татарстан (Татарстан)",5.79]
["Республика Тыва",8.31]
["Республика Хакасия",7.56]
["Ростовская область",6.99]
["Рязанская область",6.11]
["Самарская область",7.19]
["Саратовская область",6.89]
["Сахалинская область",8.4700000000000006]
["Свердловская область",7.4]
["Смоленская область",6.88]
["Ставропольский край",6.91]
["Тамбовская область",6.76]
["Тверская область",6.06]
["Томская область",7.04]
["Тульская область",6.89]
["Тюменская область",6.03]
["Удмуртская Республика",5.97]
["Ульяновская область",6.12]
["Хабаровский край",6.67]
["Ханты-Мансийский автономный округ - Югра",8.39]
["Челябинская область",5.47]
["Чеченская Республика",6.2]
["Чувашская Республика - Чувашия",5.57]
["Чукотский автономный округ",13.31]
["Ямало-Ненецкий автономный округ",8.15]
["Ярославская область",5.72]

{"sheet":"С2.2","index":16,"n_rows":24,"n_cols":12,"rows_kept":24,"cut":false,"hidden":false,"merged":[[23,3,23,5],[3,2,3,3],[18,2,18,3],[19,2,19,3],[5,2,5,4],[21,3,21,5],[22,3,22,5]]}
[]
[null,null,null,null,null,null,null,null,null,null,null,"стандартизированные тарифные ставки "]
[null,null,null,null,null,null,null,null,null,null,null,"ставки платы за единицу максимальной мощности "]
[null,null,"Вернуться к заполнению исходных данных"]
[null,null,null,null,"Форма С2.2"]
[null,null,"Расчет базовой величины капитальных затрат на строительство тепловых сетей в базовом (2019) году"]
[]
[null,null,"№ пп","Наименование","Значения"]
[null,null,1,2,3]
[null,null,1,"Сметная стоимость строительно-монтажных и пусконаладочных работ по объекту строительства \"Внешние инженерные сети теплоснабжения\", учитывающая прямые затраты, накладные расходы и сметную прибыль, в ценах 2001 года,тыс. рублей (Р)",{"$f":"IF('С2.1'!$E$15=\"нет\",VLOOKUP(Data2.1!$J$27,'И2.1'!$A$160:$F$171,4,FALSE),IF('С2.1'!$E$15=\"да\",VLOOKUP(Data2.1!$J$27,'И2.1'!$A$160:$F$171,6,FALSE),0))","v":5802}]
[null,null,2,"Территория,в отношении которой установлен индекс изменения сметной стоимости строительно-монтажных и пусконаладочных работ (выберите из списка)",36,null,"(см.примечание №1)"]
[null,null,3,"Индекс изменения сметной стоимости строительно-монтажных и пусконаладочных работ по объекту строительства \"Внешние инженерные сети теплоснабжения\" на базовый год (И)",8.39]
[null,null,4,"Коэффициент, применяемый для учета повышенной нормы накладных расходов к индексу изменения сметной стоимости строительно-монтажных и пусконаладочных работ в случае отнесения поселения, городского округа к районам Крайнего Севера или местностям, приравненным к районам Крайнего Севера (Ккс)",{"$f":"IF('С2.1'!E22='С2.1'!T5,1.02,IF('С2.1'!E22='С2.1'!T6,1.01,1))","v":1.02}]
[null,null,5,"Базовая величина капитальных затрат на основные средства тепловых сетей в базовом году, тыс.рублей (КЗОбсети(б))",{"$f":"IF('С2.1'!$E$15=\"нет\",VLOOKUP(Data2.1!$J$27,'И2.1'!$A$160:$F$171,3,FALSE),IF('С2.1'!$E$15=\"да\",VLOOKUP(Data2.1!$J$27,'И2.1'!$A$160:$F$171,5,FALSE),0))","v":25605}]
[null,null,6,"Сметная норма дополнительных затрат по виду строительства \"Энергетическое строительство. Тепловые сети\",% (z)",3.5999999999999997E-2,null,"(см.примечание №2)"]
[null,null,7,"Коэффициент к сметным нормам по видам строительства (h)",1.4,null,"(см.примечание №3)"]
[null,null,8,"Базовая величина капитальных затрат на строительство тепловых сетей в базовом (2019) году, тыс.рублей (КЗбсети(б))",{"$f":"(E10*E12*E13+E14)*(1.133788507+1.0600286*E15*E16)","v":89346.582291029146}]
[]
[null,null,"Перейти на лист расчета составляющей, обеспечивающей возврат капитальных затрат"]
[null,null,"Перейти на лист \"Итог\""]
[null,null,"Примечание:"]
[null,null,1,"Расшифровка используемых сокращений в строке 2 согласно таблице 3 раздела II Технико-экономических параметров работы котельных и тепловых сетей:\nАрхангельская область: \nрайоны Крайнего Cевера (районы Лешуконский, Мезенский, Пинежский и город Северодвинск с территорией, находящейся в подчинении Северодвинского городского Совета народных депутатов)\nрайоны островов Северного Ледовитого океана и его морей (за исключением островов Белого моря)\nРеспублика Коми: \n1 зона (г. Сыктывкар, Княжпогостский, Сысольский, Сыктывдинский, Койгородский, Усть-Вымский, Усть-Куломский, Корткеросский, Прилузский районы)\n2 зона (г. Ухта, Сосногорский, Троицко-Печорский, Удорский районы, г. Вуктыл)\n3 зона (г. Печора, Ижемский, Усть-Цилемский районы)\n4 зона (г. Инта, г. Усинск)\n5 зона (г. Воркута)"]
[null,null,2,"Сметная норма дополнительных затрат по виду строительства \"Энергетическое строительство. Тепловые сети\", дифференцированная по температурным зонам, указывается в соответствии с данными в таблице 4 Сборника сметных норм дополнительных затрат при производстве строительно-монтажных работ в зимнее время (ГСН 81-05-02-2007)."]
[null,null,3,"Коэффициент к сметным нормам по видам строительства, дифференцированный по температурным зонам и территориям субъектов Российской Федерации, указывается в соответствии с данными в Приложении № 1 Сборника сметных норм дополнительных затрат при производстве строительно-монтажных работ в зимнее время (ГСН 81-05-02-2007). В отношении систем теплоснабжения, расположенных на территории Республики Крым и г. Севастополя, применяется коэффициент, определенный в отношении Республики Дагестан (остальная территория республики).\n"]

{"sheet":"С2.3","index":17,"n_rows":33,"n_cols":8,"rows_kept":33,"cut":false,"hidden":false,"merged":[[3,2,3,3],[5,2,5,5],[9,3,9,4],[19,3,19,5],[32,3,32,5],[30,2,30,3],[29,2,29,3]]}
[]
[]
[]
[null,null,"Вернуться к заполнению исходных данных"]
[null,null,null,null,null,"Форма С2.3"]
[null,null,"Расчет затрат на подключение (технологическое присоединение) котельной к централизованной системе водоснабжения и водоотведения в базовом (2019) году"]
[]
[null,null,"№ пп","Наименование","Значения","Источник информации"]
[null,null,1,2,3,4]
[null,null,1,"Технико-экономические параметры работы котельных и тепловых сетей, используемые для расчета:"]
[null,null,"1.1","Величина подключаемой (технологически присоединяемой) нагрузки к централизованной системе водоснабжения, куб. м/сут",{"$f":"И2!$D$103","v":9.89}]
[null,null,"1.2","Величина подключаемой (технологически присоединяемой) нагрузки к централизованной системе водоотведения, куб. м/сут",{"$f":"И2!$D$104","v":0.56000000000000005}]
[null,null,"1.3","Протяженность сетей от котельной до места подключения к централизованной системе водоснабжения и водоотведения, м",{"$f":"И2!$D$105","v":300}]
[null,null,"1.4","Базовая ставка тарифа за подключаемую (технологически присоединяемую) нагрузку водопроводной сети, руб./куб. м/сут",{"$f":"И2!$D$106","v":61211}]
[null,null,"1.5","Базовая ставка тарифа за расстояние от точки подключения (технологического присоединения) котельной до точки подключения водопроводных сетей к централизованной системе водоснабжения, руб./м",{"$f":"И2!$D$107","v":45675}]
[null,null,"1.6","Базовая ставка тарифа за подключаемую (технологически присоединяемую) нагрузку канализационной сети, руб./куб. м/сут",{"$f":"И2!$D$108","v":65637}]
[null,null,"1.7","Базовая ставка тарифа за расстояние от точки подключения (технологического присоединения) котельной до точки подключения канализационных сетей к централизованной системе водоотведения, руб./м",{"$f":"И2!$D$109","v":31684}]
[null,null,"1.8"]
[]
[null,null,2,"Исходные данные, используемые для расчета затрат на подключение (технологическое присоединение) котельной к централизованной системе водоснабжения и водоотведения в базовом (2019) году:"]
[null,null,"2.1","Гарантирующая организация в сфере холодного водоснабжения, обеспечивающая максимальный объем отпуска воды в поселении, городском округе, на территории которого находится система теплоснабжения"]
[null,null,"2.2","Ставка тарифа за подключаемую (технологически присоединяемую) нагрузку водопроводной сети, действующая на день окончания базового (2019) года, без НДС, руб./куб. м/сут",null,null,null,"(см.примечание №1)"]
[null,null,"2.3","Ставка тарифа за расстояние от точки подключения (технологического присоединения) котельной до точки подключения водопроводных сетей к централизованной системе водоснабжения, действующих на день окончания базового (2019) года, без НДС, руб./м",null,null,null,"(см.примечание №1)"]
[null,null,"2.4","Затраты на подключение (технологическое присоединение) котельной к централизованной системе водоснабжения в базовом (2019) году, тыс. руб. (ТПбвс)",{"$f":"(IF(E22<>\"\",E22,E14)*E11+IF(E23<>\"\",E23,E15)*E13)/1000","v":14307.876789999998}]
[null,null,"2.5","Гарантирующая организация в сфере холодного водоотведения, обеспечивающая максимальный объем принятых сточных вод в поселении, городском округе, на территории которого находится система теплоснабжения"]
[null,null,"2.6","Ставка тарифа за подключаемую (технологически присоединяемую) нагрузку канализационной сети, действующая на день окончания базового (2019) года, без НДС, руб./куб. м/сут",null,null,null,"(см.примечание №1)"]
[null,null,"2.7","Ставка тарифа за расстояние от точки подключения (технологического присоединения) котельной до точки подключения канализационных сетей к централизованной системе водоотведения, действующая на день окончания базового (2019) года, без НДС, руб./м",null,null,null,"(см.примечание №1)"]
[null,null,"2.8","Затраты на подключение (технологическое присоединение) котельной к централизованной системе водоотведения в базовом (2019) году, тыс. руб. \n(ТПбво)",{"$f":"(IF(E26<>\"\",E26,E16)*E12+IF(E27<>\"\",E27,E17)*E13)/1000","v":9541.9567200000001}]
[]
[null,null,"Перейти на лист расчета составляющей, обеспечивающей возврат капитальных затрат"]
[null,null,"Перейти на лист \"Итог\""]
[null,null,"Примечание:"]
[null,null,1,"В гр. 3 стр. 2.2, 2.3, 2.6, 2.7 вводятся действующие на день окончания базового (2019) года ставки тарифов, установленные органом исполнительной власти субъекта РФ в области государственного регулирования тарифов в отношении гарантирующей организации в сфере холодного водоснабжения с максимальным объемом отпуска воды в населенном пункте, на территории которого находится система теплоснабжения, определенным на основании схемы водоснабжения и водоотведения. При отсутствии одной или нескольких установленных ставок, указанные строки не заполняются, значение ставки автоматически принимается равным указанному в ТЭП."]

{"sheet":"С2.4","index":18,"n_rows":21,"n_cols":11,"rows_kept":21,"cut":false,"hidden":false,"merged":[[3,2,3,3],[17,2,17,4],[18,2,18,3],[5,3,5,6],[10,3,10,6],[15,3,15,4],[11,3,11,4],[13,3,13,4],[14,3,14,4],[12,3,12,4]]}
[]
[]
[]
[null,null,"Вернуться к заполнению исходных данных"]
[null,null,null,null,null,null,"Форма С2.4"]
[null,null,null,"Информация об удельной базовой стоимости земельного участка для размещения котельной",null,null,null,null,null,null,"<выберите наименование>"]
[null,null,null,null,null,null,null,null,null,null,"среднее значение удельного показателя кадастровой стоимости земельных участков для кадастрового квартала, в границах которого располагается система теплоснабжения"]
[null,null,null,"Способ определения удельной базовой стоимости земельного участка для размещения котельной","удельная кадастровая стоимость земельного участка",null,null,null,null,null,"среднее значение удельного показателя кадастровой стоимости земельных участков для поселения, городского округа"]
[null,null,null,null,null,null,null,null,null,null,"среднее значение удельного показателя кадастровой стоимости земельных участков для муниципального района, в состав которого входит поселение"]
[null,null,null,"Удельная базовая стоимость земельного участка, тыс. руб./кв.м (Рk,б)",{"$f":"IF(F13=\"до 31.12.2015 (включительно)\",F16*1.2929,IF(F13=\"после 31.12.2015\",F16,\"\"))","v":1.2572547469999997},null,null,null,null,null,"средний уровень кадастровой стоимости земель по муниципальному району, в состав которого входит соответствующее поселение или городской округ"]
[null,null,null,"Информация об удельной кадастровой стоимости земельного участка в базовом (2019) году:"]
[null,null,null,"Реквизиты нормативного акта, содержащего результаты определения кадастровой стоимости земель населенных пунктов субъекта Российской Федерации, действующие на день окончания базового (2019) года"]
[null,null,null,"Результаты определения кадастровой стоимости, действующие на день окончания базового (2019) года были утверждены в период (выберите из списка)",null,"до 31.12.2015 (включительно)"]
[null,null,null,"Наименование показателя кадастровой стоимости земельного участка (выберите из списка)",null,"среднее значение удельного показателя кадастровой стоимости земельных участков для поселения, городского округа"]
[null,null,null,"Вид разрешенного использования земельного участка в соответствии с нормативным актом, содержащим результаты определения кадастровой стоимости земель населенных пунктов субъекта Российской Федерации",null,"Земельные участки, предназначенные для размещения производственных и административных зданий, строений, сооружений промышленности, коммунального хозяйства, материально-технического, продовольственного снабжения, сбыта и заготовок",null,null,"(см.примечание №1)"]
[null,null,null,"Удельная кадастровая стоимость земельного участка, полученная на основе результатов определения кадастровой стоимости земель населенных пунктов субъекта Российской Федерации, действующих на день окончания базового (2019) года, тыс. руб./кв. м",null,{"$f":"972.43/1000","v":0.97242999999999991}]
[]
[null,null,"Перейти на лист расчета составляющей, обеспечивающей возврат капитальных затрат"]
[null,null,"Перейти на лист \"Итог\""]
[null,null,"Примечание:"]
[null,null,1,"Вид разрешенного использования земельного участка выбирается в соответствии с пунктом 25 Правил"]

{"sheet":"Data2.4","index":19,"n_rows":10,"n_cols":6,"rows_kept":10,"cut":false,"hidden":true,"merged":[]}
[null,"Удалить",null,0,0]
[]
[]
[]
[]
[]
[]
[]
[]
[null,"Удалить",null,0,0,10]

{"sheet":"С2.5","index":20,"n_rows":20,"n_cols":87,"rows_kept":20,"cut":false,"hidden":false,"merged":[[7,5,7,6],[19,3,19,6],[3,2,3,3],[16,2,16,5],[17,2,17,3],[5,3,5,7]]}
[]
[]
[]
[null,null,"Вернуться к заполнению исходных данных"]
[null,null,null,null,null,null,null,"Форма С2.5"]
[null,null,null,"Расчет индекса цен производителей промышленной продукции в i-м расчетном периоде регулирования"]
[]
[null,null,null,"Период регулирования (i)-й",{"$f":"И1!E8","v":2024}]
[]
[null,null,null,"Наименование",2020,{"$f":"E10+1","v":2021},{"$f":"F10+1","v":2022},2023,2024,2025,2026,2027,2028,2029,2030,2031,2032,2033,2034,2035,2036,2037,2038,2039,2040,2041,2042,2043,2044,2045,2046,2047,2048,2049,2050,2051,2052,2053,2054,2055,2056,2057,2058,2059,2060,2061,2062,2063,2064,2065,2066,2067,2068,2069,2070,2071,2072,2073,2074,2075,2076,2077,2078,2079,2080,2081,2082,2083,2084,2085,{"$f":"BR10+1","v":2086},2087,2088,2089,{"$f":"BV10+1","v":2090},2091,2092,2093,2094,2095,2096,2097,2098,2099,2100]
[null,null,null,"Индекс цен производителей промышленной продукции (в среднем за год к предыдущему году), % г/г (ИЦПпб+1, ИЦПпб+2,…,ИЦПпi)",{"$f":"97.1%-1","v":-2.9000000000000026E-2},0.245,0.114,2.4E-2,8.5999999999999993E-2,0.21215960863291,3.5813361771260002E-2,3.2682303599220003E-2,null,null,null,null,null,null,null,null,null,null,null,null,null,null,null,null,null,null,null,null,null,null,null,null,null,null,null,null,null,null,null,null,null,null,null,null,null,null,null,null,null,null,null,null,null,null,null,null,null,null,null,null,null,null,null,null,null,null,null,null,null,null,null,null,null,null,null,null,null,null,null,null,null,null,"(см.примечание №1)"]
[null,null,null,"Индекс цен производителей промышленной продукции (накопленным итогом), % (по годам, начиная с (б+1)-го года до i-го года (ИЦПi))",{"$f":"1+E11","v":0.97099999999999997},{"$f":"E12*(1+F11)","v":1.2088950000000001},{"$f":"F12*(1+G11)","v":1.3467090300000002},{"$f":"G12*(1+H11)","v":1.3790300467200003},{"$f":"H12*(1+I11)","v":1.4976266307379205},{"$f":"I12*(1+J11)","v":1.8153625105935014},{"$f":"J12*(1+K11)","v":1.8803767449313691},1.9418317885901293,1.9418317885901293,1.9418317885901293,1.9418317885901293,1.9418317885901293,1.9418317885901293,1.9418317885901293,1.9418317885901293,1.9418317885901293,1.9418317885901293,1.9418317885901293,1.9418317885901293,1.9418317885901293,1.9418317885901293,1.9418317885901293,1.9418317885901293,1.9418317885901293,1.9418317885901293,1.9418317885901293,1.9418317885901293,1.9418317885901293,1.9418317885901293,1.9418317885901293,1.9418317885901293,1.9418317885901293,1.9418317885901293,1.9418317885901293,1.9418317885901293,1.9418317885901293,1.9418317885901293,1.9418317885901293,1.9418317885901293,1.9418317885901293,1.9418317885901293,1.9418317885901293,1.9418317885901293,1.9418317885901293,1.9418317885901293,1.9418317885901293,1.9418317885901293,1.9418317885901293,1.9418317885901293,1.9418317885901293,1.9418317885901293,1.9418317885901293,1.9418317885901293,1.9418317885901293,1.9418317885901293,1.9418317885901293,1.9418317885901293,1.9418317885901293,1.9418317885901293,1.9418317885901293,1.9418317885901293,1.9418317885901293,1.9418317885901293,1.9418317885901293,1.9418317885901293,1.9418317885901293,1.9418317885901293,1.9418317885901293,1.9418317885901293,1.9418317885901293,{"$f":"BV12*(1+BW11)","v":1.9418317885901293},{"$f":"BW12*(1+BX11)","v":1.9418317885901293},{"$f":"BX12*(1+BY11)","v":1.9418317885901293},{"$f":"BY12*(1+BZ11)","v":1.9418317885901293},{"$f":"BZ12*(1+CA11)","v":1.9418317885901293},{"$f":"CA12*(1+CB11)","v":1.9418317885901293},{"$f":"CB12*(1+CC11)","v":1.9418317885901293},{"$f":"CC12*(1+CD11)","v":1.9418317885901293},{"$f":"CD12*(1+CE11)","v":1.9418317885901293},{"$f":"CE12*(1+CF11)","v":1.9418317885901293},{"$f":"CF12*(1+CG11)","v":1.9418317885901293}]
[]
[null,null,null,"Источник информации"]
[null,null,null,"на 2020: Прогноз социально-экономического развития Российской Федерации на 2022 год и на плановый период 2023 и 2024 годов (размещен на официальном сайте Минэкономразвития России 30.09.2021): файл в формате Microsoft Excel «12. Дефляторы базовый», таблица «Прогноз индексов цен производителей и индексов-дефляторов по видам экономической деятельности, в % г/г (Базовый вариант)», отрасль «Промышленность (BСDE)», (показатель «ИЦП»). На 2021 год:  Прогноз социально-экономического развития Российской Федерации на 2023 год и на плановый период 2024 и 2025 годов (размещен на официальном сайте Минэкономразвития России 28.09.2022): файл в формате Microsoft Excel «7. Дефляторы базовый», таблица «Прогноз индексов цен производителей и индексов-дефляторов по видам экономической деятельности, в % г/г  (Базовый)», отрасль «Промышленность (BСDE)», (показатель «ИЦП»); на 2022-2024 годы:  Прогноз социально-экономического развития Российской Федерации на 2024 год и на плановый период 2025 и 2026 годов (размещен на официальном сайте Минэкономразвития России 22.09.2023): файл в формате Microsoft Excel «6. Дефляторы базовый», таблица «Прогноз индексов цен производителей и индексов-дефляторов по видам экономической деятельности, в % г/г  (Базовый)», отрасль «Промышленность (BСDE)», (показатель «ИЦП»)"]
[]
[null,null,"Перейти на лист расчета составляющей, обеспечивающей возврат капитальных затрат"]
[null,null,"Перейти на лист \"Итог\""]
[null,null,"Примечание:"]
[null,null,1,"Значения, указанные в Прогнозе социально-экономического развития, необходимо перевести в % сверх 100%. Полученные значения в % указываются с точностью до первого знака после запятой (десятых долей процента), при этом округление первого знака после запятой производится по правилам математического округления."]

{"sheet":"С2.6","index":21,"n_rows":26,"n_cols":12,"rows_kept":26,"cut":false,"hidden":false,"merged":[[3,2,3,4],[21,2,21,5],[22,2,22,3],[25,3,25,8],[24,3,24,8],[5,3,5,7],[8,3,8,4],[9,3,9,4],[10,3,10,4],[12,3,12,6],[12,7,13,7],[7,3,7,4]]}
[]
[]
[]
[null,null,"Вернуться к заполнению исходных данных"]
[null,null,null,null,null,null,null,"Форма С2.6"]
[null,null,null,"Расчет средневзвешенной по дням 9 месяцев (i-1)-го расчетного периода регулирования ключевой ставки Центрального банка Российской Федерации",null,null,null,null,null,null,"Ввести средневзвешенную по объему цену "]
[null,null,null,null,null,null,null,null,null,null,"Ввести информацию для расчета средневзвешенной по объему цены "]
[null,null,null,"Наименование",null,"Значения","Источник информации"]
[null,null,null,"Период регулирования (i-1)-й",null,{"$f":"И1!E9","v":2023}]
[null,null,null,"Число дней 9 месяцев (i-1)-го расчетного периода регулирования, сут",null,273]
[null,null,null,"Средневзвешенная по дням 9 месяцев (i-1)-го расчетного периода регулирования ключевая ставка Центрального банка Российской Федерации, % (КСi-1)",null,{"$f":"IF((SUMPRODUCT(D16:D1002,G16:G1002)/F10)=0,\"\",SUMPRODUCT(D16:D1002,G16:G1002)/F10)","v":8.4029304029304031E-2},"Информация с официального сайта Банка России",null,null,"(см.примечание №1)",null,"start1"]
[null,null,null,null,null,null,null,null,null,null,null,"start2"]
[null,null,null,"Информация для расчета средневзвешенной по дням 9 месяцев (i-1)-го расчетного периода регулирования ключевой ставки Центрального Банка Российской Федерации",null,null,null,"Источник данных\n"]
[null,null,null,"Размер ключевой ставки (%, годовых)","Срок, с которого установлена ставка (начиная с 01.01.(i-1)) ","Срок, до которого действовала ставка (не позднее 30.09.(i-1))","Срок действия ставки, сут"]
[null,null,null,1,2,3,4,5,null,"(см.примечание №2)"]
[null,null,null,7.4999999999999997E-2,"2023-01-01","2023-07-23",{"$f":"IF(AND(E16=\"\",F16=\"\"),0,F16-E16+1)","v":204},"Информация с официального сайта Банка России от 16.09.2022"]
[null,"Удалить",null,8.5000000000000006E-2,"2023-07-24","2023-08-14",{"$f":"IF(AND(E17=\"\",F17=\"\"),0,F17-E17+1)","v":22},"Информация с официального сайта Банка России от 21.07.2023"]
[null,"Удалить",null,0.12,"2023-08-15","2023-09-17",34,"Информация с официального сайта Банка России от 15.08.2023"]
[null,"Удалить",null,0.13,"2023-09-18","2023-09-30",13,"Информация с официального сайта Банка России от 15.09.2023"]
[null,null,null,"Добавить строку",null,null,null,null,null,null,null,"end2"]
[]
[null,null,"Перейти на лист расчета составляющей, обеспечивающей возврат капитальных затрат"]
[null,null,"Перейти на лист \"Итог\""]
[null,null,"Примечание:"]
[null,null,1,"В гр. \"Источник информации\" перечисляются наименования документов, в которых сообщены размеры ключевых ставок, действовавших в промежутке с 01.01.(i-1) года по 30.09.(i-1) года."]
[null,null,2,"В гр.2 и гр.3 срок вводится в виде даты в формате ДД.ММ.ГГГГ. Если ключевая ставка была установлена до (i-1)-го года, в гр.2 вводится дата 01.01.(i-1). Если срок действия ключевой ставки завершается позднее 30.09.(i-1), то в гр.3 вводится дата 30.09.(i-1)."]

{"sheet":"Data2.6","index":22,"n_rows":1,"n_cols":7,"rows_kept":1,"cut":false,"hidden":true,"merged":[]}
[null,"Удалить",null,null,null,null,{"$f":"IF(AND(E1=\"\",F1=\"\"),0,F1-E1+1)","v":0}]

{"sheet":"С3","index":23,"n_rows":27,"n_cols":9,"rows_kept":27,"cut":false,"hidden":false,"merged":[[5,2,5,5],[3,2,3,3],[25,2,25,3],[26,2,26,3]]}
[]
[]
[]
[null,null,"Перейти на лист ввода исходных данных"]
[null,null,null,null,null,"Форма С3"]
[null,null,"Расчет составляющей предельного уровня цены на тепловую энергию (мощность), обеспечивающей компенсацию расходов на уплату налогов "]
[]
[null,null,"Период регулирования (i)-й",null,{"$f":"И1!E8","v":2024}]
[]
[null,null,"№ пп","Наименование","Единицы измерения","Значения"]
[null,null,1,2,3,4]
[null,null,1,"Составляющая предельного уровня цены на тепловую энергию (мощность), обеспечивающая компенсацию расходов на уплату налогов в i-м расчетном периоде регулирования (Нi)","руб./Гкал",{"$f":"(F14+F19+F22)/F13","v":561.38203449717889},null,null,"п.27 ф.(13)"]
[null,null,"1.1","Объем полезного отпуска тепловой энергии котельной (QПО)","тыс. Гкал",{"$f":"С2!F37","v":24.684365999999997},null,null,"формула расчета. КИУМ с С2.1"]
[null,null,"1.2","Расходы на уплату налога на прибыль от деятельности, связанной с производством и поставкой тепловой энергии (мощности), в i-м расчетном периоде регулирования (Нiп)","тыс. руб.",{"$f":"(F16*F13-F17/F18)*F15/(1-F15)","v":8614.0974903610622},null,null,"п.28 ф.(14)"]
[null,null,"1.2.1","Ставка налога на прибыль от деятельности, связанной с производством и поставкой тепловой энергии (мощности), установленная в соответствии с законодательством Российской Федерации о налогах и сборах и действующая в i-м расчетном периоде регулирования (tiп)","%",{"$f":"'С3.1'!E12","v":0.2}]
[null,null,"1.2.2","Составляющая предельного уровня цены на тепловую энергию (мощность), обеспечивающая возврат капитальных затрат на строительство котельной и тепловых сетей в i-м расчетном периоде регулирования (КРi)","тыс. руб.",{"$f":"С2!F12","v":2357.0206688915569},null,null,"ссылка на С2"]
[null,null,"1.2.3","Величина капитальных затрат на строительство котельной и тепловых сетей в i-м расчетном периоде регулирования (КЗi,k)","тыс. руб.",{"$f":"С2!F13+С2!F18+С2!F22","v":355877.56348559615}]
[null,null,"1.2.4","Период амортизации котельной и тепловых сетей (ПА)","лет",{"$f":"И2!C416","v":15},null,null,"ссылка на ТЭП"]
[null,null,"1.3","Расходы на уплату налога на имущество в i-м расчетном периоде регулирования (Нiим)","тыс. руб.",{"$f":"F20*(F17+F17*(1-F21/F18))/2","v":5219.5375977887434}]
[null,null,"1.3.1","Ставка налога на имущество, установленная в соответствующем субъекте Российской Федерации (без учета специальных льгот по налогу на имущество организаций) в соответствии с законодательством Российской Федерации о налогах и сборах и действующая в i-м расчетном периоде регулирования (tiим)","%",{"$f":"'С3.1'!E13","v":2.1999999999999999E-2}]
[null,null,"1.3.2","Срок возврата инвестированного капитала (СВК)","лет",{"$f":"И2!C415","v":10},null,null,"ссылка на ТЭП"]
[null,null,"1.4","Расходы на уплату земельного налога в i-м расчетном периоде регулирования (Нiз)","тыс. руб.",{"$f":"F23*F24","v":23.724517203183716}]
[null,null,"1.4.1","Ставка земельного налога, установленная в соответствии с законодательством Российской Федерации о налогах и сборах и нормативными правовыми актами представительных органов муниципального образования, на территории которого находится система теплоснабжения, и действующая в i-м расчетном периоде регулирования (tiз)","%",{"$f":"'С3.1'!E14","v":3.0000000000000001E-3}]
[null,null,"1.4.2","Стоимость земельного участка для размещения котельной в i-м расчетном периоде регулирования (Зi,k)","тыс. руб.",{"$f":"С2!F26","v":7908.1724010612388}]
[]
[null,null,"Вернуться на лист \"Содержание\""]
[null,null,"Перейти на лист \"Итог\""]

{"sheet":"С3.1","index":24,"n_rows":16,"n_cols":6,"rows_kept":16,"cut":false,"hidden":false,"merged":[[5,2,5,5],[3,2,3,3],[14,2,14,5],[15,2,15,3]]}
[]
[]
[]
[null,null,"Вернуться на лист \"Содержание\""]
[null,null,null,null,null,"Форма С3.1"]
[null,null,"Исходные данные для расчета составляющей предельного уровня цены на тепловую энергию (мощность), обеспечивающей компенсацию расходов на уплату налогов "]
[]
[null,null,"Период регулирования (i)-й",null,{"$f":"И1!E8","v":2024}]
[]
[null,null,"№ пп","Наименование","Значения","Источник информации"]
[null,null,1,2,3,4]
[null,null,1,"Ставка налога на прибыль от деятельности, связанной с производством и поставкой тепловой энергии (мощности), установленная в соответствии с законодательством Российской Федерации о налогах и сборах и действующая в i-м расчетном периоде регулирования, % (tiп)",0.2," \"Налоговый кодекс Российской Федерации (часть вторая)\" от 05.08.2000 N 117-ФЗ\n"]
[null,null,"2","Ставка налога на имущество, установленная в соответствующем субъекте Российской Федерации (без учета специальных льгот по налогу на имущество организаций) в соответствии с законодательством Российской Федерации о налогах и сборах и действующая в i-м расчетном периоде регулирования, % (tiим)",2.1999999999999999E-2," \"Налоговый кодекс Российской Федерации (часть вторая)\" от 05.08.2000 N 117-ФЗ\n"]
[null,null,"3","Ставка земельного налога, установленная в соответствии с законодательством Российской Федерации о налогах и сборах и нормативными правовыми актами представительных органов муниципального образования, на территории которого находится система теплоснабжения, и действующая в i-м расчетном периоде регулирования, % (tiз)",3.0000000000000001E-3,"Решение Совета МО \"Муниципальный район \"Заполярный район\" от 27 октября 2006 г. N 108"]
[null,null,"Перейти на лист расчета составляющей, обеспечивающей компенсацию расходов на уплату налогов"]
[null,null,"Перейти на лист \"Итог\""]

{"sheet":"С4","index":25,"n_rows":40,"n_cols":6,"rows_kept":40,"cut":false,"hidden":false,"merged":[[5,2,5,5],[3,2,3,3],[38,2,38,3],[39,2,39,3]]}
[]
[]
[]
[null,null,"Перейти на лист ввода исходных данных"]
[null,null,null,null,null,"Форма С4"]
[null,null,"Расчет составляющей предельного уровня цены на тепловую энергию (мощность), обеспечивающей компенсацию прочих расходов при производстве тепловой энергии котельной"]
[]
[null,null,"Период регулирования (i)-й",null,{"$f":"И1!E8","v":2024}]
[]
[null,null,"№ пп","Наименование","Единицы измерения","Значения"]
[null,null,1,2,3,4]
[null,null,1,"Составляющая предельного уровня цены на тепловую энергию (мощность), обеспечивающая компенсацию прочих расходов при производстве тепловой энергии котельной в i-м расчетном периоде регулирования (ПРi)","руб./Гкал",{"$f":"(F15+F30)/F13","v":2953.1982741455809}]
[null,null,"1.1","Объем полезного отпуска тепловой энергии котельной (QПО)","тыс. Гкал",{"$f":"С2!F37","v":24.684365999999997}]
[null,null,"1.2","Индекс цен производителей промышленной продукции в i-м расчетном периоде регулирования (накопленным итогом) (ИЦПi)","%",{"$f":"С2!F35","v":1.4976266307379205}]
[null,null,"1.3","Прочие расходы при производстве тепловой энергии котельной в i-м расчетном периоде регулирования (ПРiпроч)","тыс. руб.",{"$f":"(F16+F21+F26+F27)*F14","v":63184.349250728366}]
[null,null,"1.3.1","Расходы на техническое обслуживание и ремонт основных средств котельной с использованием угля и тепловых сетей в базовом (2019) году (ТОб,k)","тыс. руб.",{"$f":"F17*F18+F19*F20","v":1855.0150000000001}]
[null,null,"1.3.1.1","Базовая величина капитальных затрат на основные средства котельной с использованием угля в базовом году (КЗОб,kкот(б))","тыс. руб.",{"$f":"И2!D22","v":73547}]
[null,null,"1.3.1.2","Коэффициент расходов на техническое обслуживание и ремонт основных средств котельной (Кkкот, ТО)",null,{"$f":"И2!D23","v":0.02}]
[null,null,"1.3.1.3","Базовая величина капитальных затрат на основные средства тепловых сетей в базовом году (КЗОбсети(б))","тыс. руб.",{"$f":"'С2.2'!E14","v":25605}]
[null,null,"1.3.1.4","Коэффициент расходов на техническое обслуживание и ремонт основных средств тепловых сетей (Ксети, ТО)",null,{"$f":"И2!D41","v":1.4999999999999999E-2}]
[null,null,"1.3.2","Расходы на электрическую энергию на собственные нужды котельной с использованием угля в базовом (2019) году (РЭб,k)","тыс. руб.",{"$f":"F22*F23*F24*F25/1000","v":24777.108689399993}]
[null,null,"1.3.2.1","Среднеарифметическая величина из значений цен (тарифов) на электрическую энергию (мощность), поставляемую покупателям на розничном рынке, функционирующем в поселении или городском округе, на территории которого находится система теплоснабжения, в базовом (2019) году для категории потребителей, установленной технико-экономическими параметрами работы котельных и тепловых сетей, без НДС (ЦЭб)","руб./кВтч",{"$f":"IF('С4.1'!E15=\"\",0,'С4.1'!E15)","v":39.034999999999997}]
[null,null,"1.3.2.2","Общая максимальная мощность энергопринимающих устройств котельной с использованием угля (Эk)","кВт",{"$f":"И2!D54","v":180}]
[null,null,"1.3.2.3","Продолжительность годовой работы оборудования котельной с учетом коэффициента готовности (ГР)","ч",{"$f":"С2!F39","v":8497.1999999999989}]
[null,null,"1.3.2.4","Коэффициент использования установленной тепловой мощности котельной (КИУМ)",null,{"$f":"С2!F42","v":0.41499999999999998}]
[null,null,"1.3.3","Расходы на водоподготовку и водоотведение котельной в базовом (2019) году (РВб)","тыс. руб.",{"$f":"'С4.1'!E16","v":11903.42433}]
[null,null,"1.3.4","Расходы на оплату труда персонала котельной с использованием угля в базовом (2019) году (РПб,k)","тыс. руб.",{"$f":"F28+F29","v":3654.1058996116935}]
[null,null,"1.3.4.1","Заработная плата сотрудников котельной, производящей тепловую энергию с использованием угля, в базовом (2019) году","тыс. руб.",{"$f":"'С4.4'!F27","v":2749.6197455925012}]
[null,null,"1.3.4.2","Расходы на уплату в базовом (2019) году страховых взносов по персоналу котельной, определяемые в соответствии с требованиями законодательства Российской Федерации о страховых взносах исходя из расходов на оплату труда персонала котельной (Рб,kСВ)","тыс. руб.",{"$f":"'С4.4'!F36","v":904.4861540191921}]
[null,null,"1.4","Иные прочие расходы при производстве тепловой энергии котельной в i-м расчетном периоде регулирования (ПРiиные)","тыс. руб.",{"$f":"0.05*(F31+F32*F13)+F33","v":9713.4778188494747}]
[null,null,"1.4.1","Прочие расходы при производстве тепловой энергии котельной в i-м расчетном периоде регулирования без учета расходов на электрическую энергию на собственные нужды котельной в базовом (2019) году (ПРiпроч(п))","тыс. руб.",{"$f":"(F16+F26+F27)*F14","v":26077.49144479501}]
[null,null,"1.4.2","Составляющая предельного уровня цены на тепловую энергию (мощность), обеспечивающая компенсацию расходов на уплату налогов в i-м расчетном периоде регулирования (Нi)","руб./Гкал",{"$f":"С3!F12","v":561.38203449717889}]
[null,null,"1.4.3","Расходы на плату за выбросы загрязняющих веществ в атмосферный воздух в пределах установленных нормативов и (или) лимитов, на утилизацию и размещение золы и шлака для котельной с использованием угля в i-м расчетном периоде регулирования (ЗВiуголь)","тыс. руб.",{"$f":"0.07*F34*F13+F35","v":7716.7352663420743}]
[null,null,"1.4.3.1","Составляющая предельного уровня цены на тепловую энергию (мощность), обеспечивающая компенсацию расходов на топливо (уголь) при производстве тепловой энергии котельной в i-м расчетном периоде регулирования (РТi)","руб./Гкал",{"$f":"С1!F12","v":4455.5050364047511}]
[null,null,"1.4.3.2","Дополнительные расходы на плату за выбросы загрязняющих веществ в атмосферный воздух в пределах установленных нормативов и (или) лимитов для котельной с использованием угля (Yiуголь)","тыс. руб.",{"$f":"F36*F37/1000","v":18.043074000000001}]
[null,null,"1.4.3.2.1","Базовая величина платы за выбросы загрязняющих веществ в атмосферный воздух (ПВб)","руб.",{"$f":"И2!C443","v":14319.9}]
[null,null,"1.4.3.2.2","Коэффициент, применяемый к базовой величине платы за выбросы загрязняющих веществ в атмосферный воздух (КiОС)",null,{"$f":"'С4.1'!E12","v":1.26}]
[]
[null,null,"Вернуться на лист \"Содержание\""]
[null,null,"Перейти на лист \"Итог\""]

{"sheet":"С4.1","index":26,"n_rows":22,"n_cols":8,"rows_kept":22,"cut":false,"hidden":false,"merged":[[21,3,21,5],[5,2,5,5],[13,3,13,5],[3,2,3,3],[18,2,18,4],[19,2,19,3]]}
[]
[]
[]
[null,null,"Вернуться на лист \"Содержание\""]
[null,null,null,null,null,"Форма С4.1"]
[null,null,"Исходные данные для расчета составляющей предельного уровня цены на тепловую энергию (мощность), обеспечивающей компенсацию прочих расходов при производстве тепловой энергии котельной"]
[]
[null,null,"Период регулирования (i)-й",null,{"$f":"И1!E8","v":2024}]
[]
[null,null,"№ пп","Наименование","Значения","Источник информации"]
[null,null,1,2,3,4]
[null,null,1,"Коэффициент, применяемый к базовой величине платы за выбросы загрязняющих веществ в атмосферный воздух, в i-м расчетном периоде регулирования",1.26,"Постановление Правительства РФ\nот 20 марта 2023 г. № 437\n",null,"(см.примечание №1)"]
[]
[null,null,"2","Вспомогательные расчеты исходных данных:"]
[null,null,"2.1","Среднеарифметическая величина из значений цен (тарифов) на электрическую энергию (мощность), поставляемую покупателям на розничном рынке, функционирующем в поселении или городском округе, на территории которого находится система теплоснабжения, в базовом (2019) году для категории потребителей, установленной технико-экономическими параметрами работы котельных и тепловых сетей, без НДС, руб./кВтч (ЦЭб)",{"$f":"IF(AND('С4.2'!F10>0,'С4.2'!F8=\"нет\"),'С4.2'!F10,IF(AND('С4.2'!F16>0,'С4.2'!F8=\"да\"),'С4.2'!F16,\"\"))","v":39.034999999999997},">>Перейти на лист вспомогательных расчетов исходных данных"]
[null,null,"2.2","Расходы на водоподготовку и водоотведение котельной в базовом (2019) году, тыс. руб. (РВб)",{"$f":"'С4.3'!E20","v":11903.42433},">>Перейти на лист вспомогательных расчетов исходных данных"]
[null,null,"2.3","Расходы на оплату труда персонала котельной с использованием угля в базовом (2019) году, тыс. руб. (РПб,k)",{"$f":"'С4.4'!F27+'С4.4'!F36","v":3654.1058996116935},">>Перейти на лист вспомогательных расчетов исходных данных"]
[]
[null,null,"Перейти на лист расчета составляющей, обеспечивающей компенсацию прочих расходов"]
[null,null,"Перейти на лист \"Итог\""]
[null,null,"Примечание:"]
[null,null,1,"Коэффициент, применяемый к базовой величине платы за выбросы загрязняющих веществ в атмосферный воздух, заполняется на основании размера дополнительного коэффициента, применяемого к ставкам платы за негативное воздействие на окружающую среду, утверждаемого ежегодно Правительством Российской Федерации в соответствии с законодательством в области охраны окружающей среды на i-й расчетный период регулирования. \nВ случае если на дату определения предельного уровня цены на тепловую энергию (мощность) указанный дополнительный коэффициент на i-й расчетный период регулирования не установлен, то применяется последний установленный на дату определения предельного уровня цены на тепловую энергию (мощность) дополнительный коэффициент."]

{"sheet":"С4.2","index":27,"n_rows":26,"n_cols":19,"rows_kept":26,"cut":false,"hidden":false,"merged":[[3,2,3,3],[22,2,22,6],[23,2,23,3],[15,3,15,4],[17,3,18,3],[5,3,5,16],[7,3,7,4],[9,3,9,4],[11,3,12,3],[11,4,12,4],[11,5,11,16],[17,4,18,4],[17,5,17,8],[18,5,18,6],[18,7,18,8],[25,3,25,17],[19,5,19,6],[19,7,19,8],[20,5,20,6],[20,7,20,8]]}
[]
[]
[]
[null,null,"Вернуться к заполнению исходных данных"]
[null,null,null,null,null,null,null,null,null,null,null,null,null,null,null,null,"Форма С4.2"]
[null,null,null,"Информация о цене (тарифе) на электрическую энергию (мощность), поставляемую покупателям на розничном рынке, функционирующем в поселении, городском округе, на территории которого находится система теплоснабжения, в базовом (2019) году"]
[]
[null,null,null,"Розничный рынок электрической энергии расположен в технологически изолированной территориальной энергетической системе или на территории, технологически не связанной с Единой энергетической системой России и технологически изолированными территориальными электроэнергетическими системами?\n(выберите из списка да/нет)",null,"да",null,null,null,null,null,null,null,null,null,null,null,null,"(см. примечание №1)"]
[]
[null,null,null,"Среднеарифметическая величина из значений цен (тарифов) на электрическую энергию (мощность), поставляемую покупателям на розничном рынке, функционирующем в поселении или городском округе, на территории которого находится система теплоснабжения, в базовом (2019) году для категории потребителей, установленной технико-экономическими параметрами работы котельных и тепловых сетей, без НДС, руб./кВтч (ЦЭб)",null,{"$f":"IFERROR(SUMIF(F15:Q15,\">0\",F15:Q15)/COUNTIF(F15:Q15,\">0\"),0)","v":0}]
[]
[null,null,null,"Наименование гарантирующего поставщика","Источник информации","Цена (тариф) на электрическую энергию (мощность), поставляемую покупателям на розничном рынке, функционирующем в поселении или городском округе, на территории которого находится система теплоснабжения, в базовом (2019) году для категории потребителей, установленной технико-экономическими параметрами работы котельных и тепловых сетей, без НДС, руб./кВтч"]
[null,null,null,null,null,"январь","февраль","март","апрель","май","июнь","июль","август","сентябрь","октябрь","ноябрь","декабрь"]
[null,null,null,1,2,3,4,5,6,7,8,9,10,11,12,13,14]
[]
[null,null,null,"Среднеарифметическая величина из значений цен (тарифов) на электрическую энергию (мощность), поставляемую покупателям на розничном рынке, функционирующем в поселении или городском округе, на территории которого находится система теплоснабжения, в базовом (2019) году для категории потребителей, установленной технико-экономическими параметрами работы котельных и тепловых сетей, без НДС, руб./кВтч (ЦЭб)",null,{"$f":"IFERROR(SUMIF(F21:I21,\">0\",F21:I21)/COUNTIF(F21:I21,\">0\"),0)","v":39.034999999999997}]
[]
[null,null,null,"Наименование гарантирующего поставщика","Источник информации","Цена (тариф) на электрическую энергию (мощность), поставляемую покупателям на розничном рынке, функционирующем в поселении или городском округе, на территории которого находится система теплоснабжения, в базовом (2019) году для категории потребителей, установленной технико-экономическими параметрами работы котельных и тепловых сетей, без НДС, руб./кВтч"]
[null,null,null,null,null,"1 полугодие",null,"2 полугодие"]
[null,null,null,1,2,3,null,4]
[null,null,null,"Муниципальное предприятие Заполярного \nрайона «Севержилкомсервис»\n","Приказ Управления по государственному регулированию цен (тарифов) НАО от 18.12.18 №61",33.950000000000003,null,44.12]
[]
[null,null,"Перейти на лист расчета составляющей, обеспечивающей компенсацию прочих расходов"]
[null,null,"Перейти на лист \"Итог\""]
[null,null,"Примечание: "]
[null,null,1,"Указываются значения цен (тарифов) на электрическую энергию (мощность), поставляемую покупателям на розничном рынке, функционирующем в поселении или городском округе, на территории которого находится система теплоснабжения, определяемых гарантирующим поставщиком (устанавливаемых органом регулирования - для технологически изолированных территориальных энергетических систем и территорий, технологически не связанных с Единой энергетической системой России и технологически изолированными территориальными электроэнергетическими системами), в базовом (2019) году в соответствии с законодательством Российской Федерации об электроэнергетике для первой ценовой категории потребителей (для технологически изолированных территориальных электроэнергетических систем - категории, для которой применяется одноставочная цена (тариф) на электрическую энергию без дифференциации по зонам суток) на уровне напряжения СН2 (6-10 кВ), для максимальной мощности энергопринимающих устройств 180 кВт, в рублях/кВтч."]

{"sheet":"С4.3","index":28,"n_rows":23,"n_cols":6,"rows_kept":23,"cut":false,"hidden":false,"merged":[[22,2,22,3],[5,2,5,5],[9,3,9,5],[14,3,14,5],[3,2,3,3],[21,2,21,4]]}
[]
[]
[]
[null,null,"Вернуться к заполнению исходных данных"]
[null,null,null,null,null,"Форма С4.3"]
[null,null,"Расчет расходов на водоподготовку и водоотведение котельной в базовом (2019) году"]
[]
[null,null,"№ пп","Наименование","Значения","Источник информации"]
[null,null,1,2,3,4]
[null,null,1,"Технико-экономические параметры работы котельных и тепловых сетей, используемые для расчета:"]
[null,null,"1.1","Расход воды на водоподготовку, куб.м/год",{"$f":"И2!D18","v":1871}]
[null,null,"1.2","Расход воды на собственные нужды котельной, куб.м/год",{"$f":"И2!D19","v":1636}]
[null,null,"1.3","Объем водоотведения, куб.м/год",{"$f":"И2!D20","v":204}]
[]
[null,null,2,"Исходные данные, используемые для расчета расходов на водоподготовку и водоотведение котельной в базовом (2019) году:"]
[null,null,"2.1","Гарантирующая организация в сфере холодного водоснабжения, обеспечивающая максимальный объем отпуска воды в поселении, городском округе, на территории которого находится система теплоснабжения",{"$f":"'С2.3'!E21","v":0},{"$f":"'С2.3'!F21","v":0}]
[null,null,"2.2","Тариф на питьевую воду (питьевое водоснабжение), действующий на день окончания базового (2019) года, без НДС, руб./куб. м",3394.19,"Приказ Управления по государственному регулированию цен (тарифов) НАО от 18.12.2018 № 65"]
[null,null,"2.3","Гарантирующая организация в сфере холодного водоотведения, обеспечивающая максимальный объем принятых сточных вод в поселении, городском округе, на территории которого находится система теплоснабжения",{"$f":"'С2.3'!E25","v":0},{"$f":"'С2.3'!F25","v":0}]
[null,null,"2.4","Тариф на водоотведение, действующий на день окончания базового (2019) года, без НДС, руб./куб. м",0]
[null,null,"2.5","Расходы на водоподготовку и водоотведение котельной в базовом (2019) году, тыс. руб. (РВб)",{"$f":"(E17*(E11+E12)+E19*E13)/1000","v":11903.42433}]
[]
[null,null,"Перейти на лист расчета составляющей, обеспечивающей компенсацию прочих расходов"]
[null,null,"Перейти на лист \"Итог\""]

{"sheet":"С4.4","index":29,"n_rows":43,"n_cols":12,"rows_kept":43,"cut":false,"hidden":false,"merged":[[3,2,3,3],[37,2,37,4],[38,2,38,3],[42,2,42,6],[32,3,32,4],[33,3,33,4],[34,3,34,4],[35,3,35,4],[28,3,28,4],[29,3,29,4],[30,3,30,4],[40,2,40,6],[41,2,41,6],[31,3,31,4],[26,3,26,4],[27,3,27,4],[25,3,25,4],[5,2,5,5],[7,2,7,5],[8,2,9,2],[8,3,9,3],[8,4,9,4],[8,5,9,5],[18,3,18,4],[20,2,20,5],[21,3,21,4],[22,3,22,4],[23,3,24,4],[23,2,24,2]]}
[null,null,null,null,null,null,null,null,null,null,null,"<выберите уровень детализации данных>"]
[null,null,null,null,null,null,null,null,null,null,null,"по муниципальному району, городскому округу"]
[null,null,null,null,null,null,null,null,null,null,null,"по субъекту Российской Федерации"]
[null,null,"Вернуться к заполнению исходных данных"]
[null,null,null,null,null,"Форма С4.4"]
[null,null,"Расчет расходов на оплату труда персонала котельной с использованием угля в базовом (2019) году"]
[]
[null,null,"Технико-экономические параметры работы котельных и тепловых сетей, используемые для расчета:"]
[null,null,"№пп","Должность (специальность, профессия)","Количество штатных единиц персонала котельной, производящей тепловую энергию с использованием угля","Базовый уровень ежемесячной оплаты труда сотрудника котельной с учетом коэффициента загрузки, тыс. руб."]
[]
[null,null,1,"Начальник котельной",{"$f":"И2!C423","v":1},{"$f":"И2!F423","v":63.9}]
[null,null,2,"Старший оператор",{"$f":"И2!C424","v":5},{"$f":"И2!F424","v":23.5}]
[null,null,3,"Слесарь",{"$f":"И2!C425","v":1},{"$f":"И2!F425","v":47}]
[null,null,4,"Инженер-электрик",{"$f":"И2!C426","v":1},{"$f":"И2!F426","v":15.5}]
[null,null,5,"Инженер-химик",{"$f":"И2!C427","v":1},{"$f":"И2!F427","v":15.5}]
[null,null,6,"Инженер КИП",{"$f":"И2!C428","v":1},{"$f":"И2!F428","v":15.5}]
[null,null,7,"Машинист (кочегар) котельной",{"$f":"И2!C429","v":5},{"$f":"И2!F429","v":23.5}]
[]
[null,null,8,"Величина среднемесячной заработной платы работников организаций отрасли \"Обеспечение электрической энергией, газом и паром; кондиционирование воздуха\" по г. Москве в базовом (2019) году, руб. (ЗПМСКср)",null,{"$f":"И2!$C$438","v":112025}]
[]
[null,null,"Исходные данные для расчета расходов на оплату труда персонала котельной и на уплату страховых взносов по персоналу котельной в базовом (2019) году:"]
[null,null,"№ пп","Наименование",null,"Значения"]
[null,null,1,2,null,3]
[null,null,1,"Величина среднемесячной заработной платы работников организаций отрасли \"Обеспечение электрической энергией, газом и паром; кондиционирование воздуха\" в базовом (2019) году, руб. (ЗПМОср)",null,65415]
[null,null,null,null,null,"по субъекту Российской Федерации"]
[null,null,2,"Коэффициент корректировки базового уровня ежемесячной оплаты труда сотрудника котельной (kМО)",null,{"$f":"F24/$F$19","v":0.58393215800044629}]
[null,null,3,"Заработная плата сотрудников котельной, производящей тепловую энергию с использованием угля, в базовом (2019) году, тыс. руб",null,{"$f":"SUMPRODUCT(E11:E17,F11:F17)*12*F26","v":2749.6197455925012}]
[null,null,4,"Тариф страховых взносов на обязательное социальное страхование на случай временной нетрудоспособности и в связи с материнством в пределах установленной предельной величины базы для исчисления страховых взносов по данному виду страхования за базовый (2019) год, %",null,2.9000000000000001E-2,null,"(см.примечание №1)"]
[null,null,5,"Страховой тариф на обязательное социальное страхование от несчастных случаев на производстве и профессиональных заболеваний за базовый (2019) год, %",null,2E-3,null,"(см.примечание №2)"]
[null,null,6,"Предельная величина базы для исчисления страховых взносов на обязательное социальное страхование на случай временной нетрудоспособности и в связи с материнством за базовый (2019) год, тыс.руб.",null,865,null,"(см.примечание №3)"]
[null,null,7,"Тариф страховых взносов на обязательное медицинское страхование за базовый (2019) год, %",null,5.0999999999999997E-2,null,"(см.примечание №1)"]
[null,null,8,"Тариф страховых взносов на обязательное пенсионное страхование в пределах установленной предельной величины базы для исчисления страховых взносов по данному виду страхования за базовый (2019) год, %",null,0.22,null,"(см.примечание №1)"]
[null,null,9,"Тариф страховых взносов на обязательное пенсионное страхование сверх установленной предельной величины базы для исчисления страховых взносов по данному виду страхования за базовый (2019) год, %",null,0.1,null,"(см.примечание №1)"]
[null,null,10,"Предельная величина базы для исчисления страховых взносов на обязательное пенсионное страхование за базовый (2019) год, тыс.руб.",null,1150,null,"(см.примечание №3)"]
[null,null,11,"Дополнительный тариф страховых взносов на обязательное пенсионное страхование в базовом (2019) году, %",null,0.09,null,"(см.примечание №1)"]
[null,null,12,"Расходы на уплату в базовом (2019) году страховых взносов по персоналу котельной, определяемые в соответствии с требованиями законодательства Российской Федерации о страховых взносах исходя из расходов на оплату труда персонала котельной, тыс. руб. (Рб,kСВ)",null,{"$f":"$E$11*IF($F$11*12*$F$26<$F$34,$F$32*$F$11*12*$F$26,$F$32*$F$34+$F$33*($F$11*12*$F$26-$F$34))+\n($E$12+$E$17)*IF($F$12*12*$F$26<$F$34,$F$32*$F$12*12*$F$26,$F$32*$F$34+$F$33*($F$12*12*$F$26-$F$34))+\n$E$13*IF($F$13*12*$F$26<$F$34,$F$32*$F$13*12*$F$26,$F$32*$F$34+$F$33*($F$13*12*$F$26-$F$34))+\n($E$14+$E$15+$E$16)*IF($F$14*12*$F$26<$F$34,$F$32*$F$14*12*$F$26,$F$32*$F$34+$F$33*($F$14*12*$F$26-$F$34))+\n$F$17*12*$F$26*$E$17*$F$35+\n$E$11*IF($F$11*12*$F$26<$F$30,$F$28*$F$11*12*$F$26,$F$28*$F$30)+\n($E$12+$E$17)*IF($F$12*12*$F$26<$F$30,$F$28*$F$12*12*$F$26,$F$28*$F$30)+\n$E$13*IF($F$13*12*$F$26<$F$30,$F$28*$F$13*12*$F$26,$F$28*$F$30)+\n($E$14+$E$15+$E$16)*IF($F$14*12*$F$26<$F$30,$F$28*$F$14*12*$F$26,$F$28*$F$30)+($F$31+$F$29)*$F$27","v":904.4861540191921}]
[]
[null,null,"Перейти на лист расчета составляющей, обеспечивающей компенсацию прочих расходов"]
[null,null,"Перейти на лист \"Итог\""]
[null,"Примечание:"]
[null,1,"В стр. 4, 7, 8, 9, 11 указываются значения тарифов страховых взносов на базовый (2019) год в соответствии с Главой 34 Налогового кодекса Российской Федерации (часть вторая) от 05.08.2000 № 117-ФЗ"]
[null,2,"В стр.5 указывается значение страхового тарифа, установленное на базовый (2019) год Федеральным законом от 22.12.2005 № 179-ФЗ \"О страховых тарифах на обязательное социальное страхование от несчастных случаев на производстве и профессиональных заболеваний на 2006 год\"."]
[null,3,"В стр.6 и 10 указываются значения предельной величины базы для исчисления страховых взносов, установленные на базовый (2019) год постановлением Правительства РФ от 28.11.2018 № 1426 \"О предельной величине базы для исчисления страховых взносов на обязательное социальное страхование на случай временной нетрудоспособности и в связи с материнством и на обязательное пенсионное страхование с 1 января 2019 г.\"\n"]

{"sheet":"С5","index":30,"n_rows":19,"n_cols":6,"rows_kept":19,"cut":false,"hidden":false,"merged":[[5,2,5,5],[17,2,17,3],[18,2,18,3]]}
[]
[]
[]
[]
[null,null,null,null,null,"Форма С5"]
[null,null,"Расчет составляющей предельного уровня цены на тепловую энергию (мощность), обеспечивающей создание резерва по сомнительным долгам"]
[]
[null,null,"Период регулирования (i)-й",null,{"$f":"И1!E8","v":2024}]
[]
[null,null,"№ пп","Наименование","Единицы измерения","Значения"]
[null,null,1,2,3,4]
[null,null,1,"Составляющая предельного уровня цены на тепловую энергию (мощность), обеспечивающая создание резерва по сомнительным долгам в i-м расчетном периоде регулирования (РДi)","руб./Гкал",{"$f":"SUM(F13:F16)*0.02","v":206.54212027878137}]
[null,null,"1.1","Составляющая предельного уровня цены на тепловую энергию (мощность), обеспечивающая компенсацию расходов на топливо (уголь) при производстве тепловой энергии котельной в i-м расчетном периоде регулирования (РТi)","руб./Гкал",{"$f":"С1!F12","v":4455.5050364047511}]
[null,null,"1.2","Составляющая предельного уровня цены на тепловую энергию (мощность), обеспечивающая возврат капитальных затрат на строительство котельной и тепловых сетей в i-м расчетном периоде регулирования (КРi)","руб./Гкал",{"$f":"С2!F12","v":2357.0206688915569}]
[null,null,"1.3","Составляющая предельного уровня цены на тепловую энергию (мощность), обеспечивающая компенсацию расходов на уплату налогов в i-м расчетном периоде регулирования (Нi)","руб./Гкал",{"$f":"С3!F12","v":561.38203449717889}]
[null,null,"1.4","Составляющая предельного уровня цены на тепловую энергию (мощность), обеспечивающая компенсацию прочих расходов при производстве тепловой энергии котельной в i-м расчетном периоде регулирования (ПРi)","руб./Гкал",{"$f":"С4!F12","v":2953.1982741455809}]
[null,null,"1.5","Коэффициент, отражающий размер резерва по сомнительным долгам (kРД)",null,0.02]
[null,null,"Вернуться на лист \"Содержание\""]
[null,null,"Перейти на лист \"Итог\""]

{"sheet":"С6","index":31,"n_rows":17,"n_cols":8,"rows_kept":17,"cut":false,"hidden":false,"merged":[[5,2,5,5],[13,2,13,3],[3,2,3,3],[14,2,14,3],[16,3,16,6]]}
[]
[]
[]
[]
[null,null,null,null,null,"Форма С6"]
[null,null,"Расчет составляющей предельного уровня цены на тепловую энергию (мощность), обеспечивающей учет отклонений фактических показателей от прогнозных показателей, используемых при расчете предельного уровня цены на тепловую энергию (мощность) "]
[]
[null,null,"Период регулирования (i)-й",null,{"$f":"И1!E8","v":2024}]
[]
[null,null,"№ пп","Наименование","Единицы измерения","Значения"]
[null,null,1,2,3,4]
[null,null,1,"Составляющая предельного уровня цены на тепловую энергию (мощность), обеспечивающая учет отклонений фактических показателей от прогнозных показателей, используемых при расчете предельного уровня цены на тепловую энергию (мощность), в i-м расчетном периоде регулирования (ΔBi)","руб./Гкал","-",null,"(см.примечание №1)"]
[]
[null,null,"Вернуться на лист \"Содержание\""]
[null,null,"Перейти на лист \"Итог\""]
[null,null,"Примечание:"]
[null,null,1,"В соответствии с пунктом 10 Правил указанная в стр.1 составляющая предельного уровня цены на тепловую энергию (мощность), обеспечивающая учет отклонений фактических показателей от прогнозных показателей, используемых при расчете предельного уровня цены на тепловую энергию (мощность), в i-м расчетном периоде регулирования не рассчитывается в отношении систем теплоснабжения, в которых преобладающим видом топлива является уголь или мазут."]

{"sheet":"И3","index":32,"n_rows":223,"n_cols":4,"rows_kept":223,"cut":false,"hidden":false,"merged":[[140,1,140,3],[83,1,83,3],[94,1,94,3],[123,1,123,3],[0,1,0,3],[26,1,26,3],[39,1,39,3],[13,0,13,2],[126,1,126,3]]}
[null,"Предельный уровень цены на тепловую энергию (мощность), рассчитанный в соответствии с частью 1 статьи 23.6 Федерального закона от 27.07.2010 № 190-ФЗ \"О теплоснабжении\" и Постановлением № 1562, а также сведения о параметрах, использованных при расчете"]
[null,"Дата:",{"$f":"TODAY()","v":"2024-03-25"}]
[null,"Информация о системе теплоснабжения, в отношении которой выполняется расчет:"]
[null,{"$f":"И1!D13","v":"Субъект Российской Федерации"},{"$f":"И1!E13","v":"Ненецкий автономный округ"}]
[null,{"$f":"И1!D14","v":"Тип муниципального образования (выберите из списка)"},{"$f":"И1!E14","v":"Заполярный район"}]
[null,{"$f":"IF(И1!E15=\"\",\"\",И1!D15)","v":""},{"$f":"IF(И1!E15=\"\",\"\",И1!E15)","v":""}]
[null,{"$f":"И1!D16","v":"Код ОКТМО"},{"$f":"И1!E16","v":"Нижняя Пеша; Верхняя Пеша; Волоковая"}]
[null,{"$f":"И1!D17","v":"Система теплоснабжения"},{"$f":"И1!E17","v":0}]
[null,{"$f":"И1!D8","v":"Период регулирования (i)-й"},{"$f":"И1!E8","v":2024}]
[null,{"$f":"И1!D9","v":"Период регулирования (i-1)-й"},{"$f":"И1!E9","v":2023}]
[null,{"$f":"И1!D10","v":"Период регулирования (i-2)-й"},{"$f":"И1!E10","v":2022}]
[null,{"$f":"И1!D11","v":"Базовый год (б)"},{"$f":"И1!E11","v":2019}]
[null,{"$f":"И1!D18","v":"Вид топлива, использование которого преобладает в системе теплоснабжения"},{"$f":"'С1.1'!E13","v":"каменный уголь"}]
["Предельный уровень цены на тепловую энергию (мощность) и его составляющие, обеспечивающие компенсацию расходов:"]
["№пп","Наименование","Значения"]
[1,2,3]
[1,"Уровень цены на тепловую энергию (мощность) без НДС, руб./Гкал",{"$f":"SUM(C18:C22)","v":10533.64813421785}]
["1.1","Составляющая предельного уровня цены на тепловую энергию (мощность), обеспечивающая компенсацию расходов на топливо при производстве тепловой энергии котельной в i-м расчетном периоде регулирования, руб./Гкал (РТi)",{"$f":"С1!F12","v":4455.5050364047511}]
["1.2","Составляющая предельного уровня цены на тепловую энергию (мощность), обеспечивающая возврат капитальных затрат на строительство котельной и тепловых сетей в i-м расчетном периоде регулирования, руб./Гкал (КРi)",{"$f":"С2!F12","v":2357.0206688915569}]
["1.3","Составляющая предельного уровня цены на тепловую энергию (мощность), обеспечивающая компенсацию расходов на уплату налогов в i-м расчетном периоде регулирования (Нi)",{"$f":"С3!F12","v":561.38203449717889}]
["1.4","Составляющая предельного уровня цены на тепловую энергию (мощность), обеспечивающая компенсацию прочих расходов при производстве тепловой энергии котельной в i-м расчетном периоде регулирования, руб./Гкал (ПРi)",{"$f":"С4!F12","v":2953.1982741455809}]
["1.5","Составляющая предельного уровня цены на тепловую энергию (мощность), обеспечивающая создание резерва по сомнительным долгам в i-м расчетном периоде регулирования, руб./Гкал (РДi)",{"$f":"С5!F12","v":206.54212027878137}]
["1.6","Составляющая предельного уровня цены на тепловую энергию (мощность), обеспечивающая учет отклонений фактических показателей от прогнозных показателей, используемых при расчете предельного уровня цены на тепловую энергию (мощность), в i-м расчетном периоде регулирования, руб./Гкал (ΔBi)",{"$f":"С6!F12","v":"-"}]
[]
["№пп","Наименование","Значения","Источник информации"]
[1,2,3,4]
[1,"Параметры, использованные при расчете составляющей предельного уровня цены на тепловую энергию (мощность), обеспечивающей компенсацию расходов на топливо при производстве тепловой энергии котельной в i-м расчетном периоде регулирования"]
["1.1","Низшая теплота сгорания натурального топлива (угля), ккал/кг",{"$f":"'С1.1'!E16","v":5500},{"$f":"'С1.1'!F16","v":"договор от 07.04.2022 № 58/2022"}]
["1.2","Фактическая цена на топливо (уголь), используемое при производстве тепловой энергии котельной, с учетом затрат на его доставку, сложившаяся в системе теплоснабжения в (i-2)-м расчетном периоде регулирования, без НДС, руб. / т н.т. (ЦТi-2,kф, нат.)",{"$f":"'С1.1'!E27","v":21220.536661970007},{"$f":"IF('С1.1'!E23='С1.1'!I9,'С1.1'!F24,IF('С1.1'!E23='С1.1'!I10,'С1.1'!I10,IF('С1.1'!E23='С1.1'!I11,'С1.3'!G9,IF('С1.1'!E23='С1.1'!I12,'С1.1'!F25,IF('С1.1'!E23='С1.1'!I13,'С1.1'!F26,\"\")))))","v":"информация с официального сайта единой информационной системы в сфере закупок"}]
["1.3","Прогнозный индекс роста цены на топливо в (i-1)-м расчетном периоде регулирования, % (Ii-1,kП)",{"$f":"'С1.1'!E19","v":-0.19900000000000001},{"$f":"'С1.1'!F19","v":"Прогноз социально-экономического развития Российской Федерации на 2024 год и на плановый период 2025 и 2026 годов (размещен на официальном сайте Министерства экономического развития Российской Федерации (далее - Минэкономразвития России)  22.09.2023): файл в формате Microsoft Excel \"6. Дефляторы базовый\", таблица \"Прогноз индексов цен производителей и индексов-дефляторов по видам экономической деятельности, в % г/г  (Базовый)\", \"Добыча полезных ископаемых (Раздел B)\", строка \"Добыча угля (05)\", (показатель \"ИЦП\") "}]
["1.4","Прогнозный индекс роста цены на топливо в i-м расчетном периоде регулирования, % (Ii,kП)",{"$f":"'С1.1'!E20","v":5.7000000000000002E-2},{"$f":"'С1.1'!F20","v":"Прогноз социально-экономического развития Российской Федерации на 2024 год и на плановый период 2025 и 2026 годов (размещен на официальном сайте Министерства экономического развития Российской Федерации (далее - Минэкономразвития России)  22.09.2023): файл в формате Microsoft Excel \"6. Дефляторы базовый\", таблица \"Прогноз индексов цен производителей и индексов-дефляторов по видам экономической деятельности, в % г/г  (Базовый)\", \"Добыча полезных ископаемых (Раздел B)\", строка \"Добыча угля (05)\", (показатель \"ИЦП\") "}]
["1.5","Удельный расход условного топлива при производстве тепловой энергии котельной с использованием угля в i-м расчетном периоде регулирования, кг у.т./Гкал (bi,k)",{"$f":"С1!F13","v":176.4},"Таблица ТЭП (I)"]
["1.6","Низшая теплота сгорания 1 кг условного топлива",{"$f":"С1!F16","v":7000},"Постановление №1562"]
["1.7","Коэффициент перевода натурального топлива в условное топливо, кг у.т./кг (К)",{"$f":"С1!F17","v":0.7857142857142857}]
["1.8","Объем отпуска тепловой энергии с коллекторов котельной (QОТП)",{"$f":"С1!F20","v":26.042006129999997}]
["1.8.1","Объем полезного отпуска тепловой энергии котельной (QПО)",{"$f":"С1!F21","v":24.684365999999997}]
["1.8.2","Коэффициент учета потерь тепловой энергии в тепловых сетях(КП)",{"$f":"С1!F22","v":1.0549999999999999},"Таблица ТЭП (II.1.)"]
["1.9","Коэффициент учета стоимости транспортных услуг, оказываемых на подъездных железнодорожных путях организациями промышленного железнодорожного транспорта и другими хозяйствующими субъектами независимо от организационно-правовой формы, за исключением организаций федерального железнодорожного транспорта (Кппжт) ",{"$f":"С1!F23","v":1.0469999999999999},"Таблица ТЭП (II.2.)"]
[]
["2","Параметры, использованные при расчете составляющей предельного уровня цены на тепловую энергию (мощность), обеспечивающей возврат капитальных затрат на строительство котельной и тепловых сетей в i-м расчетном периоде регулирования"]
["2.1","Температурная зона, к которой относится поселение или городской округ, на территории которого находится система теплоснабжения",{"$f":"'С2.1'!E12","v":"IV"},"Таблица ТЭП (IX)"]
["2.2","Степень сейсмической опасности сейсмического района, к которому относится поселение или городской округ, на территории которого находится система теплоснабжения",{"$f":"'С2.1'!E13","v":"6 и менее баллов"},{"$f":"'С2.1'!F13","v":" Приложение А (обязательное) \"Общее сейсмическое районирование территории Российской Федерации ОСР-2015. Список населенных пунктов Российской Федерации, расположенных в сейсмических районах, с указанием расчетной сейсмической интенсивности в баллах шкалы MSK-64 для средних грунтовых условий и трех степеней сейсмической опасности - A (10%), B (5%), C (1%) в течение 50 лет\" к своду правил \"СП 14.13330.2018 Строительство в сейсмических районах. Актуализир. редакция СНиП II-7-81\"."}]
["2.3","Расстояние от границы системы теплоснабжения до границы ближайшего административного центра субъекта Российской Федерации с железнодорожным сообщением, км",{"$f":"'С2.1'!E14","v":"от 500 до 1000"},{"$f":"'С2.1'!F14","v":"Карта Российской Федерации в масштабе, позволяющем определить расстояние на транспортировку основных средств котельной, определяется как расстояние от границы системы теплоснабжения до границы ближайшего административного центра субъекта РФ с железнодорожным сообщением"}]
["2.4","Поселение, городской округ, на территории которого находится система теплоснабжения, отнесено к территории распространения вечномерзлых грунтов?",{"$f":"'С2.1'!E15","v":"да"},{"$f":"'С2.1'!F15","v":0}]
["2.5","Величина капитальных затрат на строительство тепловых сетей в i-м расчетном периоде регулирования, тыс. руб. (КЗiсети)",{"$f":"С2!F18","v":133807.82100446234}]
["2.5.1","Базовая величина капитальных затрат на строительство тепловых сетей в базовом (2019) году, тыс. руб. (КЗбсети(б))",{"$f":"IF(С2!F19>0,С2!F19,С2!F20)","v":89346.582291029146}]
["2.5.1.1","Расчетная температура наружного воздуха, которая соответствует температуре воздуха наиболее холодной пятидневки, в поселении, городском округе,°C",{"$f":"'С2.1'!E19","v":-39},{"$f":"CONCATENATE('С2.1'!F19,\"  \",'С2.1'!F20)","v":"Свод правил СП 131.13330.2020 \"СНиП 23-01-99* Строительная климатология\" \"Температура воздуха наиболее холодной пятидневки с обеспеченностью 0,92\"  "}]
["2.5.1.2","Поселение, городской округ, на территории которого находится система теплоснабжения, отнесено к районам Крайнего Севера или местностям, приравненным к районам Крайнего Севера?",{"$f":"'С2.1'!E22","v":"относится к районам Крайнего Севера"},{"$f":"'С2.1'!F22","v":0}]
["2.5.1.3","Сметная стоимость строительно-монтажных и пусконаладочных работ по объекту строительства \"Внешние инженерные сети теплоснабжения\", учитывающая прямые затраты, накладные расходы и сметную прибыль, в ценах 2001 года,тыс. рублей (Р)",{"$f":"'С2.2'!E10","v":5802},"Таблица ТЭП (II) Таблица 2"]
["2.5.1.4","Индекс изменения сметной стоимости строительно-монтажных и пусконаладочных работ по объекту строительства \"Внешние инженерные сети теплоснабжения\" на базовый год (И)",{"$f":"'С2.2'!E12","v":8.39},"Таблица ТЭП (II) Таблица 3"]
["2.5.1.5","Коэффициент, применяемый для учета повышенной нормы накладных расходов к индексам изменения сметной стоимости строительно-монтажных и пусконаладочных работ в базовом году в случае отнесения поселения, городского округа к районам Крайнего Севера или местностям, приравненным к районам Крайнего Севера (Ккс)",{"$f":"'С2.2'!E13","v":1.02},"Постановление №1562"]
["2.5.1.6","Базовая величина капитальных затрат на основные средства тепловых сетей в базовом году, тыс.рублей (КЗОбсети(б))",{"$f":"'С2.2'!E14","v":25605},"Таблица ТЭП (II) Таблица 2"]
["2.5.1.7","Сметная норма дополнительных затрат по виду строительства \"Энергетическое строительство. Тепловые сети\",% (z)",{"$f":"'С2.2'!E15","v":3.5999999999999997E-2},"таблица 4 Сборника сметных норм дополнительных затрат при производстве строительно-монтажных работ в зимнее время (ГСН 81-05-02-2007)"]
["2.5.1.8","Коэффициент к сметным нормам по видам строительства (h)",{"$f":"'С2.2'!E16","v":1.4},"Приложение № 1 Сборника сметных норм дополнительных затрат при производстве строительно-монтажных работ в зимнее время \n(ГСН 81-05-02-2007)."]
["2.5.2","Коэффициент сейсмического влияния для тепловых сетей (Ксети,с)",{"$f":"С2!F21","v":1},"Таблица ТЭП (VIII)"]
["2.6","Величина капитальных затрат на строительство котельной с использованием угля в i-м расчетном периоде регулирования, тыс. руб. (КЗi,kкот)",{"$f":"С2!F13","v":181661.03007042102}]
["2.6.1","Базовая величина капитальных затрат на строительство котельной с использованием угля в базовом (2019) году (КЗб,kкот(б))",{"$f":"С2!F14","v":113455},"Таблица ТЭП (I)"]
["2.6.2","Коэффициент температурной зоны для котельной (Ккот,т)",{"$f":"С2!F15","v":1.038},"Таблица ТЭП (VII)"]
["2.6.3","Коэффициент сейсмического влияния для котельной(Ккот,с)",{"$f":"С2!F16","v":1},"Таблица ТЭП (VIII)"]
["2.6.4","Коэффициент влияния расстояния на транспортировку основных средств котельной (Ктр)",{"$f":"С2!F17","v":1.03},"Таблица ТЭП (X)"]
["2.6.5","Срок возврата инвестированного капитала, лет (СВК)",{"$f":"С2!F33","v":10},"Таблица ТЭП (XI)"]
["2.7","Стоимость земельного участка для размещения котельной в i-м расчетном периоде регулирования, тыс.руб. (Зi,k)",{"$f":"С2!F26","v":7908.1724010612388}]
["2.7.1","Удельная базовая стоимость земельного участка,тыс. руб./ кв. м (Рk,б)",{"$f":"С2!F27","v":1.2572547469999997},{"$f":"'С2.4'!F12","v":0}]
["2.7.2","Площадь земельного участка для размещения котельной с использованием угля, кв. м (Sk)",{"$f":"С2!F28","v":4200},"Таблица ТЭП (I)"]
["2.8","Затраты на подключение (технологическое присоединение) котельной с использованием угля к электрическим сетям, к централизованной системе водоснабжения и водоотведения в i-м расчетном периоде регулирования, тыс. руб. (ТПi,k)",{"$f":"С2!F22","v":40408.712410712811}]
["2.8.1","Базовая величина затрат на подключение (технологическое присоединение) котельной с использованием угля к электрическим сетям (ТПб,kэс)",{"$f":"С2!F23","v":3132},"Таблица ТЭП (III)"]
["2.8.2","Затраты на подключение (технологическое присоединение) котельной к централизованной системе водоснабжения в базовом (2019) году, тыс. руб. (ТПбвс)",{"$f":"'С2.1'!E27","v":14307.876789999998}]
["2.8.2.1","Гарантирующая организация в сфере холодного водоснабжения, обеспечивающая максимальный объем отпуска воды в поселении, городском округе, на территории которого находится система теплоснабжения",{"$f":"'С2.3'!E21","v":0},{"$f":"'С2.3'!F21","v":0}]
["2.8.2.2","Величина подключаемой (технологически присоединяемой) нагрузки к централизованной системе водоснабжения, куб. м/сут",{"$f":"'С2.3'!E11","v":9.89},"Таблица ТЭП (IV)"]
["2.8.2.3","Протяженность сетей от котельной до места подключения к централизованной системе водоснабжения и водоотведения, м",{"$f":"'С2.3'!E13","v":300},"Таблица ТЭП (IV)"]
["2.8.2.4","Ставка тарифа за подключаемую (технологически присоединяемую) нагрузку водопроводной сети, действующая на день окончания базового (2019) года, без НДС, руб./куб. м/сут",{"$f":"IF('С2.3'!E22>0,'С2.3'!E22,'С2.3'!E14)","v":61211},{"$f":"IF(C71='С2.3'!E14,\"Таблица ТЭП (IV)\",'С2.3'!F22)","v":"Таблица ТЭП (IV)"}]
["2.8.2.5","Ставка тарифа за расстояние от точки подключения (технологического присоединения) котельной до точки подключения водопроводных сетей к централизованной системе водоснабжения, действующих на день окончания базового (2019) года, без НДС, руб./м",{"$f":"IF('С2.3'!E23>0,'С2.3'!E23,'С2.3'!E15)","v":45675},{"$f":"IF(C72='С2.3'!E15,\"Таблица ТЭП (IV)\",'С2.3'!F23)","v":"Таблица ТЭП (IV)"}]
["2.8.3","Затраты на подключение (технологическое присоединение) котельной к централизованной системе водоотведения в базовом (2019) году, тыс. руб. (ТПбво)",{"$f":"'С2.1'!E28","v":9541.9567200000001}]
["2.8.3.1","Гарантирующая организация в сфере холодного водоотведения, обеспечивающая максимальный объем принятых сточных вод в поселении, городском округе, на территории которого находится система теплоснабжения",{"$f":"'С2.3'!E25","v":0},{"$f":"'С2.3'!F25","v":0}]
["2.8.3.2","Величина подключаемой (технологически присоединяемой) нагрузки к централизованной системе водоотведения, куб. м/сут",{"$f":"'С2.3'!E12","v":0.56000000000000005},"Таблица ТЭП (IV)"]
["2.8.3.3","Протяженность сетей от котельной до места подключения к централизованной системе водоснабжения и водоотведения, м",{"$f":"'С2.3'!E13","v":300},"Таблица ТЭП (IV)"]
["2.8.3.4","Ставка тарифа за подключаемую (технологически присоединяемую) нагрузку канализационной сети, действующая на день окончания базового (2019) года, без НДС, руб./куб. м/сут",{"$f":"IF('С2.3'!E26>0,'С2.3'!E26,'С2.3'!E16)","v":65637},{"$f":"IF(C77='С2.3'!E16,\"Таблица ТЭП (IV)\",'С2.3'!F26)","v":"Таблица ТЭП (IV)"}]
["2.8.3.5","Ставка тарифа за расстояние от точки подключения (технологического присоединения) котельной до точки подключения канализационных сетей к централизованной системе водоотведения, действующая на день окончания базового (2019) года, без НДС, руб./м",{"$f":"IF('С2.3'!E27>0,'С2.3'!E27,'С2.3'!E17)","v":31684},{"$f":"IF(C78='С2.3'!E17,\"Таблица ТЭП (IV)\",'С2.3'!F27)","v":"Таблица ТЭП (IV)"}]
["2.9","Норма доходности инвестированного капитала в i-м расчетном периоде регулирования, % (НДi)",{"$f":"С2!F29","v":9.5962865259740182E-2}]
["2.9.1","Средневзвешенная по дням 9 месяцев (i-1)-го расчетного периода регулирования ключевая ставка Центрального банка Российской Федерации, % (КСi-1)",{"$f":"С2!F30","v":8.4029304029304031E-2},{"$f":"'С2.6'!G11","v":"Информация с официального сайта Банка России"}]
["2.9.2","Базовый уровень нормы доходности инвестированного капитала,% (НДб)",{"$f":"С2!F31","v":0.13880000000000001},"Таблица ТЭП (XI)"]
["2.9.3","Базовый уровень ключевой ставки Центрального банка Российской Федерации, % (КСб)",{"$f":"С2!F32","v":0.12640000000000001},"Таблица ТЭП (XI)"]
[]
["3","Параметры, использованные при расчете составляющей предельного уровня цены на тепловую энергию (мощность), обеспечивающей компенсацию расходов на уплату налогов в i-м расчетном периоде регулирования"]
["3.1","Расходы на уплату налога на прибыль от деятельности, связанной с производством и поставкой тепловой энергии (мощности), в i-м расчетном периоде регулирования, тыс. руб. (Нiп)",{"$f":"С3!F14","v":8614.0974903610622}]
["3.1.1","Ставка налога на прибыль от деятельности, связанной с производством и поставкой тепловой энергии (мощности), установленная в соответствии с законодательством Российской Федерации о налогах и сборах и действующая в i-м расчетном периоде регулирования, % (tiп)",{"$f":"С3!F15","v":0.2},{"$f":"'С3.1'!F12","v":" \"Налоговый кодекс Российской Федерации (часть вторая)\" от 05.08.2000 N 117-ФЗ\n"}]
["3.1.2","Период амортизации котельной и тепловых сетей, лет (ПА)",{"$f":"С3!F18","v":15},"Таблица ТЭП (XI)"]
["3.2","Расходы на уплату налога на имущество в i-м расчетном периоде регулирования, тыс. руб. (Нiим)",{"$f":"С3!F19","v":5219.5375977887434}]
["3.2.1","Ставка налога на имущество, установленная в соответствующем субъекте Российской Федерации (без учета специальных льгот по налогу на имущество организаций) в соответствии с законодательством Российской Федерации о налогах и сборах и действующая в i-м расчетном периоде регулирования, % (tiим)",{"$f":"С3!F20","v":2.1999999999999999E-2},{"$f":"'С3.1'!F13","v":" \"Налоговый кодекс Российской Федерации (часть вторая)\" от 05.08.2000 N 117-ФЗ\n"}]
["3.2.2","Срок возврата инвестированного капитала, лет (СВК)",{"$f":"С3!F21","v":10},"Таблица ТЭП (XI)"]
["3.3","Расходы на уплату земельного налога в i-м расчетном периоде регулирования, тыс. руб. (Нiз)",{"$f":"С3!F22","v":23.724517203183716}]
["3.3.1","Ставка земельного налога, установленная в соответствии с законодательством Российской Федерации о налогах и сборах и нормативными правовыми актами представительных органов муниципального образования, на территории которого находится система теплоснабжения, и действующая в i-м расчетном периоде регулирования, % (tiз)",{"$f":"С3!F23","v":3.0000000000000001E-3},{"$f":"'С3.1'!F14","v":"Решение Совета МО \"Муниципальный район \"Заполярный район\" от 27 октября 2006 г. N 108"}]
["3.3.2","Стоимость земельного участка для размещения котельной в i-м расчетном периоде регулирования, тыс.руб. (Зi,k)",{"$f":"С3!F24","v":7908.1724010612388}]
[]
["4","Параметры, использованные при расчете составляющей предельного уровня цены на тепловую энергию (мощность), обеспечивающей компенсацию прочих расходов при производстве тепловой энергии котельной в i-м расчетном периоде регулирования"]
["4.1","Расходы на техническое обслуживание и ремонт основных средств котельной с использованием угля и тепловых сетей в базовом (2019) году, тыс. руб. (ТОб,k)",{"$f":"С4!F16","v":1855.0150000000001}]
["4.1.1","Базовая величина капитальных затрат на основные средства котельной с использованием угля в базовом году, тыс. руб. (КЗОб,kкот(б))",{"$f":"С4!F17","v":73547},"Таблица ТЭП (I)"]
["4.1.2","Коэффициент расходов на техническое обслуживание и ремонт основных средств котельной (Кkкот, ТО)",{"$f":"С4!F18","v":0.02},"Таблица ТЭП (I)"]
["4.1.3","Базовая величина капитальных затрат на основные средства тепловых сетей в базовом году, тыс. руб. (КЗОбсети(б))",{"$f":"С4!F19","v":25605},"Таблица ТЭП (II)"]
["4.1.4","Коэффициент расходов на техническое обслуживание и ремонт основных средств тепловых сетей (Ксети, ТО)",{"$f":"С4!F20","v":1.4999999999999999E-2},"Таблица ТЭП (II)"]
["4.2","Расходы на электрическую энергию на собственные нужды котельной с использованием угля в базовом (2019) году, тыс. руб. (РЭб,k)",{"$f":"С4!F21","v":24777.108689399993}]
["4.2.1","Наименование гарантирующего поставщика",{"$f":"IF('С4.2'!F8=\"да\",'С4.2'!D21,'С4.2'!D15)","v":"Муниципальное предприятие Заполярного \nрайона «Севержилкомсервис»\n"}]
["4.2.2","Среднеарифметическая величина из значений цен (тарифов) на электрическую энергию (мощность), поставляемую покупателям на розничном рынке, функционирующем в поселении или городском округе, на территории которого находится система теплоснабжения, в базовом (2019) году для категории потребителей, установленной технико-экономическими параметрами работы котельных и тепловых сетей, без НДС, руб./кВтч (ЦЭб)",{"$f":"С4!F22","v":39.034999999999997},{"$f":"IF('С4.2'!F8=\"да\",'С4.2'!E21,'С4.2'!E15)","v":"Приказ Управления по государственному регулированию цен (тарифов) НАО от 18.12.18 №61"}]
["4.2.3","Общая максимальная мощность энергопринимающих устройств котельной с использованием угля, кВт (Эk)",{"$f":"С4!F23","v":180},"Таблица ТЭП (III)"]
["4.2.4","Продолжительность годовой работы оборудования котельной с учетом коэффициента готовности, ч (ГР)",{"$f":"С4!F24","v":8497.1999999999989},"Таблица ТЭП (I)"]
["4.2.5","Коэффициент использования установленной тепловой мощности котельной (КИУМ)",{"$f":"С4!F25","v":0.41499999999999998},"Таблица ТЭП (VI)"]
["4.3","Расходы на водоподготовку и водоотведение котельной в базовом (2019) году, тыс. руб. (РВб)",{"$f":"С4!F26","v":11903.42433}]
["4.3.1","Гарантирующая организация в сфере холодного водоснабжения, обеспечивающая максимальный объем отпуска воды в поселении, городском округе, на территории которого находится система теплоснабжения",{"$f":"'С4.3'!E16","v":0},{"$f":"'С4.3'!F16","v":0}]
["4.3.2","Тариф на питьевую воду (питьевое водоснабжение), действующий на день окончания базового (2019) года, без НДС, руб./куб. м",{"$f":"'С4.3'!E17","v":3394.19},{"$f":"'С4.3'!F17","v":"Приказ Управления по государственному регулированию цен (тарифов) НАО от 18.12.2018 № 65"}]
["4.3.3","Гарантирующая организация в сфере холодного водоотведения, обеспечивающая максимальный объем принятых сточных вод в поселении, городском округе, на территории которого находится система теплоснабжения",{"$f":"'С4.3'!E18","v":0},{"$f":"'С4.3'!F18","v":0}]
["4.3.4","Тариф на водоотведение, действующий на день окончания базового (2019) года, без НДС, руб./куб. м",{"$f":"'С4.3'!E19","v":0},{"$f":"'С4.3'!F19","v":0}]
["4.3.5","Расход воды на водоподготовку, куб.м/год",{"$f":"'С4.3'!E11","v":1871},"Таблица ТЭП (I)"]
["4.3.6","Расход воды на собственные нужды котельной, куб.м/год",{"$f":"'С4.3'!E12","v":1636},"Таблица ТЭП (I)"]
["4.3.7","Объем водоотведения, куб.м/год",{"$f":"'С4.3'!E13","v":204},"Таблица ТЭП (I)"]
["4.4","Расходы на оплату труда персонала котельной с использованием угля в базовом (2019) году, тыс. руб. (РПб,k)",{"$f":"С4!F27","v":3654.1058996116935}]
["4.4.1","Заработная плата сотрудников котельной, производящей тепловую энергию с использованием угля, в базовом (2019) году, тыс. руб.",{"$f":"С4!F28","v":2749.6197455925012}]
["4.4.2","Расходы на уплату в базовом (2019) году страховых взносов по персоналу котельной, определяемые в соответствии с требованиями законодательства Российской Федерации о страховых взносах исходя из расходов на оплату труда персонала котельной, тыс. руб. (Рб,kСВ)",{"$f":"С4!F29","v":904.4861540191921}]
["4.5","Иные прочие расходы при производстве тепловой энергии котельной в i-м расчетном периоде регулирования, тыс. руб. (ПРiиные)",{"$f":"С4!F30","v":9713.4778188494747}]
["4.5.1","Расходы на плату за выбросы загрязняющих веществ в атмосферный воздух в пределах установленных нормативов и (или) лимитов, на утилизацию и размещение золы и шлака для котельной с использованием угля в i-м расчетном периоде регулирования, тыс. руб. (ЗВiуголь)",{"$f":"С4!F33","v":7716.7352663420743}]
["4.5.1.1","Дополнительные расходы на плату за выбросы загрязняющих веществ в атмосферный воздух в пределах установленных нормативов и (или) лимитов для котельной с использованием угля (Yiуголь)",{"$f":"С4!F35","v":18.043074000000001}]
["4.5.1.1.1","Базовая величина платы за выбросы загрязняющих веществ в атмосферный воздух, руб. (ПВб)",{"$f":"С4!F36","v":14319.9},"Таблица ТЭП (XIV)"]
["4.5.1.1.2","Коэффициент, применяемый к базовой величине платы за выбросы загрязняющих веществ в атмосферный воздух (КiОС)",{"$f":"С4!F37","v":1.26},{"$f":"'С4.1'!F12","v":"Постановление Правительства РФ\nот 20 марта 2023 г. № 437\n"}]
[]
["5","Параметры, использованные при расчете составляющей предельного уровня цены на тепловую энергию (мощность), обеспечивающей создание резерва по сомнительным долгам в i-м расчетном периоде регулирования"]
["5.1","Коэффициент, отражающий размер резерва по сомнительным долгам (kРД)",{"$f":"С5!F17","v":0.02},"Постановление №1562"]
[]
["6","Параметры, использованные при расчете составляющей предельного уровня цены на тепловую энергию (мощность), обеспечивающей учет отклонений фактических показателей от прогнозных показателей, используемых при расчете предельного уровня цены на тепловую энергию (мощность), в i-м расчетном периоде регулирования"]
["6.1","Составляющая предельного уровня цены на тепловую энергию (мощность), обеспечивающая учет отклонений фактических показателей от прогнозных показателей при расчете составляющей предельного уровня цены на тепловую энергию (мощность), обеспечивающей компенсацию расходов на топливо при производстве тепловой энергии котельной в (i-2)-м расчетном периоде регулирования, определяемой в  i-м расчетном периоде регулирования, руб./Гкал (ΔPTi-2)","-","Постановление №1562"]
["6.1.1","Фактическая цена на k-й вид топлива, используемый при производстве тепловой энергии котельной, с учетом затрат на его доставку, сложившаяся в системе теплоснабжения в (i-2)-м расчетном периоде регулирования, без НДС,  руб./т н. т. (руб./тыс. куб. м) (ЦТi-2,kф, нат.)"]
["6.2","Составляющая предельного уровня цены на тепловую энергию (мощность), обеспечивающая учет отклонений фактических показателей от прогнозных показателей при расчете составляющей предельного уровня цены на тепловую энергию (мощность), обеспечивающей компенсацию расходов на уплату налогов  в (i-2)-м расчетном периоде регулирования, определяемой в  i-м расчетном периоде регулирования, руб./Гкал (ΔHi-2)","-","Постановление №1562"]
["6.2.1","Фактическая ставка налога на прибыль от деятельности, связанной с производством и поставкой тепловой энергии (мощности), установленная в соответствии с законодательством Российской Федерации о налогах и сборах и действующая в (i-2)-м расчетном периоде регулирования, % \n(ti-2п)"]
["6.2.2","Фактическая ставка налога на имущество, установленная в соответствующем субъекте Российской Федерации (без учета специальных льгот по налогу на имущество организаций) в соответствии с законодательством Российской Федерации о налогах и сборах и действующая в (i-2)-м расчетном периоде регулирования, % \n(ti-2им)"]
["6.2.3","Фактическая ставка земельного налога, установленная в соответствии с законодательством Российской Федерации о налогах и сборах и нормативными правовыми актами представительных органов муниципального образования, на территории которого находится система теплоснабжения, и действующая в (i-2)-м расчетном периоде регулирования, % \n(ti-2з)"]
[]
["7","Объем полезного отпуска тепловой энергии котельной,  тыс. Гкал (QПО)",{"$f":"С2!F37","v":24.684365999999997}]
["7.1","Установленная тепловая мощность котельной, Гкал/ч (p)",{"$f":"С2!F38","v":7},"Таблица ТЭП (I)"]
["7.2","Коэффициент готовности, учитывающий продолжительность годовой работы оборудования (Кr)",{"$f":"С2!F40","v":0.97},"Таблица ТЭП (I)"]
["7.3","Коэффициент использования установленной тепловой мощности котельной (КИУМ)",{"$f":"С2!F42","v":0.41499999999999998},"Таблица ТЭП (VI)"]
[]
["8","Прогнозный индекс цен производителей промышленной продукции (накопленным итогом), % (ИЦПi)",{"$f":"С2!F35","v":1.4976266307379205},{"$f":"'С2.5'!D15","v":"на 2020: Прогноз социально-экономического развития Российской Федерации на 2022 год и на плановый период 2023 и 2024 годов (размещен на официальном сайте Минэкономразвития России 30.09.2021): файл в формате Microsoft Excel «12. Дефляторы базовый», таблица «Прогноз индексов цен производителей и индексов-дефляторов по видам экономической деятельности, в % г/г (Базовый вариант)», отрасль «Промышленность (BСDE)», (показатель «ИЦП»). На 2021 год:  Прогноз социально-экономического развития Российской Федерации на 2023 год и на плановый период 2024 и 2025 годов (размещен на официальном сайте Минэкономразвития России 28.09.2022): файл в формате Microsoft Excel «7. Дефляторы базовый», таблица «Прогноз индексов цен производителей и индексов-дефляторов по видам экономической деятельности, в % г/г  (Базовый)», отрасль «Промышленность (BСDE)», (показатель «ИЦП»); на 2022-2024 годы:  Прогноз социально-экономического развития Российской Федерации на 2024 год и на плановый период 2025 и 2026 годов (размещен на официальном сайте Минэкономразвития России 22.09.2023): файл в формате Microsoft Excel «6. Дефляторы базовый», таблица «Прогноз индексов цен производителей и индексов-дефляторов по видам экономической деятельности, в % г/г  (Базовый)», отрасль «Промышленность (BСDE)», (показатель «ИЦП»)"}]
["8.1","Индекс цен производителей промышленной продукции (в среднем за год к предыдущему году), % г/г (ИЦПпб+1, ИЦПпб+2,…,ИЦПпi)"]
[null,"Год"]
[null,2020,{"$f":"'С2.5'!$E$11","v":-2.9000000000000026E-2}]
[null,{"$f":"B143+1","v":2021},{"$f":"'С2.5'!$F$11","v":0.245}]
[null,{"$f":"B144+1","v":2022},{"$f":"'С2.5'!$G$11","v":0.114}]
[null,2023,{"$f":"'С2.5'!$H$11","v":2.4E-2}]
[null,2024,{"$f":"'С2.5'!$I$11","v":8.5999999999999993E-2}]
[null,2025,{"$f":"'С2.5'!$J$11","v":0.21215960863291}]
[null,2026,{"$f":"'С2.5'!$K$11","v":3.5813361771260002E-2}]
[null,2027,{"$f":"'С2.5'!$L$11","v":3.2682303599220003E-2}]
[null,2028,{"$f":"'С2.5'!$M$11","v":0}]
[null,2029,{"$f":"'С2.5'!$N$11","v":0}]
[null,2030,{"$f":"'С2.5'!$O$11","v":0}]
[null,2031,{"$f":"'С2.5'!$P$11","v":0}]
[null,2032,{"$f":"'С2.5'!$Q$11","v":0}]
[null,2033,{"$f":"'С2.5'!$R$11","v":0}]
[null,2034,{"$f":"'С2.5'!$S$11","v":0}]
[null,2035,{"$f":"'С2.5'!$T$11","v":0}]
[null,2036,{"$f":"'С2.5'!$U$11","v":0}]
[null,2037,{"$f":"'С2.5'!$V$11","v":0}]
[null,2038,{"$f":"'С2.5'!$W$11","v":0}]
[null,2039,{"$f":"'С2.5'!$X$11","v":0}]
[null,2040,{"$f":"'С2.5'!$Y$11","v":0}]
[null,2041,{"$f":"'С2.5'!$Z$11","v":0}]
[null,2042,{"$f":"'С2.5'!$AA$11","v":0}]
[null,2043,{"$f":"'С2.5'!$AB$11","v":0}]
[null,2044,{"$f":"'С2.5'!$AC$11","v":0}]
[null,2045,{"$f":"'С2.5'!$AD$11","v":0}]
[null,2046,{"$f":"'С2.5'!$AE$11","v":0}]
[null,2047,{"$f":"'С2.5'!$AF$11","v":0}]
[null,2048,{"$f":"'С2.5'!$AG$11","v":0}]
[null,2049,{"$f":"'С2.5'!$AH$11","v":0}]
[null,2050,{"$f":"'С2.5'!$AI$11","v":0}]
[null,2051,{"$f":"'С2.5'!$AJ$11","v":0}]
[null,2052,{"$f":"'С2.5'!$AK$11","v":0}]
[null,2053,{"$f":"'С2.5'!$AL$11","v":0}]
[null,2054,{"$f":"'С2.5'!$AM$11","v":0}]
[null,2055,{"$f":"'С2.5'!$AN$11","v":0}]
[null,2056,{"$f":"'С2.5'!$AO$11","v":0}]
[null,2057,{"$f":"'С2.5'!$AP$11","v":0}]
[null,2058,{"$f":"'С2.5'!$AQ$11","v":0}]
[null,2059,{"$f":"'С2.5'!$AR$11","v":0}]
[null,2060,{"$f":"'С2.5'!$AS$11","v":0}]
[null,2061,{"$f":"'С2.5'!$AT$11","v":0}]
[null,2062,{"$f":"'С2.5'!$AU$11","v":0}]
[null,2063,{"$f":"'С2.5'!$AV$11","v":0}]
[null,2064,{"$f":"'С2.5'!$AW$11","v":0}]
[null,2065,{"$f":"'С2.5'!$AX$11","v":0}]
[null,2066,{"$f":"'С2.5'!$AY$11","v":0}]
[null,2067,{"$f":"'С2.5'!$AZ$11","v":0}]
[null,2068,{"$f":"'С2.5'!$BA$11","v":0}]
[null,2069,{"$f":"'С2.5'!$BB$11","v":0}]
[null,2070,{"$f":"'С2.5'!$BC$11","v":0}]
[null,2071,{"$f":"'С2.5'!$BD$11","v":0}]
[null,2072,{"$f":"'С2.5'!$BE$11","v":0}]
[null,2073,{"$f":"'С2.5'!$BF$11","v":0}]
[null,2074,{"$f":"'С2.5'!$BG$11","v":0}]
[null,2075,{"$f":"'С2.5'!$BH$11","v":0}]
[null,2076,{"$f":"'С2.5'!$BI$11","v":0}]
[null,2077,{"$f":"'С2.5'!$BJ$11","v":0}]
[null,2078,{"$f":"'С2.5'!$BK$11","v":0}]
[null,2079,{"$f":"'С2.5'!$BL$11","v":0}]
[null,2080,{"$f":"'С2.5'!$BM$11","v":0}]
[null,2081,{"$f":"'С2.5'!$BN$11","v":0}]
[null,2082,{"$f":"'С2.5'!$BO$11","v":0}]
[null,2083,{"$f":"'С2.5'!$BP$11","v":0}]
[null,2084,{"$f":"'С2.5'!$BQ$11","v":0}]
[null,2085,{"$f":"'С2.5'!$BR$11","v":0}]
[null,{"$f":"B208+1","v":2086},{"$f":"'С2.5'!$BS$11","v":0}]
[null,2087,{"$f":"'С2.5'!$BT$11","v":0}]
[null,2088,{"$f":"'С2.5'!$BU$11","v":0}]
[null,2089,{"$f":"'С2.5'!$BV$11","v":0}]
[null,2090,{"$f":"'С2.5'!$BW$11","v":0}]
[null,2091,{"$f":"'С2.5'!$BX$11","v":0}]
[null,2092,{"$f":"'С2.5'!$BY$11","v":0}]
[null,2093,{"$f":"'С2.5'!$BZ$11","v":0}]
[null,2094,{"$f":"'С2.5'!$CA$11","v":0}]
[null,2095,{"$f":"'С2.5'!$CB$11","v":0}]
[null,2096,{"$f":"'С2.5'!$CC$11","v":0}]
[null,2097,{"$f":"'С2.5'!$CD$11","v":0}]
[null,2098,{"$f":"'С2.5'!$CE$11","v":0}]
[null,2099,{"$f":"'С2.5'!$CF$11","v":0}]
[null,2100,{"$f":"'С2.5'!$CG$11","v":0}]

{"sheet":"Проверка","index":33,"n_rows":3,"n_cols":2,"rows_kept":3,"cut":false,"hidden":false,"merged":[]}
[]
[]
["Ссылка","Причина"]

{"sheet":"ИПЦ_ИПГ","index":34,"n_rows":11,"n_cols":82,"rows_kept":11,"cut":false,"hidden":false,"merged":[[1,16067,1,16079],[1,16080,1,16092],[1,16093,1,16105],[1,16106,1,16118],[1,16119,1,16131],[1,16132,1,16144],[1,15989,1,16001],[1,16002,1,16014],[1,16015,1,16027],[1,16028,1,16040],[1,16041,1,16053],[1,16054,1,16066],[1,16379,1,16382],[1,16301,1,16313],[1,16314,1,16326],[1,16327,1,16339],[1,16340,1,16352],[1,16353,1,16365],[1,16366,1,16378],[1,16223,1,16235],[1,16236,1,16248],[1,16249,1,16261],[1,16262,1,16274],[1,16275,1,16287],[1,16288,1,16300],[1,16145,1,16157],[1,16158,1,16170],[1,16171,1,16183],[1,16184,1,16196],[1,16197,1,16209],[1,16210,1,16222],[1,15911,1,15923],[1,15924,1,15936],[1,15937,1,15949],[1,15950,1,15962],[1,15963,1,15975],[1,15976,1,15988],[1,15833,1,15845],[1,15846,1,15858],[1,15859,1,15871],[1,15872,1,15884],[1,15885,1,15897],[1,15898,1,15910],[1,15755,1,15767],[1,15768,1,15780],[1,15781,1,15793],[1,15794,1,15806],[1,15807,1,15819],[1,15820,1,15832],[1,15677,1,15689],[1,15690,1,15702],[1,15703,1,15715],[1,15716,1,15728],[1,15729,1,15741],[1,15742,1,15754],[1,15599,1,15611],[1,15612,1,15624],[1,15625,1,15637],[1,15638,1,15650],[1,15651,1,15663],[1,15664,1,15676],[1,15521,1,15533],[1,15534,1,15546],[1,15547,1,15559],[1,15560,1,15572],[1,15573,1,15585],[1,15586,1,15598],[1,15443,1,15455],[1,15456,1,15468],[1,15469,1,15481],[1,15482,1,15494],[1,15495,1,15507],[1,15508,1,15520],[1,15365,1,15377],[1,15378,1,15390],[1,15391,1,15403],[1,15404,1,15416],[1,15417,1,15429],[1,15430,1,15442],[1,15287,1,15299],[1,15300,1,15312],[1,15313,1,15325],[1,15326,1,15338],[1,15339,1,15351],[1,15352,1,15364],[1,15209,1,15221],[1,15222,1,15234],[1,15235,1,15247],[1,15248,1,15260],[1,15261,1,15273],[1,15274,1,15286],[1,15131,1,15143],[1,15144,1,15156],[1,15157,1,15169],[1,15170,1,15182],[1,15183,1,15195],[1,15196,1,15208],[1,15053,1,15065],[1,15066,1,15078],[1,15079,1,15091],[1,15092,1,15104],[1,15105,1,15117],[1,15118,1,15130],[1,14975,1,14987],[1,14988,1,15000],[1,15001,1,15013],[1,15014,1,15026],[1,15027,1,15039],[1,15040,1,15052],[1,14897,1,14909],[1,14910,1,14922],[1,14923,1,14935],[1,14936,1,14948],[1,14949,1,14961],[1,14962,1,14974],[1,14819,1,14831],[1,14832,1,14844],[1,14845,1,14857],[1,14858,1,14870],[1,14871,1,14883],[1,14884,1,14896],[1,14741,1,14753],[1,14754,1,14766],[1,14767,1,14779],[1,14780,1,14792],[1,14793,1,14805],[1,14806,1,14818],[1,14663,1,14675],[1,14676,1,14688],[1,14689,1,14701],[1,14702,1,14714],[1,14715,1,14727],[1,14728,1,14740],[1,14585,1,14597],[1,14598,1,14610],[1,14611,1,14623],[1,14624,1,14636],[1,14637,1,14649],[1,14650,1,14662],[1,14507,1,14519],[1,14520,1,14532],[1,14533,1,14545],[1,14546,1,14558],[1,14559,1,14571],[1,14572,1,14584],[1,14429,1,14441],[1,14442,1,14454],[1,14455,1,14467],[1,14468,1,14480],[1,14481,1,14493],[1,14494,1,14506],[1,14351,1,14363],[1,14364,1,14376],[1,14377,1,14389],[1,14390,1,14402],[1,14403,1,14415],[1,14416,1,14428],[1,14273,1,14285],[1,14286,1,14298],[1,14299,1,14311],[1,14312,1,14324],[1,14325,1,14337],[1,14338,1,14350],[1,14195,1,14207],[1,14208,1,14220],[1,14221,1,14233],[1,14234,1,14246],[1,14247,1,14259],[1,14260,1,14272],[1,14117,1,14129],[1,14130,1,14142],[1,14143,1,14155],[1,14156,1,14168],[1,14169,1,14181],[1,14182,1,14194],[1,14039,1,14051],[1,14052,1,14064],[1,14065,1,14077],[1,14078,1,14090],[1,14091,1,14103],[1,14104,1,14116],[1,13961,1,13973],[1,13974,1,13986],[1,13987,1,13999],[1,14000,1,14012],[1,14013,1,14025],[1,14026,1,14038],[1,13883,1,13895],[1,13896,1,13908],[1,13909,1,13921],[1,13922,1,13934],[1,13935,1,13947],[1,13948,1,13960],[1,13805,1,13817],[1,13818,1,13830],[1,13831,1,13843],[1,13844,1,13856],[1,13857,1,13869],[1,13870,1,13882],[1,13727,1,13739],[1,13740,1,13752],[1,13753,1,13765],[1,13766,1,13778],[1,13779,1,13791],[1,13792,1,13804],[1,13649,1,13661],[1,13662,1,13674],[1,13675,1,13687],[1,13688,1,13700],[1,13701,1,13713],[1,13714,1,13726],[1,13571,1,13583],[1,13584,1,13596],[1,13597,1,13609],[1,13610,1,13622],[1,13623,1,13635],[1,13636,1,13648],[1,13493,1,13505],[1,13506,1,13518],[1,13519,1,13531],[1,13532,1,13544],[1,13545,1,13557],[1,13558,1,13570],[1,13415,1,13427],[1,13428,1,13440],[1,13441,1,13453],[1,13454,1,13466],[1,13467,1,13479],[1,13480,1,13492],[1,13337,1,13349],[1,13350,1,13362],[1,13363,1,13375],[1,13376,1,13388],[1,13389,1,13401],[1,13402,1,13414],[1,13259,1,13271],[1,13272,1,13284],[1,13285,1,13297],[1,13298,1,13310],[1,13311,1,13323],[1,13324,1,13336],[1,13181,1,13193],[1,13194,1,13206],[1,13207,1,13219],[1,13220,1,13232],[1,13233,1,13245],[1,13246,1,13258],[1,13103,1,13115],[1,13116,1,13128],[1,13129,1,13141],[1,13142,1,13154],[1,13155,1,13167],[1,13168,1,13180],[1,13025,1,13037],[1,13038,1,13050],[1,13051,1,13063],[1,13064,1,13076],[1,13077,1,13089],[1,13090,1,13102],[1,12947,1,12959],[1,12960,1,12972],[1,12973,1,12985],[1,12986,1,12998],[1,12999,1,13011],[1,13012,1,13024],[1,12869,1,12881],[1,12882,1,12894],[1,12895,1,12907],[1,12908,1,12920],[1,12921,1,12933],[1,12934,1,12946],[1,12791,1,12803],[1,12804,1,12816],[1,12817,1,12829],[1,12830,1,12842],[1,12843,1,12855],[1,12856,1,12868],[1,12713,1,12725],[1,12726,1,12738],[1,12739,1,12751],[1,12752,1,12764],[1,12765,1,12777],[1,12778,1,12790],[1,12635,1,12647],[1,12648,1,12660],[1,12661,1,12673],[1,12674,1,12686],[1,12687,1,12699],[1,12700,1,12712],[1,12557,1,12569],[1,12570,1,12582],[1,12583,1,12595],[1,12596,1,12608],[1,12609,1,12621],[1,12622,1,12634],[1,12479,1,12491],[1,12492,1,12504],[1,12505,1,12517],[1,12518,1,12530],[1,12531,1,12543],[1,12544,1,12556],[1,12401,1,12413],[1,12414,1,12426],[1,12427,1,12439],[1,12440,1,12452],[1,12453,1,12465],[1,12466,1,12478],[1,12323,1,12335],[1,12336,1,12348],[1,12349,1,12361],[1,12362,1,12374],[1,12375,1,12387],[1,12388,1,12400],[1,12245,1,12257],[1,12258,1,12270],[1,12271,1,12283],[1,12284,1,12296],[1,12297,1,12309],[1,12310,1,12322],[1,12167,1,12179],[1,12180,1,12192],[1,12193,1,12205],[1,12206,1,12218],[1,12219,1,12231],[1,12232,1,12244],[1,12089,1,12101],[1,12102,1,12114],[1,12115,1,12127],[1,12128,1,12140],[1,12141,1,12153],[1,12154,1,12166],[1,12011,1,12023],[1,12024,1,12036],[1,12037,1,12049],[1,12050,1,12062],[1,12063,1,12075],[1,12076,1,12088],[1,11933,1,11945],[1,11946,1,11958],[1,11959,1,11971],[1,11972,1,11984],[1,11985,1,11997],[1,11998,1,12010],[1,11855,1,11867],[1,11868,1,11880],[1,11881,1,11893],[1,11894,1,11906],[1,11907,1,11919],[1,11920,1,11932],[1,11777,1,11789],[1,11790,1,11802],[1,11803,1,11815],[1,11816,1,11828],[1,11829,1,11841],[1,11842,1,11854],[1,11699,1,11711],[1,11712,1,11724],[1,11725,1,11737],[1,11738,1,11750],[1,11751,1,11763],[1,11764,1,11776],[1,11621,1,11633],[1,11634,1,11646],[1,11647,1,11659],[1,11660,1,11672],[1,11673,1,11685],[1,11686,1,11698],[1,11543,1,11555],[1,11556,1,11568],[1,11569,1,11581],[1,11582,1,11594],[1,11595,1,11607],[1,11608,1,11620],[1,11465,1,11477],[1,11478,1,11490],[1,11491,1,11503],[1,11504,1,11516],[1,11517,1,11529],[1,11530,1,11542],[1,11387,1,11399],[1,11400,1,11412],[1,11413,1,11425],[1,11426,1,11438],[1,11439,1,11451],[1,11452,1,11464],[1,11309,1,11321],[1,11322,1,11334],[1,11335,1,11347],[1,11348,1,11360],[1,11361,1,11373],[1,11374,1,11386],[1,11231,1,11243],[1,11244,1,11256],[1,11257,1,11269],[1,11270,1,11282],[1,11283,1,11295],[1,11296,1,11308],[1,11153,1,11165],[1,11166,1,11178],[1,11179,1,11191],[1,11192,1,11204],[1,11205,1,11217],[1,11218,1,11230],[1,11075,1,11087],[1,11088,1,11100],[1,11101,1,11113],[1,11114,1,11126],[1,11127,1,11139],[1,11140,1,11152],[1,10997,1,11009],[1,11010,1,11022],[1,11023,1,11035],[1,11036,1,11048],[1,11049,1,11061],[1,11062,1,11074],[1,10919,1,10931],[1,10932,1,10944],[1,10945,1,10957],[1,10958,1,10970],[1,10971,1,10983],[1,10984,1,10996],[1,10841,1,10853],[1,10854,1,10866],[1,10867,1,10879],[1,10880,1,10892],[1,10893,1,10905],[1,10906,1,10918],[1,10763,1,10775],[1,10776,1,10788],[1,10789,1,10801],[1,10802,1,10814],[1,10815,1,10827],[1,10828,1,10840],[1,10685,1,10697],[1,10698,1,10710],[1,10711,1,10723],[1,10724,1,10736],[1,10737,1,10749],[1,10750,1,10762],[1,10607,1,10619],[1,10620,1,10632],[1,10633,1,10645],[1,10646,1,10658],[1,10659,1,10671],[1,10672,1,10684],[1,10529,1,10541],[1,10542,1,10554],[1,10555,1,10567],[1,10568,1,10580],[1,10581,1,10593],[1,10594,1,10606],[1,10451,1,10463],[1,10464,1,10476],[1,10477,1,10489],[1,10490,1,10502],[1,10503,1,10515],[1,10516,1,10528],[1,10373,1,10385],[1,10386,1,10398],[1,10399,1,10411],[1,10412,1,10424],[1,10425,1,10437],[1,10438,1,10450],[1,10295,1,10307],[1,10308,1,10320],[1,10321,1,10333],[1,10334,1,10346],[1,10347,1,10359],[1,10360,1,10372],[1,10217,1,10229],[1,10230,1,10242],[1,10243,1,10255],[1,10256,1,10268],[1,10269,1,10281],[1,10282,1,10294],[1,10139,1,10151],[1,10152,1,10164],[1,10165,1,10177],[1,10178,1,10190],[1,10191,1,10203],[1,10204,1,10216],[1,10061,1,10073],[1,10074,1,10086],[1,10087,1,10099],[1,10100,1,10112],[1,10113,1,10125],[1,10126,1,10138],[1,9983,1,9995],[1,9996,1,10008],[1,10009,1,10021],[1,10022,1,10034],[1,10035,1,10047],[1,10048,1,10060],[1,9905,1,9917],[1,9918,1,9930],[1,9931,1,9943],[1,9944,1,9956],[1,9957,1,9969],[1,9970,1,9982],[1,9827,1,9839],[1,9840,1,9852],[1,9853,1,9865],[1,9866,1,9878],[1,9879,1,9891],[1,9892,1,9904],[1,9749,1,9761],[1,9762,1,9774],[1,9775,1,9787],[1,9788,1,9800],[1,9801,1,9813],[1,9814,1,9826],[1,9671,1,9683],[1,9684,1,9696],[1,9697,1,9709],[1,9710,1,9722],[1,9723,1,9735],[1,9736,1,9748],[1,9593,1,9605],[1,9606,1,9618],[1,9619,1,9631],[1,9632,1,9644],[1,9645,1,9657],[1,9658,1,9670],[1,9515,1,9527],[1,9528,1,9540],[1,9541,1,9553],[1,9554,1,9566],[1,9567,1,9579],[1,9580,1,9592],[1,9437,1,9449],[1,9450,1,9462],[1,9463,1,9475],[1,9476,1,9488],[1,9489,1,9501],[1,9502,1,9514],[1,9359,1,9371],[1,9372,1,9384],[1,9385,1,9397],[1,9398,1,9410],[1,9411,1,9423],[1,9424,1,9436],[1,9281,1,9293],[1,9294,1,9306],[1,9307,1,9319],[1,9320,1,9332],[1,9333,1,9345],[1,9346,1,9358],[1,9203,1,9215],[1,9216,1,9228],[1,9229,1,9241],[1,9242,1,9254],[1,9255,1,9267],[1,9268,1,9280],[1,9125,1,9137],[1,9138,1,9150],[1,9151,1,9163],[1,9164,1,9176],[1,9177,1,9189],[1,9190,1,9202],[1,9047,1,9059],[1,9060,1,9072],[1,9073,1,9085],[1,9086,1,9098],[1,9099,1,9111],[1,9112,1,9124],[1,8969,1,8981],[1,8982,1,8994],[1,8995,1,9007],[1,9008,1,9020],[1,9021,1,9033],[1,9034,1,9046],[1,8891,1,8903],[1,8904,1,8916],[1,8917,1,8929],[1,8930,1,8942],[1,8943,1,8955],[1,8956,1,8968],[1,8813,1,8825],[1,8826,1,8838],[1,8839,1,8851],[1,8852,1,8864],[1,8865,1,8877],[1,8878,1,8890],[1,8735,1,8747],[1,8748,1,8760],[1,8761,1,8773],[1,8774,1,8786],[1,8787,1,8799],[1,8800,1,8812],[1,8657,1,8669],[1,8670,1,8682],[1,8683,1,8695],[1,8696,1,8708],[1,8709,1,8721],[1,8722,1,8734],[1,8579,1,8591],[1,8592,1,8604],[1,8605,1,8617],[1,8618,1,8630],[1,8631,1,8643],[1,8644,1,8656],[1,8501,1,8513],[1,8514,1,8526],[1,8527,1,8539],[1,8540,1,8552],[1,8553,1,8565],[1,8566,1,8578],[1,8423,1,8435],[1,8436,1,8448],[1,8449,1,8461],[1,8462,1,8474],[1,8475,1,8487],[1,8488,1,8500],[1,8345,1,8357],[1,8358,1,8370],[1,8371,1,8383],[1,8384,1,8396],[1,8397,1,8409],[1,8410,1,8422],[1,8267,1,8279],[1,8280,1,8292],[1,8293,1,8305],[1,8306,1,8318],[1,8319,1,8331],[1,8332,1,8344],[1,8189,1,8201],[1,8202,1,8214],[1,8215,1,8227],[1,8228,1,8240],[1,8241,1,8253],[1,8254,1,8266],[1,8111,1,8123],[1,8124,1,8136],[1,8137,1,8149],[1,8150,1,8162],[1,8163,1,8175],[1,8176,1,8188],[1,8033,1,8045],[1,8046,1,8058],[1,8059,1,8071],[1,8072,1,8084],[1,8085,1,8097],[1,8098,1,8110],[1,7955,1,7967],[1,7968,1,7980],[1,7981,1,7993],[1,7994,1,8006],[1,8007,1,8019],[1,8020,1,8032],[1,7877,1,7889],[1,7890,1,7902],[1,7903,1,7915],[1,7916,1,7928],[1,7929,1,7941],[1,7942,1,7954],[1,7799,1,7811],[1,7812,1,7824],[1,7825,1,7837],[1,7838,1,7850],[1,7851,1,7863],[1,7864,1,7876],[1,7721,1,7733],[1,7734,1,7746],[1,7747,1,7759],[1,7760,1,7772],[1,7773,1,7785],[1,7786,1,7798],[1,7643,1,7655],[1,7656,1,7668],[1,7669,1,7681],[1,7682,1,7694],[1,7695,1,7707],[1,7708,1,7720],[1,7565,1,7577],[1,7578,1,7590],[1,7591,1,7603],[1,7604,1,7616],[1,7617,1,7629],[1,7630,1,7642],[1,7487,1,7499],[1,7500,1,7512],[1,7513,1,7525],[1,7526,1,7538],[1,7539,1,7551],[1,7552,1,7564],[1,7409,1,7421],[1,7422,1,7434],[1,7435,1,7447],[1,7448,1,7460],[1,7461,1,7473],[1,7474,1,7486],[1,7331,1,7343],[1,7344,1,7356],[1,7357,1,7369],[1,7370,1,7382],[1,7383,1,7395],[1,7396,1,7408],[1,7253,1,7265],[1,7266,1,7278],[1,7279,1,7291],[1,7292,1,7304],[1,7305,1,7317],[1,7318,1,7330],[1,7175,1,7187],[1,7188,1,7200],[1,7201,1,7213],[1,7214,1,7226],[1,7227,1,7239],[1,7240,1,7252],[1,7097,1,7109],[1,7110,1,7122],[1,7123,1,7135],[1,7136,1,7148],[1,7149,1,7161],[1,7162,1,7174],[1,7019,1,7031],[1,7032,1,7044],[1,7045,1,7057],[1,7058,1,7070],[1,7071,1,7083],[1,7084,1,7096],[1,6941,1,6953],[1,6954,1,6966],[1,6967,1,6979],[1,6980,1,6992],[1,6993,1,7005],[1,7006,1,7018],[1,6863,1,6875],[1,6876,1,6888],[1,6889,1,6901],[1,6902,1,6914],[1,6915,1,6927],[1,6928,1,6940],[1,6785,1,6797],[1,6798,1,6810],[1,6811,1,6823],[1,6824,1,6836],[1,6837,1,6849],[1,6850,1,6862],[1,6707,1,6719],[1,6720,1,6732],[1,6733,1,6745],[1,6746,1,6758],[1,6759,1,6771],[1,6772,1,6784],[1,6629,1,6641],[1,6642,1,6654],[1,6655,1,6667],[1,6668,1,6680],[1,6681,1,6693],[1,6694,1,6706],[1,6551,1,6563],[1,6564,1,6576],[1,6577,1,6589],[1,6590,1,6602],[1,6603,1,6615],[1,6616,1,6628],[1,6473,1,6485],[1,6486,1,6498],[1,6499,1,6511],[1,6512,1,6524],[1,6525,1,6537],[1,6538,1,6550],[1,6395,1,6407],[1,6408,1,6420],[1,6421,1,6433],[1,6434,1,6446],[1,6447,1,6459],[1,6460,1,6472],[1,6317,1,6329],[1,6330,1,6342],[1,6343,1,6355],[1,6356,1,6368],[1,6369,1,6381],[1,6382,1,6394],[1,6239,1,6251],[1,6252,1,6264],[1,6265,1,6277],[1,6278,1,6290],[1,6291,1,6303],[1,6304,1,6316],[1,6161,1,6173],[1,6174,1,6186],[1,6187,1,6199],[1,6200,1,6212],[1,6213,1,6225],[1,6226,1,6238],[1,6083,1,6095],[1,6096,1,6108],[1,6109,1,6121],[1,6122,1,6134],[1,6135,1,6147],[1,6148,1,6160],[1,6005,1,6017],[1,6018,1,6030],[1,6031,1,6043],[1,6044,1,6056],[1,6057,1,6069],[1,6070,1,6082],[1,5927,1,5939],[1,5940,1,5952],[1,5953,1,5965],[1,5966,1,5978],[1,5979,1,5991],[1,5992,1,6004],[1,5849,1,5861],[1,5862,1,5874],[1,5875,1,5887],[1,5888,1,5900],[1,5901,1,5913],[1,5914,1,5926],[1,5771,1,5783],[1,5784,1,5796],[1,5797,1,5809],[1,5810,1,5822],[1,5823,1,5835],[1,5836,1,5848],[1,5693,1,5705],[1,5706,1,5718],[1,5719,1,5731],[1,5732,1,5744],[1,5745,1,5757],[1,5758,1,5770],[1,5615,1,5627],[1,5628,1,5640],[1,5641,1,5653],[1,5654,1,5666],[1,5667,1,5679],[1,5680,1,5692],[1,5537,1,5549],[1,5550,1,5562],[1,5563,1,5575],[1,5576,1,5588],[1,5589,1,5601],[1,5602,1,5614],[1,5459,1,5471],[1,5472,1,5484],[1,5485,1,5497],[1,5498,1,5510],[1,5511,1,5523],[1,5524,1,5536],[1,5381,1,5393],[1,5394,1,5406],[1,5407,1,5419],[1,5420,1,5432],[1,5433,1,5445],[1,5446,1,5458],[1,5303,1,5315],[1,5316,1,5328],[1,5329,1,5341],[1,5342,1,5354],[1,5355,1,5367],[1,5368,1,5380],[1,5225,1,5237],[1,5238,1,5250],[1,5251,1,5263],[1,5264,1,5276],[1,5277,1,5289],[1,5290,1,5302],[1,5147,1,5159],[1,5160,1,5172],[1,5173,1,5185],[1,5186,1,5198],[1,5199,1,5211],[1,5212,1,5224],[1,5069,1,5081],[1,5082,1,5094],[1,5095,1,5107],[1,5108,1,5120],[1,5121,1,5133],[1,5134,1,5146],[1,4991,1,5003],[1,5004,1,5016],[1,5017,1,5029],[1,5030,1,5042],[1,5043,1,5055],[1,5056,1,5068],[1,4913,1,4925],[1,4926,1,4938],[1,4939,1,4951],[1,4952,1,4964],[1,4965,1,4977],[1,4978,1,4990],[1,4835,1,4847],[1,4848,1,4860],[1,4861,1,4873],[1,4874,1,4886],[1,4887,1,4899],[1,4900,1,4912],[1,4757,1,4769],[1,4770,1,4782],[1,4783,1,4795],[1,4796,1,4808],[1,4809,1,4821],[1,4822,1,4834],[1,4679,1,4691],[1,4692,1,4704],[1,4705,1,4717],[1,4718,1,4730],[1,4731,1,4743],[1,4744,1,4756],[1,4601,1,4613],[1,4614,1,4626],[1,4627,1,4639],[1,4640,1,4652],[1,4653,1,4665],[1,4666,1,4678],[1,4523,1,4535],[1,4536,1,4548],[1,4549,1,4561],[1,4562,1,4574],[1,4575,1,4587],[1,4588,1,4600],[1,4445,1,4457],[1,4458,1,4470],[1,4471,1,4483],[1,4484,1,4496],[1,4497,1,4509],[1,4510,1,4522],[1,4367,1,4379],[1,4380,1,4392],[1,4393,1,4405],[1,4406,1,4418],[1,4419,1,4431],[1,4432,1,4444],[1,4289,1,4301],[1,4302,1,4314],[1,4315,1,4327],[1,4328,1,4340],[1,4341,1,4353],[1,4354,1,4366],[1,4211,1,4223],[1,4224,1,4236],[1,4237,1,4249],[1,4250,1,4262],[1,4263,1,4275],[1,4276,1,4288],[1,4133,1,4145],[1,4146,1,4158],[1,4159,1,4171],[1,4172,1,4184],[1,4185,1,4197],[1,4198,1,4210],[1,4055,1,4067],[1,4068,1,4080],[1,4081,1,4093],[1,4094,1,4106],[1,4107,1,4119],[1,4120,1,4132],[1,3977,1,3989],[1,3990,1,4002],[1,4003,1,4015],[1,4016,1,4028],[1,4029,1,4041],[1,4042,1,4054],[1,3899,1,3911],[1,3912,1,3924],[1,3925,1,3937],[1,3938,1,3950],[1,3951,1,3963],[1,3964,1,3976],[1,3821,1,3833],[1,3834,1,3846],[1,3847,1,3859],[1,3860,1,3872],[1,3873,1,3885],[1,3886,1,3898],[1,3743,1,3755],[1,3756,1,3768],[1,3769,1,3781],[1,3782,1,3794],[1,3795,1,3807],[1,3808,1,3820],[1,3665,1,3677],[1,3678,1,3690],[1,3691,1,3703],[1,3704,1,3716],[1,3717,1,3729],[1,3730,1,3742],[1,3587,1,3599],[1,3600,1,3612],[1,3613,1,3625],[1,3626,1,3638],[1,3639,1,3651],[1,3652,1,3664],[1,3509,1,3521],[1,3522,1,3534],[1,3535,1,3547],[1,3548,1,3560],[1,3561,1,3573],[1,3574,1,3586],[1,3431,1,3443],[1,3444,1,3456],[1,3457,1,3469],[1,3470,1,3482],[1,3483,1,3495],[1,3496,1,3508],[1,3353,1,3365],[1,3366,1,3378],[1,3379,1,3391]],"merged_total":1263,"flags":["merged_cut"]}
[null,"Вспомогательный лист с индексами инфляции и индексом совокупного платежа граждан за коммунальные услуги"]
[]
[null,"№ пп","Показатель / годы",2022,2023,2024,2025,2026,2027,2028,2029,2030,2031,2032,2033,2034,2035,2036,2037,2038,2039,2040,2041,2042,2043,2044,2045,2046,2047,2048,2049,2050,2051,2052,2053,2054,2055,2056,2057,2058,2059,2060,2061,2062,2063,2064,2065,2066,2067,2068,2069,2070,2071,2072,2073,2074,2075,2076,2077,2078,2079,2080,2081,2082,2083,2084,2085,2086,2087,2088,2089,2090,2091,2092,2093,2094,2095,2096,2097,2098,2099,2100]
[null,1,"Инфляция (ИПЦ)1, в среднем за год, %",0.13900000000000001,0.06,4.7E-2,0.04,{"$f":"G4","v":0.04},{"$f":"H4","v":0.04},0.04,0.04,0.04,0.04,0.04,0.04,0.04,0.04,0.04,0.04,0.04,0.04,0.04,0.04,0.04,0.04,0.04,0.04,0.04,0.04,0.04,0.04,0.04,0.04,0.04,0.04,0.04,0.04,0.04,0.04,0.04,0.04,0.04,0.04,0.04,0.04,0.04,0.04,0.04,0.04,0.04,0.04,0.04,0.04,0.04,0.04,0.04,0.04,0.04,0.04,0.04,0.04,0.04,0.04,0.04,0.04,0.04,0.04,0.04,0.04,0.04,0.04,0.04,{"$f":"BT4","v":0.04},0.04,0.04,0.04,0.04,0.04,0.04,0.04,0.04,0.04]
[null,null,"Инфляция (ИПЦ), в среднем за год (накопленным итогом), %","-",{"$f":"(1+E4)","v":1.06},{"$f":"E5*(1+F4)","v":1.10982},{"$f":"F5*(1+G4)","v":1.1542128},{"$f":"G5*(1+H4)","v":1.200381312},{"$f":"H5*(1+I4)","v":1.2483965644799999},{"$f":"I5*(1+J4)","v":1.2983324270592},1.3502657241415681,1.4042763531072309,1.4604474072315201,1.5188653035207809,1.5796199156616122,1.6428047122880767,1.7085169007795997,1.7768575768107837,1.8479318798832152,1.9218491550785439,{"$f":"T5*(1+U4)","v":1.9987231212816858},{"$f":"U5*(1+V4)","v":2.0786720461329535},2.1618189279782718,2.2482916850974028,2.338223352501299,2.431752286601351,2.5290223780654051,2.6301832731880213,2.7353906041155422,2.8448062282801638,2.9585984774113703,3.0769424165078254,3.2000201131681387,3.3280209176948645,3.461141754402659,3.5995874245787656,3.7435709215619162,3.8933137584243931,4.0490463087613691,4.211008161111824,4.3794484875562967,4.5546264270585484,4.7368114841408904,4.926283943506526,5.1233353012467875,5.3282687132966595,5.5413994618285258,5.7630554403016667,5.9935776579137334,6.2333207642302826,6.4826535947994941,6.7419597385914738,7.0116381281351332,7.292103653260539,7.5837877993909606,7.8871393113665995,8.2026248838212634,8.530729879174114,8.8719590743410794,9.2268374373147228,9.5959109348073124,9.9797473721996059,10.37893726708759,10.794094757771093,11.225858548081938,11.674892890005216,12.141888605605425,12.627564149829643,13.132666715822829,13.657973384455742,14.204292319833971,14.772464012627331,15.363362573132425,15.977897076057722,16.61701295910003,17.281693477464032,17.972961216562595,18.691879665225098,19.439554851834103,20.217137045907467,21.025822527743767,21.866855428853519]
[null,null,"Инфляция (ИПЦ)+0,04, в среднем за год (накопленным итогом), %","-",{"$f":"(1+E4+0.04)","v":1.1000000000000001},{"$f":"E6*(1+F4+0.04)","v":1.1957},{"$f":"F6*(1+G4+0.04)","v":1.2913560000000002},1.3946644800000003,1.5062376384000005,1.6267366494720006,1.7568755814297607,1.8974256279441417,2.0492196781796732,2.2131572524340473,2.3902098326287713,2.5814266192390734,2.7879407487781993,3.0109760086804553,3.2518540893748922,3.5120024165248838,3.7929626098468745,4.0963996186346243,4.4241115881253945,4.7780405151754266,5.160283756389461,5.5731064569006179,6.0189549734526677,6.5004713713288815,7.0205090810351924,7.5821498075180083,8.1887217921194502,8.8438195354890059,9.5513250983281264,10.315431106194378,11.14066559468993,12.031918842265124,12.994472349646335,14.034030137618043,15.156752548627487,16.369292752517687,17.678836172719102,19.09314306653663,20.620594511859561,22.270242072808326,24.051861438632994,25.976010353723634,28.054091182021526,30.298418476583251,32.722291954709917,35.340075311086714,38.167281335973655,41.22066384285155,44.518316950279676,48.07978230630205,51.92616489080622,56.080258082070721,60.566678728636383,65.412013026927298,70.644974069081485,76.296571994608016,82.400297754176663,88.992321574510797,96.111707300471664,103.8006438845094,112.10469539527016,121.07307102689178,130.75891670904312,141.21963004576659,152.51720044942792,164.71857648538216,{"$f":"BR6*(1+BS4+0.04)","v":177.89606260421274},192.12774761254977,207.49796742155377,224.0978048152781,242.02562920050036,261.38767953654042,282.29869389946367,304.88258941142078,329.27319656433446,355.61505228948124,384.06425647263978,{"$f":"CC6*(1+CD4+0.04)","v":414.789396990451}]
[null,2,"Индекс изменения размера вносимой гражданами платы за коммунальные услуги в среднем по Российской Федерации2, %",{"$f":"(1+4%)*(1+9%)-1","v":0.13360000000000016},0,6.3E-2,5.2999999999999999E-2,{"$f":"G7","v":5.2999999999999999E-2},{"$f":"H7","v":5.2999999999999999E-2},5.2999999999999999E-2,5.2999999999999999E-2,5.2999999999999999E-2,5.2999999999999999E-2,5.2999999999999999E-2,5.2999999999999999E-2,5.2999999999999999E-2,5.2999999999999999E-2,5.2999999999999999E-2,5.2999999999999999E-2,5.2999999999999999E-2,5.2999999999999999E-2,5.2999999999999999E-2,5.2999999999999999E-2,5.2999999999999999E-2,5.2999999999999999E-2,5.2999999999999999E-2,5.2999999999999999E-2,5.2999999999999999E-2,5.2999999999999999E-2,5.2999999999999999E-2,5.2999999999999999E-2,5.2999999999999999E-2,5.2999999999999999E-2,5.2999999999999999E-2,5.2999999999999999E-2,5.2999999999999999E-2,5.2999999999999999E-2,5.2999999999999999E-2,5.2999999999999999E-2,5.2999999999999999E-2,5.2999999999999999E-2,5.2999999999999999E-2,5.2999999999999999E-2,5.2999999999999999E-2,5.2999999999999999E-2,5.2999999999999999E-2,5.2999999999999999E-2,5.2999999999999999E-2,5.2999999999999999E-2,5.2999999999999999E-2,5.2999999999999999E-2,5.2999999999999999E-2,5.2999999999999999E-2,5.2999999999999999E-2,5.2999999999999999E-2,5.2999999999999999E-2,5.2999999999999999E-2,5.2999999999999999E-2,5.2999999999999999E-2,5.2999999999999999E-2,5.2999999999999999E-2,5.2999999999999999E-2,5.2999999999999999E-2,5.2999999999999999E-2,5.2999999999999999E-2,5.2999999999999999E-2,5.2999999999999999E-2,5.2999999999999999E-2,5.2999999999999999E-2,5.2999999999999999E-2,5.2999999999999999E-2,5.2999999999999999E-2,{"$f":"BT7","v":5.2999999999999999E-2},5.2999999999999999E-2,5.2999999999999999E-2,5.2999999999999999E-2,5.2999999999999999E-2,5.2999999999999999E-2,5.2999999999999999E-2,5.2999999999999999E-2,5.2999999999999999E-2,5.2999999999999999E-2]
[null,null,"Индекс изменения размера вносимой гражданами платы за коммунальные услуги в среднем по Российской Федерации (накопленным итогом), %","-",{"$f":"(1+E7)","v":1},{"$f":"E8*(1+F7)","v":1.0629999999999999},{"$f":"F8*(1+G7)","v":1.1193389999999999},{"$f":"G8*(1+H7)","v":1.1786639669999999},{"$f":"H8*(1+I7)","v":1.2411331572509998},{"$f":"I8*(1+J7)","v":1.3069132145853026},{"$f":"J8*(1+K7)","v":1.3761796149583236},1.4491171345511147,1.5259203426823236,1.6067941208444867,1.6919542092492443,1.7816277823394542,1.8760540548034452,1.9754849197080278,2.0801856204525531,2.1904354583365384,{"$f":"T8*(1+U7)","v":2.3065285376283748},{"$f":"U8*(1+V7)","v":2.4287745501226787},2.5574996012791806,2.693047080146977,2.8357785753947669,2.9860748398906893,3.1443368064048958,3.3109866571443551,3.4864689499730059,3.6712518043215749,3.8658281499506182,4.0707170418980008,4.2864650451185948,4.5136476925098803,4.7528710202129041,5.004773184284188,5.2700261630512495,5.5493375496929653,5.8434524398266925,6.1531554191375069,6.4792726563517942,6.8226741071384387,7.1842758348167752,7.5650424540620635,7.9659897041273524,8.388187158446101,8.8327610778437435,9.3008974149694605,9.7938449779628414,10.312918761794871,10.859503456169998,11.435057139347007,12.041115167732398,12.679294271622215,13.351296868018192,14.058915602023156,14.804038128930381,15.588652149763691,16.414850713701167,17.284837801527328,18.200934205008274,19.165583717873712,20.181359654921017,21.250971716631831,22.377273217613318,23.563268698146821,24.8121219391486,26.127164401923473,27.511904115225416,28.970035033332362,30.505446890098977,32.122235575274217,33.824714060763746,35.617423905984225,37.505147373001385,39.492920183770458,41.586044953510289,43.790105336046331,46.110980918856782,48.554862907556192,51.12827064165667,53.838068985664471]
[]
[null,null,"1 Инфляция (ИПЦ), в среднем за год:\nна 2022-2025 годы: Прогноз социально-экономического развития Российской Федерации на 2023 год и на плановый период 2024 и 2025 годов (размещен на официальном сайте Минэкономразвития России 28.09.2022): файл в формате MS Excel \"6. ИПЦ базовый\", таблица \"Прогноз показателей инфляции (Базовый вариант)\", показатель \"потребительские цены (ИПЦ), в среднем за год, %\";\nна 2026 и последующие годы: индекс приравнивается к уровню 2025 года."]
[null,null,"2 Совокупный платеж граждан за коммунальные услуги - размеры индексации:\nна 2022-2025 годы: Прогноз социально-экономического развития Российской Федерации на 2023 год и на плановый период 2024 и 2025 годов (размещен на официальном сайте Минэкономразвития России 28.09.2022): файл в формате PDF, таблица «Прогнозируемые изменения цен (тарифов) на продукцию (услуги) компаний инфраструктурного сектора на 2023-2025 гг.,%, показатель \"Совокупный платеж граждан за коммунальные услуги - размеры индексации\";\nна 2026 и последующие годы: индекс приравнивается к уровню 2025 года."]

{"sheet":"АК_прогноз","index":35,"n_rows":7,"n_cols":23,"rows_kept":7,"cut":false,"hidden":false,"merged":[[1,0,1,22],[2,0,2,22]]}
[]
[{"$f":"CONCATENATE(\"Прогноз предельного уровня цены на тепловую энергию (мощность) (цены\",CHAR(34),\"альтернативной котельной\",CHAR(34),\")  на \",И1!E8,\" - \",W5,\" годы, руб./Гкал (без НДС)\")","v":"Прогноз предельного уровня цены на тепловую энергию (мощность) (цены\"альтернативной котельной\")  на 2024 - 2044 годы, руб./Гкал (без НДС)"}]
[{"$f":"И1!E13&\" \"&И1!E14&\" \"&И1!E17","v":"Ненецкий автономный округ Заполярный район "}]
[null,"годы №",1,2,3,4,5,6,7,8,9,10,11,12,13,14,15,16,17,18,19,20,21]
["Параметр расчета \\ годы","Ед. изм.",{"$f":"CONCATENATE(\"2пг\",И1!E8)","v":"2пг2024"},{"$f":"И1!$E8+1","v":2025},{"$f":"D5+1","v":2026},{"$f":"E5+1","v":2027},2028,2029,2030,2031,2032,2033,2034,2035,2036,2037,2038,2039,2040,{"$f":"S5+1","v":2041},{"$f":"T5+1","v":2042},{"$f":"U5+1","v":2043},{"$f":"V5+1","v":2044}]
["Цена \"альтернативной котельной\"","руб. / Гкал",{"$f":"И3!C17","v":10533.64813421785},{"$f":"C6*(1+D7)","v":10954.994059586565},{"$f":"D6*(1+E7)","v":11393.193821970028},11848.92157484883,12322.878437842783,12815.793575356494,13328.425318370755,13861.562331105586,14416.02482434981,14992.665817323803,15592.372450016755,16216.067348017426,16864.710041938124,17539.298443615651,18240.870381360277,18970.505196614689,{"$f":"R6*(1+S7)","v":19729.325404479277},{"$f":"S6*(1+T7)","v":20518.498420658449},{"$f":"T6*(1+U7)","v":21339.238357484788},22192.807891784181,23080.520207455549]
["Инфляция (ИПЦ), в среднем за год","%",{"$f":"HLOOKUP(D5-1,ИПЦ_ИПГ!$D$3:$CD$4,2,FALSE)","v":4.7E-2},{"$f":"HLOOKUP(D5,ИПЦ_ИПГ!$D$3:$CD$4,2,FALSE)","v":0.04},{"$f":"HLOOKUP(E5,ИПЦ_ИПГ!$D$3:$CD$4,2,FALSE)","v":0.04},{"$f":"HLOOKUP(F5,ИПЦ_ИПГ!$D$3:$CD$4,2,FALSE)","v":0.04},{"$f":"HLOOKUP(G5,ИПЦ_ИПГ!$D$3:$CD$4,2,FALSE)","v":0.04},{"$f":"HLOOKUP(H5,ИПЦ_ИПГ!$D$3:$CD$4,2,FALSE)","v":0.04},{"$f":"HLOOKUP(I5,ИПЦ_ИПГ!$D$3:$CD$4,2,FALSE)","v":0.04},{"$f":"HLOOKUP(J5,ИПЦ_ИПГ!$D$3:$CD$4,2,FALSE)","v":0.04},{"$f":"HLOOKUP(K5,ИПЦ_ИПГ!$D$3:$CD$4,2,FALSE)","v":0.04},{"$f":"HLOOKUP(L5,ИПЦ_ИПГ!$D$3:$CD$4,2,FALSE)","v":0.04},{"$f":"HLOOKUP(M5,ИПЦ_ИПГ!$D$3:$CD$4,2,FALSE)","v":0.04},{"$f":"HLOOKUP(N5,ИПЦ_ИПГ!$D$3:$CD$4,2,FALSE)","v":0.04},{"$f":"HLOOKUP(O5,ИПЦ_ИПГ!$D$3:$CD$4,2,FALSE)","v":0.04},{"$f":"HLOOKUP(P5,ИПЦ_ИПГ!$D$3:$CD$4,2,FALSE)","v":0.04},{"$f":"HLOOKUP(Q5,ИПЦ_ИПГ!$D$3:$CD$4,2,FALSE)","v":0.04},{"$f":"HLOOKUP(R5,ИПЦ_ИПГ!$D$3:$CD$4,2,FALSE)","v":0.04},{"$f":"HLOOKUP(S5,ИПЦ_ИПГ!$D$3:$CD$4,2,FALSE)","v":0.04},{"$f":"HLOOKUP(T5,ИПЦ_ИПГ!$D$3:$CD$4,2,FALSE)","v":0.04},{"$f":"HLOOKUP(U5,ИПЦ_ИПГ!$D$3:$CD$4,2,FALSE)","v":0.04},{"$f":"HLOOKUP(V5,ИПЦ_ИПГ!$D$3:$CD$4,2,FALSE)","v":0.04},{"$f":"HLOOKUP(W5,ИПЦ_ИПГ!$D$3:$CD$4,2,FALSE)","v":0.04}]

{"sheet":"ПУЦ (п.67)","index":36,"n_rows":14,"n_cols":24,"rows_kept":14,"cut":false,"hidden":true,"merged":[[3,1,3,9],[5,4,5,8]]}
[]
[]
[]
[null,"Прогноз предельного уровня цены на тепловую энергию (мощность) с учетом особенностей, предусмотренных разделом V Правил, утверждаемых постановлением Правительства Российской Федерации от 03.11.2022 № 1985 \"О внесении изменений в постановление Правительства Российской Федерации от 15 декабря 2017 г. № 1562\""]
[]
[null,1,"Предельный уровень цены на тепловую энергию (мощность), рассчитанный в соответствии с разделом II Правил и действовавший на дату вступления в силу изменений (на 2 пг 2022), руб./Гкал (без НДС)",null,"Вписать реквизиты решения органа регулирования"]
[]
[]
[null,"№ пп","Параметр расчета \\ годы",{"$f":"И1!E8","v":2024},{"$f":"D9+1","v":2025},2026,2027,2028,2029,2030,2031,2032,2033,2034,2035,2036,2037,2038,2039,2040,2041,2042,2043,2044]
[null,1,"Инфляция (индекс потребительских цен), в среднем за год, %",{"$f":"HLOOKUP(D9,ИПЦ_ИПГ!$D$3:$CD$7,2,TRUE)","v":4.7E-2},{"$f":"HLOOKUP(E9,ИПЦ_ИПГ!$D$3:$CD$7,2,TRUE)","v":0.04},{"$f":"HLOOKUP(F9,ИПЦ_ИПГ!$D$3:$CD$7,2,TRUE)","v":0.04},{"$f":"HLOOKUP(G9,ИПЦ_ИПГ!$D$3:$CD$7,2,TRUE)","v":0.04},{"$f":"HLOOKUP(H9,ИПЦ_ИПГ!$D$3:$CD$7,2,TRUE)","v":0.04},{"$f":"HLOOKUP(I9,ИПЦ_ИПГ!$D$3:$CD$7,2,TRUE)","v":0.04},{"$f":"HLOOKUP(J9,ИПЦ_ИПГ!$D$3:$CD$7,2,TRUE)","v":0.04},{"$f":"HLOOKUP(K9,ИПЦ_ИПГ!$D$3:$CD$7,2,TRUE)","v":0.04},{"$f":"HLOOKUP(L9,ИПЦ_ИПГ!$D$3:$CD$7,2,TRUE)","v":0.04},{"$f":"HLOOKUP(M9,ИПЦ_ИПГ!$D$3:$CD$7,2,TRUE)","v":0.04},{"$f":"HLOOKUP(N9,ИПЦ_ИПГ!$D$3:$CD$7,2,TRUE)","v":0.04},{"$f":"HLOOKUP(O9,ИПЦ_ИПГ!$D$3:$CD$7,2,TRUE)","v":0.04},{"$f":"HLOOKUP(P9,ИПЦ_ИПГ!$D$3:$CD$7,2,TRUE)","v":0.04},{"$f":"HLOOKUP(Q9,ИПЦ_ИПГ!$D$3:$CD$7,2,TRUE)","v":0.04},{"$f":"HLOOKUP(R9,ИПЦ_ИПГ!$D$3:$CD$7,2,TRUE)","v":0.04},{"$f":"HLOOKUP(S9,ИПЦ_ИПГ!$D$3:$CD$7,2,TRUE)","v":0.04},{"$f":"HLOOKUP(T9,ИПЦ_ИПГ!$D$3:$CD$7,2,TRUE)","v":0.04},{"$f":"HLOOKUP(U9,ИПЦ_ИПГ!$D$3:$CD$7,2,TRUE)","v":0.04},{"$f":"HLOOKUP(V9,ИПЦ_ИПГ!$D$3:$CD$7,2,TRUE)","v":0.04},{"$f":"HLOOKUP(W9,ИПЦ_ИПГ!$D$3:$CD$7,2,TRUE)","v":0.04},{"$f":"HLOOKUP(X9,ИПЦ_ИПГ!$D$3:$CD$7,2,TRUE)","v":0.04}]
[null,null,"Инфляция (ИПЦ), в среднем за год (накопленным итогом), %",{"$f":"HLOOKUP(D9,ИПЦ_ИПГ!$D$3:$CD$7,3,TRUE)","v":1.10982},{"$f":"HLOOKUP(E9,ИПЦ_ИПГ!$D$3:$CD$7,3,TRUE)","v":1.1542128},{"$f":"HLOOKUP(F9,ИПЦ_ИПГ!$D$3:$CD$7,3,TRUE)","v":1.200381312},{"$f":"HLOOKUP(G9,ИПЦ_ИПГ!$D$3:$CD$7,3,TRUE)","v":1.2483965644799999},{"$f":"HLOOKUP(H9,ИПЦ_ИПГ!$D$3:$CD$7,3,TRUE)","v":1.2983324270592},{"$f":"HLOOKUP(I9,ИПЦ_ИПГ!$D$3:$CD$7,3,TRUE)","v":1.3502657241415681},{"$f":"HLOOKUP(J9,ИПЦ_ИПГ!$D$3:$CD$7,3,TRUE)","v":1.4042763531072309},{"$f":"HLOOKUP(K9,ИПЦ_ИПГ!$D$3:$CD$7,3,TRUE)","v":1.4604474072315201},{"$f":"HLOOKUP(L9,ИПЦ_ИПГ!$D$3:$CD$7,3,TRUE)","v":1.5188653035207809},{"$f":"HLOOKUP(M9,ИПЦ_ИПГ!$D$3:$CD$7,3,TRUE)","v":1.5796199156616122},{"$f":"HLOOKUP(N9,ИПЦ_ИПГ!$D$3:$CD$7,3,TRUE)","v":1.6428047122880767},{"$f":"HLOOKUP(O9,ИПЦ_ИПГ!$D$3:$CD$7,3,TRUE)","v":1.7085169007795997},{"$f":"HLOOKUP(P9,ИПЦ_ИПГ!$D$3:$CD$7,3,TRUE)","v":1.7768575768107837},{"$f":"HLOOKUP(Q9,ИПЦ_ИПГ!$D$3:$CD$7,3,TRUE)","v":1.8479318798832152},{"$f":"HLOOKUP(R9,ИПЦ_ИПГ!$D$3:$CD$7,3,TRUE)","v":1.9218491550785439},{"$f":"HLOOKUP(S9,ИПЦ_ИПГ!$D$3:$CD$7,3,TRUE)","v":1.9987231212816858},{"$f":"HLOOKUP(T9,ИПЦ_ИПГ!$D$3:$CD$7,3,TRUE)","v":2.0786720461329535},{"$f":"HLOOKUP(U9,ИПЦ_ИПГ!$D$3:$CD$7,3,TRUE)","v":2.1618189279782718},{"$f":"HLOOKUP(V9,ИПЦ_ИПГ!$D$3:$CD$7,3,TRUE)","v":2.2482916850974028},{"$f":"HLOOKUP(W9,ИПЦ_ИПГ!$D$3:$CD$7,3,TRUE)","v":2.338223352501299},{"$f":"HLOOKUP(X9,ИПЦ_ИПГ!$D$3:$CD$7,3,TRUE)","v":2.431752286601351}]
[null,2,"Индекс изменения размера вносимой гражданами платы за коммунальные услуги в среднем по Российской Федерации, %",{"$f":"HLOOKUP(D9,ИПЦ_ИПГ!$D$3:$CD$7,5,TRUE)","v":6.3E-2},{"$f":"HLOOKUP(E9,ИПЦ_ИПГ!$D$3:$CD$7,5,TRUE)","v":5.2999999999999999E-2},{"$f":"HLOOKUP(F9,ИПЦ_ИПГ!$D$3:$CD$7,5,TRUE)","v":5.2999999999999999E-2},{"$f":"HLOOKUP(G9,ИПЦ_ИПГ!$D$3:$CD$7,5,TRUE)","v":5.2999999999999999E-2},{"$f":"HLOOKUP(H9,ИПЦ_ИПГ!$D$3:$CD$7,5,TRUE)","v":5.2999999999999999E-2},{"$f":"HLOOKUP(I9,ИПЦ_ИПГ!$D$3:$CD$7,5,TRUE)","v":5.2999999999999999E-2},{"$f":"HLOOKUP(J9,ИПЦ_ИПГ!$D$3:$CD$7,5,TRUE)","v":5.2999999999999999E-2},{"$f":"HLOOKUP(K9,ИПЦ_ИПГ!$D$3:$CD$7,5,TRUE)","v":5.2999999999999999E-2},{"$f":"HLOOKUP(L9,ИПЦ_ИПГ!$D$3:$CD$7,5,TRUE)","v":5.2999999999999999E-2},{"$f":"HLOOKUP(M9,ИПЦ_ИПГ!$D$3:$CD$7,5,TRUE)","v":5.2999999999999999E-2},{"$f":"HLOOKUP(N9,ИПЦ_ИПГ!$D$3:$CD$7,5,TRUE)","v":5.2999999999999999E-2},{"$f":"HLOOKUP(O9,ИПЦ_ИПГ!$D$3:$CD$7,5,TRUE)","v":5.2999999999999999E-2},{"$f":"HLOOKUP(P9,ИПЦ_ИПГ!$D$3:$CD$7,5,TRUE)","v":5.2999999999999999E-2},{"$f":"HLOOKUP(Q9,ИПЦ_ИПГ!$D$3:$CD$7,5,TRUE)","v":5.2999999999999999E-2},{"$f":"HLOOKUP(R9,ИПЦ_ИПГ!$D$3:$CD$7,5,TRUE)","v":5.2999999999999999E-2},{"$f":"HLOOKUP(S9,ИПЦ_ИПГ!$D$3:$CD$7,5,TRUE)","v":5.2999999999999999E-2},{"$f":"HLOOKUP(T9,ИПЦ_ИПГ!$D$3:$CD$7,5,TRUE)","v":5.2999999999999999E-2},{"$f":"HLOOKUP(U9,ИПЦ_ИПГ!$D$3:$CD$7,5,TRUE)","v":5.2999999999999999E-2},{"$f":"HLOOKUP(V9,ИПЦ_ИПГ!$D$3:$CD$7,5,TRUE)","v":5.2999999999999999E-2},{"$f":"HLOOKUP(W9,ИПЦ_ИПГ!$D$3:$CD$7,5,TRUE)","v":5.2999999999999999E-2},{"$f":"HLOOKUP(X9,ИПЦ_ИПГ!$D$3:$CD$7,5,TRUE)","v":5.2999999999999999E-2}]
[null,null,"Индекс изменения размера вносимой гражданами платы за коммунальные услуги в среднем по Российской Федерации (накопленным итогом), %",{"$f":"HLOOKUP(D9,ИПЦ_ИПГ!$D$3:$CD$8,6,TRUE)","v":1.0629999999999999},{"$f":"HLOOKUP(E9,ИПЦ_ИПГ!$D$3:$CD$8,6,TRUE)","v":1.1193389999999999},{"$f":"HLOOKUP(F9,ИПЦ_ИПГ!$D$3:$CD$8,6,TRUE)","v":1.1786639669999999},{"$f":"HLOOKUP(G9,ИПЦ_ИПГ!$D$3:$CD$8,6,TRUE)","v":1.2411331572509998},{"$f":"HLOOKUP(H9,ИПЦ_ИПГ!$D$3:$CD$8,6,TRUE)","v":1.3069132145853026},{"$f":"HLOOKUP(I9,ИПЦ_ИПГ!$D$3:$CD$8,6,TRUE)","v":1.3761796149583236},{"$f":"HLOOKUP(J9,ИПЦ_ИПГ!$D$3:$CD$8,6,TRUE)","v":1.4491171345511147},{"$f":"HLOOKUP(K9,ИПЦ_ИПГ!$D$3:$CD$8,6,TRUE)","v":1.5259203426823236},{"$f":"HLOOKUP(L9,ИПЦ_ИПГ!$D$3:$CD$8,6,TRUE)","v":1.6067941208444867},{"$f":"HLOOKUP(M9,ИПЦ_ИПГ!$D$3:$CD$8,6,TRUE)","v":1.6919542092492443},{"$f":"HLOOKUP(N9,ИПЦ_ИПГ!$D$3:$CD$8,6,TRUE)","v":1.7816277823394542},{"$f":"HLOOKUP(O9,ИПЦ_ИПГ!$D$3:$CD$8,6,TRUE)","v":1.8760540548034452},{"$f":"HLOOKUP(P9,ИПЦ_ИПГ!$D$3:$CD$8,6,TRUE)","v":1.9754849197080278},{"$f":"HLOOKUP(Q9,ИПЦ_ИПГ!$D$3:$CD$8,6,TRUE)","v":2.0801856204525531},{"$f":"HLOOKUP(R9,ИПЦ_ИПГ!$D$3:$CD$8,6,TRUE)","v":2.1904354583365384},{"$f":"HLOOKUP(S9,ИПЦ_ИПГ!$D$3:$CD$8,6,TRUE)","v":2.3065285376283748},{"$f":"HLOOKUP(T9,ИПЦ_ИПГ!$D$3:$CD$8,6,TRUE)","v":2.4287745501226787},{"$f":"HLOOKUP(U9,ИПЦ_ИПГ!$D$3:$CD$8,6,TRUE)","v":2.5574996012791806},{"$f":"HLOOKUP(V9,ИПЦ_ИПГ!$D$3:$CD$8,6,TRUE)","v":2.693047080146977},{"$f":"HLOOKUP(W9,ИПЦ_ИПГ!$D$3:$CD$8,6,TRUE)","v":2.8357785753947669},{"$f":"HLOOKUP(X9,ИПЦ_ИПГ!$D$3:$CD$8,6,TRUE)","v":2.9860748398906893}]
[null,3,"Прогноз предельного уровня цены на тепловую энергию (мощность) с учетом особенностей, предусмотренных разделом V Правил (пункт 67 Правил), руб./Гкал (без НДС)",{"$f":"$D$6*MIN(D11,D13)","v":0},{"$f":"$D$6*MIN(E11,E13)","v":0},{"$f":"$D$6*MIN(F11,F13)","v":0},{"$f":"$D$6*MIN(G11,G13)","v":0},{"$f":"$D$6*MIN(H11,H13)","v":0},{"$f":"$D$6*MIN(I11,I13)","v":0},{"$f":"$D$6*MIN(J11,J13)","v":0},{"$f":"$D$6*MIN(K11,K13)","v":0},{"$f":"$D$6*MIN(L11,L13)","v":0},{"$f":"$D$6*MIN(M11,M13)","v":0},{"$f":"$D$6*MIN(N11,N13)","v":0},{"$f":"$D$6*MIN(O11,O13)","v":0},{"$f":"$D$6*MIN(P11,P13)","v":0},{"$f":"$D$6*MIN(Q11,Q13)","v":0},{"$f":"$D$6*MIN(R11,R13)","v":0},{"$f":"$D$6*MIN(S11,S13)","v":0},{"$f":"$D$6*MIN(T11,T13)","v":0},{"$f":"$D$6*MIN(U11,U13)","v":0},{"$f":"$D$6*MIN(V11,V13)","v":0},{"$f":"$D$6*MIN(W11,W13)","v":0},{"$f":"$D$6*MIN(X11,X13)","v":0}]

{"sheet":"АК_прогноз_j","index":37,"n_rows":16,"n_cols":38,"rows_kept":16,"cut":false,"hidden":true,"merged":[[4,1,4,7],[3,1,3,7],[8,4,8,8]]}
[]
[]
[]
[null,{"$f":"\"Предельный уровень цены на тепловую энергию (мощность) (цена \"&CHAR(34)&\"альтернативной котельной\"&CHAR(34)&\") на очередной j-й расчетный период регулирования (\"&И1!E8&\" год) и его прогноз на \"&И1!E8+1&\" - \"&AL13&\" годы\"","v":"Предельный уровень цены на тепловую энергию (мощность) (цена \"альтернативной котельной\") на очередной j-й расчетный период регулирования (2024 год) и его прогноз на 2025 - 34 годы"}]
[null,{"$f":"И1!E13&\" \"&И1!E14&\" \"&И1!E17","v":"Ненецкий автономный округ Заполярный район "}]
[]
[null,1,"Период регулирования (j)-й",{"$f":"И1!$E$8","v":2024}]
[null,2,"Период регулирования (i)-й"]
[null,3,"Предельный уровень цены на тепловую энергию (мощность) (цена \"альтернативной котельной\") на i-й расчетный период регулирования, рассчитанный в соответствии с пунктом 10 Правил , руб./Гкал (без НДС)",null,"Вписать реквизиты решения органа регулирования"]
[]
[]
[]
[null,"№ пп","Параметр расчета \\ годы",{"$f":"D8","v":0},{"$f":"D13+1","v":1},{"$f":"E13+1","v":2},3,4,5,6,7,8,9,10,11,12,13,14,15,16,17,18,19,20,21,{"$f":"Y13+1","v":22},{"$f":"Z13+1","v":23},{"$f":"AA13+1","v":24},{"$f":"AB13+1","v":25},{"$f":"AC13+1","v":26},{"$f":"AD13+1","v":27},{"$f":"AE13+1","v":28},{"$f":"AF13+1","v":29},{"$f":"AG13+1","v":30},{"$f":"AH13+1","v":31},{"$f":"AI13+1","v":32},{"$f":"AJ13+1","v":33},{"$f":"AK13+1","v":34}]
[null,1,"Инфляция (индекс потребительских цен), в среднем за год, %","-",{"$f":"HLOOKUP(E13,ИПЦ_ИПГ!$D$3:$CD$7,2,TRUE)","v":{"$error":"#N/A"}},{"$f":"HLOOKUP(F13,ИПЦ_ИПГ!$D$3:$CD$7,2,TRUE)","v":{"$error":"#N/A"}},{"$f":"HLOOKUP(G13,ИПЦ_ИПГ!$D$3:$CD$7,2,TRUE)","v":{"$error":"#N/A"}},{"$f":"HLOOKUP(H13,ИПЦ_ИПГ!$D$3:$CD$7,2,TRUE)","v":{"$error":"#N/A"}},{"$f":"HLOOKUP(I13,ИПЦ_ИПГ!$D$3:$CD$7,2,TRUE)","v":{"$error":"#N/A"}},{"$f":"HLOOKUP(J13,ИПЦ_ИПГ!$D$3:$CD$7,2,TRUE)","v":{"$error":"#N/A"}},{"$f":"HLOOKUP(K13,ИПЦ_ИПГ!$D$3:$CD$7,2,TRUE)","v":{"$error":"#N/A"}},{"$f":"HLOOKUP(L13,ИПЦ_ИПГ!$D$3:$CD$7,2,TRUE)","v":{"$error":"#N/A"}},{"$f":"HLOOKUP(M13,ИПЦ_ИПГ!$D$3:$CD$7,2,TRUE)","v":{"$error":"#N/A"}},{"$f":"HLOOKUP(N13,ИПЦ_ИПГ!$D$3:$CD$7,2,TRUE)","v":{"$error":"#N/A"}},{"$f":"HLOOKUP(O13,ИПЦ_ИПГ!$D$3:$CD$7,2,TRUE)","v":{"$error":"#N/A"}},{"$f":"HLOOKUP(P13,ИПЦ_ИПГ!$D$3:$CD$7,2,TRUE)","v":{"$error":"#N/A"}},{"$f":"HLOOKUP(Q13,ИПЦ_ИПГ!$D$3:$CD$7,2,TRUE)","v":{"$error":"#N/A"}},{"$f":"HLOOKUP(R13,ИПЦ_ИПГ!$D$3:$CD$7,2,TRUE)","v":{"$error":"#N/A"}},{"$f":"HLOOKUP(S13,ИПЦ_ИПГ!$D$3:$CD$7,2,TRUE)","v":{"$error":"#N/A"}},{"$f":"HLOOKUP(T13,ИПЦ_ИПГ!$D$3:$CD$7,2,TRUE)","v":{"$error":"#N/A"}},{"$f":"HLOOKUP(U13,ИПЦ_ИПГ!$D$3:$CD$7,2,TRUE)","v":{"$error":"#N/A"}},{"$f":"HLOOKUP(V13,ИПЦ_ИПГ!$D$3:$CD$7,2,TRUE)","v":{"$error":"#N/A"}},{"$f":"HLOOKUP(W13,ИПЦ_ИПГ!$D$3:$CD$7,2,TRUE)","v":{"$error":"#N/A"}},{"$f":"HLOOKUP(X13,ИПЦ_ИПГ!$D$3:$CD$7,2,TRUE)","v":{"$error":"#N/A"}},{"$f":"HLOOKUP(Y13,ИПЦ_ИПГ!$D$3:$CD$7,2,TRUE)","v":{"$error":"#N/A"}},{"$f":"HLOOKUP(Z13,ИПЦ_ИПГ!$D$3:$CD$7,2,TRUE)","v":{"$error":"#N/A"}},{"$f":"HLOOKUP(AA13,ИПЦ_ИПГ!$D$3:$CD$7,2,TRUE)","v":{"$error":"#N/A"}},{"$f":"HLOOKUP(AB13,ИПЦ_ИПГ!$D$3:$CD$7,2,TRUE)","v":{"$error":"#N/A"}},{"$f":"HLOOKUP(AC13,ИПЦ_ИПГ!$D$3:$CD$7,2,TRUE)","v":{"$error":"#N/A"}},{"$f":"HLOOKUP(AD13,ИПЦ_ИПГ!$D$3:$CD$7,2,TRUE)","v":{"$error":"#N/A"}},{"$f":"HLOOKUP(AE13,ИПЦ_ИПГ!$D$3:$CD$7,2,TRUE)","v":{"$error":"#N/A"}},{"$f":"HLOOKUP(AF13,ИПЦ_ИПГ!$D$3:$CD$7,2,TRUE)","v":{"$error":"#N/A"}},{"$f":"HLOOKUP(AG13,ИПЦ_ИПГ!$D$3:$CD$7,2,TRUE)","v":{"$error":"#N/A"}},{"$f":"HLOOKUP(AH13,ИПЦ_ИПГ!$D$3:$CD$7,2,TRUE)","v":{"$error":"#N/A"}},{"$f":"HLOOKUP(AI13,ИПЦ_ИПГ!$D$3:$CD$7,2,TRUE)","v":{"$error":"#N/A"}},{"$f":"HLOOKUP(AJ13,ИПЦ_ИПГ!$D$3:$CD$7,2,TRUE)","v":{"$error":"#N/A"}},{"$f":"HLOOKUP(AK13,ИПЦ_ИПГ!$D$3:$CD$7,2,TRUE)","v":{"$error":"#N/A"}},{"$f":"HLOOKUP(AL13,ИПЦ_ИПГ!$D$3:$CD$7,2,TRUE)","v":{"$error":"#N/A"}}]
[null,null,"Инфляция (ИПЦ), в среднем за год (накопленным итогом), %","-",{"$f":"1+E14","v":{"$error":"#N/A"}},{"$f":"E15*(1+F14)","v":{"$error":"#N/A"}},{"$f":"F15*(1+G14)","v":{"$error":"#N/A"}},{"$f":"G15*(1+H14)","v":{"$error":"#N/A"}},{"$error":"#N/A"},{"$error":"#N/A"},{"$error":"#N/A"},{"$error":"#N/A"},{"$error":"#N/A"},{"$error":"#N/A"},{"$error":"#N/A"},{"$error":"#N/A"},{"$error":"#N/A"},{"$error":"#N/A"},{"$error":"#N/A"},{"$error":"#N/A"},{"$error":"#N/A"},{"$error":"#N/A"},{"$error":"#N/A"},{"$error":"#N/A"},{"$error":"#N/A"},{"$f":"Y15*(1+Z14)","v":{"$error":"#N/A"}},{"$f":"Z15*(1+AA14)","v":{"$error":"#N/A"}},{"$f":"AA15*(1+AB14)","v":{"$error":"#N/A"}},{"$f":"AB15*(1+AC14)","v":{"$error":"#N/A"}},{"$f":"AC15*(1+AD14)","v":{"$error":"#N/A"}},{"$f":"AD15*(1+AE14)","v":{"$error":"#N/A"}},{"$f":"AE15*(1+AF14)","v":{"$error":"#N/A"}},{"$f":"AF15*(1+AG14)","v":{"$error":"#N/A"}},{"$f":"AG15*(1+AH14)","v":{"$error":"#N/A"}},{"$f":"AH15*(1+AI14)","v":{"$error":"#N/A"}},{"$f":"AI15*(1+AJ14)","v":{"$error":"#N/A"}},{"$f":"AJ15*(1+AK14)","v":{"$error":"#N/A"}},{"$f":"AK15*(1+AL14)","v":{"$error":"#N/A"}}]
[null,2,"Предельный уровень цены на тепловую энергию (мощность) (цена \"альтернативной котельной\"), рассчитанный в соответствии с пунктом 431 Правил на j-й год, (Цj) и его прогноз, руб./Гкал (без НДС)","-",{"$f":"IF($E$13:$Y$13>=$D$7,$D$9*E15,\"-\")","v":"-"},{"$f":"IF($E$13:$Y$13>=$D$7,$D$9*F15,\"-\")","v":"-"},"-","-","-","-","-","-","-","-","-","-","-","-","-","-","-","-","-","-","-",{"$f":"IF($E$13:$AL$13>=$D$7,$D$9*Z15,\"-\")","v":"-"},{"$f":"IF($E$13:$AL$13>=$D$7,$D$9*AA15,\"-\")","v":"-"},{"$f":"IF($E$13:$AL$13>=$D$7,$D$9*AB15,\"-\")","v":"-"},"-","-","-","-","-","-","-","-","-",{"$f":"IF($E$13:$AL$13>=$D$7,$D$9*AL15,\"-\")","v":"-"}]

{"sheet":"Гр&ПУЦ_v1","index":38,"n_rows":21,"n_cols":47,"rows_kept":21,"cut":false,"hidden":false,"merged":[[6,15,6,16],[6,25,6,26],[19,1,19,20],[6,43,6,44],[6,29,6,30],[6,7,6,8],[6,9,6,10],[6,11,6,12],[6,13,6,14],[6,27,6,28],[6,17,6,18],[6,19,6,20],[6,21,6,22],[6,23,6,24],[6,45,6,46],[6,31,6,32],[6,33,6,34],[6,35,6,36],[6,37,6,38],[6,39,6,40],[6,41,6,42],[0,1,0,15],[1,2,1,5],[2,2,2,5],[2,7,2,19],[3,2,3,5],[4,2,4,5],[6,1,7,1],[6,2,7,2],[6,3,7,3],[6,4,7,4],[6,5,7,5]]}
[null,"Формирование расчетных темпов роста тарифов на тепловую энергию до цены \"альтерантивной котельной\", предложений по графикам равномерного поэтапного доведения предельного уровня цены на тепловую энергию (мощность) до цены \"альтернативной котельной\" с учетом прогноза ее изменения (далее - график), расчетного предельного уровня цены на тепловую энергию (мощность) на основании графика, цены на тепловую энергию (мощность) для потребителей с предполагаемым темпом роста \nв случае если цена \"альтернативной котельной\" выше тарифа на тепловую энергию на 2 полугодие первого расчетного периода\n\nВариант расчета через равномерный темп роста предельного уровня цены на тепловую энергию (мощность)"]
[null,0,"Видом топлива, использование которого преобладает в поселении, городском округе, является уголь и в этом поселении, городском округе есть источники тепловой энергии, функционирующие в режиме комбинированной выработки электрической и тепловой энергии (выберите из списка: да/нет)"]
[null,{"$f":"МУ770_Т1!B10","v":"1"},{"$f":"\"Утвержденный тариф на тепловую энергию (мощность), поставляемую потребителям, на предполагаемую дату окончания переходного периода 01.07.\"&И1!E8&\", без НДС, руб./Гкал\"","v":"Утвержденный тариф на тепловую энергию (мощность), поставляемую потребителям, на предполагаемую дату окончания переходного периода 01.07.2024, без НДС, руб./Гкал"},null,null,null,null,"Вписать наименование тарифа и реквизиты решения органа регулирования"]
[null,2,"Предполагаемый срок графика равномерного поэтапного доведения предельного уровня цены на тепловую энергию (мощность) до цены \"альтернативной котельной\", лет"]
[null,3,"Прогноз цены \"альтернативной котельной\" на дату окончания графика доведения предельного уровня цены на тепловую энергию (мощность) до цены \"альтернативной котельной\", руб./Гкал",null,null,null,{"$f":"IF(OR(AND(G2=\"да\",G4>=6,G4<=10),AND(G2=\"нет\",G4<=5)),SUMIF(АК_прогноз!C4:L4,'Гр&ПУЦ_v1'!G4,АК_прогноз!C6:G6),\"введите допустимый срок графика\")","v":"введите допустимый срок графика"}]
[null,null,null,null,null,null,1,null,2,null,3,null,4,null,5,null,6,null,7,null,8,null,9,null,10,null,11,null,12,null,13,null,14,null,15,null,16,null,17,null,18,null,19,null,20,null,21]
[null,"№ пп","Субъект Российской Федерации","Поселение, городской округ","ЕТО, система теплоснабжения","Параметр расчета \\ годы",{"$f":"И1!E8","v":2024},{"$f":"G7+1","v":2025},null,{"$f":"H7+1","v":2026},null,{"$f":"J7+1","v":2027},null,{"$f":"L7+1","v":2028},null,{"$f":"N7+1","v":2029},null,{"$f":"P7+1","v":2030},null,{"$f":"R7+1","v":2031},null,{"$f":"T7+1","v":2032},null,{"$f":"V7+1","v":2033},null,{"$f":"X7+1","v":2034},null,{"$f":"Z7+1","v":2035},null,{"$f":"AB7+1","v":2036},null,{"$f":"AD7+1","v":2037},null,{"$f":"AF7+1","v":2038},null,{"$f":"AH7+1","v":2039},null,{"$f":"AJ7+1","v":2040},null,{"$f":"AL7+1","v":2041},null,{"$f":"AN7+1","v":2042},null,{"$f":"AP7+1","v":2043},null,{"$f":"AR7+1","v":2044}]
[null,null,null,null,null,null,{"$f":"\"2пг\"&G7","v":"2пг2024"},{"$f":"\"1пг\"&H7","v":"1пг2025"},{"$f":"\"2пг\"&H7","v":"2пг2025"},{"$f":"\"1пг\"&J7","v":"1пг2026"},{"$f":"\"2пг\"&J7","v":"2пг2026"},{"$f":"\"1пг\"&L7","v":"1пг2027"},{"$f":"\"2пг\"&L7","v":"2пг2027"},{"$f":"\"1пг\"&N7","v":"1пг2028"},{"$f":"\"2пг\"&N7","v":"2пг2028"},{"$f":"\"1пг\"&P7","v":"1пг2029"},{"$f":"\"2пг\"&P7","v":"2пг2029"},{"$f":"\"1пг\"&R7","v":"1пг2030"},{"$f":"\"2пг\"&R7","v":"2пг2030"},{"$f":"\"1пг\"&T7","v":"1пг2031"},{"$f":"\"2пг\"&T7","v":"2пг2031"},{"$f":"\"1пг\"&V7","v":"1пг2032"},{"$f":"\"2пг\"&V7","v":"2пг2032"},{"$f":"\"1пг\"&X7","v":"1пг2033"},{"$f":"\"2пг\"&X7","v":"2пг2033"},{"$f":"\"1пг\"&Z7","v":"1пг2034"},{"$f":"\"2пг\"&Z7","v":"2пг2034"},{"$f":"\"1пг\"&AB7","v":"1пг2035"},{"$f":"\"2пг\"&AB7","v":"2пг2035"},{"$f":"\"1пг\"&AD7","v":"1пг2036"},{"$f":"\"2пг\"&AD7","v":"2пг2036"},{"$f":"\"1пг\"&AF7","v":"1пг2037"},{"$f":"\"2пг\"&AF7","v":"2пг2037"},{"$f":"\"1пг\"&AH7","v":"1пг2038"},{"$f":"\"2пг\"&AH7","v":"2пг2038"},{"$f":"\"1пг\"&AJ7","v":"1пг2039"},{"$f":"\"2пг\"&AJ7","v":"2пг2039"},{"$f":"\"1пг\"&AL7","v":"1пг2040"},{"$f":"\"2пг\"&AL7","v":"2пг2040"},{"$f":"\"1пг\"&AN7","v":"1пг2041"},{"$f":"\"2пг\"&AN7","v":"2пг2041"},{"$f":"\"1пг\"&AP7","v":"1пг2042"},{"$f":"\"2пг\"&AP7","v":"2пг2042"},{"$f":"\"1пг\"&AR7","v":"1пг2043"},{"$f":"\"2пг\"&AR7","v":"2пг2043"},{"$f":"\"1пг\"&AT7","v":"1пг2044"},"2пг2044"]
[null,1,{"$f":"И1!$E$13","v":"Ненецкий автономный округ"},null,null,"Темп роста предельного уровня цены на тепловую энергию (мощность) по графику, %",{"$f":"IF(G6:O6<=G4,POWER($G$5/$G$3,1/$G$4)-1,0)","v":0},0,{"$f":"IF(G6:O6<=G4,POWER($G$5/$G$3,1/$G$4)-1,0)","v":0},0,{"$f":"IF(G6:O6<=G4,POWER($G$5/$G$3,1/$G$4)-1,0)","v":0},0,{"$f":"IF(G6:O6<=G4,POWER($G$5/$G$3,1/$G$4)-1,0)","v":0},0,{"$f":"IF(G6:O6<=G4,POWER($G$5/$G$3,1/$G$4)-1,0)","v":0},0,{"$f":"IF(G6:Y6<=G4,POWER($G$5/$G$3,1/$G$4)-1,0)","v":0},0,{"$f":"IF(G6:Y6<=G4,POWER($G$5/$G$3,1/$G$4)-1,0)","v":0},0,{"$f":"IF(G6:Y6<=G4,POWER($G$5/$G$3,1/$G$4)-1,0)","v":0},0,{"$f":"IF(G6:Y6<=G4,POWER($G$5/$G$3,1/$G$4)-1,0)","v":0},0,{"$f":"IF(G6:Y6<=G4,POWER($G$5/$G$3,1/$G$4)-1,0)","v":0}]
[null,2,{"$f":"C9","v":"Ненецкий автономный округ"},{"$f":"D9","v":0},{"$f":"E9","v":0},"Графики равномерного поэтапного доведения предельного уровня цены до цены \"альтернативной котельной\", %",{"$f":"IF(G6:O6<=G4,$G$3*(1+G9)/АК_прогноз!$C$6,\"-\")","v":"-"},{"$f":"IF(G10=100%,\"-\",G10)","v":"-"},{"$f":"IF(G6:O6<=G4,$G$3*(1+I9)^(H7-$G$7+1)/АК_прогноз!$D$6,\"-\")","v":"-"},{"$f":"IF(I10=100%,\"-\",I10)","v":"-"},{"$f":"IF(G6:O6<=G4,$G$3*(1+K9)^(J7-$G$7+1)/АК_прогноз!$E$6,\"-\")","v":"-"},{"$f":"IF(K10=100%,\"-\",K10)","v":"-"},{"$f":"IF(G6:O6<=G4,$G$3*(1+M9)^(L7-$G$7+1)/АК_прогноз!$F$6,\"-\")","v":"-"},{"$f":"IF(M10=100%,\"-\",M10)","v":"-"},{"$f":"IF(G6:O6<=G4,$G$3*(1+O9)^(N7-$G$7+1)/АК_прогноз!$G$6,\"-\")","v":"-"},{"$f":"IF(O10=100%,\"-\",O10)","v":"-"},{"$f":"IF(G6:Y6<=G4,$G$3*(1+Q9)^(P7-$G$7+1)/АК_прогноз!$H$6,\"-\")","v":"-"},{"$f":"IF(Q10=100%,\"-\",Q10)","v":"-"},{"$f":"IF(G6:Y6<=G4,$G$3*(1+S9)^(R7-$G$7+1)/АК_прогноз!$I$6,\"-\")","v":"-"},{"$f":"IF(S10=100%,\"-\",S10)","v":"-"},{"$f":"IF(G6:Y6<=G4,$G$3*(1+U9)^(T7-$G$7+1)/АК_прогноз!$J$6,\"-\")","v":"-"},{"$f":"IF(U10=100%,\"-\",U10)","v":"-"},{"$f":"IF(G6:Y6<=G4,$G$3*(1+W9)^(V7-$G$7+1)/АК_прогноз!$K$6,\"-\")","v":"-"},{"$f":"IF(W10=100%,\"-\",W10)","v":"-"},{"$f":"IF(G6:Y6<=G4,$G$3*(1+Y9)^(X7-$G$7+1)/АК_прогноз!$L$6,\"-\")","v":"-"}]
[null,3,{"$f":"C10","v":"Ненецкий автономный округ"},{"$f":"D10","v":0},{"$f":"E10","v":0},"Изменение доли ПУЦ по графику доведения, %","-",{"$f":"IF(G10:O10=\"-\",0,H10-G10)","v":0},{"$f":"IF(G10:O10=\"-\",0,I10-H10)","v":0},{"$f":"IF($G$10:$Y$10=\"-\",0,J10-I10)","v":0},0,0,0,0,0,0,0,0,0,0,0,0,0,0,0]
[null,4,"Ненецкий автономный округ",0,0,"Прогноз предельного уровня цены на основании графика, утверждаемого органом регулирования, без НДС, руб./Гкал",{"$f":"IF(G10:O10<100%,G10*АК_прогноз!C6,АК_прогноз!C6)","v":10533.64813421785},{"$f":"G12","v":10533.64813421785},{"$f":"IF(G10:O10<100%,I10*АК_прогноз!$D$6,АК_прогноз!$D$6)","v":10954.994059586565},{"$f":"I12","v":10954.994059586565},{"$f":"IF(G10:O10<100%,K10*АК_прогноз!$E$6,АК_прогноз!$E$6)","v":11393.193821970028},{"$f":"K12","v":11393.193821970028},{"$f":"IF(G10:O10<100%,M10*АК_прогноз!$F$6,АК_прогноз!$F$6)","v":11848.92157484883},{"$f":"M12","v":11848.92157484883},{"$f":"IF(G10:O10<100%,O10*АК_прогноз!$G$6,АК_прогноз!$G$6)","v":12322.878437842783},{"$f":"O12","v":12322.878437842783},{"$f":"IF(G10:Y10<100%,Q10*АК_прогноз!$H$6,АК_прогноз!$H$6)","v":12815.793575356494},{"$f":"Q12","v":12815.793575356494},{"$f":"IF(G10:Y10<100%,S10*АК_прогноз!$I$6,АК_прогноз!$I$6)","v":13328.425318370755},{"$f":"S12","v":13328.425318370755},{"$f":"IF(G10:Y10<100%,U10*АК_прогноз!$J$6,АК_прогноз!$J$6)","v":13861.562331105586},{"$f":"U12","v":13861.562331105586},{"$f":"IF(G10:Y10<100%,W10*АК_прогноз!$K$6,АК_прогноз!$K$6)","v":14416.02482434981},{"$f":"W12","v":14416.02482434981},{"$f":"IF(G10:Y10<100%,Y10*АК_прогноз!$L$6,АК_прогноз!$L$6)","v":14992.665817323803},{"$f":"Y12","v":14992.665817323803},{"$f":"АК_прогноз!M6","v":15592.372450016755},{"$f":"AA12","v":15592.372450016755},{"$f":"АК_прогноз!N6","v":16216.067348017426},{"$f":"AC12","v":16216.067348017426},{"$f":"АК_прогноз!O6","v":16864.710041938124},{"$f":"AE12","v":16864.710041938124},{"$f":"АК_прогноз!P6","v":17539.298443615651},{"$f":"AG12","v":17539.298443615651},{"$f":"АК_прогноз!Q6","v":18240.870381360277},{"$f":"AI12","v":18240.870381360277},{"$f":"АК_прогноз!R6","v":18970.505196614689},{"$f":"AK12","v":18970.505196614689},{"$f":"АК_прогноз!S6","v":19729.325404479277},{"$f":"AM12","v":19729.325404479277},{"$f":"АК_прогноз!T6","v":20518.498420658449},{"$f":"AO12","v":20518.498420658449},{"$f":"АК_прогноз!U6","v":21339.238357484788},{"$f":"AQ12","v":21339.238357484788},{"$f":"АК_прогноз!V6","v":22192.807891784181},{"$f":"AS12","v":22192.807891784181},{"$f":"АК_прогноз!W6","v":23080.520207455549}]
[null,5,"Ненецкий автономный округ",0,0,"Предполагаемый темп роста цены на тепловую энергию (мощность) на основании соглашения об исполнении схемы теплоснабжения, %",null,0,null,0,null,0,null,0,null,0,null,0,null,0,null,0,null,0,null,0,null,0,null,0,null,0,null,0,null,0,null,0,null,0,null,0,null,0,null,0]
[null,6,"Ненецкий автономный округ",0,0,"Предполагаемый темп роста цены на тепловую энергию (мощность) сверх совокупного индекса платежа граждан за коммунальные услуги, % 1",{"$f":"G13-ИПЦ_ИПГ!E7","v":0},{"$f":"H13","v":0},{"$f":"I13-ИПЦ_ИПГ!F7","v":-6.3E-2},{"$f":"J13","v":0},{"$f":"K13-ИПЦ_ИПГ!G7","v":-5.2999999999999999E-2},{"$f":"L13","v":0},{"$f":"M13-ИПЦ_ИПГ!H7","v":-5.2999999999999999E-2},{"$f":"N13","v":0},{"$f":"O13-ИПЦ_ИПГ!I7","v":-5.2999999999999999E-2},{"$f":"P13","v":0},{"$f":"Q13-ИПЦ_ИПГ!J7","v":-5.2999999999999999E-2},{"$f":"R13","v":0},{"$f":"S13-ИПЦ_ИПГ!K7","v":-5.2999999999999999E-2},{"$f":"T13","v":0},{"$f":"U13-ИПЦ_ИПГ!L7","v":-5.2999999999999999E-2},{"$f":"V13","v":0},{"$f":"W13-ИПЦ_ИПГ!M7","v":-5.2999999999999999E-2},{"$f":"X13","v":0},{"$f":"Y13-ИПЦ_ИПГ!N7","v":-5.2999999999999999E-2},{"$f":"Z13","v":0},{"$f":"AA13-ИПЦ_ИПГ!O7","v":-5.2999999999999999E-2},{"$f":"AB13","v":0},{"$f":"AC13-ИПЦ_ИПГ!P7","v":-5.2999999999999999E-2},{"$f":"AD13","v":0},{"$f":"AE13-ИПЦ_ИПГ!Q7","v":-5.2999999999999999E-2},{"$f":"AF13","v":0},{"$f":"AG13-ИПЦ_ИПГ!R7","v":-5.2999999999999999E-2},{"$f":"AH13","v":0},{"$f":"AI13-ИПЦ_ИПГ!S7","v":-5.2999999999999999E-2},{"$f":"AJ13","v":0},{"$f":"AK13-ИПЦ_ИПГ!T7","v":-5.2999999999999999E-2},{"$f":"AL13","v":0},{"$f":"AM13-ИПЦ_ИПГ!U7","v":-5.2999999999999999E-2},{"$f":"AN13","v":0},{"$f":"AO13-ИПЦ_ИПГ!V7","v":-5.2999999999999999E-2},{"$f":"AP13","v":0},{"$f":"AQ13-ИПЦ_ИПГ!W7","v":-5.2999999999999999E-2},{"$f":"AR13","v":0},{"$f":"AS13-ИПЦ_ИПГ!X7","v":-5.2999999999999999E-2},{"$f":"AT13","v":0},{"$f":"AU13-ИПЦ_ИПГ!Y7","v":-5.2999999999999999E-2}]
[null,7,"Ненецкий автономный округ",0,0,"Цена на тепловую энергию (мощность) для потребителей c предполагаемым темпом роста, без НДС, руб./Гкал",{"$f":"IF($G$13:$AU$13=\"\",$G$12:$AU$12,MIN(G3*(1+G13),G12))","v":10533.64813421785},{"$f":"IF($G$13:$AU$13=\"\",$G$12:$AU$12,MIN(G15*(1+H13),H12))","v":10533.64813421785},10954.994059586565,10954.994059586565,11393.193821970028,11393.193821970028,11848.92157484883,11848.92157484883,12322.878437842783,12322.878437842783,12815.793575356494,12815.793575356494,13328.425318370755,13328.425318370755,13861.562331105586,13861.562331105586,14416.02482434981,14416.02482434981,14992.665817323803,14992.665817323803,15592.372450016755,15592.372450016755,16216.067348017426,16216.067348017426,16864.710041938124,16864.710041938124,17539.298443615651,17539.298443615651,18240.870381360277,18240.870381360277,18970.505196614689,18970.505196614689,19729.325404479277,19729.325404479277,20518.498420658449,20518.498420658449,21339.238357484788,21339.238357484788,22192.807891784181,22192.807891784181,23080.520207455549]
[null,null,"Ненецкий автономный округ",0,0,"Разница между утвержденным предельным уровнем цены и ценой для потребителей, руб/Гкал",{"$f":"G15-G12","v":0},0,0,0,0,0,0,0,0,0,0,0,0,0,0,0,0,0,0,0,0,0,0,0,0,0,0,0,0,0,0,0,0,0,0,0,0,0,0,0,0]
[null,null,"Ненецкий автономный округ",0,0,"Темп роста цены на тепловую энергию (мощность) для потребителей с предполагаемым темпом роста, %","-",null,{"$f":"I15/G15-1","v":4.0000000000000036E-2},null,{"$f":"K15/I15-1","v":4.0000000000000036E-2},null,{"$f":"M15/K15-1","v":4.0000000000000036E-2},null,{"$f":"O15/M15-1","v":4.0000000000000036E-2},null,4.0000000000000036E-2,null,4.0000000000000036E-2,null,4.0000000000000036E-2,null,4.0000000000000036E-2,null,4.0000000000000036E-2,null,4.0000000000000036E-2,null,4.0000000000000036E-2,null,4.0000000000000036E-2,null,4.0000000000000036E-2,null,4.0000000000000036E-2,null,4.0000000000000036E-2,null,{"$f":"AM15/AK15-1","v":4.0000000000000036E-2},null,{"$f":"AO15/AM15-1","v":4.0000000000000036E-2},null,{"$f":"AQ15/AO15-1","v":4.0000000000000036E-2},null,{"$f":"AS15/AQ15-1","v":4.0000000000000036E-2},null,{"$f":"AU15/AS15-1","v":4.0000000000000036E-2}]
[null,8,"Ненецкий автономный округ",0,0,"Срок доведения до цены \"альтернативной котельной\" при применении предполагаемого темпа роста цены на тепловую энергию (мощность), лет",{"$f":"ROUNDUP(((COUNTIF(G16:AU16,\"<0\")+1)/2),0)","v":1}]
[]
[null,"1 Совокупный платеж граждан за коммунальные услуги - размеры индексации:\nна 2023-2024 годы: Прогноз социально-экономического развития Российской Федерации на 2023 год и на плановый период 2024 и 2025 годов (размещен на официальном сайте Минэкономразвития России 28.09.2022): файл в формате PDF, таблица «Прогнозируемые изменения цен (тарифов) на продукцию (услуги) компаний инфраструктурного сектора на 2023-2025 гг.,%, показатель \"Совокупный платеж граждан за коммунальные услуги - размеры индексации\";\nна 2026 и последующие годы: индекс приравнивается к уровню 2025 года."]
[null,null,null,null," "]

{"sheet":"Заморозка","index":39,"n_rows":9,"n_cols":27,"rows_kept":9,"cut":false,"hidden":false,"merged":[[0,1,0,23],[2,2,2,5],[4,1,5,1],[4,2,5,2],[4,3,5,3],[4,4,5,4],[4,5,5,5]]}
[null,"Определение прогнозного срока \"заморозки\" тарифа на тепловую энергию, на который предельный уровень цены на тепловую энергию (мощность) предполагается устанавливать на уровне тарифа на тепловую энергию (мощность),\nв случае если цена \"альтернативной котельной\" ниже тарифа на тепловую энергию на 2 полугодие первого расчетного периода"]
[]
[null,1,{"$f":"\"Утвержденный тариф на тепловую энергию (мощность), поставляемую потребителям, на предполагаемую дату окончания переходного периода 01.07.\"&И1!E8&\", без НДС, руб./Гкал\"","v":"Утвержденный тариф на тепловую энергию (мощность), поставляемую потребителям, на предполагаемую дату окончания переходного периода 01.07.2024, без НДС, руб./Гкал"},null,null,null,null,"Вписать наименование тарифа и реквизиты решения органа регулирования"]
[]
[null,"№ пп","Субъект Российской Федерации","Поселение, городской округ","ЕТО, система теплоснабжения","Параметр расчета",1,2,3,4,5,6,7,8,9,10,11,12,13,14,15,16,17,18,19,20,21]
[null,null,null,null,null,null,{"$f":"\"2пг \"&И1!$E$8&\"/ \n1пг \"&И1!$E$8+G5","v":"2пг 2024/ \n1пг 2025"},{"$f":"\"2пг \"&И1!$E$8+G5&\"/ \n1пг \"&И1!$E$8+H5","v":"2пг 2025/ \n1пг 2026"},{"$f":"\"2пг \"&И1!$E$8+H5&\"/ \n1пг \"&И1!$E$8+I5","v":"2пг 2026/ \n1пг 2027"},{"$f":"\"2пг \"&И1!$E$8+I5&\"/ \n1пг \"&И1!$E$8+J5","v":"2пг 2027/ \n1пг 2028"},{"$f":"\"2пг \"&И1!$E$8+J5&\"/ \n1пг \"&И1!$E$8+K5","v":"2пг 2028/ \n1пг 2029"},{"$f":"\"2пг \"&И1!$E$8+K5&\"/ \n1пг \"&И1!$E$8+L5","v":"2пг 2029/ \n1пг 2030"},{"$f":"\"2пг \"&И1!$E$8+L5&\"/ \n1пг \"&И1!$E$8+M5","v":"2пг 2030/ \n1пг 2031"},{"$f":"\"2пг \"&И1!$E$8+M5&\"/ \n1пг \"&И1!$E$8+N5","v":"2пг 2031/ \n1пг 2032"},{"$f":"\"2пг \"&И1!$E$8+N5&\"/ \n1пг \"&И1!$E$8+O5","v":"2пг 2032/ \n1пг 2033"},{"$f":"\"2пг \"&И1!$E$8+O5&\"/ \n1пг \"&И1!$E$8+P5","v":"2пг 2033/ \n1пг 2034"},{"$f":"\"2пг \"&И1!$E$8+P5&\"/ \n1пг \"&И1!$E$8+Q5","v":"2пг 2034/ \n1пг 2035"},{"$f":"\"2пг \"&И1!$E$8+Q5&\"/ \n1пг \"&И1!$E$8+R5","v":"2пг 2035/ \n1пг 2036"},{"$f":"\"2пг \"&И1!$E$8+R5&\"/ \n1пг \"&И1!$E$8+S5","v":"2пг 2036/ \n1пг 2037"},{"$f":"\"2пг \"&И1!$E$8+S5&\"/ \n1пг \"&И1!$E$8+T5","v":"2пг 2037/ \n1пг 2038"},{"$f":"\"2пг \"&И1!$E$8+T5&\"/ \n1пг \"&И1!$E$8+U5","v":"2пг 2038/ \n1пг 2039"},{"$f":"\"2пг \"&И1!$E$8+U5&\"/ \n1пг \"&И1!$E$8+V5","v":"2пг 2039/ \n1пг 2040"},{"$f":"\"2пг\"&И1!$E$8+V5","v":"2пг2040"},"2пг 2040/\n1пг 2041","2пг 2041/\n1пг 2042","2пг 2042/\n1пг 2043","2пг 2043"]
[null,1,{"$f":"'Гр&ПУЦ_v1'!C9","v":"Ненецкий автономный округ"},null,null,"Прогноз предельного уровня цены при \"заморозке\" тарифа, без НДС, руб./Гкал",{"$f":"IF(АК_прогноз!C6<$G$3,$G$3,АК_прогноз!C6)","v":10533.64813421785},{"$f":"IF(АК_прогноз!D6<$G$3,$G$3,АК_прогноз!D6)","v":10954.994059586565},{"$f":"IF(АК_прогноз!E6<$G$3,$G$3,АК_прогноз!E6)","v":11393.193821970028},{"$f":"IF(АК_прогноз!F6<$G$3,$G$3,АК_прогноз!F6)","v":11848.92157484883},{"$f":"IF(АК_прогноз!G6<$G$3,$G$3,АК_прогноз!G6)","v":12322.878437842783},{"$f":"IF(АК_прогноз!H6<$G$3,$G$3,АК_прогноз!H6)","v":12815.793575356494},{"$f":"IF(АК_прогноз!I6<$G$3,$G$3,АК_прогноз!I6)","v":13328.425318370755},{"$f":"IF(АК_прогноз!J6<$G$3,$G$3,АК_прогноз!J6)","v":13861.562331105586},{"$f":"IF(АК_прогноз!K6<$G$3,$G$3,АК_прогноз!K6)","v":14416.02482434981},{"$f":"IF(АК_прогноз!L6<$G$3,$G$3,АК_прогноз!L6)","v":14992.665817323803},{"$f":"IF(АК_прогноз!M6<$G$3,$G$3,АК_прогноз!M6)","v":15592.372450016755},{"$f":"IF(АК_прогноз!N6<$G$3,$G$3,АК_прогноз!N6)","v":16216.067348017426},{"$f":"IF(АК_прогноз!O6<$G$3,$G$3,АК_прогноз!O6)","v":16864.710041938124},{"$f":"IF(АК_прогноз!P6<$G$3,$G$3,АК_прогноз!P6)","v":17539.298443615651},{"$f":"IF(АК_прогноз!Q6<$G$3,$G$3,АК_прогноз!Q6)","v":18240.870381360277},{"$f":"IF(АК_прогноз!R6<$G$3,$G$3,АК_прогноз!R6)","v":18970.505196614689},{"$f":"IF(АК_прогноз!S6<$G$3,$G$3,АК_прогноз!S6)","v":19729.325404479277},{"$f":"IF(АК_прогноз!T6<$G$3,$G$3,АК_прогноз!T6)","v":20518.498420658449},{"$f":"IF(АК_прогноз!U6<$G$3,$G$3,АК_прогноз!U6)","v":21339.238357484788},{"$f":"IF(АК_прогноз!V6<$G$3,$G$3,АК_прогноз!V6)","v":22192.807891784181},{"$f":"IF(АК_прогноз!W6<$G$3,$G$3,АК_прогноз!W6)","v":23080.520207455549}]
[null,2,{"$f":"C7","v":"Ненецкий автономный округ"},{"$f":"D7","v":0},{"$f":"E7","v":0},"Срок \"заморозки\" тарифа, лет",{"$f":"COUNTIF(G9:AA9,\"=\"&0)","v":0},"-","-","-","-","-","-","-","-","-","-","-","-","-","-","-","-","-","-","-","-"]
[null,null,null,null,null,"Темп роста цены на тепловую энергию (мощность) для потребителей, %",{"$f":"G7/G3-1","v":{"$error":"#DIV/0!"}},{"$f":"H7/G7-1","v":4.0000000000000036E-2},{"$f":"I7/H7-1","v":4.0000000000000036E-2},4.0000000000000036E-2,4.0000000000000036E-2,4.0000000000000036E-2,4.0000000000000036E-2,4.0000000000000036E-2,4.0000000000000036E-2,4.0000000000000036E-2,4.0000000000000036E-2,4.0000000000000036E-2,{"$f":"S7/R7-1","v":4.0000000000000036E-2},{"$f":"T7/S7-1","v":4.0000000000000036E-2},{"$f":"U7/T7-1","v":4.0000000000000036E-2},{"$f":"V7/U7-1","v":4.0000000000000036E-2},{"$f":"W7/V7-1","v":4.0000000000000036E-2},{"$f":"X7/W7-1","v":4.0000000000000036E-2},{"$f":"Y7/X7-1","v":4.0000000000000036E-2},{"$f":"Z7/Y7-1","v":4.0000000000000036E-2},{"$f":"AA7/Z7-1","v":4.0000000000000036E-2}]

{"sheet":"ИПГ_мо","index":40,"n_rows":46,"n_cols":54,"rows_kept":46,"cut":false,"hidden":false,"merged":[[45,7,45,9],[45,20,45,22],[45,33,45,35],[33,27,34,27],[33,28,34,28],[33,29,34,29],[33,30,34,30],[33,31,33,32],[33,33,33,35],[33,14,34,14],[33,15,34,15],[33,16,34,16],[33,17,34,17],[33,18,33,19],[33,20,33,22],[33,7,33,9],[27,33,27,35],[30,1,31,9],[30,14,31,22],[30,27,31,35],[33,1,34,1],[33,2,34,2],[33,3,34,3],[33,4,34,4],[33,5,33,6],[33,10,33,12],[33,23,33,25],[15,31,15,32],[27,7,27,9],[27,20,27,22],[15,16,16,16],[15,17,16,17],[15,18,15,19],[15,20,15,22],[15,27,16,27],[15,7,15,9],[5,2,5,8],[6,1,6,29],[7,1,7,3],[7,4,7,5],[12,1,13,9],[12,14,13,22],[12,27,13,35],[15,1,16,1],[15,2,16,2],[15,3,16,3],[15,4,16,4],[15,5,15,6],[0,1,0,29],[2,2,2,8],[3,2,3,8],[4,2,4,8],[2,11,2,20],[4,11,4,20],[45,36,45,38],[45,23,45,25],[45,10,45,12],[15,36,15,38],[33,36,33,38],[27,10,27,12],[27,23,27,25],[27,36,27,38],[15,33,15,35],[15,14,16,14],[15,15,16,15],[15,10,15,12],[15,23,15,25],[15,28,16,28],[15,29,16,29],[15,30,16,30]]}
[null,{"$f":"\"Оценка возможного изменения предельного (максимального) индекса изменения размера вносимой гражданами платы за коммунальные услуги в поселении, городском округе в случае его отнесения к ценовой зоне теплоснабжения в \"&И1!$E$8&\" году\"","v":"Оценка возможного изменения предельного (максимального) индекса изменения размера вносимой гражданами платы за коммунальные услуги в поселении, городском округе в случае его отнесения к ценовой зоне теплоснабжения в 2024 году"},null,null,null,null,null,null,null,null,null,null,null,null,null,null,null,null,null,null,null,null,null,null,null,null,null,null,null,null,null,null,null,null,null,null,null,null,null,null,null,null,null,null,null,null,null,null,null,null,null,null,null,"(выберите из списка)"]
[null,null,null,null,null,null,null,null,null,null,null,null,null,null,null,null,null,null,null,null,null,null,null,null,null,null,null,null,null,null,null,null,null,null,null,null,null,null,null,null,null,null,null,null,null,null,null,null,null,null,null,null,null,"на основании графика доведения"]
[null,"№ пп","Параметр расчета",null,null,null,null,null,null,{"$f":"\"Значение \"&И1!E8&\" г. \"","v":"Значение 2024 г. "},{"$f":"\"Значение \"&И1!E8+1&\" г. \"","v":"Значение 2025 г. "},"Источник данных",null,null,null,null,null,null,null,null,null,null,null,null,null,null,null,null,null,null,null,null,null,null,null,null,null,null,null,null,null,null,null,null,null,null,null,null,null,null,null,null,null,"с учетом заморозки тарифа "]
[null,1,"Разница между предполагаемым размером предельного (максимального) индекса изменения размера вносимой гражданами платы за коммунальные услуги в случае отнесения поселения, городского округа к ценовой зоне теплоснабжения и размером утвержденного предельного (максимального) индекса изменения размера вносимой гражданами платы за коммунальные услуги  (расчет исходя из предполагаемого темпа роста предельного уровня цены на тепловую энергию (мощность)), %",null,null,null,null,null,null,{"$f":"J6-J5","v":{"$error":"#VALUE!"}},{"$f":"K6-K5","v":{"$error":"#VALUE!"}}]
[null,2,"Размер утвержденного предельного (максимального) индекса изменения размера вносимой гражданами платы за коммунальные услуги,%1",null,null,null,null,null,null,{"$f":"H28","v":{"$error":"#VALUE!"}},{"$f":"K28","v":{"$error":"#VALUE!"}}]
[null,3,"Предполагаемый размер предельного (максимального) индекса изменения размера вносимой гражданами платы за коммунальные услуги в случае отнесения поселения, городского округа к ценовой зоне теплоснабжения (расчет исходя из предполагаемого темпа роста предельного уровня цены на тепловую энергию (мощность)), %",null,null,null,null,null,null,{"$f":"H46","v":{"$error":"#VALUE!"}},{"$f":"K46","v":{"$error":"#VALUE!"}}]
[null,"1Указывается значение, установленное в соответствии с законодательством Российской Федерации на соответствующий год (год окончания переходного периода), а при его отсутствии - в ячейке J5 указывается предполагаемый размер предельного (максимального) индекса изменения размера вносимой гражданами платы за коммунальные услуги в случае, если поселение, городской округ не будут отнесены к ценовой зоне теплоснабжения"]
[null,"Порядок перехода к применению цены \"альтернативной котельной\" (выберите из списка)",null,null,"(выберите из списка)"]
[]
[null,null,"Площадь помещения","м2",null,null,null,null,null,null,null,null,null,null,null,"Площадь помещения","м2",null,null,null,null,null,null,null,null,null,null,null,"Площадь помещения","м2"]
[null,null,"Количество проживающих","чел",null,null,null,null,null,null,null,null,null,null,null,"Количество проживающих","чел",null,null,null,null,null,null,null,null,null,null,null,"Количество проживающих","чел"]
[]
[null,"Расчет предполагаемого изменения предельного (максимального) индекса платы за коммунальные услуги в поселении, городском округе без отнесения к ценовой зоне теплоснабжения",null,null,null,null,null,null,null,null,null,null,null,null,"Расчет предполагаемого изменения предельного (максимального) индекса платы за коммунальные услуги в поселении, городском округе без отнесения к ценовой зоне теплоснабжения",null,null,null,null,null,null,null,null,null,null,null,null,"Расчет предполагаемого изменения предельного (максимального) индекса платы за коммунальные услуги в поселении, городском округе без отнесения к ценовой зоне теплоснабжения"]
[]
[]
[null,"№ пп","Вид услуги","Ед. изм.","Объем коммунальных услуг",{"$f":"И1!$E$8-1&\" (2 пол)\"","v":"2023 (2 пол)"},null,{"$f":"И1!$E$8&\" (2 пол)\"","v":"2024 (2 пол)"},null,null,{"$f":"И1!$E$8+1&\" (2 пол)\"","v":"2025 (2 пол)"},null,null,null,"№ пп","Вид услуги","Ед. изм.","Объем коммунальных услуг",{"$f":"И1!$E$8-1&\" (2 пол)\"","v":"2023 (2 пол)"},null,{"$f":"И1!$E$8&\" (2 пол)\"","v":"2024 (2 пол)"},null,null,{"$f":"И1!$E$8+1&\" (2 пол)\"","v":"2025 (2 пол)"},null,null,null,"№ пп","Вид услуги","Ед. изм.","Объем коммунальных услуг",{"$f":"И1!$E$8-1&\" (2 пол)\"","v":"2023 (2 пол)"},null,{"$f":"И1!$E$8&\" (2 пол)\"","v":"2024 (2 пол)"},null,null,{"$f":"И1!$E$8+1&\" (2 пол)\"","v":"2025 (2 пол)"}]
[null,null,null,null,null,"Тариф,\nруб. с НДС","Плата, руб.","Тариф,\nруб. с НДС","Плата, руб.","% роста","Тариф,\nруб. с НДС","Плата, руб.","% роста",null,null,null,null,null,"Тариф,\nруб. с НДС","Плата, руб.","Тариф,\nруб. с НДС","Плата, руб.","% роста","Тариф,\nруб. с НДС","Плата, руб.","% роста",null,null,null,null,null,"Тариф,\nруб. с НДС","Плата, руб.","Тариф,\nруб. с НДС","Плата, руб.","% роста","Тариф,\nруб. с НДС","Плата, руб.","% роста"]
[null,1,"Водоотведение","м3/чел.",null,null,{"$f":"E18*F18*E11","v":0},null,{"$f":"H18*$E$11*E18","v":0},{"$f":"I18/G18-1","v":{"$error":"#DIV/0!"}},null,{"$f":"K18*$E$11*E18","v":0},{"$f":"L18/I18-1","v":{"$error":"#DIV/0!"}},null,1,"Водоотведение","м3/чел.",null,null,{"$f":"R18*S18*R11","v":0},null,{"$f":"U18*$R$11*R18","v":0},{"$f":"V18/T18-1","v":{"$error":"#DIV/0!"}},null,{"$f":"X18*$R$11*R18","v":0},{"$f":"Y18/V18-1","v":{"$error":"#DIV/0!"}},null,1,"Водоотведение","м3/чел.",null,null,{"$f":"AE18*AF18*AE11","v":0},null,{"$f":"AH18*$AE$11*AE18","v":0},{"$f":"AI18/AG18-1","v":{"$error":"#DIV/0!"}},null,{"$f":"AK18*$AE$11*AE18","v":0},{"$f":"AL18/AI18-1","v":{"$error":"#DIV/0!"}}]
[null,2,"Холодное водоснабжение","м3/чел.",null,null,{"$f":"E19*F19*E11","v":0},null,{"$f":"H19*$E$11*E19","v":0},{"$f":"I19/G19-1","v":{"$error":"#DIV/0!"}},null,{"$f":"K19*$E$11*E19","v":0},{"$f":"L19/I19-1","v":{"$error":"#DIV/0!"}},null,2,"Холодное водоснабжение","м3/чел.",null,null,{"$f":"R19*S19*R11","v":0},null,{"$f":"U19*$R$11*R19","v":0},{"$f":"V19/T19-1","v":{"$error":"#DIV/0!"}},null,{"$f":"X19*$R$11*R19","v":0},{"$f":"Y19/V19-1","v":{"$error":"#DIV/0!"}},null,2,"Холодное водоснабжение","м3/чел.",null,null,{"$f":"AE19*AF19*AE11","v":0},null,{"$f":"AH19*$AE$11*AE19","v":0},{"$f":"AI19/AG19-1","v":{"$error":"#DIV/0!"}},null,{"$f":"AK19*$AE$11*AE19","v":0},{"$f":"AL19/AI19-1","v":{"$error":"#DIV/0!"}}]
[null,3,"Газоснабжение","м3/чел.",null,null,{"$f":"E20*F20*E11","v":0},null,{"$f":"H20*$E$11*E20","v":0},{"$error":"#DIV/0!"},null,{"$f":"K20*$E$11*E20","v":0},{"$f":"L20/I20-1","v":{"$error":"#DIV/0!"}},null,3,"Газоснабжение","м3/чел.",null,null,{"$f":"R20*S20*R11","v":0},null,{"$f":"U20*$R$11*R20","v":0},{"$f":"V20/T20-1","v":{"$error":"#DIV/0!"}},null,0,{"$error":"#DIV/0!"},null,3,"Газоснабжение","м3/чел.",null,null,{"$f":"AE20*AF20*AE11","v":0},null,{"$f":"AH20*$AE$11*AE20","v":0},{"$f":"AI20/AG20-1","v":{"$error":"#DIV/0!"}},null,0,{"$error":"#DIV/0!"}]
[null,4,"Электроснабжение","кВтч/чел.",null,null,{"$f":"E21*F21*E11","v":0},null,{"$f":"H21*$E$11*E21","v":0},{"$error":"#DIV/0!"},null,0,{"$f":"L21/I21-1","v":{"$error":"#DIV/0!"}},null,4,"Электроснабжение","кВтч/чел.",null,null,{"$f":"R21*S21*R11","v":0},null,{"$f":"U21*$R$11*R21","v":0},{"$error":"#DIV/0!"},null,0,{"$error":"#DIV/0!"},null,4,"Электроснабжение","кВтч/чел.",null,null,{"$f":"AE21*AF21*AE11","v":0},null,{"$f":"AH21*$AE$11*AE21","v":0},{"$error":"#DIV/0!"},null,0,{"$error":"#DIV/0!"}]
[null,5,"Горячее водоснабжение","м3/чел.",null,null,{"$f":"E22*F22*E11","v":0},null,{"$f":"H22*$E$11*E22","v":0},{"$error":"#DIV/0!"},null,0,{"$f":"L22/I22-1","v":{"$error":"#DIV/0!"}},null,5,"Горячее водоснабжение","м3/чел.",null,null,{"$f":"R22*S22*R11","v":0},null,{"$f":"U22*$R$11*R22","v":0},{"$error":"#DIV/0!"},null,0,{"$error":"#DIV/0!"},null,5,"Горячее водоснабжение","м3/чел.",null,null,{"$f":"AE22*AF22*AE11","v":0},null,{"$f":"AH22*$AE$11*AE22","v":0},{"$error":"#DIV/0!"},null,0,{"$error":"#DIV/0!"}]
[null,6,"ТКО","кг/чел.",null,null,{"$f":"E23*F23*$E$11","v":0},null,{"$f":"E23*H23*$E$11","v":0},{"$error":"#DIV/0!"},null,0,{"$error":"#DIV/0!"},null,6,"ТКО","кг/чел.",null,null,{"$f":"R23*S23*$R$11","v":0},null,{"$f":"R23*U23*$R$11","v":0},{"$error":"#DIV/0!"},null,0,{"$error":"#DIV/0!"},null,6,"ТКО","кг/чел.",null,null,{"$f":"AE23*AF23*$AE$11","v":0},null,{"$f":"AH23*AE23*AE11","v":0},{"$error":"#DIV/0!"},null,0,{"$error":"#DIV/0!"}]
[null,7,"Отопление","Гкал/м2",null,null,{"$f":"E24*F24*E10","v":0},{"$f":"IF($E$8=$BB$2,'Гр&ПУЦ_v1'!$G$3,IF($E$8=$BB$3,Заморозка!$G$3,\"-\"))*1.2","v":{"$error":"#VALUE!"}},{"$f":"E24*H24*$E$10","v":{"$error":"#VALUE!"}},{"$f":"I24/G24-1","v":{"$error":"#VALUE!"}},{"$f":"H24*(1+HLOOKUP(И1!$E$8+1,ИПЦ_ИПГ!$D$3:$CD$7,5,FALSE))","v":{"$error":"#VALUE!"}},{"$f":"K24*$E$10*E24","v":{"$error":"#VALUE!"}},{"$f":"L24/I24-1","v":{"$error":"#VALUE!"}},null,7,"Отопление","Гкал/м2",null,null,{"$f":"R24*S24*R10","v":0},{"$f":"IF($E$8=$BB$2,'Гр&ПУЦ_v1'!$G$3,IF($E$8=$BB$3,Заморозка!$G$3,\"-\"))*1.2","v":{"$error":"#VALUE!"}},{"$f":"R24*U24*$E$10","v":{"$error":"#VALUE!"}},{"$f":"V24/T24-1","v":{"$error":"#VALUE!"}},{"$f":"U24*(1+HLOOKUP(И1!$E$8+1,ИПЦ_ИПГ!$D$3:$CD$7,5,FALSE))","v":{"$error":"#VALUE!"}},{"$f":"X24*$R$10*R24","v":{"$error":"#VALUE!"}},{"$f":"Y24/V24-1","v":{"$error":"#VALUE!"}},null,7,"Отопление","Гкал/м2",null,null,{"$f":"AE24*AF24*AE10","v":0},{"$f":"IF($E$8=$BB$2,'Гр&ПУЦ_v1'!$G$3,IF($E$8=$BB$3,Заморозка!$G$3,\"-\"))*1.2","v":{"$error":"#VALUE!"}},{"$f":"AE24*AH24*$E$10","v":{"$error":"#VALUE!"}},{"$f":"AI24/AG24-1","v":{"$error":"#VALUE!"}},{"$f":"AH24*(1+HLOOKUP(И1!$E$8+1,ИПЦ_ИПГ!$D$3:$CD$7,5,FALSE))","v":{"$error":"#VALUE!"}},{"$f":"AK24*$AE$10*AE24","v":{"$error":"#VALUE!"}},{"$f":"AL24/AI24-1","v":{"$error":"#VALUE!"}}]
[null,8,"Бытовой газ в баллонах",null,null,null,null,null,null,{"$f":"I25/G25-1","v":{"$error":"#DIV/0!"}},null,null,{"$f":"L25/I25-1","v":{"$error":"#DIV/0!"}},null,8,"Бытовой газ в баллонах",null,null,null,null,null,null,{"$f":"V25/T25-1","v":{"$error":"#DIV/0!"}},null,null,{"$f":"Y25/V25-1","v":{"$error":"#DIV/0!"}},null,8,"Бытовой газ в баллонах",null,null,null,null,null,null,{"$f":"AI25/AG25-1","v":{"$error":"#DIV/0!"}},null,null,{"$f":"AL25/AI25-1","v":{"$error":"#DIV/0!"}}]
[null,9,"Твёрдое топливо",null,null,null,null,null,null,{"$error":"#DIV/0!"},null,null,{"$error":"#DIV/0!"},null,9,"Твёрдое топливо",null,null,null,null,null,null,{"$error":"#DIV/0!"},null,null,{"$error":"#DIV/0!"},null,9,"Твёрдое топливо",null,null,null,null,null,null,{"$error":"#DIV/0!"},null,null,{"$error":"#DIV/0!"}]
[null,10,"Итого плата граждан",null,null,null,{"$f":"SUM(G18:G26)","v":0},null,{"$f":"SUM(I18:I26)","v":{"$error":"#VALUE!"}},null,null,{"$f":"SUM(L18:L26)","v":{"$error":"#VALUE!"}},null,null,10,"Итого плата граждан",null,null,null,{"$f":"SUM(T18:T26)","v":0},null,{"$f":"SUM(V18:V26)","v":{"$error":"#VALUE!"}},null,null,{"$f":"SUM(Y18:Y26)","v":{"$error":"#VALUE!"}},null,null,10,"Итого плата граждан",null,null,null,{"$f":"SUM(AG18:AG26)","v":0},null,{"$f":"SUM(AI18:AI26)","v":{"$error":"#VALUE!"}},null,null,{"$f":"SUM(AL18:AL26)","v":{"$error":"#VALUE!"}}]
[null,11,"Индекс роста платы",null,null,null,null,{"$f":"I27/G27-1","v":{"$error":"#VALUE!"}},null,null,{"$f":"L27/I27-1","v":{"$error":"#VALUE!"}},null,null,null,11,"Индекс роста платы",null,null,null,null,{"$f":"V27/T27-1","v":{"$error":"#VALUE!"}},null,null,{"$f":"Y27/V27-1","v":{"$error":"#VALUE!"}},null,null,null,11,"Индекс роста платы",null,null,null,null,{"$f":"AI27/AG27-1","v":{"$error":"#VALUE!"}},null,null,{"$f":"AL27/AI27-1","v":{"$error":"#VALUE!"}}]
[]
[]
[null,"Расчет предполагаемого изменения предельного (максимального) индекса платы за коммунальные услуги в поселении, городском округе в случае отнесения к ценовой зоне теплоснабжения",null,null,null,null,null,null,null,null,null,null,null,null,"Расчет предполагаемого изменения предельного (максимального) индекса платы за коммунальные услуги в поселении, городском округе в случае отнесения к ценовой зоне теплоснабжения",null,null,null,null,null,null,null,null,null,null,null,null,"Расчет предполагаемого изменения предельного (максимального) индекса платы за коммунальные услуги в поселении, городском округе в случае отнесения к ценовой зоне теплоснабжения"]
[]
[]
[null,"№ пп","Вид услуги","Ед. изм.","Объем коммунальных услуг",{"$f":"И1!$E$8-1&\" (2 пол)\"","v":"2023 (2 пол)"},null,{"$f":"И1!$E$8&\" (2 пол)\"","v":"2024 (2 пол)"},null,null,{"$f":"И1!$E$8+1&\" (2 пол)\"","v":"2025 (2 пол)"},null,null,null,"№ пп","Вид услуги","Ед. изм.","Объем коммунальных услуг",{"$f":"И1!$E$8-1&\" (2 пол)\"","v":"2023 (2 пол)"},null,{"$f":"И1!$E$8&\" (2 пол)\"","v":"2024 (2 пол)"},null,null,{"$f":"И1!$E$8+1&\" (2 пол)\"","v":"2025 (2 пол)"},null,null,null,"№ пп","Вид услуги","Ед. изм.","Объем коммунальных услуг",{"$f":"И1!$E$8-1&\" (2 пол)\"","v":"2023 (2 пол)"},null,{"$f":"И1!$E$8&\" (2 пол)\"","v":"2024 (2 пол)"},null,null,{"$f":"И1!$E$8+1&\" (2 пол)\"","v":"2025 (2 пол)"}]
[null,null,null,null,null,"Тариф,\nруб. с НДС","Плата, руб.","Тариф,\nруб. с НДС","Плата, руб.","% роста","Тариф,\nруб. с НДС","Плата, руб.","% роста",null,null,null,null,null,"Тариф,\nруб. с НДС","Плата, руб.","Тариф,\nруб. с НДС","Плата, руб.","% роста","Тариф,\nруб. с НДС","Плата, руб.","% роста",null,null,null,null,null,"Тариф,\nруб. с НДС","Плата, руб.","Тариф,\nруб. с НДС","Плата, руб.","% роста","Тариф,\nруб. с НДС","Плата, руб.","% роста"]
[null,1,"Водоотведение","м3/чел.",null,null,{"$f":"E36*F36*$E$11","v":0},null,{"$f":"H36*$E$11*E36","v":0},{"$f":"I36/G36-1","v":{"$error":"#DIV/0!"}},null,{"$f":"K36*$E$11*E36","v":0},{"$f":"L36/I36-1","v":{"$error":"#DIV/0!"}},null,1,"Водоотведение","м3/чел.",null,null,{"$f":"R36*S36*$R$11","v":0},null,{"$f":"U36*R11*R36","v":0},{"$f":"V36/T36-1","v":{"$error":"#DIV/0!"}},null,{"$f":"X36*$R$11*R36","v":0},{"$f":"Y36/V36-1","v":{"$error":"#DIV/0!"}},null,1,"Водоотведение","м3/чел.",null,null,{"$f":"AE36*AF36*$AE$11","v":0},null,{"$f":"AH36*AE11*AE36","v":0},{"$f":"AI36/AG36-1","v":{"$error":"#DIV/0!"}},null,{"$f":"AK36*$AE$11*AE36","v":0},{"$f":"AL36/AI36-1","v":{"$error":"#DIV/0!"}}]
[null,2,"Холодное водоснабжение","м3/чел.",null,null,{"$f":"E37*F37*$E$11","v":0},null,{"$f":"H37*$E$11*E37","v":0},{"$f":"I37/G37-1","v":{"$error":"#DIV/0!"}},null,{"$f":"K37*$E$11*E37","v":0},{"$f":"L37/I37-1","v":{"$error":"#DIV/0!"}},null,2,"Холодное водоснабжение","м3/чел.",null,null,{"$f":"R37*S37*R11","v":0},null,{"$f":"U37*R11*R37","v":0},{"$f":"V37/T37-1","v":{"$error":"#DIV/0!"}},null,{"$f":"X37*$R$11*R37","v":0},{"$f":"Y37/V37-1","v":{"$error":"#DIV/0!"}},null,2,"Холодное водоснабжение","м3/чел.",null,null,{"$f":"AE37*AF37*AE11","v":0},null,{"$f":"AH37*AE11*AE37","v":0},{"$f":"AI37/AG37-1","v":{"$error":"#DIV/0!"}},null,{"$f":"AK37*$AE$11*AE37","v":0},{"$f":"AL37/AI37-1","v":{"$error":"#DIV/0!"}}]
[null,3,"Газоснабжение","м3/чел.",null,null,{"$f":"E38*F38*$E$11","v":0},null,{"$f":"H38*$E$11*E38","v":0},{"$error":"#DIV/0!"},null,{"$f":"K38*$E$11*E38","v":0},{"$f":"L38/I38-1","v":{"$error":"#DIV/0!"}},null,3,"Газоснабжение","м3/чел.",null,null,{"$f":"R38*S38*R11","v":0},null,{"$f":"U38*R11*R38","v":0},{"$error":"#DIV/0!"},null,0,{"$error":"#DIV/0!"},null,3,"Газоснабжение","м3/чел.",null,null,{"$f":"AE38*AF38*AE11","v":0},null,{"$f":"AH38*AE11*AE38","v":0},{"$error":"#DIV/0!"},null,0,{"$error":"#DIV/0!"}]
[null,4,"Электроснабжение","кВтч/чел.",null,null,0,null,{"$f":"H39*$E$11*E39","v":0},{"$error":"#DIV/0!"},null,{"$f":"K39*$E$11*E39","v":0},{"$f":"L39/I39-1","v":{"$error":"#DIV/0!"}},null,4,"Электроснабжение","кВтч/чел.",null,null,{"$f":"R39*S39*R11","v":0},null,{"$f":"U39*R11*R39","v":0},{"$error":"#DIV/0!"},null,0,{"$error":"#DIV/0!"},null,4,"Электроснабжение","кВтч/чел.",null,null,{"$f":"AE39*AF39*AE11","v":0},null,{"$f":"AH39*AE11*AE39","v":0},{"$error":"#DIV/0!"},null,{"$f":"AK39*$AE$11*AE39","v":0},{"$error":"#DIV/0!"}]
[null,5,"Горячее водоснабжение","м3/чел.",null,null,0,null,{"$f":"H40*$E$11*E40","v":0},{"$error":"#DIV/0!"},null,0,{"$f":"L40/I40-1","v":{"$error":"#DIV/0!"}},null,5,"Горячее водоснабжение","м3/чел.",null,null,{"$f":"R40*S40*R11","v":0},null,{"$f":"U40*R11*R40","v":0},{"$error":"#DIV/0!"},null,0,{"$error":"#DIV/0!"},null,5,"Горячее водоснабжение","м3/чел.",null,null,{"$f":"AE40*AF40*AE11","v":0},null,{"$f":"AH40*AE11*AE40","v":0},{"$error":"#DIV/0!"},null,0,{"$error":"#DIV/0!"}]
[null,6,"ТКО","кг/чел.",null,null,{"$f":"E41*F41*$E$11","v":0},null,{"$f":"H41*E41*$E$11","v":0},{"$f":"I41/G41-1","v":{"$error":"#DIV/0!"}},null,0,{"$error":"#DIV/0!"},null,6,"ТКО","кг/чел.",null,null,{"$f":"R41*S41*R11","v":0},null,{"$f":"U41*R41*R11","v":0},{"$f":"V41/T41-1","v":{"$error":"#DIV/0!"}},null,0,{"$error":"#DIV/0!"},null,6,"ТКО","кг/чел.",null,null,{"$f":"AE41*AF41*AE11","v":0},null,{"$f":"AH41*AE41*AE11","v":0},{"$f":"AI41/AG41-1","v":{"$error":"#DIV/0!"}},null,0,{"$error":"#DIV/0!"}]
[null,7,"Отопление","Гкал/м2",null,null,{"$f":"F42*E42*E10","v":0},{"$f":"IF($E$8=$BB$2,'Гр&ПУЦ_v1'!$G$15,IF($E$8=$BB$3,Заморозка!$G$7,\"-\"))*1.2","v":{"$error":"#VALUE!"}},{"$f":"H42*E42*$E$10","v":{"$error":"#VALUE!"}},{"$f":"I42/G42-1","v":{"$error":"#VALUE!"}},{"$f":"IF($E$8=$BB$2,'Гр&ПУЦ_v1'!$I$15,IF($E$8=$BB$3,Заморозка!$H$7,\"-\"))*1.2","v":{"$error":"#VALUE!"}},{"$f":"K42*$E$10*E42","v":{"$error":"#VALUE!"}},{"$f":"L42/I42-1","v":{"$error":"#VALUE!"}},null,7,"Отопление","Гкал/м2",null,null,{"$f":"S42*R42*R10","v":0},{"$f":"IF($E$8=$BB$2,'Гр&ПУЦ_v1'!$G$15,IF($E$8=$BB$3,Заморозка!$G$7,\"-\"))*1.2","v":{"$error":"#VALUE!"}},{"$f":"U42*R42*R10","v":{"$error":"#VALUE!"}},{"$f":"V42/T42-1","v":{"$error":"#VALUE!"}},{"$f":"IF($E$8=$BB$2,'Гр&ПУЦ_v1'!$I$15,IF($E$8=$BB$3,Заморозка!$H$7,\"-\"))*1.2","v":{"$error":"#VALUE!"}},{"$f":"X42*$R$10*R42","v":{"$error":"#VALUE!"}},{"$f":"Y42/V42-1","v":{"$error":"#VALUE!"}},null,7,"Отопление","Гкал/м2",null,null,{"$f":"AF42*AE42*AE10","v":0},{"$f":"IF($E$8=$BB$2,'Гр&ПУЦ_v1'!$G$15,IF($E$8=$BB$3,Заморозка!$G$7,\"-\"))*1.2","v":{"$error":"#VALUE!"}},{"$f":"AH42*AE42*AE10","v":{"$error":"#VALUE!"}},{"$f":"AI42/AG42-1","v":{"$error":"#VALUE!"}},{"$f":"IF($E$8=$BB$2,'Гр&ПУЦ_v1'!$I$15,IF($E$8=$BB$3,Заморозка!$H$7,\"-\"))*1.2","v":{"$error":"#VALUE!"}},{"$f":"AK42*$AE$10*AE42","v":{"$error":"#VALUE!"}},{"$f":"AL42/AI42-1","v":{"$error":"#VALUE!"}}]
[null,8,"Бытовой газ в баллонах",null,null,null,null,null,null,{"$f":"I43/G43-1","v":{"$error":"#DIV/0!"}},null,null,{"$f":"L43/I43-1","v":{"$error":"#DIV/0!"}},null,8,"Бытовой газ в баллонах",null,null,null,null,null,null,{"$f":"V43/T43-1","v":{"$error":"#DIV/0!"}},null,null,{"$f":"Y43/V43-1","v":{"$error":"#DIV/0!"}},null,8,"Бытовой газ в баллонах",null,null,null,null,null,null,{"$f":"AI43/AG43-1","v":{"$error":"#DIV/0!"}},null,null,{"$f":"AL43/AI43-1","v":{"$error":"#DIV/0!"}}]
[null,9,"Твёрдое топливо",null,null,null,null,null,null,{"$error":"#DIV/0!"},null,null,{"$error":"#DIV/0!"},null,9,"Твёрдое топливо",null,null,null,null,null,null,{"$error":"#DIV/0!"},null,null,{"$error":"#DIV/0!"},null,9,"Твёрдое топливо",null,null,null,null,null,null,{"$error":"#DIV/0!"},null,null,{"$error":"#DIV/0!"}]
[null,10,"Итого плата граждан",null,null,null,{"$f":"SUM(G36:G44)","v":0},null,{"$f":"SUM(I36:I44)","v":{"$error":"#VALUE!"}},null,null,{"$f":"SUM(L36:L44)","v":{"$error":"#VALUE!"}},null,null,10,"Итого плата граждан",null,null,null,{"$f":"SUM(T36:T44)","v":0},null,{"$f":"SUM(V36:V44)","v":{"$error":"#VALUE!"}},null,null,{"$f":"SUM(Y36:Y44)","v":{"$error":"#VALUE!"}},null,null,10,"Итого плата граждан",null,null,null,{"$f":"SUM(AG36:AG44)","v":0},null,{"$f":"SUM(AI36:AI44)","v":{"$error":"#VALUE!"}},null,null,{"$f":"SUM(AL36:AL44)","v":{"$error":"#VALUE!"}}]
[null,11,"Индекс роста платы",null,null,null,null,{"$f":"I45/G45-1","v":{"$error":"#VALUE!"}},null,null,{"$f":"L45/I45-1","v":{"$error":"#VALUE!"}},null,null,null,11,"Индекс роста платы",null,null,null,null,{"$f":"V45/T45-1","v":{"$error":"#VALUE!"}},null,null,{"$f":"Y45/V45-1","v":{"$error":"#VALUE!"}},null,null,null,11,"Индекс роста платы",null,null,null,null,{"$f":"AI45/AG45-1","v":{"$error":"#VALUE!"}},null,null,{"$f":"AL45/AI45-1","v":{"$error":"#VALUE!"}}]

{"sheet":"ИПГ_рег","index":41,"n_rows":11,"n_cols":5,"rows_kept":11,"cut":false,"hidden":false,"merged":[[1,16079,1,16091],[1,16092,1,16104],[1,16105,1,16117],[1,16118,1,16130],[1,16131,1,16143],[1,16144,1,16156],[1,16001,1,16013],[1,16014,1,16026],[1,16027,1,16039],[1,16040,1,16052],[1,16053,1,16065],[1,16313,1,16325],[1,16326,1,16338],[1,16339,1,16351],[1,16352,1,16364],[1,16365,1,16377],[1,16378,1,16381],[1,16235,1,16247],[1,16248,1,16260],[1,16261,1,16273],[1,16274,1,16286],[1,16287,1,16299],[1,16300,1,16312],[1,16157,1,16169],[1,16170,1,16182],[1,16183,1,16195],[1,16196,1,16208],[1,16209,1,16221],[1,16222,1,16234],[1,16066,1,16078],[1,15923,1,15935],[1,15936,1,15948],[1,15949,1,15961],[1,15962,1,15974],[1,15975,1,15987],[1,15988,1,16000],[1,15845,1,15857],[1,15858,1,15870],[1,15871,1,15883],[1,15884,1,15896],[1,15897,1,15909],[1,15910,1,15922],[1,15767,1,15779],[1,15780,1,15792],[1,15793,1,15805],[1,15806,1,15818],[1,15819,1,15831],[1,15832,1,15844],[1,15689,1,15701],[1,15702,1,15714],[1,15715,1,15727],[1,15728,1,15740],[1,15741,1,15753],[1,15754,1,15766],[1,15611,1,15623],[1,15624,1,15636],[1,15637,1,15649],[1,15650,1,15662],[1,15663,1,15675],[1,15676,1,15688],[1,15533,1,15545],[1,15546,1,15558],[1,15559,1,15571],[1,15572,1,15584],[1,15585,1,15597],[1,15598,1,15610],[1,15455,1,15467],[1,15468,1,15480],[1,15481,1,15493],[1,15494,1,15506],[1,15507,1,15519],[1,15520,1,15532],[1,15377,1,15389],[1,15390,1,15402],[1,15403,1,15415],[1,15416,1,15428],[1,15429,1,15441],[1,15442,1,15454],[1,15299,1,15311],[1,15312,1,15324],[1,15325,1,15337],[1,15338,1,15350],[1,15351,1,15363],[1,15364,1,15376],[1,15221,1,15233],[1,15234,1,15246],[1,15247,1,15259],[1,15260,1,15272],[1,15273,1,15285],[1,15286,1,15298],[1,15143,1,15155],[1,15156,1,15168],[1,15169,1,15181],[1,15182,1,15194],[1,15195,1,15207],[1,15208,1,15220],[1,15065,1,15077],[1,15078,1,15090],[1,15091,1,15103],[1,15104,1,15116],[1,15117,1,15129],[1,15130,1,15142],[1,14987,1,14999],[1,15000,1,15012],[1,15013,1,15025],[1,15026,1,15038],[1,15039,1,15051],[1,15052,1,15064],[1,14909,1,14921],[1,14922,1,14934],[1,14935,1,14947],[1,14948,1,14960],[1,14961,1,14973],[1,14974,1,14986],[1,14831,1,14843],[1,14844,1,14856],[1,14857,1,14869],[1,14870,1,14882],[1,14883,1,14895],[1,14896,1,14908],[1,14753,1,14765],[1,14766,1,14778],[1,14779,1,14791],[1,14792,1,14804],[1,14805,1,14817],[1,14818,1,14830],[1,14675,1,14687],[1,14688,1,14700],[1,14701,1,14713],[1,14714,1,14726],[1,14727,1,14739],[1,14740,1,14752],[1,14597,1,14609],[1,14610,1,14622],[1,14623,1,14635],[1,14636,1,14648],[1,14649,1,14661],[1,14662,1,14674],[1,14519,1,14531],[1,14532,1,14544],[1,14545,1,14557],[1,14558,1,14570],[1,14571,1,14583],[1,14584,1,14596],[1,14441,1,14453],[1,14454,1,14466],[1,14467,1,14479],[1,14480,1,14492],[1,14493,1,14505],[1,14506,1,14518],[1,14363,1,14375],[1,14376,1,14388],[1,14389,1,14401],[1,14402,1,14414],[1,14415,1,14427],[1,14428,1,14440],[1,14285,1,14297],[1,14298,1,14310],[1,14311,1,14323],[1,14324,1,14336],[1,14337,1,14349],[1,14350,1,14362],[1,14207,1,14219],[1,14220,1,14232],[1,14233,1,14245],[1,14246,1,14258],[1,14259,1,14271],[1,14272,1,14284],[1,14129,1,14141],[1,14142,1,14154],[1,14155,1,14167],[1,14168,1,14180],[1,14181,1,14193],[1,14194,1,14206],[1,14051,1,14063],[1,14064,1,14076],[1,14077,1,14089],[1,14090,1,14102],[1,14103,1,14115],[1,14116,1,14128],[1,13973,1,13985],[1,13986,1,13998],[1,13999,1,14011],[1,14012,1,14024],[1,14025,1,14037],[1,14038,1,14050],[1,13895,1,13907],[1,13908,1,13920],[1,13921,1,13933],[1,13934,1,13946],[1,13947,1,13959],[1,13960,1,13972],[1,13817,1,13829],[1,13830,1,13842],[1,13843,1,13855],[1,13856,1,13868],[1,13869,1,13881],[1,13882,1,13894],[1,13739,1,13751],[1,13752,1,13764],[1,13765,1,13777],[1,13778,1,13790],[1,13791,1,13803],[1,13804,1,13816],[1,13661,1,13673],[1,13674,1,13686],[1,13687,1,13699],[1,13700,1,13712],[1,13713,1,13725],[1,13726,1,13738],[1,13583,1,13595],[1,13596,1,13608],[1,13609,1,13621],[1,13622,1,13634],[1,13635,1,13647],[1,13648,1,13660],[1,13505,1,13517],[1,13518,1,13530],[1,13531,1,13543],[1,13544,1,13556],[1,13557,1,13569],[1,13570,1,13582],[1,13427,1,13439],[1,13440,1,13452],[1,13453,1,13465],[1,13466,1,13478],[1,13479,1,13491],[1,13492,1,13504],[1,13349,1,13361],[1,13362,1,13374],[1,13375,1,13387],[1,13388,1,13400],[1,13401,1,13413],[1,13414,1,13426],[1,13271,1,13283],[1,13284,1,13296],[1,13297,1,13309],[1,13310,1,13322],[1,13323,1,13335],[1,13336,1,13348],[1,13193,1,13205],[1,13206,1,13218],[1,13219,1,13231],[1,13232,1,13244],[1,13245,1,13257],[1,13258,1,13270],[1,13115,1,13127],[1,13128,1,13140],[1,13141,1,13153],[1,13154,1,13166],[1,13167,1,13179],[1,13180,1,13192],[1,13037,1,13049],[1,13050,1,13062],[1,13063,1,13075],[1,13076,1,13088],[1,13089,1,13101],[1,13102,1,13114],[1,12959,1,12971],[1,12972,1,12984],[1,12985,1,12997],[1,12998,1,13010],[1,13011,1,13023],[1,13024,1,13036],[1,12881,1,12893],[1,12894,1,12906],[1,12907,1,12919],[1,12920,1,12932],[1,12933,1,12945],[1,12946,1,12958],[1,12803,1,12815],[1,12816,1,12828],[1,12829,1,12841],[1,12842,1,12854],[1,12855,1,12867],[1,12868,1,12880],[1,12725,1,12737],[1,12738,1,12750],[1,12751,1,12763],[1,12764,1,12776],[1,12777,1,12789],[1,12790,1,12802],[1,12647,1,12659],[1,12660,1,12672],[1,12673,1,12685],[1,12686,1,12698],[1,12699,1,12711],[1,12712,1,12724],[1,12569,1,12581],[1,12582,1,12594],[1,12595,1,12607],[1,12608,1,12620],[1,12621,1,12633],[1,12634,1,12646],[1,12491,1,12503],[1,12504,1,12516],[1,12517,1,12529],[1,12530,1,12542],[1,12543,1,12555],[1,12556,1,12568],[1,12413,1,12425],[1,12426,1,12438],[1,12439,1,12451],[1,12452,1,12464],[1,12465,1,12477],[1,12478,1,12490],[1,12335,1,12347],[1,12348,1,12360],[1,12361,1,12373],[1,12374,1,12386],[1,12387,1,12399],[1,12400,1,12412],[1,12257,1,12269],[1,12270,1,12282],[1,12283,1,12295],[1,12296,1,12308],[1,12309,1,12321],[1,12322,1,12334],[1,12179,1,12191],[1,12192,1,12204],[1,12205,1,12217],[1,12218,1,12230],[1,12231,1,12243],[1,12244,1,12256],[1,12101,1,12113],[1,12114,1,12126],[1,12127,1,12139],[1,12140,1,12152],[1,12153,1,12165],[1,12166,1,12178],[1,12023,1,12035],[1,12036,1,12048],[1,12049,1,12061],[1,12062,1,12074],[1,12075,1,12087],[1,12088,1,12100],[1,11945,1,11957],[1,11958,1,11970],[1,11971,1,11983],[1,11984,1,11996],[1,11997,1,12009],[1,12010,1,12022],[1,11867,1,11879],[1,11880,1,11892],[1,11893,1,11905],[1,11906,1,11918],[1,11919,1,11931],[1,11932,1,11944],[1,11789,1,11801],[1,11802,1,11814],[1,11815,1,11827],[1,11828,1,11840],[1,11841,1,11853],[1,11854,1,11866],[1,11711,1,11723],[1,11724,1,11736],[1,11737,1,11749],[1,11750,1,11762],[1,11763,1,11775],[1,11776,1,11788],[1,11633,1,11645],[1,11646,1,11658],[1,11659,1,11671],[1,11672,1,11684],[1,11685,1,11697],[1,11698,1,11710],[1,11555,1,11567],[1,11568,1,11580],[1,11581,1,11593],[1,11594,1,11606],[1,11607,1,11619],[1,11620,1,11632],[1,11477,1,11489],[1,11490,1,11502],[1,11503,1,11515],[1,11516,1,11528],[1,11529,1,11541],[1,11542,1,11554],[1,11399,1,11411],[1,11412,1,11424],[1,11425,1,11437],[1,11438,1,11450],[1,11451,1,11463],[1,11464,1,11476],[1,11321,1,11333],[1,11334,1,11346],[1,11347,1,11359],[1,11360,1,11372],[1,11373,1,11385],[1,11386,1,11398],[1,11243,1,11255],[1,11256,1,11268],[1,11269,1,11281],[1,11282,1,11294],[1,11295,1,11307],[1,11308,1,11320],[1,11165,1,11177],[1,11178,1,11190],[1,11191,1,11203],[1,11204,1,11216],[1,11217,1,11229],[1,11230,1,11242],[1,11087,1,11099],[1,11100,1,11112],[1,11113,1,11125],[1,11126,1,11138],[1,11139,1,11151],[1,11152,1,11164],[1,11009,1,11021],[1,11022,1,11034],[1,11035,1,11047],[1,11048,1,11060],[1,11061,1,11073],[1,11074,1,11086],[1,10931,1,10943],[1,10944,1,10956],[1,10957,1,10969],[1,10970,1,10982],[1,10983,1,10995],[1,10996,1,11008],[1,10853,1,10865],[1,10866,1,10878],[1,10879,1,10891],[1,10892,1,10904],[1,10905,1,10917],[1,10918,1,10930],[1,10775,1,10787],[1,10788,1,10800],[1,10801,1,10813],[1,10814,1,10826],[1,10827,1,10839],[1,10840,1,10852],[1,10697,1,10709],[1,10710,1,10722],[1,10723,1,10735],[1,10736,1,10748],[1,10749,1,10761],[1,10762,1,10774],[1,10619,1,10631],[1,10632,1,10644],[1,10645,1,10657],[1,10658,1,10670],[1,10671,1,10683],[1,10684,1,10696],[1,10541,1,10553],[1,10554,1,10566],[1,10567,1,10579],[1,10580,1,10592],[1,10593,1,10605],[1,10606,1,10618],[1,10463,1,10475],[1,10476,1,10488],[1,10489,1,10501],[1,10502,1,10514],[1,10515,1,10527],[1,10528,1,10540],[1,10385,1,10397],[1,10398,1,10410],[1,10411,1,10423],[1,10424,1,10436],[1,10437,1,10449],[1,10450,1,10462],[1,10307,1,10319],[1,10320,1,10332],[1,10333,1,10345],[1,10346,1,10358],[1,10359,1,10371],[1,10372,1,10384],[1,10229,1,10241],[1,10242,1,10254],[1,10255,1,10267],[1,10268,1,10280],[1,10281,1,10293],[1,10294,1,10306],[1,10151,1,10163],[1,10164,1,10176],[1,10177,1,10189],[1,10190,1,10202],[1,10203,1,10215],[1,10216,1,10228],[1,10073,1,10085],[1,10086,1,10098],[1,10099,1,10111],[1,10112,1,10124],[1,10125,1,10137],[1,10138,1,10150],[1,9995,1,10007],[1,10008,1,10020],[1,10021,1,10033],[1,10034,1,10046],[1,10047,1,10059],[1,10060,1,10072],[1,9917,1,9929],[1,9930,1,9942],[1,9943,1,9955],[1,9956,1,9968],[1,9969,1,9981],[1,9982,1,9994],[1,9839,1,9851],[1,9852,1,9864],[1,9865,1,9877],[1,9878,1,9890],[1,9891,1,9903],[1,9904,1,9916],[1,9761,1,9773],[1,9774,1,9786],[1,9787,1,9799],[1,9800,1,9812],[1,9813,1,9825],[1,9826,1,9838],[1,9683,1,9695],[1,9696,1,9708],[1,9709,1,9721],[1,9722,1,9734],[1,9735,1,9747],[1,9748,1,9760],[1,9605,1,9617],[1,9618,1,9630],[1,9631,1,9643],[1,9644,1,9656],[1,9657,1,9669],[1,9670,1,9682],[1,9527,1,9539],[1,9540,1,9552],[1,9553,1,9565],[1,9566,1,9578],[1,9579,1,9591],[1,9592,1,9604],[1,9449,1,9461],[1,9462,1,9474],[1,9475,1,9487],[1,9488,1,9500],[1,9501,1,9513],[1,9514,1,9526],[1,9371,1,9383],[1,9384,1,9396],[1,9397,1,9409],[1,9410,1,9422],[1,9423,1,9435],[1,9436,1,9448],[1,9293,1,9305],[1,9306,1,9318],[1,9319,1,9331],[1,9332,1,9344],[1,9345,1,9357],[1,9358,1,9370],[1,9215,1,9227],[1,9228,1,9240],[1,9241,1,9253],[1,9254,1,9266],[1,9267,1,9279],[1,9280,1,9292],[1,9137,1,9149],[1,9150,1,9162],[1,9163,1,9175],[1,9176,1,9188],[1,9189,1,9201],[1,9202,1,9214],[1,9059,1,9071],[1,9072,1,9084],[1,9085,1,9097],[1,9098,1,9110],[1,9111,1,9123],[1,9124,1,9136],[1,8981,1,8993],[1,8994,1,9006],[1,9007,1,9019],[1,9020,1,9032],[1,9033,1,9045],[1,9046,1,9058],[1,8903,1,8915],[1,8916,1,8928],[1,8929,1,8941],[1,8942,1,8954],[1,8955,1,8967],[1,8968,1,8980],[1,8825,1,8837],[1,8838,1,8850],[1,8851,1,8863],[1,8864,1,8876],[1,8877,1,8889],[1,8890,1,8902],[1,8747,1,8759],[1,8760,1,8772],[1,8773,1,8785],[1,8786,1,8798],[1,8799,1,8811],[1,8812,1,8824],[1,8669,1,8681],[1,8682,1,8694],[1,8695,1,8707],[1,8708,1,8720],[1,8721,1,8733],[1,8734,1,8746],[1,8591,1,8603],[1,8604,1,8616],[1,8617,1,8629],[1,8630,1,8642],[1,8643,1,8655],[1,8656,1,8668],[1,8513,1,8525],[1,8526,1,8538],[1,8539,1,8551],[1,8552,1,8564],[1,8565,1,8577],[1,8578,1,8590],[1,8435,1,8447],[1,8448,1,8460],[1,8461,1,8473],[1,8474,1,8486],[1,8487,1,8499],[1,8500,1,8512],[1,8357,1,8369],[1,8370,1,8382],[1,8383,1,8395],[1,8396,1,8408],[1,8409,1,8421],[1,8422,1,8434],[1,8279,1,8291],[1,8292,1,8304],[1,8305,1,8317],[1,8318,1,8330],[1,8331,1,8343],[1,8344,1,8356],[1,8201,1,8213],[1,8214,1,8226],[1,8227,1,8239],[1,8240,1,8252],[1,8253,1,8265],[1,8266,1,8278],[1,8123,1,8135],[1,8136,1,8148],[1,8149,1,8161],[1,8162,1,8174],[1,8175,1,8187],[1,8188,1,8200],[1,8045,1,8057],[1,8058,1,8070],[1,8071,1,8083],[1,8084,1,8096],[1,8097,1,8109],[1,8110,1,8122],[1,7967,1,7979],[1,7980,1,7992],[1,7993,1,8005],[1,8006,1,8018],[1,8019,1,8031],[1,8032,1,8044],[1,7889,1,7901],[1,7902,1,7914],[1,7915,1,7927],[1,7928,1,7940],[1,7941,1,7953],[1,7954,1,7966],[1,7811,1,7823],[1,7824,1,7836],[1,7837,1,7849],[1,7850,1,7862],[1,7863,1,7875],[1,7876,1,7888],[1,7733,1,7745],[1,7746,1,7758],[1,7759,1,7771],[1,7772,1,7784],[1,7785,1,7797],[1,7798,1,7810],[1,7655,1,7667],[1,7668,1,7680],[1,7681,1,7693],[1,7694,1,7706],[1,7707,1,7719],[1,7720,1,7732],[1,7577,1,7589],[1,7590,1,7602],[1,7603,1,7615],[1,7616,1,7628],[1,7629,1,7641],[1,7642,1,7654],[1,7499,1,7511],[1,7512,1,7524],[1,7525,1,7537],[1,7538,1,7550],[1,7551,1,7563],[1,7564,1,7576],[1,7421,1,7433],[1,7434,1,7446],[1,7447,1,7459],[1,7460,1,7472],[1,7473,1,7485],[1,7486,1,7498],[1,7343,1,7355],[1,7356,1,7368],[1,7369,1,7381],[1,7382,1,7394],[1,7395,1,7407],[1,7408,1,7420],[1,7265,1,7277],[1,7278,1,7290],[1,7291,1,7303],[1,7304,1,7316],[1,7317,1,7329],[1,7330,1,7342],[1,7187,1,7199],[1,7200,1,7212],[1,7213,1,7225],[1,7226,1,7238],[1,7239,1,7251],[1,7252,1,7264],[1,7109,1,7121],[1,7122,1,7134],[1,7135,1,7147],[1,7148,1,7160],[1,7161,1,7173],[1,7174,1,7186],[1,7031,1,7043],[1,7044,1,7056],[1,7057,1,7069],[1,7070,1,7082],[1,7083,1,7095],[1,7096,1,7108],[1,6953,1,6965],[1,6966,1,6978],[1,6979,1,6991],[1,6992,1,7004],[1,7005,1,7017],[1,7018,1,7030],[1,6875,1,6887],[1,6888,1,6900],[1,6901,1,6913],[1,6914,1,6926],[1,6927,1,6939],[1,6940,1,6952],[1,6797,1,6809],[1,6810,1,6822],[1,6823,1,6835],[1,6836,1,6848],[1,6849,1,6861],[1,6862,1,6874],[1,6719,1,6731],[1,6732,1,6744],[1,6745,1,6757],[1,6758,1,6770],[1,6771,1,6783],[1,6784,1,6796],[1,6641,1,6653],[1,6654,1,6666],[1,6667,1,6679],[1,6680,1,6692],[1,6693,1,6705],[1,6706,1,6718],[1,6563,1,6575],[1,6576,1,6588],[1,6589,1,6601],[1,6602,1,6614],[1,6615,1,6627],[1,6628,1,6640],[1,6485,1,6497],[1,6498,1,6510],[1,6511,1,6523],[1,6524,1,6536],[1,6537,1,6549],[1,6550,1,6562],[1,6407,1,6419],[1,6420,1,6432],[1,6433,1,6445],[1,6446,1,6458],[1,6459,1,6471],[1,6472,1,6484],[1,6329,1,6341],[1,6342,1,6354],[1,6355,1,6367],[1,6368,1,6380],[1,6381,1,6393],[1,6394,1,6406],[1,6251,1,6263],[1,6264,1,6276],[1,6277,1,6289],[1,6290,1,6302],[1,6303,1,6315],[1,6316,1,6328],[1,6173,1,6185],[1,6186,1,6198],[1,6199,1,6211],[1,6212,1,6224],[1,6225,1,6237],[1,6238,1,6250],[1,6095,1,6107],[1,6108,1,6120],[1,6121,1,6133],[1,6134,1,6146],[1,6147,1,6159],[1,6160,1,6172],[1,6017,1,6029],[1,6030,1,6042],[1,6043,1,6055],[1,6056,1,6068],[1,6069,1,6081],[1,6082,1,6094],[1,5939,1,5951],[1,5952,1,5964],[1,5965,1,5977],[1,5978,1,5990],[1,5991,1,6003],[1,6004,1,6016],[1,5861,1,5873],[1,5874,1,5886],[1,5887,1,5899],[1,5900,1,5912],[1,5913,1,5925],[1,5926,1,5938],[1,5783,1,5795],[1,5796,1,5808],[1,5809,1,5821],[1,5822,1,5834],[1,5835,1,5847],[1,5848,1,5860],[1,5705,1,5717],[1,5718,1,5730],[1,5731,1,5743],[1,5744,1,5756],[1,5757,1,5769],[1,5770,1,5782],[1,5627,1,5639],[1,5640,1,5652],[1,5653,1,5665],[1,5666,1,5678],[1,5679,1,5691],[1,5692,1,5704],[1,5549,1,5561],[1,5562,1,5574],[1,5575,1,5587],[1,5588,1,5600],[1,5601,1,5613],[1,5614,1,5626],[1,5471,1,5483],[1,5484,1,5496],[1,5497,1,5509],[1,5510,1,5522],[1,5523,1,5535],[1,5536,1,5548],[1,5393,1,5405],[1,5406,1,5418],[1,5419,1,5431],[1,5432,1,5444],[1,5445,1,5457],[1,5458,1,5470],[1,5315,1,5327],[1,5328,1,5340],[1,5341,1,5353],[1,5354,1,5366],[1,5367,1,5379],[1,5380,1,5392],[1,5237,1,5249],[1,5250,1,5262],[1,5263,1,5275],[1,5276,1,5288],[1,5289,1,5301],[1,5302,1,5314],[1,5159,1,5171],[1,5172,1,5184],[1,5185,1,5197],[1,5198,1,5210],[1,5211,1,5223],[1,5224,1,5236],[1,5081,1,5093],[1,5094,1,5106],[1,5107,1,5119],[1,5120,1,5132],[1,5133,1,5145],[1,5146,1,5158],[1,5003,1,5015],[1,5016,1,5028],[1,5029,1,5041],[1,5042,1,5054],[1,5055,1,5067],[1,5068,1,5080],[1,4925,1,4937],[1,4938,1,4950],[1,4951,1,4963],[1,4964,1,4976],[1,4977,1,4989],[1,4990,1,5002],[1,4847,1,4859],[1,4860,1,4872],[1,4873,1,4885],[1,4886,1,4898],[1,4899,1,4911],[1,4912,1,4924],[1,4769,1,4781],[1,4782,1,4794],[1,4795,1,4807],[1,4808,1,4820],[1,4821,1,4833],[1,4834,1,4846],[1,4691,1,4703],[1,4704,1,4716],[1,4717,1,4729],[1,4730,1,4742],[1,4743,1,4755],[1,4756,1,4768],[1,4613,1,4625],[1,4626,1,4638],[1,4639,1,4651],[1,4652,1,4664],[1,4665,1,4677],[1,4678,1,4690],[1,4535,1,4547],[1,4548,1,4560],[1,4561,1,4573],[1,4574,1,4586],[1,4587,1,4599],[1,4600,1,4612],[1,4457,1,4469],[1,4470,1,4482],[1,4483,1,4495],[1,4496,1,4508],[1,4509,1,4521],[1,4522,1,4534],[1,4379,1,4391],[1,4392,1,4404],[1,4405,1,4417],[1,4418,1,4430],[1,4431,1,4443],[1,4444,1,4456],[1,4301,1,4313],[1,4314,1,4326],[1,4327,1,4339],[1,4340,1,4352],[1,4353,1,4365],[1,4366,1,4378],[1,4223,1,4235],[1,4236,1,4248],[1,4249,1,4261],[1,4262,1,4274],[1,4275,1,4287],[1,4288,1,4300],[1,4145,1,4157],[1,4158,1,4170],[1,4171,1,4183],[1,4184,1,4196],[1,4197,1,4209],[1,4210,1,4222],[1,4067,1,4079],[1,4080,1,4092],[1,4093,1,4105],[1,4106,1,4118],[1,4119,1,4131],[1,4132,1,4144],[1,3989,1,4001],[1,4002,1,4014],[1,4015,1,4027],[1,4028,1,4040],[1,4041,1,4053],[1,4054,1,4066],[1,3911,1,3923],[1,3924,1,3936],[1,3937,1,3949],[1,3950,1,3962],[1,3963,1,3975],[1,3976,1,3988],[1,3833,1,3845],[1,3846,1,3858],[1,3859,1,3871],[1,3872,1,3884],[1,3885,1,3897],[1,3898,1,3910],[1,3755,1,3767],[1,3768,1,3780],[1,3781,1,3793],[1,3794,1,3806],[1,3807,1,3819],[1,3820,1,3832],[1,3677,1,3689],[1,3690,1,3702],[1,3703,1,3715],[1,3716,1,3728],[1,3729,1,3741],[1,3742,1,3754],[1,3599,1,3611],[1,3612,1,3624],[1,3625,1,3637],[1,3638,1,3650],[1,3651,1,3663],[1,3664,1,3676],[1,3521,1,3533],[1,3534,1,3546],[1,3547,1,3559],[1,3560,1,3572],[1,3573,1,3585],[1,3586,1,3598],[1,3443,1,3455],[1,3456,1,3468],[1,3469,1,3481],[1,3482,1,3494],[1,3495,1,3507],[1,3508,1,3520],[1,3365,1,3377],[1,3378,1,3390],[1,3391,1,3403],[1,3404,1,3416]],"merged_total":1263,"flags":["merged_cut"]}
[]
[null,"Расчет предполагаемого размера превышения установленного индекса изменения размера вносимой гражданами платы за коммунальные услуги в среднем по субъекту Российской Федерации более чем на величину отклонения по субъекту Российской Федерации в случае отнесения поселения, городского округа к ценовой зоне теплоснабжения"]
[]
[null,"№ пп",{"$f":"\"Прогноз предполагаемого предельного (максимального) индекса изменения размера вносимой гражданами платы за коммунальные услуги в поселении, городском округе в \"&И1!$E$8&\" году\"","v":"Прогноз предполагаемого предельного (максимального) индекса изменения размера вносимой гражданами платы за коммунальные услуги в поселении, городском округе в 2024 году"},"Значение","Источник данных"]
[null,1,{"$f":"ИПГ_мо!$C$6","v":"Предполагаемый размер предельного (максимального) индекса изменения размера вносимой гражданами платы за коммунальные услуги в случае отнесения поселения, городского округа к ценовой зоне теплоснабжения (расчет исходя из предполагаемого темпа роста предельного уровня цены на тепловую энергию (мощность)), %"},{"$f":"ИПГ_мо!$J$6","v":{"$error":"#VALUE!"}}]
[null,2,"Размер установленного индекса изменения размера вносимой гражданами платы за коммунальные услуги в среднем по субъекту Российской Федерации1, %"]
[null,3,"Предельно допустимое отклонение по муниципальному образованию от величины индекса по субъекту Российской Федерации (далее - отклонение по субъекту Российской Федерации)2, %"]
[null,4,"Разница между предполагаемым размером предельного (максимального) индекса изменения размера вносимой гражданами платы за коммунальные услуги в случае отнесения поселения, городского округа к ценовой зоне теплоснабжения и размером установленного индекса изменения размера вносимой гражданами платы за коммунальные услуги в среднем по субъекту Российской Федерации, увеличенного на отклонение по субъекту Российской Федерации3, %",{"$f":"$D$5-$D$6-$D$7","v":{"$error":"#VALUE!"}}]
[null,"1Указываются значения, установленные в соответствии с законодательством Российской Федерации на соответствующий год (год окончания переходного периода), а при их отсутствии в ячейке D6 указывается значение индекса совокупного платежа граждан за коммунальные услуги в соответствии с Прогнозом социально-экономического развития Российской Федерации на 2023 год и на плановый период 2024 и 2025 годов (размещен на официальном сайте Минэкономразвития России 28.09.2022)."]
[null,"2 Указываются значения, установленные в Распоряжении Правительства РФ от 15.11.2018 N 2490-р \"Об индексах изменения размера вносимой гражданами платы за коммунальные услуги в среднем по субъектам РФ и предельно допустимых отклонениях по отдельным муниципальным образованиям от величины указанных индексов на 2019 - 2023 годы\""]
[null,"3 Расчет исходя из предполагаемого темпа роста предельного уровня цены на тепловую энергию (мощность)"]

{"sheet":"Темп VS ИПГ","index":42,"n_rows":8,"n_cols":4,"rows_kept":8,"cut":false,"hidden":false,"merged":[[7,1,7,3],[1,16312,1,16324],[1,16325,1,16337],[1,16338,1,16350],[1,16351,1,16363],[1,16364,1,16376],[1,16377,1,16380],[1,16234,1,16246],[1,16247,1,16259],[1,16260,1,16272],[1,16273,1,16285],[1,16286,1,16298],[1,16299,1,16311],[1,16156,1,16168],[1,16169,1,16181],[1,16182,1,16194],[1,16195,1,16207],[1,16208,1,16220],[1,16221,1,16233],[1,16078,1,16090],[1,16091,1,16103],[1,16104,1,16116],[1,16117,1,16129],[1,16130,1,16142],[1,16143,1,16155],[1,16000,1,16012],[1,16013,1,16025],[1,16026,1,16038],[1,16039,1,16051],[1,16052,1,16064],[1,16065,1,16077],[1,15922,1,15934],[1,15935,1,15947],[1,15948,1,15960],[1,15961,1,15973],[1,15974,1,15986],[1,15987,1,15999],[1,15844,1,15856],[1,15857,1,15869],[1,15870,1,15882],[1,15883,1,15895],[1,15896,1,15908],[1,15909,1,15921],[1,15766,1,15778],[1,15779,1,15791],[1,15792,1,15804],[1,15805,1,15817],[1,15818,1,15830],[1,15831,1,15843],[1,15688,1,15700],[1,15701,1,15713],[1,15714,1,15726],[1,15727,1,15739],[1,15740,1,15752],[1,15753,1,15765],[1,15610,1,15622],[1,15623,1,15635],[1,15636,1,15648],[1,15649,1,15661],[1,15662,1,15674],[1,15675,1,15687],[1,15532,1,15544],[1,15545,1,15557],[1,15558,1,15570],[1,15571,1,15583],[1,15584,1,15596],[1,15597,1,15609],[1,15454,1,15466],[1,15467,1,15479],[1,15480,1,15492],[1,15493,1,15505],[1,15506,1,15518],[1,15519,1,15531],[1,15376,1,15388],[1,15389,1,15401],[1,15402,1,15414],[1,15415,1,15427],[1,15428,1,15440],[1,15441,1,15453],[1,15298,1,15310],[1,15311,1,15323],[1,15324,1,15336],[1,15337,1,15349],[1,15350,1,15362],[1,15363,1,15375],[1,15220,1,15232],[1,15233,1,15245],[1,15246,1,15258],[1,15259,1,15271],[1,15272,1,15284],[1,15285,1,15297],[1,15142,1,15154],[1,15155,1,15167],[1,15168,1,15180],[1,15181,1,15193],[1,15194,1,15206],[1,15207,1,15219],[1,15064,1,15076],[1,15077,1,15089],[1,15090,1,15102],[1,15103,1,15115],[1,15116,1,15128],[1,15129,1,15141],[1,14986,1,14998],[1,14999,1,15011],[1,15012,1,15024],[1,15025,1,15037],[1,15038,1,15050],[1,15051,1,15063],[1,14908,1,14920],[1,14921,1,14933],[1,14934,1,14946],[1,14947,1,14959],[1,14960,1,14972],[1,14973,1,14985],[1,14830,1,14842],[1,14843,1,14855],[1,14856,1,14868],[1,14869,1,14881],[1,14882,1,14894],[1,14895,1,14907],[1,14752,1,14764],[1,14765,1,14777],[1,14778,1,14790],[1,14791,1,14803],[1,14804,1,14816],[1,14817,1,14829],[1,14674,1,14686],[1,14687,1,14699],[1,14700,1,14712],[1,14713,1,14725],[1,14726,1,14738],[1,14739,1,14751],[1,14596,1,14608],[1,14609,1,14621],[1,14622,1,14634],[1,14635,1,14647],[1,14648,1,14660],[1,14661,1,14673],[1,14518,1,14530],[1,14531,1,14543],[1,14544,1,14556],[1,14557,1,14569],[1,14570,1,14582],[1,14583,1,14595],[1,14440,1,14452],[1,14453,1,14465],[1,14466,1,14478],[1,14479,1,14491],[1,14492,1,14504],[1,14505,1,14517],[1,14362,1,14374],[1,14375,1,14387],[1,14388,1,14400],[1,14401,1,14413],[1,14414,1,14426],[1,14427,1,14439],[1,14284,1,14296],[1,14297,1,14309],[1,14310,1,14322],[1,14323,1,14335],[1,14336,1,14348],[1,14349,1,14361],[1,14206,1,14218],[1,14219,1,14231],[1,14232,1,14244],[1,14245,1,14257],[1,14258,1,14270],[1,14271,1,14283],[1,14128,1,14140],[1,14141,1,14153],[1,14154,1,14166],[1,14167,1,14179],[1,14180,1,14192],[1,14193,1,14205],[1,14050,1,14062],[1,14063,1,14075],[1,14076,1,14088],[1,14089,1,14101],[1,14102,1,14114],[1,14115,1,14127],[1,13972,1,13984],[1,13985,1,13997],[1,13998,1,14010],[1,14011,1,14023],[1,14024,1,14036],[1,14037,1,14049],[1,13894,1,13906],[1,13907,1,13919],[1,13920,1,13932],[1,13933,1,13945],[1,13946,1,13958],[1,13959,1,13971],[1,13816,1,13828],[1,13829,1,13841],[1,13842,1,13854],[1,13855,1,13867],[1,13868,1,13880],[1,13881,1,13893],[1,13738,1,13750],[1,13751,1,13763],[1,13764,1,13776],[1,13777,1,13789],[1,13790,1,13802],[1,13803,1,13815],[1,13660,1,13672],[1,13673,1,13685],[1,13686,1,13698],[1,13699,1,13711],[1,13712,1,13724],[1,13725,1,13737],[1,13582,1,13594],[1,13595,1,13607],[1,13608,1,13620],[1,13621,1,13633],[1,13634,1,13646],[1,13647,1,13659],[1,13504,1,13516],[1,13517,1,13529],[1,13530,1,13542],[1,13543,1,13555],[1,13556,1,13568],[1,13569,1,13581],[1,13426,1,13438],[1,13439,1,13451],[1,13452,1,13464],[1,13465,1,13477],[1,13478,1,13490],[1,13491,1,13503],[1,13348,1,13360],[1,13361,1,13373],[1,13374,1,13386],[1,13387,1,13399],[1,13400,1,13412],[1,13413,1,13425],[1,13270,1,13282],[1,13283,1,13295],[1,13296,1,13308],[1,13309,1,13321],[1,13322,1,13334],[1,13335,1,13347],[1,13192,1,13204],[1,13205,1,13217],[1,13218,1,13230],[1,13231,1,13243],[1,13244,1,13256],[1,13257,1,13269],[1,13114,1,13126],[1,13127,1,13139],[1,13140,1,13152],[1,13153,1,13165],[1,13166,1,13178],[1,13179,1,13191],[1,13036,1,13048],[1,13049,1,13061],[1,13062,1,13074],[1,13075,1,13087],[1,13088,1,13100],[1,13101,1,13113],[1,12958,1,12970],[1,12971,1,12983],[1,12984,1,12996],[1,12997,1,13009],[1,13010,1,13022],[1,13023,1,13035],[1,12880,1,12892],[1,12893,1,12905],[1,12906,1,12918],[1,12919,1,12931],[1,12932,1,12944],[1,12945,1,12957],[1,12802,1,12814],[1,12815,1,12827],[1,12828,1,12840],[1,12841,1,12853],[1,12854,1,12866],[1,12867,1,12879],[1,12724,1,12736],[1,12737,1,12749],[1,12750,1,12762],[1,12763,1,12775],[1,12776,1,12788],[1,12789,1,12801],[1,12646,1,12658],[1,12659,1,12671],[1,12672,1,12684],[1,12685,1,12697],[1,12698,1,12710],[1,12711,1,12723],[1,12568,1,12580],[1,12581,1,12593],[1,12594,1,12606],[1,12607,1,12619],[1,12620,1,12632],[1,12633,1,12645],[1,12490,1,12502],[1,12503,1,12515],[1,12516,1,12528],[1,12529,1,12541],[1,12542,1,12554],[1,12555,1,12567],[1,12412,1,12424],[1,12425,1,12437],[1,12438,1,12450],[1,12451,1,12463],[1,12464,1,12476],[1,12477,1,12489],[1,12334,1,12346],[1,12347,1,12359],[1,12360,1,12372],[1,12373,1,12385],[1,12386,1,12398],[1,12399,1,12411],[1,12256,1,12268],[1,12269,1,12281],[1,12282,1,12294],[1,12295,1,12307],[1,12308,1,12320],[1,12321,1,12333],[1,12178,1,12190],[1,12191,1,12203],[1,12204,1,12216],[1,12217,1,12229],[1,12230,1,12242],[1,12243,1,12255],[1,12100,1,12112],[1,12113,1,12125],[1,12126,1,12138],[1,12139,1,12151],[1,12152,1,12164],[1,12165,1,12177],[1,12022,1,12034],[1,12035,1,12047],[1,12048,1,12060],[1,12061,1,12073],[1,12074,1,12086],[1,12087,1,12099],[1,11944,1,11956],[1,11957,1,11969],[1,11970,1,11982],[1,11983,1,11995],[1,11996,1,12008],[1,12009,1,12021],[1,11866,1,11878],[1,11879,1,11891],[1,11892,1,11904],[1,11905,1,11917],[1,11918,1,11930],[1,11931,1,11943],[1,11788,1,11800],[1,11801,1,11813],[1,11814,1,11826],[1,11827,1,11839],[1,11840,1,11852],[1,11853,1,11865],[1,11710,1,11722],[1,11723,1,11735],[1,11736,1,11748],[1,11749,1,11761],[1,11762,1,11774],[1,11775,1,11787],[1,11632,1,11644],[1,11645,1,11657],[1,11658,1,11670],[1,11671,1,11683],[1,11684,1,11696],[1,11697,1,11709],[1,11554,1,11566],[1,11567,1,11579],[1,11580,1,11592],[1,11593,1,11605],[1,11606,1,11618],[1,11619,1,11631],[1,11476,1,11488],[1,11489,1,11501],[1,11502,1,11514],[1,11515,1,11527],[1,11528,1,11540],[1,11541,1,11553],[1,11398,1,11410],[1,11411,1,11423],[1,11424,1,11436],[1,11437,1,11449],[1,11450,1,11462],[1,11463,1,11475],[1,11320,1,11332],[1,11333,1,11345],[1,11346,1,11358],[1,11359,1,11371],[1,11372,1,11384],[1,11385,1,11397],[1,11242,1,11254],[1,11255,1,11267],[1,11268,1,11280],[1,11281,1,11293],[1,11294,1,11306],[1,11307,1,11319],[1,11164,1,11176],[1,11177,1,11189],[1,11190,1,11202],[1,11203,1,11215],[1,11216,1,11228],[1,11229,1,11241],[1,11086,1,11098],[1,11099,1,11111],[1,11112,1,11124],[1,11125,1,11137],[1,11138,1,11150],[1,11151,1,11163],[1,11008,1,11020],[1,11021,1,11033],[1,11034,1,11046],[1,11047,1,11059],[1,11060,1,11072],[1,11073,1,11085],[1,10930,1,10942],[1,10943,1,10955],[1,10956,1,10968],[1,10969,1,10981],[1,10982,1,10994],[1,10995,1,11007],[1,10852,1,10864],[1,10865,1,10877],[1,10878,1,10890],[1,10891,1,10903],[1,10904,1,10916],[1,10917,1,10929],[1,10774,1,10786],[1,10787,1,10799],[1,10800,1,10812],[1,10813,1,10825],[1,10826,1,10838],[1,10839,1,10851],[1,10696,1,10708],[1,10709,1,10721],[1,10722,1,10734],[1,10735,1,10747],[1,10748,1,10760],[1,10761,1,10773],[1,10618,1,10630],[1,10631,1,10643],[1,10644,1,10656],[1,10657,1,10669],[1,10670,1,10682],[1,10683,1,10695],[1,10540,1,10552],[1,10553,1,10565],[1,10566,1,10578],[1,10579,1,10591],[1,10592,1,10604],[1,10605,1,10617],[1,10462,1,10474],[1,10475,1,10487],[1,10488,1,10500],[1,10501,1,10513],[1,10514,1,10526],[1,10527,1,10539],[1,10384,1,10396],[1,10397,1,10409],[1,10410,1,10422],[1,10423,1,10435],[1,10436,1,10448],[1,10449,1,10461],[1,10306,1,10318],[1,10319,1,10331],[1,10332,1,10344],[1,10345,1,10357],[1,10358,1,10370],[1,10371,1,10383],[1,10228,1,10240],[1,10241,1,10253],[1,10254,1,10266],[1,10267,1,10279],[1,10280,1,10292],[1,10293,1,10305],[1,10150,1,10162],[1,10163,1,10175],[1,10176,1,10188],[1,10189,1,10201],[1,10202,1,10214],[1,10215,1,10227],[1,10072,1,10084],[1,10085,1,10097],[1,10098,1,10110],[1,10111,1,10123],[1,10124,1,10136],[1,10137,1,10149],[1,9994,1,10006],[1,10007,1,10019],[1,10020,1,10032],[1,10033,1,10045],[1,10046,1,10058],[1,10059,1,10071],[1,9916,1,9928],[1,9929,1,9941],[1,9942,1,9954],[1,9955,1,9967],[1,9968,1,9980],[1,9981,1,9993],[1,9838,1,9850],[1,9851,1,9863],[1,9864,1,9876],[1,9877,1,9889],[1,9890,1,9902],[1,9903,1,9915],[1,9760,1,9772],[1,9773,1,9785],[1,9786,1,9798],[1,9799,1,9811],[1,9812,1,9824],[1,9825,1,9837],[1,9682,1,9694],[1,9695,1,9707],[1,9708,1,9720],[1,9721,1,9733],[1,9734,1,9746],[1,9747,1,9759],[1,9604,1,9616],[1,9617,1,9629],[1,9630,1,9642],[1,9643,1,9655],[1,9656,1,9668],[1,9669,1,9681],[1,9526,1,9538],[1,9539,1,9551],[1,9552,1,9564],[1,9565,1,9577],[1,9578,1,9590],[1,9591,1,9603],[1,9448,1,9460],[1,9461,1,9473],[1,9474,1,9486],[1,9487,1,9499],[1,9500,1,9512],[1,9513,1,9525],[1,9370,1,9382],[1,9383,1,9395],[1,9396,1,9408],[1,9409,1,9421],[1,9422,1,9434],[1,9435,1,9447],[1,9292,1,9304],[1,9305,1,9317],[1,9318,1,9330],[1,9331,1,9343],[1,9344,1,9356],[1,9357,1,9369],[1,9214,1,9226],[1,9227,1,9239],[1,9240,1,9252],[1,9253,1,9265],[1,9266,1,9278],[1,9279,1,9291],[1,9136,1,9148],[1,9149,1,9161],[1,9162,1,9174],[1,9175,1,9187],[1,9188,1,9200],[1,9201,1,9213],[1,9058,1,9070],[1,9071,1,9083],[1,9084,1,9096],[1,9097,1,9109],[1,9110,1,9122],[1,9123,1,9135],[1,8980,1,8992],[1,8993,1,9005],[1,9006,1,9018],[1,9019,1,9031],[1,9032,1,9044],[1,9045,1,9057],[1,8902,1,8914],[1,8915,1,8927],[1,8928,1,8940],[1,8941,1,8953],[1,8954,1,8966],[1,8967,1,8979],[1,8824,1,8836],[1,8837,1,8849],[1,8850,1,8862],[1,8863,1,8875],[1,8876,1,8888],[1,8889,1,8901],[1,8746,1,8758],[1,8759,1,8771],[1,8772,1,8784],[1,8785,1,8797],[1,8798,1,8810],[1,8811,1,8823],[1,8668,1,8680],[1,8681,1,8693],[1,8694,1,8706],[1,8707,1,8719],[1,8720,1,8732],[1,8733,1,8745],[1,8590,1,8602],[1,8603,1,8615],[1,8616,1,8628],[1,8629,1,8641],[1,8642,1,8654],[1,8655,1,8667],[1,8512,1,8524],[1,8525,1,8537],[1,8538,1,8550],[1,8551,1,8563],[1,8564,1,8576],[1,8577,1,8589],[1,8434,1,8446],[1,8447,1,8459],[1,8460,1,8472],[1,8473,1,8485],[1,8486,1,8498],[1,8499,1,8511],[1,8356,1,8368],[1,8369,1,8381],[1,8382,1,8394],[1,8395,1,8407],[1,8408,1,8420],[1,8421,1,8433],[1,8278,1,8290],[1,8291,1,8303],[1,8304,1,8316],[1,8317,1,8329],[1,8330,1,8342],[1,8343,1,8355],[1,8200,1,8212],[1,8213,1,8225],[1,8226,1,8238],[1,8239,1,8251],[1,8252,1,8264],[1,8265,1,8277],[1,8122,1,8134],[1,8135,1,8147],[1,8148,1,8160],[1,8161,1,8173],[1,8174,1,8186],[1,8187,1,8199],[1,8044,1,8056],[1,8057,1,8069],[1,8070,1,8082],[1,8083,1,8095],[1,8096,1,8108],[1,8109,1,8121],[1,7966,1,7978],[1,7979,1,7991],[1,7992,1,8004],[1,8005,1,8017],[1,8018,1,8030],[1,8031,1,8043],[1,7888,1,7900],[1,7901,1,7913],[1,7914,1,7926],[1,7927,1,7939],[1,7940,1,7952],[1,7953,1,7965],[1,7810,1,7822],[1,7823,1,7835],[1,7836,1,7848],[1,7849,1,7861],[1,7862,1,7874],[1,7875,1,7887],[1,7732,1,7744],[1,7745,1,7757],[1,7758,1,7770],[1,7771,1,7783],[1,7784,1,7796],[1,7797,1,7809],[1,7654,1,7666],[1,7667,1,7679],[1,7680,1,7692],[1,7693,1,7705],[1,7706,1,7718],[1,7719,1,7731],[1,7576,1,7588],[1,7589,1,7601],[1,7602,1,7614],[1,7615,1,7627],[1,7628,1,7640],[1,7641,1,7653],[1,7498,1,7510],[1,7511,1,7523],[1,7524,1,7536],[1,7537,1,7549],[1,7550,1,7562],[1,7563,1,7575],[1,7420,1,7432],[1,7433,1,7445],[1,7446,1,7458],[1,7459,1,7471],[1,7472,1,7484],[1,7485,1,7497],[1,7342,1,7354],[1,7355,1,7367],[1,7368,1,7380],[1,7381,1,7393],[1,7394,1,7406],[1,7407,1,7419],[1,7264,1,7276],[1,7277,1,7289],[1,7290,1,7302],[1,7303,1,7315],[1,7316,1,7328],[1,7329,1,7341],[1,7186,1,7198],[1,7199,1,7211],[1,7212,1,7224],[1,7225,1,7237],[1,7238,1,7250],[1,7251,1,7263],[1,7108,1,7120],[1,7121,1,7133],[1,7134,1,7146],[1,7147,1,7159],[1,7160,1,7172],[1,7173,1,7185],[1,7030,1,7042],[1,7043,1,7055],[1,7056,1,7068],[1,7069,1,7081],[1,7082,1,7094],[1,7095,1,7107],[1,6952,1,6964],[1,6965,1,6977],[1,6978,1,6990],[1,6991,1,7003],[1,7004,1,7016],[1,7017,1,7029],[1,6874,1,6886],[1,6887,1,6899],[1,6900,1,6912],[1,6913,1,6925],[1,6926,1,6938],[1,6939,1,6951],[1,6796,1,6808],[1,6809,1,6821],[1,6822,1,6834],[1,6835,1,6847],[1,6848,1,6860],[1,6861,1,6873],[1,6718,1,6730],[1,6731,1,6743],[1,6744,1,6756],[1,6757,1,6769],[1,6770,1,6782],[1,6783,1,6795],[1,6640,1,6652],[1,6653,1,6665],[1,6666,1,6678],[1,6679,1,6691],[1,6692,1,6704],[1,6705,1,6717],[1,6562,1,6574],[1,6575,1,6587],[1,6588,1,6600],[1,6601,1,6613],[1,6614,1,6626],[1,6627,1,6639],[1,6484,1,6496],[1,6497,1,6509],[1,6510,1,6522],[1,6523,1,6535],[1,6536,1,6548],[1,6549,1,6561],[1,6406,1,6418],[1,6419,1,6431],[1,6432,1,6444],[1,6445,1,6457],[1,6458,1,6470],[1,6471,1,6483],[1,6328,1,6340],[1,6341,1,6353],[1,6354,1,6366],[1,6367,1,6379],[1,6380,1,6392],[1,6393,1,6405],[1,6250,1,6262],[1,6263,1,6275],[1,6276,1,6288],[1,6289,1,6301],[1,6302,1,6314],[1,6315,1,6327],[1,6172,1,6184],[1,6185,1,6197],[1,6198,1,6210],[1,6211,1,6223],[1,6224,1,6236],[1,6237,1,6249],[1,6094,1,6106],[1,6107,1,6119],[1,6120,1,6132],[1,6133,1,6145],[1,6146,1,6158],[1,6159,1,6171],[1,6016,1,6028],[1,6029,1,6041],[1,6042,1,6054],[1,6055,1,6067],[1,6068,1,6080],[1,6081,1,6093],[1,5938,1,5950],[1,5951,1,5963],[1,5964,1,5976],[1,5977,1,5989],[1,5990,1,6002],[1,6003,1,6015],[1,5860,1,5872],[1,5873,1,5885],[1,5886,1,5898],[1,5899,1,5911],[1,5912,1,5924],[1,5925,1,5937],[1,5782,1,5794],[1,5795,1,5807],[1,5808,1,5820],[1,5821,1,5833],[1,5834,1,5846],[1,5847,1,5859],[1,5704,1,5716],[1,5717,1,5729],[1,5730,1,5742],[1,5743,1,5755],[1,5756,1,5768],[1,5769,1,5781],[1,5626,1,5638],[1,5639,1,5651],[1,5652,1,5664],[1,5665,1,5677],[1,5678,1,5690],[1,5691,1,5703],[1,5548,1,5560],[1,5561,1,5573],[1,5574,1,5586],[1,5587,1,5599],[1,5600,1,5612],[1,5613,1,5625],[1,5470,1,5482],[1,5483,1,5495],[1,5496,1,5508],[1,5509,1,5521],[1,5522,1,5534],[1,5535,1,5547],[1,5392,1,5404],[1,5405,1,5417],[1,5418,1,5430],[1,5431,1,5443],[1,5444,1,5456],[1,5457,1,5469],[1,5314,1,5326],[1,5327,1,5339],[1,5340,1,5352],[1,5353,1,5365],[1,5366,1,5378],[1,5379,1,5391],[1,5236,1,5248],[1,5249,1,5261],[1,5262,1,5274],[1,5275,1,5287],[1,5288,1,5300],[1,5301,1,5313],[1,5158,1,5170],[1,5171,1,5183],[1,5184,1,5196],[1,5197,1,5209],[1,5210,1,5222],[1,5223,1,5235],[1,5080,1,5092],[1,5093,1,5105],[1,5106,1,5118],[1,5119,1,5131],[1,5132,1,5144],[1,5145,1,5157],[1,5002,1,5014],[1,5015,1,5027],[1,5028,1,5040],[1,5041,1,5053],[1,5054,1,5066],[1,5067,1,5079],[1,4924,1,4936],[1,4937,1,4949],[1,4950,1,4962],[1,4963,1,4975],[1,4976,1,4988],[1,4989,1,5001],[1,4846,1,4858],[1,4859,1,4871],[1,4872,1,4884],[1,4885,1,4897],[1,4898,1,4910],[1,4911,1,4923],[1,4768,1,4780],[1,4781,1,4793],[1,4794,1,4806],[1,4807,1,4819],[1,4820,1,4832],[1,4833,1,4845],[1,4690,1,4702],[1,4703,1,4715],[1,4716,1,4728],[1,4729,1,4741],[1,4742,1,4754],[1,4755,1,4767],[1,4612,1,4624],[1,4625,1,4637],[1,4638,1,4650],[1,4651,1,4663],[1,4664,1,4676],[1,4677,1,4689],[1,4534,1,4546],[1,4547,1,4559],[1,4560,1,4572],[1,4573,1,4585],[1,4586,1,4598],[1,4599,1,4611],[1,4456,1,4468],[1,4469,1,4481],[1,4482,1,4494],[1,4495,1,4507],[1,4508,1,4520],[1,4521,1,4533],[1,4378,1,4390],[1,4391,1,4403],[1,4404,1,4416],[1,4417,1,4429],[1,4430,1,4442],[1,4443,1,4455],[1,4300,1,4312],[1,4313,1,4325],[1,4326,1,4338],[1,4339,1,4351],[1,4352,1,4364],[1,4365,1,4377],[1,4222,1,4234],[1,4235,1,4247],[1,4248,1,4260],[1,4261,1,4273],[1,4274,1,4286],[1,4287,1,4299],[1,4144,1,4156],[1,4157,1,4169],[1,4170,1,4182],[1,4183,1,4195],[1,4196,1,4208],[1,4209,1,4221],[1,4066,1,4078],[1,4079,1,4091],[1,4092,1,4104],[1,4105,1,4117],[1,4118,1,4130],[1,4131,1,4143],[1,3988,1,4000],[1,4001,1,4013],[1,4014,1,4026],[1,4027,1,4039],[1,4040,1,4052],[1,4053,1,4065],[1,3910,1,3922],[1,3923,1,3935],[1,3936,1,3948],[1,3949,1,3961],[1,3962,1,3974],[1,3975,1,3987],[1,3832,1,3844],[1,3845,1,3857],[1,3858,1,3870],[1,3871,1,3883],[1,3884,1,3896],[1,3897,1,3909],[1,3754,1,3766],[1,3767,1,3779],[1,3780,1,3792],[1,3793,1,3805],[1,3806,1,3818],[1,3819,1,3831],[1,3676,1,3688],[1,3689,1,3701],[1,3702,1,3714],[1,3715,1,3727],[1,3728,1,3740],[1,3741,1,3753],[1,3598,1,3610],[1,3611,1,3623],[1,3624,1,3636],[1,3637,1,3649],[1,3650,1,3662],[1,3663,1,3675],[1,3520,1,3532],[1,3533,1,3545],[1,3546,1,3558],[1,3559,1,3571],[1,3572,1,3584],[1,3585,1,3597],[1,3442,1,3454],[1,3455,1,3467],[1,3468,1,3480],[1,3481,1,3493],[1,3494,1,3506],[1,3507,1,3519],[1,3364,1,3376],[1,3377,1,3389],[1,3390,1,3402]],"merged_total":1261,"flags":["merged_cut"]}
[]
[null,"Оценка отклонений расчетных темпов роста от индексов изменения размера вносимой гражданами платы за коммунальные услуги в среднем по субъекту Российской Федерации и установленного отклонения по субъекту Российской Федерации, предельных (максимальных) индексов изменения размера вносимой гражданами платы за коммунальные услуги по муниципальным образованиям, на территории которых находятся рассматриваемые системы теплоснабжения"]
[]
[null,"№ пп","Параметр расчета","Значение"]
[null,1,{"$f":"ИПГ_мо!$C$6","v":"Предполагаемый размер предельного (максимального) индекса изменения размера вносимой гражданами платы за коммунальные услуги в случае отнесения поселения, городского округа к ценовой зоне теплоснабжения (расчет исходя из предполагаемого темпа роста предельного уровня цены на тепловую энергию (мощность)), %"},{"$f":"ИПГ_мо!$J$6","v":{"$error":"#VALUE!"}}]
[null,2,"Размер установленного индекса изменения размера вносимой гражданами платы за коммунальные услуги в среднем по субъекту Российской Федерации, увеличенный на отклонение по субъекту Российской Федерации, %",{"$f":"ИПГ_рег!$D$6+ИПГ_рег!$D$7","v":0}]
[null,3,"Разница между расчетным темпом роста и размером установленного индекса изменения размера вносимой гражданами платы за коммунальные услуги в среднем по субъекту Российской Федерации, увеличенного на отклонение по субъекту Российской Федерации1, %",{"$f":"'Гр&ПУЦ_v1'!$G$13-$D$6","v":0}]
[null,"1 Расчет исходя из предполагаемого темпа роста предельного уровня цены на тепловую энергию (мощность)"]

{"sheet":"МУ770_Т1","index":43,"n_rows":23,"n_cols":46,"rows_kept":23,"cut":false,"hidden":false,"merged":[[2,1,2,5],[20,1,20,14],[21,1,21,14],[22,1,22,14]]}
[null,null,null,null,null,null,null,null,null,null,null,null,null,null,null,null,null,null,null,null,null,null,null,null,null,null,null,null,null,null,null,null,null,null,null,null,null,null,null,null,null,null,null,null,null,"(выберите из списка)"]
[null,null,null,null,null,null,null,null,null,null,null,null,null,null,null,null,null,null,null,null,null,null,null,null,null,null,null,null,null,null,null,null,null,null,null,null,null,null,null,null,null,null,null,null,null,"на основании графика доведения"]
[null,"Порядок перехода к применению цены \"альтернативной котельной\" (выберите из списка)",null,null,null,null,"(выберите из списка)",null,null,null,null,null,null,null,"Таблица 1",null,null,null,null,null,null,null,null,null,null,null,null,null,null,null,null,null,null,null,null,null,null,null,null,null,null,null,null,null,null,"с учетом заморозки тарифа "]
[null,null,null,null,null,null,"Основные ценовые параметры внедрения целевой модели рынка тепловой энергии на территории"]
[null,null,null,null,null,null,null,null,{"$f":"IF(И1!$D$14=\"Городской округ\",И1!$E$14,И1!$E$15)","v":0}]
[null,null,null,null,null,null,null,null,"(наименование поселения, городского округа)"]
[]
[null,"N","Наименование единой теплоснабжающей организации","Номер (код, индекс) системы теплоснабжения","Наименования источников в системе теплоснабжения","Объем отпуска тепловой энергии, \nтыс. Гкал","Преобладающий вид топлива в соответствии с постановлением № 1562 (газ/уголь/мазут)",{"$f":"\"Утвержденный тариф на тепловую энергию (мощность), поставляемую потребителям, на предполагаемую дату окончания переходного периода 01.07.\"&И1!E8&\", без НДС, руб/Гкал\"","v":"Утвержденный тариф на тепловую энергию (мощность), поставляемую потребителям, на предполагаемую дату окончания переходного периода 01.07.2024, без НДС, руб/Гкал"},{"$f":"\"Расчет цены \"&CHAR(34)&\"альтернативной котельной\"&CHAR(34)&\" на предполагаемый первый год функционирования ценовой зоны теплоснабжения \"&И1!E8&\" год, без НДС, руб/Гкал\"","v":"Расчет цены \"альтернативной котельной\" на предполагаемый первый год функционирования ценовой зоны теплоснабжения 2024 год, без НДС, руб/Гкал"},"Разница между утвержденным тарифом и расчетной ценой \"альтернативной котельной\" на предполагаемый первый год функционирования ценовой зоны теплоснабжения (столбец 8/столбец 7 - 1), %","Предполагаемый срок графика равномерного поэтапного доведения предельного уровня цены на тепловую энергию (мощность) до цены \"альтернативной котельной\", лет","Прогноз цены \"альтернативной котельной\" на дату окончания графика доведения предельного уровня цены на тепловую энергию (мощность) до цены \"альтернативной котельной\", руб/Гкал","Предполагаемый равномерный ежегодный темп доведения предельного уровня цены на тепловую энергию (мощность) до цены \"альтернативной котельной\" сверх инфляции <*> на основании графика равномерного поэтапного доведения предельного уровня цены на тепловую энергию (мощность) до цены \"альтернативной котельной\", %","Предполагаемое изменение предельного (максимального) индекса изменения размера вносимой гражданами платы за коммунальные услуги в поселении, городском округе в случае его отнесения к ценовой зоне теплоснабжения, % <**>","Предполагаемое необходимое превышение установленного индекса изменения размера вносимой гражданами платы за коммунальные услуги в среднем по субъекту Российской Федерации более чем на величину отклонения по субъекту Российской Федерации в случае отнесения поселения, городского округа в случае к ценовой зоне теплоснабжения, % <***>"]
[null,1,2,3,4,5,6,7,8,9,10,11,12,13,14]
[null,"1",null,null,null,null,{"$f":"И1!E18","v":"Уголь"},{"$f":"IF($G$3=$AT$2,'Гр&ПУЦ_v1'!$G$3,IF($G$3=$AT$3,Заморозка!$G$3,))","v":0},{"$f":"АК_прогноз!$C$6","v":10533.64813421785},{"$f":"I10/H10-1","v":{"$error":"#DIV/0!"}},{"$f":"IF($G$3=$AT$2,'Гр&ПУЦ_v1'!$G$4,\"-\")","v":"-"},{"$f":"IF($G$3=$AT$2,'Гр&ПУЦ_v1'!$G$5,\"-\")","v":"-"},{"$f":"IF($G$3=$AT$3,\"-\",IF($G$3=$AT$2,'Гр&ПУЦ_v1'!G9-ИПЦ_ИПГ!E4,\"-\"))","v":"-"},{"$f":"ИПГ_мо!$J$4","v":{"$error":"#VALUE!"}},{"$f":"IF(ИПГ_мо!$J$6-'Темп VS ИПГ'!$D$6<=0,0,ИПГ_мо!$J$6-'Темп VS ИПГ'!$D$6)","v":{"$error":"#VALUE!"}}]
[]
[null,"  Уполномоченное должностное лицо",null,null,null,null,null,"Уполномоченное должностное лицо единой"]
[null,"  исполнительно-распорядительного",null,null,null,null,null,"теплоснабжающей организации"]
[null," органа муниципального образования",null,null,null,null,null,"(уполномоченные должностные лица"]
[null,null,null,null,null,null,null,"единых теплоснабжающих организаций)\n"]
[]
[null,"  (подпись, расшифровка подписи)",null,null,null,null,null,"  (подпись, расшифровка подписи)"]
[]
[null,"         (дата подписи)",null,null,null,null,null,"         (дата подписи)"]
[]
[null,"<*> Индекс потребительских цен (в среднем за год к предыдущему году), определенный в актуальном прогнозе социально-экономического развития Российской Федерации, одобренном Правительством Российской Федерации (базовый вариант);"]
[null,"<**> Разница между предполагаемым размером предельного (максимального) индекса изменения размера вносимой гражданами платы за коммунальные услуги в случае отнесения поселения, городского округа к ценовой зоне теплоснабжения и размером утвержденного предельного (максимального) индекса изменения размера вносимой гражданами платы за коммунальные услуги. В отдельной таблице рекомендуется указать расчет предполагаемого изменения предельного (максимального) индекса изменения размера вносимой гражданами платы за коммунальные услуги в поселении, городском округе в случае его отнесения к ценовой зоне теплоснабжения;"]
[null,"<***> Разница между предполагаемым размером предельного (максимального) индекса изменения размера вносимой гражданами платы за коммунальные услуги в случае отнесения поселения, городского округа к ценовой зоне теплоснабжения и размером установленного индекса изменения размера вносимой гражданами платы за коммунальные услуги в среднем по субъекту Российской Федерации, увеличенного на отклонение по субъекту Российской Федерации. В отдельной таблице рекомендуется указать расчет предполагаемого размера превышения установленного индекса изменения размера вносимой гражданами платы за коммунальные услуги в среднем по субъекту Российской Федерации более чем на величину отклонения по субъекту Российской Федерации в случае отнесения поселения, городского округа к ценовой зоне теплоснабжения."]

{"sheet":"Гр&ПУЦ_v2","index":44,"n_rows":12,"n_cols":25,"rows_kept":12,"cut":false,"hidden":false,"merged":[[6,19,6,20],[6,21,6,22],[6,23,6,24],[6,7,6,8],[6,9,6,10],[6,11,6,12],[6,13,6,14],[6,15,6,16],[6,17,6,18],[0,1,0,15],[1,1,1,15],[2,2,2,5],[2,7,2,15],[3,2,3,5],[4,2,4,5],[6,1,7,1],[6,2,7,2],[6,3,7,3],[6,4,7,4],[6,5,7,5]]}
[null,"Дополнительный справочный расчет\nГрафики равномерного поэтапного доведения предельного уровня цены на тепловую энергию (мощность) до уровня, определяемого в соответствии с разделом II Правил определения в ценовых зонах теплоснабжения предельного уровня цены на тепловую энергию (мощность), включая правила индексации предельного уровня цены на тепловую энергию (мощность); предельный уровень цены на тепловую энергию (мощность); цена на тепловую энергию (мощность), поставляемую потребителям"]
[null,"Вариант расчета через равномерную долю роста предельного уровня цены по графику равномерного поэтапного доведения предельного уровня цены на тепловую энергию (мощность) до цены \"альтернативной котельной\""]
[null,{"$f":"МУ770_Т1!B10","v":"1"},{"$f":"'Гр&ПУЦ_v1'!C3:F3","v":"Утвержденный тариф на тепловую энергию (мощность), поставляемую потребителям, на предполагаемую дату окончания переходного периода 01.07.2024, без НДС, руб./Гкал"},null,null,null,{"$f":"'Гр&ПУЦ_v1'!G3","v":0},{"$f":"'Гр&ПУЦ_v1'!H3:T3","v":"Вписать наименование тарифа и реквизиты решения органа регулирования"}]
[null,2,"Предполагаемый срок графика равномерного поэтапного доведения предельного уровня цены на тепловую энергию (мощность) до цены \"альтернативной котельной\", лет",null,null,null,{"$f":"'Гр&ПУЦ_v1'!G4","v":0}]
[null,3,"Прогноз цены \"альтернативной котельной\" на дату окончания графика доведения предельного уровня цены на тепловую энергию (мощность) до цены \"альтернативной котельной\", руб/Гкал",null,null,null,{"$f":"'Гр&ПУЦ_v1'!G5","v":"введите допустимый срок графика"}]
[null,null,null,null,null,null,1,null,2,null,3,null,4,null,5,null,6,null,7,null,8,null,9,null,10]
[null,"№ пп","Субъект Российской Федерации","Поселение, городской округ","ЕТО, система теплоснабжения","Параметр расчета \\ годы",{"$f":"И1!E8","v":2024},{"$f":"G7+1","v":2025},null,{"$f":"H7+1","v":2026},null,{"$f":"J7+1","v":2027},null,{"$f":"L7+1","v":2028},null,{"$f":"N7+1","v":2029},null,{"$f":"P7+1","v":2030},null,{"$f":"R7+1","v":2031},null,{"$f":"T7+1","v":2032},null,{"$f":"V7+1","v":2033}]
[null,null,null,null,null,null,{"$f":"\"2пг\"&G7","v":"2пг2024"},{"$f":"\"1пг\"&H7","v":"1пг2025"},{"$f":"\"2пг\"&H7","v":"2пг2025"},{"$f":"\"1пг\"&J7","v":"1пг2026"},{"$f":"\"2пг\"&J7","v":"2пг2026"},{"$f":"\"1пг\"&L7","v":"1пг2027"},{"$f":"\"2пг\"&L7","v":"2пг2027"},{"$f":"\"1пг\"&N7","v":"1пг2028"},{"$f":"\"2пг\"&N7","v":"2пг2028"},{"$f":"\"1пг\"&P7","v":"1пг2029"},{"$f":"\"2пг\"&P7","v":"2пг2029"},{"$f":"\"1пг\"&R7","v":"1пг2030"},{"$f":"\"2пг\"&R7","v":"2пг2030"},{"$f":"\"1пг\"&T7","v":"1пг2031"},{"$f":"\"2пг\"&T7","v":"2пг2031"},{"$f":"\"1пг\"&V7","v":"1пг2032"},"2пг2032",{"$f":"\"1пг\"&X7","v":"1пг2033"},"2пг2033"]
[null,1,{"$f":"'Гр&ПУЦ_v1'!C9","v":"Ненецкий автономный округ"},{"$f":"'Гр&ПУЦ_v1'!D9","v":0},{"$f":"'Гр&ПУЦ_v1'!E9","v":0},"Темп роста предельного уровня цены на тепловую энергию (мощность) по графику, %",{"$f":"G12/G3-1","v":{"$error":"#DIV/0!"}},0,{"$f":"IF(OR(G10=100%,G10=\"-\"),\"-\",I12/H12-1)","v":{"$error":"#DIV/0!"}},0,{"$f":"IF(OR(I10=100%,I10=\"-\"),\"-\",K12/J12-1)","v":{"$error":"#DIV/0!"}},0,{"$f":"IF(OR(K10=100%,K10=\"-\"),\"-\",M12/L12-1)","v":{"$error":"#DIV/0!"}},0,{"$f":"IF(OR(M10=100%,M10=\"-\"),\"-\",O12/N12-1)","v":{"$error":"#DIV/0!"}},0,{"$f":"IF(OR(O10=100%,O10=\"-\"),\"-\",Q12/P12-1)","v":{"$error":"#DIV/0!"}},0,{"$f":"IF(OR(Q10=100%,Q10=\"-\"),\"-\",S12/R12-1)","v":{"$error":"#DIV/0!"}},0,{"$f":"IF(OR(S10=100%,S10=\"-\"),\"-\",U12/T12-1)","v":{"$error":"#DIV/0!"}},0,{"$f":"IF(OR(U10=100%,U10=\"-\"),\"-\",W12/V12-1)","v":{"$error":"#DIV/0!"}},0,{"$f":"IF(OR(W10=100%,W10=\"-\"),\"-\",Y12/X12-1)","v":{"$error":"#DIV/0!"}}]
[null,2,{"$f":"C9","v":"Ненецкий автономный округ"},0,0,"Графики равномерного поэтапного доведения предельного уровня цены до цены \"альтернативной котельной\", %",{"$f":"G3/АК_прогноз!C6+G11","v":{"$error":"#DIV/0!"}},{"$f":"IF(G10=100%,\"-\",G10)","v":{"$error":"#DIV/0!"}},{"$f":"IF(OR(G10=100%,G10=\"-\"),\"-\",H10+I11)","v":{"$error":"#DIV/0!"}},{"$f":"IF(I10=100%,\"-\",I10)","v":{"$error":"#DIV/0!"}},{"$f":"IF(OR(I10=100%,I10=\"-\"),\"-\",J10+K11)","v":{"$error":"#DIV/0!"}},{"$f":"IF(K10=100%,\"-\",K10)","v":{"$error":"#DIV/0!"}},{"$f":"IF(OR(K10=100%,K10=\"-\"),\"-\",L10+M11)","v":{"$error":"#DIV/0!"}},{"$f":"IF(M10=100%,\"-\",M10)","v":{"$error":"#DIV/0!"}},{"$f":"IF(OR(M10=100%,M10=\"-\"),\"-\",N10+O11)","v":{"$error":"#DIV/0!"}},{"$f":"IF(O10=100%,\"-\",O10)","v":{"$error":"#DIV/0!"}},{"$f":"IF(OR(O10=100%,O10=\"-\"),\"-\",P10+Q11)","v":{"$error":"#DIV/0!"}},{"$f":"IF(Q10=100%,\"-\",Q10)","v":{"$error":"#DIV/0!"}},{"$f":"IF(OR(Q10=100%,Q10=\"-\"),\"-\",R10+S11)","v":{"$error":"#DIV/0!"}},{"$f":"IF(S10=100%,\"-\",S10)","v":{"$error":"#DIV/0!"}},{"$f":"IF(OR(S10=100%,S10=\"-\"),\"-\",T10+U11)","v":{"$error":"#DIV/0!"}},{"$f":"IF(U10=100%,\"-\",U10)","v":{"$error":"#DIV/0!"}},{"$f":"IF(OR(U10=100%,U10=\"-\"),\"-\",V10+W11)","v":{"$error":"#DIV/0!"}},{"$f":"IF(W10=100%,\"-\",W10)","v":{"$error":"#DIV/0!"}},{"$f":"IF(OR(W10=100%,W10=\"-\"),\"-\",X10+Y11)","v":{"$error":"#DIV/0!"}}]
[null,3,"Ненецкий автономный округ",0,0,"Изменение доли ПУЦ при равномерном ее увеличении по графику доведения, %",{"$f":"(1-G3/АК_прогноз!C6)/G4","v":{"$error":"#DIV/0!"}},0,{"$f":"IF(OR(G10=100%,G10=\"-\"),\"-\",(1-$G$10+$G$11)/$G$4)","v":{"$error":"#DIV/0!"}},0,{"$f":"IF(OR(I10=100%,I10=\"-\"),\"-\",(1-$G$10+$G$11)/$G$4)","v":{"$error":"#DIV/0!"}},0,{"$f":"IF(OR(K10=100%,K10=\"-\"),\"-\",(1-$G$10+$G$11)/$G$4)","v":{"$error":"#DIV/0!"}},0,{"$f":"IF(OR(M10=100%,M10=\"-\"),\"-\",(1-$G$10+$G$11)/$G$4)","v":{"$error":"#DIV/0!"}},0,{"$f":"IF(OR(O10=100%,O10=\"-\"),\"-\",(1-$G$10+$G$11)/$G$4)","v":{"$error":"#DIV/0!"}},0,{"$f":"IF(OR(Q10=100%,Q10=\"-\"),\"-\",(1-$G$10+$G$11)/$G$4)","v":{"$error":"#DIV/0!"}},0,{"$f":"IF(OR(S10=100%,S10=\"-\"),\"-\",(1-$G$10+$G$11)/$G$4)","v":{"$error":"#DIV/0!"}},0,{"$f":"IF(OR(U10=100%,U10=\"-\"),\"-\",(1-$G$10+$G$11)/$G$4)","v":{"$error":"#DIV/0!"}},0,{"$f":"IF(OR(W10=100%,W10=\"-\"),\"-\",(1-$G$10+$G$11)/$G$4)","v":{"$error":"#DIV/0!"}}]
[null,4,"Ненецкий автономный округ",0,0,"Прогноз предельного уровня цены, утверждаемого органом регулирования, без НДС, руб./Гкал",{"$f":"IF(G10:O10<>\"-\",АК_прогноз!C6*'Гр&ПУЦ_v2'!G10,\"-\")","v":{"$error":"#DIV/0!"}},{"$f":"IF($G$10:$O$10<>\"-\",G12,\"-\")","v":{"$error":"#DIV/0!"}},{"$f":"IF(G10:O10<>\"-\",АК_прогноз!D6*'Гр&ПУЦ_v2'!I10,\"-\")","v":{"$error":"#DIV/0!"}},{"$f":"IF($G$10:$O$10<>\"-\",I12,\"-\")","v":{"$error":"#DIV/0!"}},{"$f":"IF(G10:O10<>\"-\",АК_прогноз!E6*'Гр&ПУЦ_v2'!K10,\"-\")","v":{"$error":"#DIV/0!"}},{"$f":"IF($G$10:$O$10<>\"-\",K12,\"-\")","v":{"$error":"#DIV/0!"}},{"$f":"IF(G10:O10<>\"-\",АК_прогноз!F6*'Гр&ПУЦ_v2'!M10,\"-\")","v":{"$error":"#DIV/0!"}},{"$f":"IF($G$10:$O$10<>\"-\",M12,\"-\")","v":{"$error":"#DIV/0!"}},{"$f":"IF(G10:O10<>\"-\",АК_прогноз!G6*'Гр&ПУЦ_v2'!O10,\"-\")","v":{"$error":"#DIV/0!"}},{"$f":"IF($G$10:$Y$10<>\"-\",O12,\"-\")","v":{"$error":"#DIV/0!"}},{"$f":"IF($G$10:$Y$10<>\"-\",АК_прогноз!H6*'Гр&ПУЦ_v2'!Q10,\"-\")","v":{"$error":"#DIV/0!"}},{"$f":"IF($G$10:$Y$10<>\"-\",Q12,\"-\")","v":{"$error":"#DIV/0!"}},{"$f":"IF($G$10:$Y$10<>\"-\",АК_прогноз!I6*'Гр&ПУЦ_v2'!S10,\"-\")","v":{"$error":"#DIV/0!"}},{"$f":"IF($G$10:$Y$10<>\"-\",S12,\"-\")","v":{"$error":"#DIV/0!"}},{"$f":"IF($G$10:$Y$10<>\"-\",АК_прогноз!J6*'Гр&ПУЦ_v2'!U10,\"-\")","v":{"$error":"#DIV/0!"}},{"$f":"IF($G$10:$Y$10<>\"-\",U12,\"-\")","v":{"$error":"#DIV/0!"}},{"$f":"IF($G$10:$Y$10<>\"-\",АК_прогноз!K6*'Гр&ПУЦ_v2'!W10,\"-\")","v":{"$error":"#DIV/0!"}},{"$f":"IF($G$10:$Y$10<>\"-\",W12,\"-\")","v":{"$error":"#DIV/0!"}},{"$f":"IF($G$10:$Y$10<>\"-\",АК_прогноз!L6*'Гр&ПУЦ_v2'!Y10,\"-\")","v":{"$error":"#DIV/0!"}}]

{"sheet":"Системный","index":45,"n_rows":27,"n_cols":1,"rows_kept":27,"cut":false,"hidden":true,"merged":[]}
["Инструкция"]
["Содержание"]
["И1"]
["И2"]
["С1.1"]
["С1.2"]
["С1.3"]
["С1"]
["С2.1"]
["С2.2"]
["С2.3"]
["С2.4"]
["С2.5"]
["С2.6"]
["С2"]
["С3.1"]
["С3"]
["С4.1"]
["С4.2"]
["С4.3"]
["С4.4"]
["С4"]
["С5"]
["С6"]
["И3"]
["И2.1"]
["Инвест.об."]